Workbook

Sheet 1) Summary
C3: ='2) Order Form'!D4 -> ORDER FORM SUMMER 2022 - BIKE
C4: ='2) Order Form'!D5 -> Updated August 30th 2022
C6: CUSTOMER INFO: | F6: SHIP TO: (IF DIFFERENT!) | I6: DELIVERY WEEK *
B7: NAME: *
B8: ADDRESS: * | I8: PAYMENT TERM *
B9: ZIP/CITY/COUNTRY: *
B10: PHONE: * | I10: CUSTOMER #
B11: E-MAIL: *
B12: INVOICE E-MAIL:
B13: ORG/VAT NR: *
B14: CONTACT PERSON: *
B15: *mandatory information
C16: NOTE / COMMENTS:
C24: ORDER SUMMARY | M24: *hide if not applicable
C25: Category | E25: PCS | F25: ="Order "&"("&'2) Order Form'!$P$3&")" -> Order (EUR) | G25: ="Discount "&"("&'2) Order Form'!$P$3&")" -> Discount (EUR) | H25: ="Discount %" -> Discount % | I25: ="Sum "&"("&'2) Order Form'!$P$3&")" -> Sum (EUR) | J25: Markup | M25: Last year purchase | N25: Change | O25: Change %
C26: Helmets & Helmet Acc. | E26: =SUMIF('2) Order Form'!$B$9:$B$1048576,'1) Summary'!$C26,'2) Order Form'!$I$9:$I$1048576) -> 0 | F26: =SUMIF('2) Order Form'!$B$9:$B$1048576,'1) Summary'!$C26,'2) Order Form'!$R$9:$R$1048576) -> 0.00 | G26: =IFERROR(SUMIF('2) Order Form'!$B$9:$B$1048576,'1) Summary'!$C26,'2) Order Form'!$S$9:$S$1048576),0) -> 0.00 | H26: =IFERROR(G26/F26,0) -> 0.0 % | I26: =F26-G26 -> 0.00 | J26: =IFERROR(SUMIF('2) Order Form'!$B$9:$B$1048576,'1) Summary'!$C26,'2) Order Form'!$Y$9:$Y$1048576)/I26,0) -> 0.0 | M26: 0.00 | N26: =I26-M26 -> 0.00 | O26: =IFERROR(N26/M26,"") -> 
C27: Protection | E27: =SUMIF('2) Order Form'!$B$9:$B$1048576,'1) Summary'!$C27,'2) Order Form'!$I$9:$I$1048576) -> 0 | F27: =SUMIF('2) Order Form'!$B$9:$B$1048576,'1) Summary'!$C27,'2) Order Form'!$R$9:$R$1048576) -> 0.00 | G27: =IFERROR(SUMIF('2) Order Form'!$B$9:$B$1048576,'1) Summary'!$C27,'2) Order Form'!$S$9:$S$1048576),0) -> 0.00 | H27: =IFERROR(G27/F27,0) -> 0.0 % | I27: =F27-G27 -> 0.00 | J27: =IFERROR(SUMIF('2) Order Form'!$B$9:$B$1048576,'1) Summary'!$C27,'2) Order Form'!$Y$9:$Y$1048576)/I27,0) -> 0.0 | M27: 0.00 | N27: =I27-M27 -> 0.00 | O27: =IFERROR(N27/M27,"") -> 
C28: Eyewear | E28: =SUMIF('2) Order Form'!$B$9:$B$1048576,'1) Summary'!$C28,'2) Order Form'!$I$9:$I$1048576) -> 0 | F28: =SUMIF('2) Order Form'!$B$9:$B$1048576,'1) Summary'!$C28,'2) Order Form'!$R$9:$R$1048576) -> 0.00 | G28: =IFERROR(SUMIF('2) Order Form'!$B$9:$B$1048576,'1) Summary'!$C28,'2) Order Form'!$S$9:$S$1048576),0) -> 0.00 | H28: =IFERROR(G28/F28,0) -> 0.0 % | I28: =F28-G28 -> 0.00 | J28: =IFERROR(SUMIF('2) Order Form'!$B$9:$B$1048576,'1) Summary'!$C28,'2) Order Form'!$Y$9:$Y$1048576)/I28,0) -> 0.0 | M28: 0.00 | N28: =I28-M28 -> 0.00 | O28: =IFERROR(N28/M28,"") -> 
C29: Technical Apparel | E29: =SUMIF('2) Order Form'!$B$9:$B$1048576,'1) Summary'!$C29,'2) Order Form'!$I$9:$I$1048576) -> 0 | F29: =SUMIF('2) Order Form'!$B$9:$B$1048576,'1) Summary'!$C29,'2) Order Form'!$R$9:$R$1048576) -> 0.00 | G29: =IFERROR(SUMIF('2) Order Form'!$B$9:$B$1048576,'1) Summary'!$C29,'2) Order Form'!$S$9:$S$1048576),0) -> 0.00 | H29: =IFERROR(G29/F29,0) -> 0.0 % | I29: =F29-G29 -> 0.00 | J29: =IFERROR(SUMIF('2) Order Form'!$B$9:$B$1048576,'1) Summary'!$C29,'2) Order Form'!$Y$9:$Y$1048576)/I29,0) -> 0.0 | M29: 0.00 | N29: =I29-M29 -> 0.00 | O29: =IFERROR(N29/M29,"") -> 
C30: Apparel & Headwear | E30: =SUMIF('2) Order Form'!$B$9:$B$1048576,'1) Summary'!$C30,'2) Order Form'!$I$9:$I$1048576) -> 0 | F30: =SUMIF('2) Order Form'!$B$9:$B$1048576,'1) Summary'!$C30,'2) Order Form'!$R$9:$R$1048576) -> 0.00 | G30: =IFERROR(SUMIF('2) Order Form'!$B$9:$B$1048576,'1) Summary'!$C30,'2) Order Form'!$S$9:$S$1048576),0) -> 0.00 | H30: =IFERROR(G30/F30,0) -> 0.0 % | I30: =F30-G30 -> 0.00 | J30: =IFERROR(SUMIF('2) Order Form'!$B$9:$B$1048576,'1) Summary'!$C30,'2) Order Form'!$Y$9:$Y$1048576)/I30,0) -> 0.0 | M30: 0.00 | N30: =I30-M30 -> 0.00 | O30: =IFERROR(N30/M30,"") -> 
C32: TOTALS | E32: =SUM(E26:E30) -> 0 | F32: =SUM(F26:F30) -> 0.00 | G32: =SUM(G26:G30) -> 0.00 | H32: =IFERROR(G32/F32,0) -> 0.0 % | I32: =SUM(I26:I30) -> 0.00 | J32: =IFERROR(SUM('2) Order Form'!Y9:Y1048576)/I32,0) -> 0.0 | M32: =SUM(M26:M30) -> 0.00 | N32: =I32-M32 -> 0.00 | O32: =IFERROR(N32/M32,"") -> 
C34: ="ORDER TOTALS "&"("&'2) Order Form'!$P$3&")" -> ORDER TOTALS (EUR)
C36: Total after discount | D36: ='2) Order Form'!S6 -> 0.00
C37: Markup | D37: =J32 -> 0.0 | E37: Enter VAT %
C38: Customer margin % | D38: =IFERROR((SUM('2) Order Form'!$Y$9:$Y$1048576)/(1+E38)-D36)/(SUM('2) Order Form'!$Y$9:$Y$1048576)/(1+E38)),0) -> 0.0 % | E38: 20% | F38: < < <

Sheet 2) Order Form
P2: CHOOSE CURRENCY: | R2: Total PCS | S2: =SUM(I9:I1098) -> 0
O3: > > > | P3: EUR | R3: Markup: | S3: =IFERROR(SUMPRODUCT(Q9:Q1098,I9:I1098)/SUM(T9:T1098),0) -> 0.00
D4: ORDER FORM SUMMER 2022 - BIKE | P4: MAIN DISCOUNT: | R4: Total before %: | S4: =SUM(R9:R1098) -> 0.00
D5: Updated August 30th 2022 | O5: > > > | P5: 0% | R5: Discount: | S5: =SUM(S9:S1098) -> 0.00 | U5: =IFERROR(S5/S4,0) -> 0.0 % | Y5: =I5*Q5 -> 0 | Z5: =IF(A5=OFFSET(A5,-1,0),0,1) -> 0 | AA5: 0 | AB5: =IF(C5=OFFSET(C5,-1,0),0,1) -> 0 | AC5: =IF(F5=OFFSET(F5,-1,0),0,1) -> 0
R6: Net total: | S6: =SUM(S4-S5) -> 0.00
A8: CAT.NR | B8: CATEGORY | C8: STYLENR. | D8: PRODUCT NAME | E8: Variant | F8: COLOR [Eyewear: Lens/Frame/Strap] | G8: SIZE | H8: PCS per Pack | I8: ORDER QTY | J8: ATS I | K8: =ATS!P3 -> ATS Week 35 | L8: ATS I | M8: =ATS!Q3 -> ATS Week 39 | N8: Discount Specific | O8: Discount FINAL | P8: ="WHS"&$P$3 -> WHSEUR | Q8: ="RETAIL"&$P$3 -> RETAILEUR | R8: Order | S8: Discount | T8: Net Total | U8: Size split | W8: EAN-code | Y8: Retail value | Z8: Category | AA8: Style II | AB8: Style | AC8: Color | AD8: CCTN1 | AE8: CCTN2 | AF8: STATUS
A9: 1 | B9: =VLOOKUP(A9,Classification!$H$2:$I$11,2,FALSE) -> Helmets & Helmet Acc. | C9: =INDEX(ATS!$A:$P,MATCH('2) Order Form'!$W9,ATS!$O:$O,0),1) -> 845073 | D9: =INDEX(ATS!$A:$P,MATCH('2) Order Form'!$W9,ATS!$O:$O,0),2) -> Arbitrator Mips Helmet | E9: =INDEX(ATS!$A:$P,MATCH('2) Order Form'!$W9,ATS!$O:$O,0),4) -> BWHNC-SM | F9: =INDEX(ATS!$A:$P,MATCH('2) Order Form'!$W9,ATS!$O:$O,0),5) -> Bronco White/Natural Carbon | G9: =INDEX(ATS!$A:$P,MATCH('2) Order Form'!$W9,ATS!$O:$O,0),6) -> SM | H9: 1 | I9: 0 | J9: =IFERROR(VLOOKUP(W9,ATS!$O:$P,2,FALSE),0) -> 101 | K9: =IF(J9=99999,"OPEN",IF(J9>50,"50+",IF(J9<=0,"0",J9))) -> 50+ | L9: =IFERROR(VLOOKUP(W9,ATS!$O:$Q,3,FALSE),0) -> 101 | M9: =IF(L9=99999,"OPEN",IF(L9>50,"50+",IF(L9<=0,"0",L9))) -> 50+ | N9: 0% | O9: =IF(N9<>0,N9,$P$5) -> 0% | P9: =VLOOKUP($C9,Prices!$A$3:$R$1996,MATCH('2) Order Form'!P$8,Prices!$A$2:$R$2,0),FALSE) -> 175.00 | Q9: =VLOOKUP($C9,Prices!$A$3:$R$1996,MATCH('2) Order Form'!Q$8,Prices!$A$2:$R$2,0),FALSE) -> 349.95 | R9: =I9*P9 -> 0 | S9: =R9*O9 -> 0 | T9: =R9-S9 -> 0 | U9: =IFERROR(I9/($I$161+$I$162+$I$163),0) -> 0% | W9: 7048652766632 | Y9: =I9*Q9 -> 0 | Z9: =IF(A9=OFFSET(A9,-1,0),0,1) -> 1 | AA9: 0 | AB9: =IF(C9=OFFSET(C9,-1,0),0,1) -> 1 | AC9: =IF(F9=OFFSET(F9,-1,0),0,1) -> 1 | AD9: =CONCATENATE(C9,F9) -> 845073Bronco White/Natural Carbon | AE9: =IFERROR(IF(B9="EYEWEAR",CONCATENATE(C9,"-",G9),C9),C9) -> 845073 | AF9: =INDEX(ATS!$A:$P,MATCH('2) Order Form'!$W9,ATS!$O:$O,0),7) -> Stock
A10: 1 | B10: =VLOOKUP(A10,Classification!$H$2:$I$11,2,FALSE) -> Helmets & Helmet Acc. | C10: =INDEX(ATS!$A:$P,MATCH('2) Order Form'!$W10,ATS!$O:$O,0),1) -> 845073 | D10: =INDEX(ATS!$A:$P,MATCH('2) Order Form'!$W10,ATS!$O:$O,0),2) -> Arbitrator Mips Helmet | E10: =INDEX(ATS!$A:$P,MATCH('2) Order Form'!$W10,ATS!$O:$O,0),4) -> BWHNC-ML | F10: =INDEX(ATS!$A:$P,MATCH('2) Order Form'!$W10,ATS!$O:$O,0),5) -> Bronco White/Natural Carbon | G10: =INDEX(ATS!$A:$P,MATCH('2) Order Form'!$W10,ATS!$O:$O,0),6) -> ML | H10: 1 | I10: 0 | J10: =IFERROR(VLOOKUP(W10,ATS!$O:$P,2,FALSE),0) -> 86 | K10: 50+ | L10: =IFERROR(VLOOKUP(W10,ATS!$O:$Q,3,FALSE),0) -> 86 | M10: 50+ | N10: 0% | O10: 0% | P10: =VLOOKUP($C10,Prices!$A$3:$R$1996,MATCH('2) Order Form'!P$8,Prices!$A$2:$R$2,0),FALSE) -> 175.00 | Q10: =VLOOKUP($C10,Prices!$A$3:$R$1996,MATCH('2) Order Form'!Q$8,Prices!$A$2:$R$2,0),FALSE) -> 349.95 | R10: 0 | S10: 0 | T10: 0 | U10: 0% | W10: 7048652766625 | Y10: 0 | Z10: =IF(A10=OFFSET(A10,-1,0),0,1) -> 0 | AA10: =IF(C10=OFFSET(C10,-1,0),OFFSET(AA10,-1,0),OFFSET(AA10,-1,0)+1) -> 0 | AB10: =IF(C10=OFFSET(C10,-1,0),0,1) -> 0 | AC10: =IF(F10=OFFSET(F10,-1,0),0,1) -> 0 | AD10: 845073Bronco White/Natural Carbon | AE10: 845073 | AF10: =INDEX(ATS!$A:$P,MATCH('2) Order Form'!$W10,ATS!$O:$O,0),7) -> Stock
A11: 1 | B11: =VLOOKUP(A11,Classification!$H$2:$I$11,2,FALSE) -> Helmets & Helmet Acc. | C11: =INDEX(ATS!$A:$P,MATCH('2) Order Form'!$W11,ATS!$O:$O,0),1) -> 845073 | D11: =INDEX(ATS!$A:$P,MATCH('2) Order Form'!$W11,ATS!$O:$O,0),2) -> Arbitrator Mips Helmet | E11: =INDEX(ATS!$A:$P,MATCH('2) Order Form'!$W11,ATS!$O:$O,0),4) -> DPUNC-SM | F11: =INDEX(ATS!$A:$P,MATCH('2) Order Form'!$W11,ATS!$O:$O,0),5) -> Deep Purple/Natural Carbon | G11: =INDEX(ATS!$A:$P,MATCH('2) Order Form'!$W11,ATS!$O:$O,0),6) -> SM | H11: 1 | I11: 0 | J11: =IFERROR(VLOOKUP(W11,ATS!$O:$P,2,FALSE),0) -> 34 | K11: 34 | L11: =IFERROR(VLOOKUP(W11,ATS!$O:$Q,3,FALSE),0) -> 34 | M11: 34 | N11: 0% | O11: 0% | P11: =VLOOKUP($C11,Prices!$A$3:$R$1996,MATCH('2) Order Form'!P$8,Prices!$A$2:$R$2,0),FALSE) -> 175.00 | Q11: =VLOOKUP($C11,Prices!$A$3:$R$1996,MATCH('2) Order Form'!Q$8,Prices!$A$2:$R$2,0),FALSE) -> 349.95 | R11: 0 | S11: 0 | T11: 0 | U11: 0% | W11: 7048652766656 | Y11: 0 | Z11: 0 | AA11: 0 | AB11: 0 | AC11: 1 | AD11: 845073Deep Purple/Natural Carbon | AE11: 845073 | AF11: =INDEX(ATS!$A:$P,MATCH('2) Order Form'!$W11,ATS!$O:$O,0),7) -> Stock
A12: 1 | B12: =VLOOKUP(A12,Classification!$H$2:$I$11,2,FALSE) -> Helmets & Helmet Acc. | C12: =INDEX(ATS!$A:$P,MATCH('2) Order Form'!$W12,ATS!$O:$O,0),1) -> 845073 | D12: =INDEX(ATS!$A:$P,MATCH('2) Order Form'!$W12,ATS!$O:$O,0),2) -> Arbitrator Mips Helmet | E12: =INDEX(ATS!$A:$P,MATCH('2) Order Form'!$W12,ATS!$O:$O,0),4) -> DPUNC-ML | F12: =INDEX(ATS!$A:$P,MATCH('2) Order Form'!$W12,ATS!$O:$O,0),5) -> Deep Purple/Natural Carbon | G12: =INDEX(ATS!$A:$P,MATCH('2) Order Form'!$W12,ATS!$O:$O,0),6) -> ML | H12: 1 | I12: 0 | J12: =IFERROR(VLOOKUP(W12,ATS!$O:$P,2,FALSE),0) -> 60 | K12: 50+ | L12: =IFERROR(VLOOKUP(W12,ATS!$O:$Q,3,FALSE),0) -> 60 | M12: 50+ | N12: 0% | O12: 0% | P12: =VLOOKUP($C12,Prices!$A$3:$R$1996,MATCH('2) Order Form'!P$8,Prices!$A$2:$R$2,0),FALSE) -> 175.00 | Q12: =VLOOKUP($C12,Prices!$A$3:$R$1996,MATCH('2) Order Form'!Q$8,Prices!$A$2:$R$2,0),FALSE) -> 349.95 | R12: 0 | S12: 0 | T12: 0 | U12: 0% | W12: 7048652766649 | Y12: 0 | Z12: 0 | AA12: 0 | AB12: 0 | AC12: 0 | AD12: 845073Deep Purple/Natural Carbon | AE12: 845073 | AF12: =INDEX(ATS!$A:$P,MATCH('2) Order Form'!$W12,ATS!$O:$O,0),7) -> Stock
A13: 1 | B13: =VLOOKUP(A13,Classification!$H$2:$I$11,2,FALSE) -> Helmets & Helmet Acc. | C13: =INDEX(ATS!$A:$P,MATCH('2) Order Form'!$W13,ATS!$O:$O,0),1) -> 845073 | D13: =INDEX(ATS!$A:$P,MATCH('2) Order Form'!$W13,ATS!$O:$O,0),2) -> Arbitrator Mips Helmet | E13: =INDEX(ATS!$A:$P,MATCH('2) Order Form'!$W13,ATS!$O:$O,0),4) -> MBKNC-SM | F13: =INDEX(ATS!$A:$P,MATCH('2) Order Form'!$W13,ATS!$O:$O,0),5) -> Matte Black/Natural Carbon | G13: =INDEX(ATS!$A:$P,MATCH('2) Order Form'!$W13,ATS!$O:$O,0),6) -> SM | H13: 1 | I13: 0 | J13: =IFERROR(VLOOKUP(W13,ATS!$O:$P,2,FALSE),0) -> 167 | K13: 50+ | L13: =IFERROR(VLOOKUP(W13,ATS!$O:$Q,3,FALSE),0) -> 167 | M13: 50+ | N13: 0% | O13: 0% | P13: =VLOOKUP($C13,Prices!$A$3:$R$1996,MATCH('2) Order Form'!P$8,Prices!$A$2:$R$2,0),FALSE) -> 175.00 | Q13: =VLOOKUP($C13,Prices!$A$3:$R$1996,MATCH('2) Order Form'!Q$8,Prices!$A$2:$R$2,0),FALSE) -> 349.95 | R13: 0 | S13: 0 | T13: 0 | U13: 0% | W13: 7048652273154 | Y13: 0 | Z13: 0 | AA13: 0 | AB13: 0 | AC13: 1 | AD13: 845073Matte Black/Natural Carbon | AE13: 845073 | AF13: =INDEX(ATS!$A:$P,MATCH('2) Order Form'!$W13,ATS!$O:$O,0),7) -> Active
A14: 1 | B14: =VLOOKUP(A14,Classification!$H$2:$I$11,2,FALSE) -> Helmets & Helmet Acc. | C14: =INDEX(ATS!$A:$P,MATCH('2) Order Form'!$W14,ATS!$O:$O,0),1) -> 845073 | D14: =INDEX(ATS!$A:$P,MATCH('2) Order Form'!$W14,ATS!$O:$O,0),2) -> Arbitrator Mips Helmet | E14: =INDEX(ATS!$A:$P,MATCH('2) Order Form'!$W14,ATS!$O:$O,0),4) -> MBKNC-ML | F14: =INDEX(ATS!$A:$P,MATCH('2) Order Form'!$W14,ATS!$O:$O,0),5) -> Matte Black/Natural Carbon | G14: =INDEX(ATS!$A:$P,MATCH('2) Order Form'!$W14,ATS!$O:$O,0),6) -> ML | H14: 1 | I14: 0 | J14: =IFERROR(VLOOKUP(W14,ATS!$O:$P,2,FALSE),0) -> 324 | K14: 50+ | L14: =IFERROR(VLOOKUP(W14,ATS!$O:$Q,3,FALSE),0) -> 324 | M14: 50+ | N14: 0% | O14: 0% | P14: =VLOOKUP($C14,Prices!$A$3:$R$1996,MATCH('2) Order Form'!P$8,Prices!$A$2:$R$2,0),FALSE) -> 175.00 | Q14: =VLOOKUP($C14,Prices!$A$3:$R$1996,MATCH('2) Order Form'!Q$8,Prices!$A$2:$R$2,0),FALSE) -> 349.95 | R14: 0 | S14: 0 | T14: 0 | U14: 0% | W14: 7048652273147 | Y14: 0 | Z14: 0 | AA14: 0 | AB14: 0 | AC14: 0 | AD14: 845073Matte Black/Natural Carbon | AE14: 845073 | AF14: =INDEX(ATS!$A:$P,MATCH('2) Order Form'!$W14,ATS!$O:$O,0),7) -> Active
A15: 1 | B15: =VLOOKUP(A15,Classification!$H$2:$I$11,2,FALSE) -> Helmets & Helmet Acc. | C15: =INDEX(ATS!$A:$P,MATCH('2) Order Form'!$W15,ATS!$O:$O,0),1) -> 845073 | D15: =INDEX(ATS!$A:$P,MATCH('2) Order Form'!$W15,ATS!$O:$O,0),2) -> Arbitrator Mips Helmet | E15: =INDEX(ATS!$A:$P,MATCH('2) Order Form'!$W15,ATS!$O:$O,0),4) -> MFLNC-SM | F15: =INDEX(ATS!$A:$P,MATCH('2) Order Form'!$W15,ATS!$O:$O,0),5) -> Matte Fluo/Natural Carbon | G15: =INDEX(ATS!$A:$P,MATCH('2) Order Form'!$W15,ATS!$O:$O,0),6) -> SM | H15: 1 | I15: 0 | J15: =IFERROR(VLOOKUP(W15,ATS!$O:$P,2,FALSE),0) -> 60 | K15: 50+ | L15: =IFERROR(VLOOKUP(W15,ATS!$O:$Q,3,FALSE),0) -> 60 | M15: 50+ | N15: 0% | O15: 0% | P15: =VLOOKUP($C15,Prices!$A$3:$R$1996,MATCH('2) Order Form'!P$8,Prices!$A$2:$R$2,0),FALSE) -> 175.00 | Q15: =VLOOKUP($C15,Prices!$A$3:$R$1996,MATCH('2) Order Form'!Q$8,Prices!$A$2:$R$2,0),FALSE) -> 349.95 | R15: 0 | S15: 0 | T15: 0 | U15: 0% | W15: 7048652766670 | Y15: 0 | Z15: 0 | AA15: 0 | AB15: 0 | AC15: 1 | AD15: 845073Matte Fluo/Natural Carbon | AE15: 845073 | AF15: =INDEX(ATS!$A:$P,MATCH('2) Order Form'!$W15,ATS!$O:$O,0),7) -> Stock
A16: 1 | B16: =VLOOKUP(A16,Classification!$H$2:$I$11,2,FALSE) -> Helmets & Helmet Acc. | C16: =INDEX(ATS!$A:$P,MATCH('2) Order Form'!$W16,ATS!$O:$O,0),1) -> 845073 | D16: =INDEX(ATS!$A:$P,MATCH('2) Order Form'!$W16,ATS!$O:$O,0),2) -> Arbitrator Mips Helmet | E16: =INDEX(ATS!$A:$P,MATCH('2) Order Form'!$W16,ATS!$O:$O,0),4) -> MFLNC-ML | F16: =INDEX(ATS!$A:$P,MATCH('2) Order Form'!$W16,ATS!$O:$O,0),5) -> Matte Fluo/Natural Carbon | G16: =INDEX(ATS!$A:$P,MATCH('2) Order Form'!$W16,ATS!$O:$O,0),6) -> ML | H16: 1 | I16: 0 | J16: =IFERROR(VLOOKUP(W16,ATS!$O:$P,2,FALSE),0) -> 87 | K16: 50+ | L16: =IFERROR(VLOOKUP(W16,ATS!$O:$Q,3,FALSE),0) -> 87 | M16: 50+ | N16: 0% | O16: 0% | P16: =VLOOKUP($C16,Prices!$A$3:$R$1996,MATCH('2) Order Form'!P$8,Prices!$A$2:$R$2,0),FALSE) -> 175.00 | Q16: =VLOOKUP($C16,Prices!$A$3:$R$1996,MATCH('2) Order Form'!Q$8,Prices!$A$2:$R$2,0),FALSE) -> 349.95 | R16: 0 | S16: 0 | T16: 0 | U16: 0% | W16: 7048652766663 | Y16: 0 | Z16: 0 | AA16: 0 | AB16: 0 | AC16: 0 | AD16: 845073Matte Fluo/Natural Carbon | AE16: 845073 | AF16: =INDEX(ATS!$A:$P,MATCH('2) Order Form'!$W16,ATS!$O:$O,0),7) -> Stock
A17: 1 | B17: =VLOOKUP(A17,Classification!$H$2:$I$11,2,FALSE) -> Helmets & Helmet Acc. | C17: =INDEX(ATS!$A:$P,MATCH('2) Order Form'!$W17,ATS!$O:$O,0),1) -> 845104 | D17: =INDEX(ATS!$A:$P,MATCH('2) Order Form'!$W17,ATS!$O:$O,0),2) -> Trailblazer Mips Helmet | E17: =INDEX(ATS!$A:$P,MATCH('2) Order Form'!$W17,ATS!$O:$O,0),4) -> BGRRG-SM | F17: =INDEX(ATS!$A:$P,MATCH('2) Order Form'!$W17,ATS!$O:$O,0),5) -> Bolt Gray/Rose Gold | G17: =INDEX(ATS!$A:$P,MATCH('2) Order Form'!$W17,ATS!$O:$O,0),6) -> SM | H17: 1 | I17: 0 | J17: =IFERROR(VLOOKUP(W17,ATS!$O:$P,2,FALSE),0) -> 85 | K17: 50+ | L17: =IFERROR(VLOOKUP(W17,ATS!$O:$Q,3,FALSE),0) -> 213 | M17: 50+ | N17: 0% | O17: 0% | P17: =VLOOKUP($C17,Prices!$A$3:$R$1996,MATCH('2) Order Form'!P$8,Prices!$A$2:$R$2,0),FALSE) -> 90.00 | Q17: =VLOOKUP($C17,Prices!$A$3:$R$1996,MATCH('2) Order Form'!Q$8,Prices!$A$2:$R$2,0),FALSE) -> 179.95 | R17: 0 | S17: 0 | T17: 0 | U17: 0% | W17: 7048652767554 | Y17: 0 | Z17: 0 | AA17: 1 | AB17: 1 | AC17: 1 | AD17: 845104Bolt Gray/Rose Gold | AE17: 845104 | AF17: =INDEX(ATS!$A:$P,MATCH('2) Order Form'!$W17,ATS!$O:$O,0),7) -> Stock
A18: 1 | B18: =VLOOKUP(A18,Classification!$H$2:$I$11,2,FALSE) -> Helmets & Helmet Acc. | C18: =INDEX(ATS!$A:$P,MATCH('2) Order Form'!$W18,ATS!$O:$O,0),1) -> 845104 | D18: =INDEX(ATS!$A:$P,MATCH('2) Order Form'!$W18,ATS!$O:$O,0),2) -> Trailblazer Mips Helmet | E18: =INDEX(ATS!$A:$P,MATCH('2) Order Form'!$W18,ATS!$O:$O,0),4) -> BGRRG-ML | F18: =INDEX(ATS!$A:$P,MATCH('2) Order Form'!$W18,ATS!$O:$O,0),5) -> Bolt Gray/Rose Gold | G18: =INDEX(ATS!$A:$P,MATCH('2) Order Form'!$W18,ATS!$O:$O,0),6) -> ML | H18: 1 | I18: 0 | J18: =IFERROR(VLOOKUP(W18,ATS!$O:$P,2,FALSE),0) -> 82 | K18: 50+ | L18: =IFERROR(VLOOKUP(W18,ATS!$O:$Q,3,FALSE),0) -> 386 | M18: 50+ | N18: 0% | O18: 0% | P18: =VLOOKUP($C18,Prices!$A$3:$R$1996,MATCH('2) Order Form'!P$8,Prices!$A$2:$R$2,0),FALSE) -> 90.00 | Q18: =VLOOKUP($C18,Prices!$A$3:$R$1996,MATCH('2) Order Form'!Q$8,Prices!$A$2:$R$2,0),FALSE) -> 179.95 | R18: 0 | S18: 0 | T18: 0 | U18: 0% | W18: 7048652767547 | Y18: 0 | Z18: 0 | AA18: 1 | AB18: 0 | AC18: 0 | AD18: 845104Bolt Gray/Rose Gold | AE18: 845104 | AF18: =INDEX(ATS!$A:$P,MATCH('2) Order Form'!$W18,ATS!$O:$O,0),7) -> Stock
A19: 1 | B19: =VLOOKUP(A19,Classification!$H$2:$I$11,2,FALSE) -> Helmets & Helmet Acc. | C19: =INDEX(ATS!$A:$P,MATCH('2) Order Form'!$W19,ATS!$O:$O,0),1) -> 845104 | D19: =INDEX(ATS!$A:$P,MATCH('2) Order Form'!$W19,ATS!$O:$O,0),2) -> Trailblazer Mips Helmet | E19: =INDEX(ATS!$A:$P,MATCH('2) Order Form'!$W19,ATS!$O:$O,0),4) -> BGRRG-LXL | F19: =INDEX(ATS!$A:$P,MATCH('2) Order Form'!$W19,ATS!$O:$O,0),5) -> Bolt Gray/Rose Gold | G19: =INDEX(ATS!$A:$P,MATCH('2) Order Form'!$W19,ATS!$O:$O,0),6) -> LXL | H19: 1 | I19: 0 | J19: =IFERROR(VLOOKUP(W19,ATS!$O:$P,2,FALSE),0) -> 36 | K19: 36 | L19: =IFERROR(VLOOKUP(W19,ATS!$O:$Q,3,FALSE),0) -> 156 | M19: 50+ | N19: 0% | O19: 0% | P19: =VLOOKUP($C19,Prices!$A$3:$R$1996,MATCH('2) Order Form'!P$8,Prices!$A$2:$R$2,0),FALSE) -> 90.00 | Q19: =VLOOKUP($C19,Prices!$A$3:$R$1996,MATCH('2) Order Form'!Q$8,Prices!$A$2:$R$2,0),FALSE) -> 179.95 | R19: 0 | S19: 0 | T19: 0 | U19: 0% | W19: 7048652767530 | Y19: 0 | Z19: 0 | AA19: 1 | AB19: 0 | AC19: 0 | AD19: 845104Bolt Gray/Rose Gold | AE19: 845104 | AF19: =INDEX(ATS!$A:$P,MATCH('2) Order Form'!$W19,ATS!$O:$O,0),7) -> Stock
A20: 1 | B20: =VLOOKUP(A20,Classification!$H$2:$I$11,2,FALSE) -> Helmets & Helmet Acc. | C20: =INDEX(ATS!$A:$P,MATCH('2) Order Form'!$W20,ATS!$O:$O,0),1) -> 845104 | D20: =INDEX(ATS!$A:$P,MATCH('2) Order Form'!$W20,ATS!$O:$O,0),2) -> Trailblazer Mips Helmet | E20: =INDEX(ATS!$A:$P,MATCH('2) Order Form'!$W20,ATS!$O:$O,0),4) -> BRWHT-SM | F20: =INDEX(ATS!$A:$P,MATCH('2) Order Form'!$W20,ATS!$O:$O,0),5) -> Bronco White | G20: =INDEX(ATS!$A:$P,MATCH('2) Order Form'!$W20,ATS!$O:$O,0),6) -> SM | H20: 1 | I20: 0 | J20: =IFERROR(VLOOKUP(W20,ATS!$O:$P,2,FALSE),0) -> 39 | K20: 39 | L20: =IFERROR(VLOOKUP(W20,ATS!$O:$Q,3,FALSE),0) -> 39 | M20: 39 | N20: 0% | O20: 0% | P20: =VLOOKUP($C20,Prices!$A$3:$R$1996,MATCH('2) Order Form'!P$8,Prices!$A$2:$R$2,0),FALSE) -> 90.00 | Q20: =VLOOKUP($C20,Prices!$A$3:$R$1996,MATCH('2) Order Form'!Q$8,Prices!$A$2:$R$2,0),FALSE) -> 179.95 | R20: 0 | S20: 0 | T20: 0 | U20: 0% | W20: 7048652767585 | Y20: 0 | Z20: 0 | AA20: 1 | AB20: 0 | AC20: 1 | AD20: 845104Bronco White | AE20: 845104 | AF20: =INDEX(ATS!$A:$P,MATCH('2) Order Form'!$W20,ATS!$O:$O,0),7) -> Stock
A21: 1 | B21: =VLOOKUP(A21,Classification!$H$2:$I$11,2,FALSE) -> Helmets & Helmet Acc. | C21: =INDEX(ATS!$A:$P,MATCH('2) Order Form'!$W21,ATS!$O:$O,0),1) -> 845104 | D21: =INDEX(ATS!$A:$P,MATCH('2) Order Form'!$W21,ATS!$O:$O,0),2) -> Trailblazer Mips Helmet | E21: =INDEX(ATS!$A:$P,MATCH('2) Order Form'!$W21,ATS!$O:$O,0),4) -> BRWHT-ML | F21: =INDEX(ATS!$A:$P,MATCH('2) Order Form'!$W21,ATS!$O:$O,0),5) -> Bronco White | G21: =INDEX(ATS!$A:$P,MATCH('2) Order Form'!$W21,ATS!$O:$O,0),6) -> ML | H21: 1 | I21: 0 | J21: =IFERROR(VLOOKUP(W21,ATS!$O:$P,2,FALSE),0) -> 46 | K21: 46 | L21: =IFERROR(VLOOKUP(W21,ATS!$O:$Q,3,FALSE),0) -> 46 | M21: 46 | N21: 0% | O21: 0% | P21: =VLOOKUP($C21,Prices!$A$3:$R$1996,MATCH('2) Order Form'!P$8,Prices!$A$2:$R$2,0),FALSE) -> 90.00 | Q21: =VLOOKUP($C21,Prices!$A$3:$R$1996,MATCH('2) Order Form'!Q$8,Prices!$A$2:$R$2,0),FALSE) -> 179.95 | R21: 0 | S21: 0 | T21: 0 | U21: 0% | W21: 7048652767578 | Y21: 0 | Z21: 0 | AA21: 1 | AB21: 0 | AC21: 0 | AD21: 845104Bronco White | AE21: 845104 | AF21: =INDEX(ATS!$A:$P,MATCH('2) Order Form'!$W21,ATS!$O:$O,0),7) -> Stock
A22: 1 | B22: =VLOOKUP(A22,Classification!$H$2:$I$11,2,FALSE) -> Helmets & Helmet Acc. | C22: =INDEX(ATS!$A:$P,MATCH('2) Order Form'!$W22,ATS!$O:$O,0),1) -> 845104 | D22: =INDEX(ATS!$A:$P,MATCH('2) Order Form'!$W22,ATS!$O:$O,0),2) -> Trailblazer Mips Helmet | E22: =INDEX(ATS!$A:$P,MATCH('2) Order Form'!$W22,ATS!$O:$O,0),4) -> BRWHT-LXL | F22: =INDEX(ATS!$A:$P,MATCH('2) Order Form'!$W22,ATS!$O:$O,0),5) -> Bronco White | G22: =INDEX(ATS!$A:$P,MATCH('2) Order Form'!$W22,ATS!$O:$O,0),6) -> LXL | H22: 1 | I22: 0 | J22: =IFERROR(VLOOKUP(W22,ATS!$O:$P,2,FALSE),0) -> 30 | K22: 30 | L22: =IFERROR(VLOOKUP(W22,ATS!$O:$Q,3,FALSE),0) -> 30 | M22: 30 | N22: 0% | O22: 0% | P22: =VLOOKUP($C22,Prices!$A$3:$R$1996,MATCH('2) Order Form'!P$8,Prices!$A$2:$R$2,0),FALSE) -> 90.00 | Q22: =VLOOKUP($C22,Prices!$A$3:$R$1996,MATCH('2) Order Form'!Q$8,Prices!$A$2:$R$2,0),FALSE) -> 179.95 | R22: 0 | S22: 0 | T22: 0 | U22: 0% | W22: 7048652767561 | Y22: 0 | Z22: 0 | AA22: 1 | AB22: 0 | AC22: 0 | AD22: 845104Bronco White | AE22: 845104 | AF22: =INDEX(ATS!$A:$P,MATCH('2) Order Form'!$W22,ATS!$O:$O,0),7) -> Stock
A23: 1 | B23: =VLOOKUP(A23,Classification!$H$2:$I$11,2,FALSE) -> Helmets & Helmet Acc. | C23: =INDEX(ATS!$A:$P,MATCH('2) Order Form'!$W23,ATS!$O:$O,0),1) -> 845104 | D23: =INDEX(ATS!$A:$P,MATCH('2) Order Form'!$W23,ATS!$O:$O,0),2) -> Trailblazer Mips Helmet | E23: =INDEX(ATS!$A:$P,MATCH('2) Order Form'!$W23,ATS!$O:$O,0),4) -> MBLCK-SM | F23: =INDEX(ATS!$A:$P,MATCH('2) Order Form'!$W23,ATS!$O:$O,0),5) -> Matte Black | G23: =INDEX(ATS!$A:$P,MATCH('2) Order Form'!$W23,ATS!$O:$O,0),6) -> SM | H23: 1 | I23: 0 | J23: =IFERROR(VLOOKUP(W23,ATS!$O:$P,2,FALSE),0) -> 185 | K23: 50+ | L23: =IFERROR(VLOOKUP(W23,ATS!$O:$Q,3,FALSE),0) -> 497 | M23: 50+ | N23: 0% | O23: 0% | P23: =VLOOKUP($C23,Prices!$A$3:$R$1996,MATCH('2) Order Form'!P$8,Prices!$A$2:$R$2,0),FALSE) -> 90.00 | Q23: =VLOOKUP($C23,Prices!$A$3:$R$1996,MATCH('2) Order Form'!Q$8,Prices!$A$2:$R$2,0),FALSE) -> 179.95 | R23: 0 | S23: 0 | T23: 0 | U23: 0% | W23: 7048652540409 | Y23: 0 | Z23: 0 | AA23: 1 | AB23: 0 | AC23: 1 | AD23: 845104Matte Black | AE23: 845104 | AF23: =INDEX(ATS!$A:$P,MATCH('2) Order Form'!$W23,ATS!$O:$O,0),7) -> Active
A24: 1 | B24: =VLOOKUP(A24,Classification!$H$2:$I$11,2,FALSE) -> Helmets & Helmet Acc. | C24: =INDEX(ATS!$A:$P,MATCH('2) Order Form'!$W24,ATS!$O:$O,0),1) -> 845104 | D24: =INDEX(ATS!$A:$P,MATCH('2) Order Form'!$W24,ATS!$O:$O,0),2) -> Trailblazer Mips Helmet | E24: =INDEX(ATS!$A:$P,MATCH('2) Order Form'!$W24,ATS!$O:$O,0),4) -> MBLCK-ML | F24: =INDEX(ATS!$A:$P,MATCH('2) Order Form'!$W24,ATS!$O:$O,0),5) -> Matte Black | G24: =INDEX(ATS!$A:$P,MATCH('2) Order Form'!$W24,ATS!$O:$O,0),6) -> ML | H24: 1 | I24: 0 | J24: =IFERROR(VLOOKUP(W24,ATS!$O:$P,2,FALSE),0) -> 619 | K24: 50+ | L24: =IFERROR(VLOOKUP(W24,ATS!$O:$Q,3,FALSE),0) -> 1307 | M24: 50+ | N24: 0% | O24: 0% | P24: =VLOOKUP($C24,Prices!$A$3:$R$1996,MATCH('2) Order Form'!P$8,Prices!$A$2:$R$2,0),FALSE) -> 90.00 | Q24: =VLOOKUP($C24,Prices!$A$3:$R$1996,MATCH('2) Order Form'!Q$8,Prices!$A$2:$R$2,0),FALSE) -> 179.95 | R24: 0 | S24: 0 | T24: 0 | U24: 0% | W24: 7048652540393 | Y24: 0 | Z24: 0 | AA24: 1 | AB24: 0 | AC24: 0 | AD24: 845104Matte Black | AE24: 845104 | AF24: =INDEX(ATS!$A:$P,MATCH('2) Order Form'!$W24,ATS!$O:$O,0),7) -> Active
A25: 1 | B25: =VLOOKUP(A25,Classification!$H$2:$I$11,2,FALSE) -> Helmets & Helmet Acc. | C25: =INDEX(ATS!$A:$P,MATCH('2) Order Form'!$W25,ATS!$O:$O,0),1) -> 845104 | D25: =INDEX(ATS!$A:$P,MATCH('2) Order Form'!$W25,ATS!$O:$O,0),2) -> Trailblazer Mips Helmet | E25: =INDEX(ATS!$A:$P,MATCH('2) Order Form'!$W25,ATS!$O:$O,0),4) -> MBLCK-LXL | F25: =INDEX(ATS!$A:$P,MATCH('2) Order Form'!$W25,ATS!$O:$O,0),5) -> Matte Black | G25: =INDEX(ATS!$A:$P,MATCH('2) Order Form'!$W25,ATS!$O:$O,0),6) -> LXL | H25: 1 | I25: 0 | J25: =IFERROR(VLOOKUP(W25,ATS!$O:$P,2,FALSE),0) -> 391 | K25: 50+ | L25: =IFERROR(VLOOKUP(W25,ATS!$O:$Q,3,FALSE),0) -> 823 | M25: 50+ | N25: 0% | O25: 0% | P25: =VLOOKUP($C25,Prices!$A$3:$R$1996,MATCH('2) Order Form'!P$8,Prices!$A$2:$R$2,0),FALSE) -> 90.00 | Q25: =VLOOKUP($C25,Prices!$A$3:$R$1996,MATCH('2) Order Form'!Q$8,Prices!$A$2:$R$2,0),FALSE) -> 179.95 | R25: 0 | S25: 0 | T25: 0 | U25: 0% | W25: 7048652540386 | Y25: 0 | Z25: 0 | AA25: 1 | AB25: 0 | AC25: 0 | AD25: 845104Matte Black | AE25: 845104 | AF25: =INDEX(ATS!$A:$P,MATCH('2) Order Form'!$W25,ATS!$O:$O,0),7) -> Active
A26: 1 | B26: =VLOOKUP(A26,Classification!$H$2:$I$11,2,FALSE) -> Helmets & Helmet Acc. | C26: =INDEX(ATS!$A:$P,MATCH('2) Order Form'!$W26,ATS!$O:$O,0),1) -> 845104 | D26: =INDEX(ATS!$A:$P,MATCH('2) Order Form'!$W26,ATS!$O:$O,0),2) -> Trailblazer Mips Helmet | E26: =INDEX(ATS!$A:$P,MATCH('2) Order Form'!$W26,ATS!$O:$O,0),4) -> MFLUO-SM | F26: =INDEX(ATS!$A:$P,MATCH('2) Order Form'!$W26,ATS!$O:$O,0),5) -> Matte Fluo | G26: =INDEX(ATS!$A:$P,MATCH('2) Order Form'!$W26,ATS!$O:$O,0),6) -> SM | H26: 1 | I26: 0 | J26: =IFERROR(VLOOKUP(W26,ATS!$O:$P,2,FALSE),0) -> 36 | K26: 36 | L26: =IFERROR(VLOOKUP(W26,ATS!$O:$Q,3,FALSE),0) -> 36 | M26: 36 | N26: 0% | O26: 0% | P26: =VLOOKUP($C26,Prices!$A$3:$R$1996,MATCH('2) Order Form'!P$8,Prices!$A$2:$R$2,0),FALSE) -> 90.00 | Q26: =VLOOKUP($C26,Prices!$A$3:$R$1996,MATCH('2) Order Form'!Q$8,Prices!$A$2:$R$2,0),FALSE) -> 179.95 | R26: 0 | S26: 0 | T26: 0 | U26: 0% | W26: 7048652767615 | Y26: 0 | Z26: 0 | AA26: 1 | AB26: 0 | AC26: 1 | AD26: 845104Matte Fluo | AE26: 845104 | AF26: =INDEX(ATS!$A:$P,MATCH('2) Order Form'!$W26,ATS!$O:$O,0),7) -> Stock
A27: 1 | B27: =VLOOKUP(A27,Classification!$H$2:$I$11,2,FALSE) -> Helmets & Helmet Acc. | C27: =INDEX(ATS!$A:$P,MATCH('2) Order Form'!$W27,ATS!$O:$O,0),1) -> 845104 | D27: =INDEX(ATS!$A:$P,MATCH('2) Order Form'!$W27,ATS!$O:$O,0),2) -> Trailblazer Mips Helmet | E27: =INDEX(ATS!$A:$P,MATCH('2) Order Form'!$W27,ATS!$O:$O,0),4) -> MFLUO-ML | F27: =INDEX(ATS!$A:$P,MATCH('2) Order Form'!$W27,ATS!$O:$O,0),5) -> Matte Fluo | G27: =INDEX(ATS!$A:$P,MATCH('2) Order Form'!$W27,ATS!$O:$O,0),6) -> ML | H27: 1 | I27: 0 | J27: =IFERROR(VLOOKUP(W27,ATS!$O:$P,2,FALSE),0) -> 62 | K27: 50+ | L27: =IFERROR(VLOOKUP(W27,ATS!$O:$Q,3,FALSE),0) -> 62 | M27: 50+ | N27: 0% | O27: 0% | P27: =VLOOKUP($C27,Prices!$A$3:$R$1996,MATCH('2) Order Form'!P$8,Prices!$A$2:$R$2,0),FALSE) -> 90.00 | Q27: =VLOOKUP($C27,Prices!$A$3:$R$1996,MATCH('2) Order Form'!Q$8,Prices!$A$2:$R$2,0),FALSE) -> 179.95 | R27: 0 | S27: 0 | T27: 0 | U27: 0% | W27: 7048652767608 | Y27: 0 | Z27: 0 | AA27: 1 | AB27: 0 | AC27: 0 | AD27: 845104Matte Fluo | AE27: 845104 | AF27: =INDEX(ATS!$A:$P,MATCH('2) Order Form'!$W27,ATS!$O:$O,0),7) -> Stock
A28: 1 | B28: =VLOOKUP(A28,Classification!$H$2:$I$11,2,FALSE) -> Helmets & Helmet Acc. | C28: =INDEX(ATS!$A:$P,MATCH('2) Order Form'!$W28,ATS!$O:$O,0),1) -> 845104 | D28: =INDEX(ATS!$A:$P,MATCH('2) Order Form'!$W28,ATS!$O:$O,0),2) -> Trailblazer Mips Helmet | E28: =INDEX(ATS!$A:$P,MATCH('2) Order Form'!$W28,ATS!$O:$O,0),4) -> MFLUO-LXL | F28: =INDEX(ATS!$A:$P,MATCH('2) Order Form'!$W28,ATS!$O:$O,0),5) -> Matte Fluo | G28: =INDEX(ATS!$A:$P,MATCH('2) Order Form'!$W28,ATS!$O:$O,0),6) -> LXL | H28: 1 | I28: 0 | J28: =IFERROR(VLOOKUP(W28,ATS!$O:$P,2,FALSE),0) -> 39 | K28: 39 | L28: =IFERROR(VLOOKUP(W28,ATS!$O:$Q,3,FALSE),0) -> 39 | M28: 39 | N28: 0% | O28: 0% | P28: =VLOOKUP($C28,Prices!$A$3:$R$1996,MATCH('2) Order Form'!P$8,Prices!$A$2:$R$2,0),FALSE) -> 90.00 | Q28: =VLOOKUP($C28,Prices!$A$3:$R$1996,MATCH('2) Order Form'!Q$8,Prices!$A$2:$R$2,0),FALSE) -> 179.95 | R28: 0 | S28: 0 | T28: 0 | U28: 0% | W28: 7048652767592 | Y28: 0 | Z28: 0 | AA28: 1 | AB28: 0 | AC28: 0 | AD28: 845104Matte Fluo | AE28: 845104 | AF28: =INDEX(ATS!$A:$P,MATCH('2) Order Form'!$W28,ATS!$O:$O,0),7) -> Stock
A29: 1 | B29: =VLOOKUP(A29,Classification!$H$2:$I$11,2,FALSE) -> Helmets & Helmet Acc. | C29: =INDEX(ATS!$A:$P,MATCH('2) Order Form'!$W29,ATS!$O:$O,0),1) -> 845104 | D29: =INDEX(ATS!$A:$P,MATCH('2) Order Form'!$W29,ATS!$O:$O,0),2) -> Trailblazer Mips Helmet | E29: =INDEX(ATS!$A:$P,MATCH('2) Order Form'!$W29,ATS!$O:$O,0),4) -> MWHTE-SM | F29: =INDEX(ATS!$A:$P,MATCH('2) Order Form'!$W29,ATS!$O:$O,0),5) -> Matte White | G29: =INDEX(ATS!$A:$P,MATCH('2) Order Form'!$W29,ATS!$O:$O,0),6) -> SM | H29: 1 | I29: 0 | J29: =IFERROR(VLOOKUP(W29,ATS!$O:$P,2,FALSE),0) -> 85 | K29: 50+ | L29: =IFERROR(VLOOKUP(W29,ATS!$O:$Q,3,FALSE),0) -> 208 | M29: 50+ | N29: 0% | O29: 0% | P29: =VLOOKUP($C29,Prices!$A$3:$R$1996,MATCH('2) Order Form'!P$8,Prices!$A$2:$R$2,0),FALSE) -> 90.00 | Q29: =VLOOKUP($C29,Prices!$A$3:$R$1996,MATCH('2) Order Form'!Q$8,Prices!$A$2:$R$2,0),FALSE) -> 179.95 | R29: 0 | S29: 0 | T29: 0 | U29: 0% | W29: 7048652540522 | Y29: 0 | Z29: 0 | AA29: 1 | AB29: 0 | AC29: 1 | AD29: 845104Matte White | AE29: 845104 | AF29: =INDEX(ATS!$A:$P,MATCH('2) Order Form'!$W29,ATS!$O:$O,0),7) -> Active
A30: 1 | B30: =VLOOKUP(A30,Classification!$H$2:$I$11,2,FALSE) -> Helmets & Helmet Acc. | C30: =INDEX(ATS!$A:$P,MATCH('2) Order Form'!$W30,ATS!$O:$O,0),1) -> 845104 | D30: =INDEX(ATS!$A:$P,MATCH('2) Order Form'!$W30,ATS!$O:$O,0),2) -> Trailblazer Mips Helmet | E30: =INDEX(ATS!$A:$P,MATCH('2) Order Form'!$W30,ATS!$O:$O,0),4) -> MWHTE-ML | F30: =INDEX(ATS!$A:$P,MATCH('2) Order Form'!$W30,ATS!$O:$O,0),5) -> Matte White | G30: =INDEX(ATS!$A:$P,MATCH('2) Order Form'!$W30,ATS!$O:$O,0),6) -> ML | H30: 1 | I30: 0 | J30: =IFERROR(VLOOKUP(W30,ATS!$O:$P,2,FALSE),0) -> 159 | K30: 50+ | L30: =IFERROR(VLOOKUP(W30,ATS!$O:$Q,3,FALSE),0) -> 579 | M30: 50+ | N30: 0% | O30: 0% | P30: =VLOOKUP($C30,Prices!$A$3:$R$1996,MATCH('2) Order Form'!P$8,Prices!$A$2:$R$2,0),FALSE) -> 90.00 | Q30: =VLOOKUP($C30,Prices!$A$3:$R$1996,MATCH('2) Order Form'!Q$8,Prices!$A$2:$R$2,0),FALSE) -> 179.95 | R30: 0 | S30: 0 | T30: 0 | U30: 0% | W30: 7048652540515 | Y30: 0 | Z30: 0 | AA30: 1 | AB30: 0 | AC30: 0 | AD30: 845104Matte White | AE30: 845104 | AF30: =INDEX(ATS!$A:$P,MATCH('2) Order Form'!$W30,ATS!$O:$O,0),7) -> Active
A31: 1 | B31: =VLOOKUP(A31,Classification!$H$2:$I$11,2,FALSE) -> Helmets & Helmet Acc. | C31: =INDEX(ATS!$A:$P,MATCH('2) Order Form'!$W31,ATS!$O:$O,0),1) -> 845104 | D31: =INDEX(ATS!$A:$P,MATCH('2) Order Form'!$W31,ATS!$O:$O,0),2) -> Trailblazer Mips Helmet | E31: =INDEX(ATS!$A:$P,MATCH('2) Order Form'!$W31,ATS!$O:$O,0),4) -> MWHTE-LXL | F31: =INDEX(ATS!$A:$P,MATCH('2) Order Form'!$W31,ATS!$O:$O,0),5) -> Matte White | G31: =INDEX(ATS!$A:$P,MATCH('2) Order Form'!$W31,ATS!$O:$O,0),6) -> LXL | H31: 1 | I31: 0 | J31: =IFERROR(VLOOKUP(W31,ATS!$O:$P,2,FALSE),0) -> 134 | K31: 50+ | L31: =IFERROR(VLOOKUP(W31,ATS!$O:$Q,3,FALSE),0) -> 247 | M31: 50+ | N31: 0% | O31: 0% | P31: =VLOOKUP($C31,Prices!$A$3:$R$1996,MATCH('2) Order Form'!P$8,Prices!$A$2:$R$2,0),FALSE) -> 90.00 | Q31: =VLOOKUP($C31,Prices!$A$3:$R$1996,MATCH('2) Order Form'!Q$8,Prices!$A$2:$R$2,0),FALSE) -> 179.95 | R31: 0 | S31: 0 | T31: 0 | U31: 0% | W31: 7048652540508 | Y31: 0 | Z31: 0 | AA31: 1 | AB31: 0 | AC31: 0 | AD31: 845104Matte White | AE31: 845104 | AF31: =INDEX(ATS!$A:$P,MATCH('2) Order Form'!$W31,ATS!$O:$O,0),7) -> Active
A32: 1 | B32: =VLOOKUP(A32,Classification!$H$2:$I$11,2,FALSE) -> Helmets & Helmet Acc. | C32: =INDEX(ATS!$A:$P,MATCH('2) Order Form'!$W32,ATS!$O:$O,0),1) -> 845104 | D32: =INDEX(ATS!$A:$P,MATCH('2) Order Form'!$W32,ATS!$O:$O,0),2) -> Trailblazer Mips Helmet | E32: =INDEX(ATS!$A:$P,MATCH('2) Order Form'!$W32,ATS!$O:$O,0),4) -> SGRBO-SM | F32: =INDEX(ATS!$A:$P,MATCH('2) Order Form'!$W32,ATS!$O:$O,0),5) -> Slate Gray/Burning Orange | G32: =INDEX(ATS!$A:$P,MATCH('2) Order Form'!$W32,ATS!$O:$O,0),6) -> SM | H32: 1 | I32: 0 | J32: =IFERROR(VLOOKUP(W32,ATS!$O:$P,2,FALSE),0) -> 29 | K32: 29 | L32: =IFERROR(VLOOKUP(W32,ATS!$O:$Q,3,FALSE),0) -> 93 | M32: 50+ | N32: 0% | O32: 0% | P32: =VLOOKUP($C32,Prices!$A$3:$R$1996,MATCH('2) Order Form'!P$8,Prices!$A$2:$R$2,0),FALSE) -> 90.00 | Q32: =VLOOKUP($C32,Prices!$A$3:$R$1996,MATCH('2) Order Form'!Q$8,Prices!$A$2:$R$2,0),FALSE) -> 179.95 | R32: 0 | S32: 0 | T32: 0 | U32: 0% | W32: 7048652767646 | Y32: 0 | Z32: 0 | AA32: 1 | AB32: 0 | AC32: 1 | AD32: 845104Slate Gray/Burning Orange | AE32: 845104 | AF32: =INDEX(ATS!$A:$P,MATCH('2) Order Form'!$W32,ATS!$O:$O,0),7) -> Stock
A33: 1 | B33: =VLOOKUP(A33,Classification!$H$2:$I$11,2,FALSE) -> Helmets & Helmet Acc. | C33: =INDEX(ATS!$A:$P,MATCH('2) Order Form'!$W33,ATS!$O:$O,0),1) -> 845104 | D33: =INDEX(ATS!$A:$P,MATCH('2) Order Form'!$W33,ATS!$O:$O,0),2) -> Trailblazer Mips Helmet | E33: =INDEX(ATS!$A:$P,MATCH('2) Order Form'!$W33,ATS!$O:$O,0),4) -> SGRBO-ML | F33: =INDEX(ATS!$A:$P,MATCH('2) Order Form'!$W33,ATS!$O:$O,0),5) -> Slate Gray/Burning Orange | G33: =INDEX(ATS!$A:$P,MATCH('2) Order Form'!$W33,ATS!$O:$O,0),6) -> ML | H33: 1 | I33: 0 | J33: =IFERROR(VLOOKUP(W33,ATS!$O:$P,2,FALSE),0) -> 190 | K33: 50+ | L33: =IFERROR(VLOOKUP(W33,ATS!$O:$Q,3,FALSE),0) -> 190 | M33: 50+ | N33: 0% | O33: 0% | P33: =VLOOKUP($C33,Prices!$A$3:$R$1996,MATCH('2) Order Form'!P$8,Prices!$A$2:$R$2,0),FALSE) -> 90.00 | Q33: =VLOOKUP($C33,Prices!$A$3:$R$1996,MATCH('2) Order Form'!Q$8,Prices!$A$2:$R$2,0),FALSE) -> 179.95 | R33: 0 | S33: 0 | T33: 0 | U33: 0% | W33: 7048652767639 | Y33: 0 | Z33: 0 | AA33: 1 | AB33: 0 | AC33: 0 | AD33: 845104Slate Gray/Burning Orange | AE33: 845104 | AF33: =INDEX(ATS!$A:$P,MATCH('2) Order Form'!$W33,ATS!$O:$O,0),7) -> Stock
A34: 1 | B34: =VLOOKUP(A34,Classification!$H$2:$I$11,2,FALSE) -> Helmets & Helmet Acc. | C34: =INDEX(ATS!$A:$P,MATCH('2) Order Form'!$W34,ATS!$O:$O,0),1) -> 845104 | D34: =INDEX(ATS!$A:$P,MATCH('2) Order Form'!$W34,ATS!$O:$O,0),2) -> Trailblazer Mips Helmet | E34: =INDEX(ATS!$A:$P,MATCH('2) Order Form'!$W34,ATS!$O:$O,0),4) -> SGRBO-LXL | F34: =INDEX(ATS!$A:$P,MATCH('2) Order Form'!$W34,ATS!$O:$O,0),5) -> Slate Gray/Burning Orange | G34: =INDEX(ATS!$A:$P,MATCH('2) Order Form'!$W34,ATS!$O:$O,0),6) -> LXL | H34: 1 | I34: 0 | J34: =IFERROR(VLOOKUP(W34,ATS!$O:$P,2,FALSE),0) -> 163 | K34: 50+ | L34: =IFERROR(VLOOKUP(W34,ATS!$O:$Q,3,FALSE),0) -> 163 | M34: 50+ | N34: 0% | O34: 0% | P34: =VLOOKUP($C34,Prices!$A$3:$R$1996,MATCH('2) Order Form'!P$8,Prices!$A$2:$R$2,0),FALSE) -> 90.00 | Q34: =VLOOKUP($C34,Prices!$A$3:$R$1996,MATCH('2) Order Form'!Q$8,Prices!$A$2:$R$2,0),FALSE) -> 179.95 | R34: 0 | S34: 0 | T34: 0 | U34: 0% | W34: 7048652767622 | Y34: 0 | Z34: 0 | AA34: 1 | AB34: 0 | AC34: 0 | AD34: 845104Slate Gray/Burning Orange | AE34: 845104 | AF34: =INDEX(ATS!$A:$P,MATCH('2) Order Form'!$W34,ATS!$O:$O,0),7) -> Stock
A35: 1 | B35: =VLOOKUP(A35,Classification!$H$2:$I$11,2,FALSE) -> Helmets & Helmet Acc. | C35: =INDEX(ATS!$A:$P,MATCH('2) Order Form'!$W35,ATS!$O:$O,0),1) -> 845103 | D35: =INDEX(ATS!$A:$P,MATCH('2) Order Form'!$W35,ATS!$O:$O,0),2) -> Trailblazer Helmet | E35: =INDEX(ATS!$A:$P,MATCH('2) Order Form'!$W35,ATS!$O:$O,0),4) -> BGRRG-SM | F35: =INDEX(ATS!$A:$P,MATCH('2) Order Form'!$W35,ATS!$O:$O,0),5) -> Bolt Gray/Rose Gold | G35: =INDEX(ATS!$A:$P,MATCH('2) Order Form'!$W35,ATS!$O:$O,0),6) -> SM | H35: 1 | I35: 0 | J35: =IFERROR(VLOOKUP(W35,ATS!$O:$P,2,FALSE),0) -> 3 | K35: 3 | L35: =IFERROR(VLOOKUP(W35,ATS!$O:$Q,3,FALSE),0) -> 3 | M35: 3 | N35: 0% | O35: 0% | P35: =VLOOKUP($C35,Prices!$A$3:$R$1996,MATCH('2) Order Form'!P$8,Prices!$A$2:$R$2,0),FALSE) -> 75.00 | Q35: =VLOOKUP($C35,Prices!$A$3:$R$1996,MATCH('2) Order Form'!Q$8,Prices!$A$2:$R$2,0),FALSE) -> 149.95 | R35: 0 | S35: 0 | T35: 0 | U35: 0% | W35: 7048652767431 | Y35: 0 | Z35: 0 | AA35: 2 | AB35: 1 | AC35: 1 | AD35: 845103Bolt Gray/Rose Gold | AE35: 845103 | AF35: =INDEX(ATS!$A:$P,MATCH('2) Order Form'!$W35,ATS!$O:$O,0),7) -> Stock
A36: 1 | B36: =VLOOKUP(A36,Classification!$H$2:$I$11,2,FALSE) -> Helmets & Helmet Acc. | C36: =INDEX(ATS!$A:$P,MATCH('2) Order Form'!$W36,ATS!$O:$O,0),1) -> 845103 | D36: =INDEX(ATS!$A:$P,MATCH('2) Order Form'!$W36,ATS!$O:$O,0),2) -> Trailblazer Helmet | E36: =INDEX(ATS!$A:$P,MATCH('2) Order Form'!$W36,ATS!$O:$O,0),4) -> BGRRG-ML | F36: =INDEX(ATS!$A:$P,MATCH('2) Order Form'!$W36,ATS!$O:$O,0),5) -> Bolt Gray/Rose Gold | G36: =INDEX(ATS!$A:$P,MATCH('2) Order Form'!$W36,ATS!$O:$O,0),6) -> ML | H36: 1 | I36: 0 | J36: =IFERROR(VLOOKUP(W36,ATS!$O:$P,2,FALSE),0) -> 8 | K36: 8 | L36: =IFERROR(VLOOKUP(W36,ATS!$O:$Q,3,FALSE),0) -> 8 | M36: 8 | N36: 0% | O36: 0% | P36: =VLOOKUP($C36,Prices!$A$3:$R$1996,MATCH('2) Order Form'!P$8,Prices!$A$2:$R$2,0),FALSE) -> 75.00 | Q36: =VLOOKUP($C36,Prices!$A$3:$R$1996,MATCH('2) Order Form'!Q$8,Prices!$A$2:$R$2,0),FALSE) -> 149.95 | R36: 0 | S36: 0 | T36: 0 | U36: 0% | W36: 7048652767424 | Y36: 0 | Z36: 0 | AA36: 2 | AB36: 0 | AC36: 0 | AD36: 845103Bolt Gray/Rose Gold | AE36: 845103 | AF36: =INDEX(ATS!$A:$P,MATCH('2) Order Form'!$W36,ATS!$O:$O,0),7) -> Stock
A37: 1 | B37: =VLOOKUP(A37,Classification!$H$2:$I$11,2,FALSE) -> Helmets & Helmet Acc. | C37: =INDEX(ATS!$A:$P,MATCH('2) Order Form'!$W37,ATS!$O:$O,0),1) -> 845103 | D37: =INDEX(ATS!$A:$P,MATCH('2) Order Form'!$W37,ATS!$O:$O,0),2) -> Trailblazer Helmet | E37: =INDEX(ATS!$A:$P,MATCH('2) Order Form'!$W37,ATS!$O:$O,0),4) -> BGRRG-LXL | F37: =INDEX(ATS!$A:$P,MATCH('2) Order Form'!$W37,ATS!$O:$O,0),5) -> Bolt Gray/Rose Gold | G37: =INDEX(ATS!$A:$P,MATCH('2) Order Form'!$W37,ATS!$O:$O,0),6) -> LXL | H37: 1 | I37: 0 | J37: =IFERROR(VLOOKUP(W37,ATS!$O:$P,2,FALSE),0) -> 37 | K37: 37 | L37: =IFERROR(VLOOKUP(W37,ATS!$O:$Q,3,FALSE),0) -> 37 | M37: 37 | N37: 0% | O37: 0% | P37: =VLOOKUP($C37,Prices!$A$3:$R$1996,MATCH('2) Order Form'!P$8,Prices!$A$2:$R$2,0),FALSE) -> 75.00 | Q37: =VLOOKUP($C37,Prices!$A$3:$R$1996,MATCH('2) Order Form'!Q$8,Prices!$A$2:$R$2,0),FALSE) -> 149.95 | R37: 0 | S37: 0 | T37: 0 | U37: 0% | W37: 7048652767417 | Y37: 0 | Z37: 0 | AA37: 2 | AB37: 0 | AC37: 0 | AD37: 845103Bolt Gray/Rose Gold | AE37: 845103 | AF37: =INDEX(ATS!$A:$P,MATCH('2) Order Form'!$W37,ATS!$O:$O,0),7) -> Stock
A38: 1 | B38: =VLOOKUP(A38,Classification!$H$2:$I$11,2,FALSE) -> Helmets & Helmet Acc. | C38: =INDEX(ATS!$A:$P,MATCH('2) Order Form'!$W38,ATS!$O:$O,0),1) -> 845103 | D38: =INDEX(ATS!$A:$P,MATCH('2) Order Form'!$W38,ATS!$O:$O,0),2) -> Trailblazer Helmet | E38: =INDEX(ATS!$A:$P,MATCH('2) Order Form'!$W38,ATS!$O:$O,0),4) -> BRWHT-SM | F38: =INDEX(ATS!$A:$P,MATCH('2) Order Form'!$W38,ATS!$O:$O,0),5) -> Bronco White | G38: =INDEX(ATS!$A:$P,MATCH('2) Order Form'!$W38,ATS!$O:$O,0),6) -> SM | H38: 1 | I38: 0 | J38: =IFERROR(VLOOKUP(W38,ATS!$O:$P,2,FALSE),0) -> 8 | K38: 8 | L38: =IFERROR(VLOOKUP(W38,ATS!$O:$Q,3,FALSE),0) -> 8 | M38: 8 | N38: 0% | O38: 0% | P38: =VLOOKUP($C38,Prices!$A$3:$R$1996,MATCH('2) Order Form'!P$8,Prices!$A$2:$R$2,0),FALSE) -> 75.00 | Q38: =VLOOKUP($C38,Prices!$A$3:$R$1996,MATCH('2) Order Form'!Q$8,Prices!$A$2:$R$2,0),FALSE) -> 149.95 | R38: 0 | S38: 0 | T38: 0 | U38: 0% | W38: 7048652767462 | Y38: 0 | Z38: 0 | AA38: 2 | AB38: 0 | AC38: 1 | AD38: 845103Bronco White | AE38: 845103 | AF38: =INDEX(ATS!$A:$P,MATCH('2) Order Form'!$W38,ATS!$O:$O,0),7) -> Stock
A39: 1 | B39: =VLOOKUP(A39,Classification!$H$2:$I$11,2,FALSE) -> Helmets & Helmet Acc. | C39: =INDEX(ATS!$A:$P,MATCH('2) Order Form'!$W39,ATS!$O:$O,0),1) -> 845103 | D39: =INDEX(ATS!$A:$P,MATCH('2) Order Form'!$W39,ATS!$O:$O,0),2) -> Trailblazer Helmet | E39: =INDEX(ATS!$A:$P,MATCH('2) Order Form'!$W39,ATS!$O:$O,0),4) -> BRWHT-ML | F39: =INDEX(ATS!$A:$P,MATCH('2) Order Form'!$W39,ATS!$O:$O,0),5) -> Bronco White | G39: =INDEX(ATS!$A:$P,MATCH('2) Order Form'!$W39,ATS!$O:$O,0),6) -> ML | H39: 1 | I39: 0 | J39: =IFERROR(VLOOKUP(W39,ATS!$O:$P,2,FALSE),0) -> 23 | K39: 23 | L39: =IFERROR(VLOOKUP(W39,ATS!$O:$Q,3,FALSE),0) -> 23 | M39: 23 | N39: 0% | O39: 0% | P39: =VLOOKUP($C39,Prices!$A$3:$R$1996,MATCH('2) Order Form'!P$8,Prices!$A$2:$R$2,0),FALSE) -> 75.00 | Q39: =VLOOKUP($C39,Prices!$A$3:$R$1996,MATCH('2) Order Form'!Q$8,Prices!$A$2:$R$2,0),FALSE) -> 149.95 | R39: 0 | S39: 0 | T39: 0 | U39: 0% | W39: 7048652767455 | Y39: 0 | Z39: 0 | AA39: 2 | AB39: 0 | AC39: 0 | AD39: 845103Bronco White | AE39: 845103 | AF39: =INDEX(ATS!$A:$P,MATCH('2) Order Form'!$W39,ATS!$O:$O,0),7) -> Stock
A40: 1 | B40: =VLOOKUP(A40,Classification!$H$2:$I$11,2,FALSE) -> Helmets & Helmet Acc. | C40: =INDEX(ATS!$A:$P,MATCH('2) Order Form'!$W40,ATS!$O:$O,0),1) -> 845103 | D40: =INDEX(ATS!$A:$P,MATCH('2) Order Form'!$W40,ATS!$O:$O,0),2) -> Trailblazer Helmet | E40: =INDEX(ATS!$A:$P,MATCH('2) Order Form'!$W40,ATS!$O:$O,0),4) -> BRWHT-LXL | F40: =INDEX(ATS!$A:$P,MATCH('2) Order Form'!$W40,ATS!$O:$O,0),5) -> Bronco White | G40: =INDEX(ATS!$A:$P,MATCH('2) Order Form'!$W40,ATS!$O:$O,0),6) -> LXL | H40: 1 | I40: 0 | J40: =IFERROR(VLOOKUP(W40,ATS!$O:$P,2,FALSE),0) -> 14 | K40: 14 | L40: =IFERROR(VLOOKUP(W40,ATS!$O:$Q,3,FALSE),0) -> 14 | M40: 14 | N40: 0% | O40: 0% | P40: =VLOOKUP($C40,Prices!$A$3:$R$1996,MATCH('2) Order Form'!P$8,Prices!$A$2:$R$2,0),FALSE) -> 75.00 | Q40: =VLOOKUP($C40,Prices!$A$3:$R$1996,MATCH('2) Order Form'!Q$8,Prices!$A$2:$R$2,0),FALSE) -> 149.95 | R40: 0 | S40: 0 | T40: 0 | U40: 0% | W40: 7048652767448 | Y40: 0 | Z40: 0 | AA40: 2 | AB40: 0 | AC40: 0 | AD40: 845103Bronco White | AE40: 845103 | AF40: =INDEX(ATS!$A:$P,MATCH('2) Order Form'!$W40,ATS!$O:$O,0),7) -> Stock
A41: 1 | B41: =VLOOKUP(A41,Classification!$H$2:$I$11,2,FALSE) -> Helmets & Helmet Acc. | C41: =INDEX(ATS!$A:$P,MATCH('2) Order Form'!$W41,ATS!$O:$O,0),1) -> 845103 | D41: =INDEX(ATS!$A:$P,MATCH('2) Order Form'!$W41,ATS!$O:$O,0),2) -> Trailblazer Helmet | E41: =INDEX(ATS!$A:$P,MATCH('2) Order Form'!$W41,ATS!$O:$O,0),4) -> MBLCK-SM | F41: =INDEX(ATS!$A:$P,MATCH('2) Order Form'!$W41,ATS!$O:$O,0),5) -> Matte Black | G41: =INDEX(ATS!$A:$P,MATCH('2) Order Form'!$W41,ATS!$O:$O,0),6) -> SM | H41: 1 | I41: 0 | J41: =IFERROR(VLOOKUP(W41,ATS!$O:$P,2,FALSE),0) -> 35 | K41: =IF(J41=99999,"OPEN",IF(J41>50,"50+",IF(J41<=0,"0",J41))) -> 35 | L41: =IFERROR(VLOOKUP(W41,ATS!$O:$Q,3,FALSE),0) -> 35 | M41: =IF(L41=99999,"OPEN",IF(L41>50,"50+",IF(L41<=0,"0",L41))) -> 35 | N41: 0% | O41: =IF(N41<>0,N41,$P$5) -> 0% | P41: =VLOOKUP($C41,Prices!$A$3:$R$1996,MATCH('2) Order Form'!P$8,Prices!$A$2:$R$2,0),FALSE) -> 75.00 | Q41: =VLOOKUP($C41,Prices!$A$3:$R$1996,MATCH('2) Order Form'!Q$8,Prices!$A$2:$R$2,0),FALSE) -> 149.95 | R41: =I41*P41 -> 0 | S41: =R41*O41 -> 0 | T41: =R41-S41 -> 0 | U41: 0% | W41: 7048652540225 | Y41: =I41*Q41 -> 0 | Z41: 0 | AA41: 2 | AB41: 0 | AC41: 1 | AD41: =CONCATENATE(C41,F41) -> 845103Matte Black | AE41: =IFERROR(IF(B41="EYEWEAR",CONCATENATE(C41,"-",G41),C41),C41) -> 845103 | AF41: =INDEX(ATS!$A:$P,MATCH('2) Order Form'!$W41,ATS!$O:$O,0),7) -> Active
A42: 1 | B42: =VLOOKUP(A42,Classification!$H$2:$I$11,2,FALSE) -> Helmets & Helmet Acc. | C42: =INDEX(ATS!$A:$P,MATCH('2) Order Form'!$W42,ATS!$O:$O,0),1) -> 845103 | D42: =INDEX(ATS!$A:$P,MATCH('2) Order Form'!$W42,ATS!$O:$O,0),2) -> Trailblazer Helmet | E42: =INDEX(ATS!$A:$P,MATCH('2) Order Form'!$W42,ATS!$O:$O,0),4) -> MBLCK-ML | F42: =INDEX(ATS!$A:$P,MATCH('2) Order Form'!$W42,ATS!$O:$O,0),5) -> Matte Black | G42: =INDEX(ATS!$A:$P,MATCH('2) Order Form'!$W42,ATS!$O:$O,0),6) -> ML | H42: 1 | I42: 0 | J42: =IFERROR(VLOOKUP(W42,ATS!$O:$P,2,FALSE),0) -> 92 | K42: 50+ | L42: =IFERROR(VLOOKUP(W42,ATS!$O:$Q,3,FALSE),0) -> 92 | M42: 50+ | N42: 0% | O42: 0% | P42: =VLOOKUP($C42,Prices!$A$3:$R$1996,MATCH('2) Order Form'!P$8,Prices!$A$2:$R$2,0),FALSE) -> 75.00 | Q42: =VLOOKUP($C42,Prices!$A$3:$R$1996,MATCH('2) Order Form'!Q$8,Prices!$A$2:$R$2,0),FALSE) -> 149.95 | R42: 0 | S42: 0 | T42: 0 | U42: 0% | W42: 7048652540218 | Y42: 0 | Z42: =IF(A42=OFFSET(A42,-1,0),0,1) -> 0 | AA42: =IF(C42=OFFSET(C42,-1,0),OFFSET(AA42,-1,0),OFFSET(AA42,-1,0)+1) -> 2 | AB42: =IF(C42=OFFSET(C42,-1,0),0,1) -> 0 | AC42: =IF(F42=OFFSET(F42,-1,0),0,1) -> 0 | AD42: 845103Matte Black | AE42: 845103 | AF42: =INDEX(ATS!$A:$P,MATCH('2) Order Form'!$W42,ATS!$O:$O,0),7) -> Active
A43: 1 | B43: =VLOOKUP(A43,Classification!$H$2:$I$11,2,FALSE) -> Helmets & Helmet Acc. | C43: =INDEX(ATS!$A:$P,MATCH('2) Order Form'!$W43,ATS!$O:$O,0),1) -> 845103 | D43: =INDEX(ATS!$A:$P,MATCH('2) Order Form'!$W43,ATS!$O:$O,0),2) -> Trailblazer Helmet | E43: =INDEX(ATS!$A:$P,MATCH('2) Order Form'!$W43,ATS!$O:$O,0),4) -> MBLCK-LXL | F43: =INDEX(ATS!$A:$P,MATCH('2) Order Form'!$W43,ATS!$O:$O,0),5) -> Matte Black | G43: =INDEX(ATS!$A:$P,MATCH('2) Order Form'!$W43,ATS!$O:$O,0),6) -> LXL | H43: 1 | I43: 0 | J43: =IFERROR(VLOOKUP(W43,ATS!$O:$P,2,FALSE),0) -> 76 | K43: 50+ | L43: =IFERROR(VLOOKUP(W43,ATS!$O:$Q,3,FALSE),0) -> 76 | M43: 50+ | N43: 0% | O43: 0% | P43: =VLOOKUP($C43,Prices!$A$3:$R$1996,MATCH('2) Order Form'!P$8,Prices!$A$2:$R$2,0),FALSE) -> 75.00 | Q43: =VLOOKUP($C43,Prices!$A$3:$R$1996,MATCH('2) Order Form'!Q$8,Prices!$A$2:$R$2,0),FALSE) -> 149.95 | R43: 0 | S43: 0 | T43: 0 | U43: 0% | W43: 7048652540201 | Y43: 0 | Z43: 0 | AA43: 2 | AB43: 0 | AC43: 0 | AD43: 845103Matte Black | AE43: 845103 | AF43: =INDEX(ATS!$A:$P,MATCH('2) Order Form'!$W43,ATS!$O:$O,0),7) -> Active
A44: 1 | B44: =VLOOKUP(A44,Classification!$H$2:$I$11,2,FALSE) -> Helmets & Helmet Acc. | C44: =INDEX(ATS!$A:$P,MATCH('2) Order Form'!$W44,ATS!$O:$O,0),1) -> 845103 | D44: =INDEX(ATS!$A:$P,MATCH('2) Order Form'!$W44,ATS!$O:$O,0),2) -> Trailblazer Helmet | E44: =INDEX(ATS!$A:$P,MATCH('2) Order Form'!$W44,ATS!$O:$O,0),4) -> MFLUO-SM | F44: =INDEX(ATS!$A:$P,MATCH('2) Order Form'!$W44,ATS!$O:$O,0),5) -> Matte Fluo | G44: =INDEX(ATS!$A:$P,MATCH('2) Order Form'!$W44,ATS!$O:$O,0),6) -> SM | H44: 1 | I44: 0 | J44: =IFERROR(VLOOKUP(W44,ATS!$O:$P,2,FALSE),0) -> 8 | K44: 8 | L44: =IFERROR(VLOOKUP(W44,ATS!$O:$Q,3,FALSE),0) -> 8 | M44: 8 | N44: 0% | O44: 0% | P44: =VLOOKUP($C44,Prices!$A$3:$R$1996,MATCH('2) Order Form'!P$8,Prices!$A$2:$R$2,0),FALSE) -> 75.00 | Q44: =VLOOKUP($C44,Prices!$A$3:$R$1996,MATCH('2) Order Form'!Q$8,Prices!$A$2:$R$2,0),FALSE) -> 149.95 | R44: 0 | S44: 0 | T44: 0 | U44: 0% | W44: 7048652767493 | Y44: 0 | Z44: 0 | AA44: 2 | AB44: 0 | AC44: 1 | AD44: 845103Matte Fluo | AE44: 845103 | AF44: =INDEX(ATS!$A:$P,MATCH('2) Order Form'!$W44,ATS!$O:$O,0),7) -> Stock
A45: 1 | B45: =VLOOKUP(A45,Classification!$H$2:$I$11,2,FALSE) -> Helmets & Helmet Acc. | C45: =INDEX(ATS!$A:$P,MATCH('2) Order Form'!$W45,ATS!$O:$O,0),1) -> 845103 | D45: =INDEX(ATS!$A:$P,MATCH('2) Order Form'!$W45,ATS!$O:$O,0),2) -> Trailblazer Helmet | E45: =INDEX(ATS!$A:$P,MATCH('2) Order Form'!$W45,ATS!$O:$O,0),4) -> MFLUO-ML | F45: =INDEX(ATS!$A:$P,MATCH('2) Order Form'!$W45,ATS!$O:$O,0),5) -> Matte Fluo | G45: =INDEX(ATS!$A:$P,MATCH('2) Order Form'!$W45,ATS!$O:$O,0),6) -> ML | H45: 1 | I45: 0 | J45: =IFERROR(VLOOKUP(W45,ATS!$O:$P,2,FALSE),0) -> 21 | K45: 21 | L45: =IFERROR(VLOOKUP(W45,ATS!$O:$Q,3,FALSE),0) -> 21 | M45: 21 | N45: 0% | O45: 0% | P45: =VLOOKUP($C45,Prices!$A$3:$R$1996,MATCH('2) Order Form'!P$8,Prices!$A$2:$R$2,0),FALSE) -> 75.00 | Q45: =VLOOKUP($C45,Prices!$A$3:$R$1996,MATCH('2) Order Form'!Q$8,Prices!$A$2:$R$2,0),FALSE) -> 149.95 | R45: 0 | S45: 0 | T45: 0 | U45: 0% | W45: 7048652767486 | Y45: 0 | Z45: 0 | AA45: 2 | AB45: 0 | AC45: 0 | AD45: 845103Matte Fluo | AE45: 845103 | AF45: =INDEX(ATS!$A:$P,MATCH('2) Order Form'!$W45,ATS!$O:$O,0),7) -> Stock
A46: 1 | B46: =VLOOKUP(A46,Classification!$H$2:$I$11,2,FALSE) -> Helmets & Helmet Acc. | C46: =INDEX(ATS!$A:$P,MATCH('2) Order Form'!$W46,ATS!$O:$O,0),1) -> 845103 | D46: =INDEX(ATS!$A:$P,MATCH('2) Order Form'!$W46,ATS!$O:$O,0),2) -> Trailblazer Helmet | E46: =INDEX(ATS!$A:$P,MATCH('2) Order Form'!$W46,ATS!$O:$O,0),4) -> MFLUO-LXL | F46: =INDEX(ATS!$A:$P,MATCH('2) Order Form'!$W46,ATS!$O:$O,0),5) -> Matte Fluo | G46: =INDEX(ATS!$A:$P,MATCH('2) Order Form'!$W46,ATS!$O:$O,0),6) -> LXL | H46: 1 | I46: 0 | J46: =IFERROR(VLOOKUP(W46,ATS!$O:$P,2,FALSE),0) -> 11 | K46: 11 | L46: =IFERROR(VLOOKUP(W46,ATS!$O:$Q,3,FALSE),0) -> 11 | M46: 11 | N46: 0% | O46: 0% | P46: =VLOOKUP($C46,Prices!$A$3:$R$1996,MATCH('2) Order Form'!P$8,Prices!$A$2:$R$2,0),FALSE) -> 75.00 | Q46: =VLOOKUP($C46,Prices!$A$3:$R$1996,MATCH('2) Order Form'!Q$8,Prices!$A$2:$R$2,0),FALSE) -> 149.95 | R46: 0 | S46: 0 | T46: 0 | U46: 0% | W46: 7048652767479 | Y46: 0 | Z46: 0 | AA46: 2 | AB46: 0 | AC46: 0 | AD46: 845103Matte Fluo | AE46: 845103 | AF46: =INDEX(ATS!$A:$P,MATCH('2) Order Form'!$W46,ATS!$O:$O,0),7) -> Stock
A47: 1 | B47: =VLOOKUP(A47,Classification!$H$2:$I$11,2,FALSE) -> Helmets & Helmet Acc. | C47: =INDEX(ATS!$A:$P,MATCH('2) Order Form'!$W47,ATS!$O:$O,0),1) -> 845103 | D47: =INDEX(ATS!$A:$P,MATCH('2) Order Form'!$W47,ATS!$O:$O,0),2) -> Trailblazer Helmet | E47: =INDEX(ATS!$A:$P,MATCH('2) Order Form'!$W47,ATS!$O:$O,0),4) -> MWHTE-SM | F47: =INDEX(ATS!$A:$P,MATCH('2) Order Form'!$W47,ATS!$O:$O,0),5) -> Matte White | G47: =INDEX(ATS!$A:$P,MATCH('2) Order Form'!$W47,ATS!$O:$O,0),6) -> SM | H47: 1 | I47: 0 | J47: =IFERROR(VLOOKUP(W47,ATS!$O:$P,2,FALSE),0) -> 51 | K47: 50+ | L47: =IFERROR(VLOOKUP(W47,ATS!$O:$Q,3,FALSE),0) -> 51 | M47: 50+ | N47: 0% | O47: 0% | P47: =VLOOKUP($C47,Prices!$A$3:$R$1996,MATCH('2) Order Form'!P$8,Prices!$A$2:$R$2,0),FALSE) -> 75.00 | Q47: =VLOOKUP($C47,Prices!$A$3:$R$1996,MATCH('2) Order Form'!Q$8,Prices!$A$2:$R$2,0),FALSE) -> 149.95 | R47: 0 | S47: 0 | T47: 0 | U47: 0% | W47: 7048652540348 | Y47: 0 | Z47: 0 | AA47: 2 | AB47: 0 | AC47: 1 | AD47: 845103Matte White | AE47: 845103 | AF47: =INDEX(ATS!$A:$P,MATCH('2) Order Form'!$W47,ATS!$O:$O,0),7) -> Active
A48: 1 | B48: =VLOOKUP(A48,Classification!$H$2:$I$11,2,FALSE) -> Helmets & Helmet Acc. | C48: =INDEX(ATS!$A:$P,MATCH('2) Order Form'!$W48,ATS!$O:$O,0),1) -> 845103 | D48: =INDEX(ATS!$A:$P,MATCH('2) Order Form'!$W48,ATS!$O:$O,0),2) -> Trailblazer Helmet | E48: =INDEX(ATS!$A:$P,MATCH('2) Order Form'!$W48,ATS!$O:$O,0),4) -> MWHTE-ML | F48: =INDEX(ATS!$A:$P,MATCH('2) Order Form'!$W48,ATS!$O:$O,0),5) -> Matte White | G48: =INDEX(ATS!$A:$P,MATCH('2) Order Form'!$W48,ATS!$O:$O,0),6) -> ML | H48: 1 | I48: 0 | J48: =IFERROR(VLOOKUP(W48,ATS!$O:$P,2,FALSE),0) -> 88 | K48: 50+ | L48: =IFERROR(VLOOKUP(W48,ATS!$O:$Q,3,FALSE),0) -> 88 | M48: 50+ | N48: 0% | O48: 0% | P48: =VLOOKUP($C48,Prices!$A$3:$R$1996,MATCH('2) Order Form'!P$8,Prices!$A$2:$R$2,0),FALSE) -> 75.00 | Q48: =VLOOKUP($C48,Prices!$A$3:$R$1996,MATCH('2) Order Form'!Q$8,Prices!$A$2:$R$2,0),FALSE) -> 149.95 | R48: 0 | S48: 0 | T48: 0 | U48: 0% | W48: 7048652540331 | Y48: 0 | Z48: 0 | AA48: 2 | AB48: 0 | AC48: 0 | AD48: 845103Matte White | AE48: 845103 | AF48: =INDEX(ATS!$A:$P,MATCH('2) Order Form'!$W48,ATS!$O:$O,0),7) -> Active
A49: 1 | B49: =VLOOKUP(A49,Classification!$H$2:$I$11,2,FALSE) -> Helmets & Helmet Acc. | C49: =INDEX(ATS!$A:$P,MATCH('2) Order Form'!$W49,ATS!$O:$O,0),1) -> 845103 | D49: =INDEX(ATS!$A:$P,MATCH('2) Order Form'!$W49,ATS!$O:$O,0),2) -> Trailblazer Helmet | E49: =INDEX(ATS!$A:$P,MATCH('2) Order Form'!$W49,ATS!$O:$O,0),4) -> MWHTE-LXL | F49: =INDEX(ATS!$A:$P,MATCH('2) Order Form'!$W49,ATS!$O:$O,0),5) -> Matte White | G49: =INDEX(ATS!$A:$P,MATCH('2) Order Form'!$W49,ATS!$O:$O,0),6) -> LXL | H49: 1 | I49: 0 | J49: =IFERROR(VLOOKUP(W49,ATS!$O:$P,2,FALSE),0) -> 64 | K49: 50+ | L49: =IFERROR(VLOOKUP(W49,ATS!$O:$Q,3,FALSE),0) -> 64 | M49: 50+ | N49: 0% | O49: 0% | P49: =VLOOKUP($C49,Prices!$A$3:$R$1996,MATCH('2) Order Form'!P$8,Prices!$A$2:$R$2,0),FALSE) -> 75.00 | Q49: =VLOOKUP($C49,Prices!$A$3:$R$1996,MATCH('2) Order Form'!Q$8,Prices!$A$2:$R$2,0),FALSE) -> 149.95 | R49: 0 | S49: 0 | T49: 0 | U49: 0% | W49: 7048652540324 | Y49: 0 | Z49: 0 | AA49: 2 | AB49: 0 | AC49: 0 | AD49: 845103Matte White | AE49: 845103 | AF49: =INDEX(ATS!$A:$P,MATCH('2) Order Form'!$W49,ATS!$O:$O,0),7) -> Active
A50: 1 | B50: =VLOOKUP(A50,Classification!$H$2:$I$11,2,FALSE) -> Helmets & Helmet Acc. | C50: =INDEX(ATS!$A:$P,MATCH('2) Order Form'!$W50,ATS!$O:$O,0),1) -> 845103 | D50: =INDEX(ATS!$A:$P,MATCH('2) Order Form'!$W50,ATS!$O:$O,0),2) -> Trailblazer Helmet | E50: =INDEX(ATS!$A:$P,MATCH('2) Order Form'!$W50,ATS!$O:$O,0),4) -> SGRBO-SM | F50: =INDEX(ATS!$A:$P,MATCH('2) Order Form'!$W50,ATS!$O:$O,0),5) -> Slate Gray/Burning Orange | G50: =INDEX(ATS!$A:$P,MATCH('2) Order Form'!$W50,ATS!$O:$O,0),6) -> SM | H50: 1 | I50: 0 | J50: =IFERROR(VLOOKUP(W50,ATS!$O:$P,2,FALSE),0) -> 3 | K50: 3 | L50: =IFERROR(VLOOKUP(W50,ATS!$O:$Q,3,FALSE),0) -> 51 | M50: 50+ | N50: 0% | O50: 0% | P50: =VLOOKUP($C50,Prices!$A$3:$R$1996,MATCH('2) Order Form'!P$8,Prices!$A$2:$R$2,0),FALSE) -> 75.00 | Q50: =VLOOKUP($C50,Prices!$A$3:$R$1996,MATCH('2) Order Form'!Q$8,Prices!$A$2:$R$2,0),FALSE) -> 149.95 | R50: 0 | S50: 0 | T50: 0 | U50: 0% | W50: 7048652767523 | Y50: 0 | Z50: 0 | AA50: 2 | AB50: 0 | AC50: 1 | AD50: 845103Slate Gray/Burning Orange | AE50: 845103 | AF50: =INDEX(ATS!$A:$P,MATCH('2) Order Form'!$W50,ATS!$O:$O,0),7) -> Stock
A51: 1 | B51: =VLOOKUP(A51,Classification!$H$2:$I$11,2,FALSE) -> Helmets & Helmet Acc. | C51: =INDEX(ATS!$A:$P,MATCH('2) Order Form'!$W51,ATS!$O:$O,0),1) -> 845103 | D51: =INDEX(ATS!$A:$P,MATCH('2) Order Form'!$W51,ATS!$O:$O,0),2) -> Trailblazer Helmet | E51: =INDEX(ATS!$A:$P,MATCH('2) Order Form'!$W51,ATS!$O:$O,0),4) -> SGRBO-ML | F51: =INDEX(ATS!$A:$P,MATCH('2) Order Form'!$W51,ATS!$O:$O,0),5) -> Slate Gray/Burning Orange | G51: =INDEX(ATS!$A:$P,MATCH('2) Order Form'!$W51,ATS!$O:$O,0),6) -> ML | H51: 1 | I51: 0 | J51: =IFERROR(VLOOKUP(W51,ATS!$O:$P,2,FALSE),0) -> 8 | K51: 8 | L51: =IFERROR(VLOOKUP(W51,ATS!$O:$Q,3,FALSE),0) -> 80 | M51: 50+ | N51: 0% | O51: 0% | P51: =VLOOKUP($C51,Prices!$A$3:$R$1996,MATCH('2) Order Form'!P$8,Prices!$A$2:$R$2,0),FALSE) -> 75.00 | Q51: =VLOOKUP($C51,Prices!$A$3:$R$1996,MATCH('2) Order Form'!Q$8,Prices!$A$2:$R$2,0),FALSE) -> 149.95 | R51: 0 | S51: 0 | T51: 0 | U51: 0% | W51: 7048652767516 | Y51: 0 | Z51: 0 | AA51: 2 | AB51: 0 | AC51: 0 | AD51: 845103Slate Gray/Burning Orange | AE51: 845103 | AF51: =INDEX(ATS!$A:$P,MATCH('2) Order Form'!$W51,ATS!$O:$O,0),7) -> Stock
A52: 1 | B52: =VLOOKUP(A52,Classification!$H$2:$I$11,2,FALSE) -> Helmets & Helmet Acc. | C52: =INDEX(ATS!$A:$P,MATCH('2) Order Form'!$W52,ATS!$O:$O,0),1) -> 845103 | D52: =INDEX(ATS!$A:$P,MATCH('2) Order Form'!$W52,ATS!$O:$O,0),2) -> Trailblazer Helmet | E52: =INDEX(ATS!$A:$P,MATCH('2) Order Form'!$W52,ATS!$O:$O,0),4) -> SGRBO-LXL | F52: =INDEX(ATS!$A:$P,MATCH('2) Order Form'!$W52,ATS!$O:$O,0),5) -> Slate Gray/Burning Orange | G52: =INDEX(ATS!$A:$P,MATCH('2) Order Form'!$W52,ATS!$O:$O,0),6) -> LXL | H52: 1 | I52: 0 | J52: =IFERROR(VLOOKUP(W52,ATS!$O:$P,2,FALSE),0) -> 4 | K52: 4 | L52: =IFERROR(VLOOKUP(W52,ATS!$O:$Q,3,FALSE),0) -> 84 | M52: 50+ | N52: 0% | O52: 0% | P52: =VLOOKUP($C52,Prices!$A$3:$R$1996,MATCH('2) Order Form'!P$8,Prices!$A$2:$R$2,0),FALSE) -> 75.00 | Q52: =VLOOKUP($C52,Prices!$A$3:$R$1996,MATCH('2) Order Form'!Q$8,Prices!$A$2:$R$2,0),FALSE) -> 149.95 | R52: 0 | S52: 0 | T52: 0 | U52: 0% | W52: 7048652767509 | Y52: 0 | Z52: 0 | AA52: 2 | AB52: 0 | AC52: 0 | AD52: 845103Slate Gray/Burning Orange | AE52: 845103 | AF52: =INDEX(ATS!$A:$P,MATCH('2) Order Form'!$W52,ATS!$O:$O,0),7) -> Stock
A53: 1 | B53: =VLOOKUP(A53,Classification!$H$2:$I$11,2,FALSE) -> Helmets & Helmet Acc. | C53: =INDEX(ATS!$A:$P,MATCH('2) Order Form'!$W53,ATS!$O:$O,0),1) -> 845066 | D53: =INDEX(ATS!$A:$P,MATCH('2) Order Form'!$W53,ATS!$O:$O,0),2) -> Bushwhacker II Carbon Mips Helmet | E53: =INDEX(ATS!$A:$P,MATCH('2) Order Form'!$W53,ATS!$O:$O,0),4) -> MBKME-SM | F53: =INDEX(ATS!$A:$P,MATCH('2) Order Form'!$W53,ATS!$O:$O,0),5) -> Matte Black Metallic | G53: =INDEX(ATS!$A:$P,MATCH('2) Order Form'!$W53,ATS!$O:$O,0),6) -> SM | H53: 1 | I53: 0 | J53: =IFERROR(VLOOKUP(W53,ATS!$O:$P,2,FALSE),0) -> 20 | K53: 20 | L53: =IFERROR(VLOOKUP(W53,ATS!$O:$Q,3,FALSE),0) -> 20 | M53: 20 | N53: 0% | O53: 0% | P53: =VLOOKUP($C53,Prices!$A$3:$R$1996,MATCH('2) Order Form'!P$8,Prices!$A$2:$R$2,0),FALSE) -> 135.00 | Q53: =VLOOKUP($C53,Prices!$A$3:$R$1996,MATCH('2) Order Form'!Q$8,Prices!$A$2:$R$2,0),FALSE) -> 269.95 | R53: 0 | S53: 0 | T53: 0 | U53: 0% | W53: 7048652272690 | Y53: 0 | Z53: 0 | AA53: 3 | AB53: 1 | AC53: 1 | AD53: 845066Matte Black Metallic | AE53: 845066 | AF53: =INDEX(ATS!$A:$P,MATCH('2) Order Form'!$W53,ATS!$O:$O,0),7) -> Active
A54: 1 | B54: =VLOOKUP(A54,Classification!$H$2:$I$11,2,FALSE) -> Helmets & Helmet Acc. | C54: =INDEX(ATS!$A:$P,MATCH('2) Order Form'!$W54,ATS!$O:$O,0),1) -> 845066 | D54: =INDEX(ATS!$A:$P,MATCH('2) Order Form'!$W54,ATS!$O:$O,0),2) -> Bushwhacker II Carbon Mips Helmet | E54: =INDEX(ATS!$A:$P,MATCH('2) Order Form'!$W54,ATS!$O:$O,0),4) -> MBKME-ML | F54: =INDEX(ATS!$A:$P,MATCH('2) Order Form'!$W54,ATS!$O:$O,0),5) -> Matte Black Metallic | G54: =INDEX(ATS!$A:$P,MATCH('2) Order Form'!$W54,ATS!$O:$O,0),6) -> ML | H54: 1 | I54: 0 | J54: =IFERROR(VLOOKUP(W54,ATS!$O:$P,2,FALSE),0) -> 14 | K54: 14 | L54: =IFERROR(VLOOKUP(W54,ATS!$O:$Q,3,FALSE),0) -> 14 | M54: 14 | N54: 0% | O54: 0% | P54: =VLOOKUP($C54,Prices!$A$3:$R$1996,MATCH('2) Order Form'!P$8,Prices!$A$2:$R$2,0),FALSE) -> 135.00 | Q54: =VLOOKUP($C54,Prices!$A$3:$R$1996,MATCH('2) Order Form'!Q$8,Prices!$A$2:$R$2,0),FALSE) -> 269.95 | R54: 0 | S54: 0 | T54: 0 | U54: 0% | W54: 7048652272683 | Y54: 0 | Z54: 0 | AA54: 3 | AB54: 0 | AC54: 0 | AD54: 845066Matte Black Metallic | AE54: 845066 | AF54: =INDEX(ATS!$A:$P,MATCH('2) Order Form'!$W54,ATS!$O:$O,0),7) -> Active
A55: 1 | B55: =VLOOKUP(A55,Classification!$H$2:$I$11,2,FALSE) -> Helmets & Helmet Acc. | C55: =INDEX(ATS!$A:$P,MATCH('2) Order Form'!$W55,ATS!$O:$O,0),1) -> 845066 | D55: =INDEX(ATS!$A:$P,MATCH('2) Order Form'!$W55,ATS!$O:$O,0),2) -> Bushwhacker II Carbon Mips Helmet | E55: =INDEX(ATS!$A:$P,MATCH('2) Order Form'!$W55,ATS!$O:$O,0),4) -> MBKME-LXL | F55: =INDEX(ATS!$A:$P,MATCH('2) Order Form'!$W55,ATS!$O:$O,0),5) -> Matte Black Metallic | G55: =INDEX(ATS!$A:$P,MATCH('2) Order Form'!$W55,ATS!$O:$O,0),6) -> LXL | H55: 1 | I55: 0 | J55: =IFERROR(VLOOKUP(W55,ATS!$O:$P,2,FALSE),0) -> 0 | K55: 0 | L55: =IFERROR(VLOOKUP(W55,ATS!$O:$Q,3,FALSE),0) -> 0 | M55: 0 | N55: 0% | O55: 0% | P55: =VLOOKUP($C55,Prices!$A$3:$R$1996,MATCH('2) Order Form'!P$8,Prices!$A$2:$R$2,0),FALSE) -> 135.00 | Q55: =VLOOKUP($C55,Prices!$A$3:$R$1996,MATCH('2) Order Form'!Q$8,Prices!$A$2:$R$2,0),FALSE) -> 269.95 | R55: 0 | S55: 0 | T55: 0 | U55: 0% | W55: 7048652272676 | Y55: 0 | Z55: 0 | AA55: 3 | AB55: 0 | AC55: 0 | AD55: 845066Matte Black Metallic | AE55: 845066 | AF55: =INDEX(ATS!$A:$P,MATCH('2) Order Form'!$W55,ATS!$O:$O,0),7) -> Active
A56: 1 | B56: =VLOOKUP(A56,Classification!$H$2:$I$11,2,FALSE) -> Helmets & Helmet Acc. | C56: =INDEX(ATS!$A:$P,MATCH('2) Order Form'!$W56,ATS!$O:$O,0),1) -> 845066 | D56: =INDEX(ATS!$A:$P,MATCH('2) Order Form'!$W56,ATS!$O:$O,0),2) -> Bushwhacker II Carbon Mips Helmet | E56: =INDEX(ATS!$A:$P,MATCH('2) Order Form'!$W56,ATS!$O:$O,0),4) -> MWEMC-SM | F56: =INDEX(ATS!$A:$P,MATCH('2) Order Form'!$W56,ATS!$O:$O,0),5) -> Matte White Metallic | G56: =INDEX(ATS!$A:$P,MATCH('2) Order Form'!$W56,ATS!$O:$O,0),6) -> SM | H56: 1 | I56: 0 | J56: =IFERROR(VLOOKUP(W56,ATS!$O:$P,2,FALSE),0) -> 58 | K56: 50+ | L56: =IFERROR(VLOOKUP(W56,ATS!$O:$Q,3,FALSE),0) -> 58 | M56: 50+ | N56: 0% | O56: 0% | P56: =VLOOKUP($C56,Prices!$A$3:$R$1996,MATCH('2) Order Form'!P$8,Prices!$A$2:$R$2,0),FALSE) -> 135.00 | Q56: =VLOOKUP($C56,Prices!$A$3:$R$1996,MATCH('2) Order Form'!Q$8,Prices!$A$2:$R$2,0),FALSE) -> 269.95 | R56: 0 | S56: 0 | T56: 0 | U56: 0% | W56: 7048652272720 | Y56: 0 | Z56: 0 | AA56: 3 | AB56: 0 | AC56: 1 | AD56: 845066Matte White Metallic | AE56: 845066 | AF56: =INDEX(ATS!$A:$P,MATCH('2) Order Form'!$W56,ATS!$O:$O,0),7) -> Active
A57: 1 | B57: =VLOOKUP(A57,Classification!$H$2:$I$11,2,FALSE) -> Helmets & Helmet Acc. | C57: =INDEX(ATS!$A:$P,MATCH('2) Order Form'!$W57,ATS!$O:$O,0),1) -> 845066 | D57: =INDEX(ATS!$A:$P,MATCH('2) Order Form'!$W57,ATS!$O:$O,0),2) -> Bushwhacker II Carbon Mips Helmet | E57: =INDEX(ATS!$A:$P,MATCH('2) Order Form'!$W57,ATS!$O:$O,0),4) -> MWEMC-ML | F57: =INDEX(ATS!$A:$P,MATCH('2) Order Form'!$W57,ATS!$O:$O,0),5) -> Matte White Metallic | G57: =INDEX(ATS!$A:$P,MATCH('2) Order Form'!$W57,ATS!$O:$O,0),6) -> ML | H57: 1 | I57: 0 | J57: =IFERROR(VLOOKUP(W57,ATS!$O:$P,2,FALSE),0) -> 18 | K57: 18 | L57: =IFERROR(VLOOKUP(W57,ATS!$O:$Q,3,FALSE),0) -> 18 | M57: 18 | N57: 0% | O57: 0% | P57: =VLOOKUP($C57,Prices!$A$3:$R$1996,MATCH('2) Order Form'!P$8,Prices!$A$2:$R$2,0),FALSE) -> 135.00 | Q57: =VLOOKUP($C57,Prices!$A$3:$R$1996,MATCH('2) Order Form'!Q$8,Prices!$A$2:$R$2,0),FALSE) -> 269.95 | R57: 0 | S57: 0 | T57: 0 | U57: 0% | W57: 7048652272713 | Y57: 0 | Z57: 0 | AA57: 3 | AB57: 0 | AC57: 0 | AD57: 845066Matte White Metallic | AE57: 845066 | AF57: =INDEX(ATS!$A:$P,MATCH('2) Order Form'!$W57,ATS!$O:$O,0),7) -> Active
A58: 1 | B58: =VLOOKUP(A58,Classification!$H$2:$I$11,2,FALSE) -> Helmets & Helmet Acc. | C58: =INDEX(ATS!$A:$P,MATCH('2) Order Form'!$W58,ATS!$O:$O,0),1) -> 845066 | D58: =INDEX(ATS!$A:$P,MATCH('2) Order Form'!$W58,ATS!$O:$O,0),2) -> Bushwhacker II Carbon Mips Helmet | E58: =INDEX(ATS!$A:$P,MATCH('2) Order Form'!$W58,ATS!$O:$O,0),4) -> MWEMC-LXL | F58: =INDEX(ATS!$A:$P,MATCH('2) Order Form'!$W58,ATS!$O:$O,0),5) -> Matte White Metallic | G58: =INDEX(ATS!$A:$P,MATCH('2) Order Form'!$W58,ATS!$O:$O,0),6) -> LXL | H58: 1 | I58: 0 | J58: =IFERROR(VLOOKUP(W58,ATS!$O:$P,2,FALSE),0) -> 42 | K58: 42 | L58: =IFERROR(VLOOKUP(W58,ATS!$O:$Q,3,FALSE),0) -> 42 | M58: 42 | N58: 0% | O58: 0% | P58: =VLOOKUP($C58,Prices!$A$3:$R$1996,MATCH('2) Order Form'!P$8,Prices!$A$2:$R$2,0),FALSE) -> 135.00 | Q58: =VLOOKUP($C58,Prices!$A$3:$R$1996,MATCH('2) Order Form'!Q$8,Prices!$A$2:$R$2,0),FALSE) -> 269.95 | R58: 0 | S58: 0 | T58: 0 | U58: 0% | W58: 7048652272706 | Y58: 0 | Z58: 0 | AA58: 3 | AB58: 0 | AC58: 0 | AD58: 845066Matte White Metallic | AE58: 845066 | AF58: =INDEX(ATS!$A:$P,MATCH('2) Order Form'!$W58,ATS!$O:$O,0),7) -> Active
A59: 1 | B59: =VLOOKUP(A59,Classification!$H$2:$I$11,2,FALSE) -> Helmets & Helmet Acc. | C59: =INDEX(ATS!$A:$P,MATCH('2) Order Form'!$W59,ATS!$O:$O,0),1) -> 845065 | D59: =INDEX(ATS!$A:$P,MATCH('2) Order Form'!$W59,ATS!$O:$O,0),2) -> Bushwhacker II Mips Helmet | E59: =INDEX(ATS!$A:$P,MATCH('2) Order Form'!$W59,ATS!$O:$O,0),4) -> BGRRG-SM | F59: =INDEX(ATS!$A:$P,MATCH('2) Order Form'!$W59,ATS!$O:$O,0),5) -> Bolt Gray/Rose Gold | G59: =INDEX(ATS!$A:$P,MATCH('2) Order Form'!$W59,ATS!$O:$O,0),6) -> SM | H59: 1 | I59: 0 | J59: =IFERROR(VLOOKUP(W59,ATS!$O:$P,2,FALSE),0) -> 17 | K59: =IF(J59=99999,"OPEN",IF(J59>50,"50+",IF(J59<=0,"0",J59))) -> 17 | L59: =IFERROR(VLOOKUP(W59,ATS!$O:$Q,3,FALSE),0) -> 17 | M59: =IF(L59=99999,"OPEN",IF(L59>50,"50+",IF(L59<=0,"0",L59))) -> 17 | N59: 0% | O59: =IF(N59<>0,N59,$P$5) -> 0% | P59: =VLOOKUP($C59,Prices!$A$3:$R$1996,MATCH('2) Order Form'!P$8,Prices!$A$2:$R$2,0),FALSE) -> 110.00 | Q59: =VLOOKUP($C59,Prices!$A$3:$R$1996,MATCH('2) Order Form'!Q$8,Prices!$A$2:$R$2,0),FALSE) -> 219.95 | R59: =I59*P59 -> 0 | S59: =R59*O59 -> 0 | T59: =R59-S59 -> 0 | U59: 0% | W59: 7048652766403 | Y59: =I59*Q59 -> 0 | Z59: =IF(A59=OFFSET(A59,-1,0),0,1) -> 0 | AA59: 0 | AB59: =IF(C59=OFFSET(C59,-1,0),0,1) -> 1 | AC59: =IF(F59=OFFSET(F59,-1,0),0,1) -> 1 | AD59: =CONCATENATE(C59,F59) -> 845065Bolt Gray/Rose Gold | AE59: =IFERROR(IF(B59="EYEWEAR",CONCATENATE(C59,"-",G59),C59),C59) -> 845065 | AF59: =INDEX(ATS!$A:$P,MATCH('2) Order Form'!$W59,ATS!$O:$O,0),7) -> Active
A60: 1 | B60: =VLOOKUP(A60,Classification!$H$2:$I$11,2,FALSE) -> Helmets & Helmet Acc. | C60: =INDEX(ATS!$A:$P,MATCH('2) Order Form'!$W60,ATS!$O:$O,0),1) -> 845065 | D60: =INDEX(ATS!$A:$P,MATCH('2) Order Form'!$W60,ATS!$O:$O,0),2) -> Bushwhacker II Mips Helmet | E60: =INDEX(ATS!$A:$P,MATCH('2) Order Form'!$W60,ATS!$O:$O,0),4) -> BGRRG-ML | F60: =INDEX(ATS!$A:$P,MATCH('2) Order Form'!$W60,ATS!$O:$O,0),5) -> Bolt Gray/Rose Gold | G60: =INDEX(ATS!$A:$P,MATCH('2) Order Form'!$W60,ATS!$O:$O,0),6) -> ML | H60: 1 | I60: 0 | J60: =IFERROR(VLOOKUP(W60,ATS!$O:$P,2,FALSE),0) -> 21 | K60: 21 | L60: =IFERROR(VLOOKUP(W60,ATS!$O:$Q,3,FALSE),0) -> 21 | M60: 21 | N60: 0% | O60: 0% | P60: =VLOOKUP($C60,Prices!$A$3:$R$1996,MATCH('2) Order Form'!P$8,Prices!$A$2:$R$2,0),FALSE) -> 110.00 | Q60: =VLOOKUP($C60,Prices!$A$3:$R$1996,MATCH('2) Order Form'!Q$8,Prices!$A$2:$R$2,0),FALSE) -> 219.95 | R60: 0 | S60: 0 | T60: 0 | U60: 0% | W60: 7048652766397 | Y60: 0 | Z60: =IF(A60=OFFSET(A60,-1,0),0,1) -> 0 | AA60: =IF(C60=OFFSET(C60,-1,0),OFFSET(AA60,-1,0),OFFSET(AA60,-1,0)+1) -> 0 | AB60: =IF(C60=OFFSET(C60,-1,0),0,1) -> 0 | AC60: =IF(F60=OFFSET(F60,-1,0),0,1) -> 0 | AD60: 845065Bolt Gray/Rose Gold | AE60: 845065 | AF60: =INDEX(ATS!$A:$P,MATCH('2) Order Form'!$W60,ATS!$O:$O,0),7) -> Active
A61: 1 | B61: =VLOOKUP(A61,Classification!$H$2:$I$11,2,FALSE) -> Helmets & Helmet Acc. | C61: =INDEX(ATS!$A:$P,MATCH('2) Order Form'!$W61,ATS!$O:$O,0),1) -> 845065 | D61: =INDEX(ATS!$A:$P,MATCH('2) Order Form'!$W61,ATS!$O:$O,0),2) -> Bushwhacker II Mips Helmet | E61: =INDEX(ATS!$A:$P,MATCH('2) Order Form'!$W61,ATS!$O:$O,0),4) -> BGRRG-LXL | F61: =INDEX(ATS!$A:$P,MATCH('2) Order Form'!$W61,ATS!$O:$O,0),5) -> Bolt Gray/Rose Gold | G61: =INDEX(ATS!$A:$P,MATCH('2) Order Form'!$W61,ATS!$O:$O,0),6) -> LXL | H61: 1 | I61: 0 | J61: =IFERROR(VLOOKUP(W61,ATS!$O:$P,2,FALSE),0) -> 43 | K61: 43 | L61: =IFERROR(VLOOKUP(W61,ATS!$O:$Q,3,FALSE),0) -> 43 | M61: 43 | N61: 0% | O61: 0% | P61: =VLOOKUP($C61,Prices!$A$3:$R$1996,MATCH('2) Order Form'!P$8,Prices!$A$2:$R$2,0),FALSE) -> 110.00 | Q61: =VLOOKUP($C61,Prices!$A$3:$R$1996,MATCH('2) Order Form'!Q$8,Prices!$A$2:$R$2,0),FALSE) -> 219.95 | R61: 0 | S61: 0 | T61: 0 | U61: 0% | W61: 7048652766380 | Y61: 0 | Z61: =IF(A61=OFFSET(A61,-1,0),0,1) -> 0 | AA61: =IF(C61=OFFSET(C61,-1,0),OFFSET(AA61,-1,0),OFFSET(AA61,-1,0)+1) -> 0 | AB61: =IF(C61=OFFSET(C61,-1,0),0,1) -> 0 | AC61: =IF(F61=OFFSET(F61,-1,0),0,1) -> 0 | AD61: 845065Bolt Gray/Rose Gold | AE61: 845065 | AF61: =INDEX(ATS!$A:$P,MATCH('2) Order Form'!$W61,ATS!$O:$O,0),7) -> Active
A62: 1 | B62: =VLOOKUP(A62,Classification!$H$2:$I$11,2,FALSE) -> Helmets & Helmet Acc. | C62: =INDEX(ATS!$A:$P,MATCH('2) Order Form'!$W62,ATS!$O:$O,0),1) -> 845065 | D62: =INDEX(ATS!$A:$P,MATCH('2) Order Form'!$W62,ATS!$O:$O,0),2) -> Bushwhacker II Mips Helmet | E62: =INDEX(ATS!$A:$P,MATCH('2) Order Form'!$W62,ATS!$O:$O,0),4) -> BRWHT-SM | F62: =INDEX(ATS!$A:$P,MATCH('2) Order Form'!$W62,ATS!$O:$O,0),5) -> Bronco White | G62: =INDEX(ATS!$A:$P,MATCH('2) Order Form'!$W62,ATS!$O:$O,0),6) -> SM | H62: 1 | I62: 0 | J62: =IFERROR(VLOOKUP(W62,ATS!$O:$P,2,FALSE),0) -> 36 | K62: 36 | L62: =IFERROR(VLOOKUP(W62,ATS!$O:$Q,3,FALSE),0) -> 36 | M62: 36 | N62: 0% | O62: 0% | P62: =VLOOKUP($C62,Prices!$A$3:$R$1996,MATCH('2) Order Form'!P$8,Prices!$A$2:$R$2,0),FALSE) -> 110.00 | Q62: =VLOOKUP($C62,Prices!$A$3:$R$1996,MATCH('2) Order Form'!Q$8,Prices!$A$2:$R$2,0),FALSE) -> 219.95 | R62: 0 | S62: 0 | T62: 0 | U62: 0% | W62: 7048652766434 | Y62: 0 | Z62: =IF(A62=OFFSET(A62,-1,0),0,1) -> 0 | AA62: =IF(C62=OFFSET(C62,-1,0),OFFSET(AA62,-1,0),OFFSET(AA62,-1,0)+1) -> 0 | AB62: =IF(C62=OFFSET(C62,-1,0),0,1) -> 0 | AC62: =IF(F62=OFFSET(F62,-1,0),0,1) -> 1 | AD62: 845065Bronco White | AE62: 845065 | AF62: =INDEX(ATS!$A:$P,MATCH('2) Order Form'!$W62,ATS!$O:$O,0),7) -> Active
A63: 1 | B63: =VLOOKUP(A63,Classification!$H$2:$I$11,2,FALSE) -> Helmets & Helmet Acc. | C63: =INDEX(ATS!$A:$P,MATCH('2) Order Form'!$W63,ATS!$O:$O,0),1) -> 845065 | D63: =INDEX(ATS!$A:$P,MATCH('2) Order Form'!$W63,ATS!$O:$O,0),2) -> Bushwhacker II Mips Helmet | E63: =INDEX(ATS!$A:$P,MATCH('2) Order Form'!$W63,ATS!$O:$O,0),4) -> BRWHT-ML | F63: =INDEX(ATS!$A:$P,MATCH('2) Order Form'!$W63,ATS!$O:$O,0),5) -> Bronco White | G63: =INDEX(ATS!$A:$P,MATCH('2) Order Form'!$W63,ATS!$O:$O,0),6) -> ML | H63: 1 | I63: 0 | J63: =IFERROR(VLOOKUP(W63,ATS!$O:$P,2,FALSE),0) -> 28 | K63: 28 | L63: =IFERROR(VLOOKUP(W63,ATS!$O:$Q,3,FALSE),0) -> 28 | M63: 28 | N63: 0% | O63: 0% | P63: =VLOOKUP($C63,Prices!$A$3:$R$1996,MATCH('2) Order Form'!P$8,Prices!$A$2:$R$2,0),FALSE) -> 110.00 | Q63: =VLOOKUP($C63,Prices!$A$3:$R$1996,MATCH('2) Order Form'!Q$8,Prices!$A$2:$R$2,0),FALSE) -> 219.95 | R63: 0 | S63: 0 | T63: 0 | U63: 0% | W63: 7048652766427 | Y63: 0 | Z63: =IF(A63=OFFSET(A63,-1,0),0,1) -> 0 | AA63: =IF(C63=OFFSET(C63,-1,0),OFFSET(AA63,-1,0),OFFSET(AA63,-1,0)+1) -> 0 | AB63: =IF(C63=OFFSET(C63,-1,0),0,1) -> 0 | AC63: =IF(F63=OFFSET(F63,-1,0),0,1) -> 0 | AD63: 845065Bronco White | AE63: 845065 | AF63: =INDEX(ATS!$A:$P,MATCH('2) Order Form'!$W63,ATS!$O:$O,0),7) -> Active
A64: 1 | B64: =VLOOKUP(A64,Classification!$H$2:$I$11,2,FALSE) -> Helmets & Helmet Acc. | C64: =INDEX(ATS!$A:$P,MATCH('2) Order Form'!$W64,ATS!$O:$O,0),1) -> 845065 | D64: =INDEX(ATS!$A:$P,MATCH('2) Order Form'!$W64,ATS!$O:$O,0),2) -> Bushwhacker II Mips Helmet | E64: =INDEX(ATS!$A:$P,MATCH('2) Order Form'!$W64,ATS!$O:$O,0),4) -> BRWHT-LXL | F64: =INDEX(ATS!$A:$P,MATCH('2) Order Form'!$W64,ATS!$O:$O,0),5) -> Bronco White | G64: =INDEX(ATS!$A:$P,MATCH('2) Order Form'!$W64,ATS!$O:$O,0),6) -> LXL | H64: 1 | I64: 0 | J64: =IFERROR(VLOOKUP(W64,ATS!$O:$P,2,FALSE),0) -> 39 | K64: 39 | L64: =IFERROR(VLOOKUP(W64,ATS!$O:$Q,3,FALSE),0) -> 39 | M64: 39 | N64: 0% | O64: 0% | P64: =VLOOKUP($C64,Prices!$A$3:$R$1996,MATCH('2) Order Form'!P$8,Prices!$A$2:$R$2,0),FALSE) -> 110.00 | Q64: =VLOOKUP($C64,Prices!$A$3:$R$1996,MATCH('2) Order Form'!Q$8,Prices!$A$2:$R$2,0),FALSE) -> 219.95 | R64: 0 | S64: 0 | T64: 0 | U64: 0% | W64: 7048652766410 | Y64: 0 | Z64: =IF(A64=OFFSET(A64,-1,0),0,1) -> 0 | AA64: =IF(C64=OFFSET(C64,-1,0),OFFSET(AA64,-1,0),OFFSET(AA64,-1,0)+1) -> 0 | AB64: =IF(C64=OFFSET(C64,-1,0),0,1) -> 0 | AC64: =IF(F64=OFFSET(F64,-1,0),0,1) -> 0 | AD64: 845065Bronco White | AE64: 845065 | AF64: =INDEX(ATS!$A:$P,MATCH('2) Order Form'!$W64,ATS!$O:$O,0),7) -> Active
A65: 1 | B65: =VLOOKUP(A65,Classification!$H$2:$I$11,2,FALSE) -> Helmets & Helmet Acc. | C65: =INDEX(ATS!$A:$P,MATCH('2) Order Form'!$W65,ATS!$O:$O,0),1) -> 845065 | D65: =INDEX(ATS!$A:$P,MATCH('2) Order Form'!$W65,ATS!$O:$O,0),2) -> Bushwhacker II Mips Helmet | E65: =INDEX(ATS!$A:$P,MATCH('2) Order Form'!$W65,ATS!$O:$O,0),4) -> MBLCK-SM | F65: =INDEX(ATS!$A:$P,MATCH('2) Order Form'!$W65,ATS!$O:$O,0),5) -> Matte Black | G65: =INDEX(ATS!$A:$P,MATCH('2) Order Form'!$W65,ATS!$O:$O,0),6) -> SM | H65: 1 | I65: 0 | J65: =IFERROR(VLOOKUP(W65,ATS!$O:$P,2,FALSE),0) -> 30 | K65: 30 | L65: =IFERROR(VLOOKUP(W65,ATS!$O:$Q,3,FALSE),0) -> 30 | M65: 30 | N65: 0% | O65: 0% | P65: =VLOOKUP($C65,Prices!$A$3:$R$1996,MATCH('2) Order Form'!P$8,Prices!$A$2:$R$2,0),FALSE) -> 110.00 | Q65: =VLOOKUP($C65,Prices!$A$3:$R$1996,MATCH('2) Order Form'!Q$8,Prices!$A$2:$R$2,0),FALSE) -> 219.95 | R65: 0 | S65: 0 | T65: 0 | U65: 0% | W65: 7048652272546 | Y65: =I65*Q65 -> 0 | Z65: =IF(A65=OFFSET(A65,-1,0),0,1) -> 0 | AA65: =IF(C65=OFFSET(C65,-1,0),OFFSET(AA65,-1,0),OFFSET(AA65,-1,0)+1) -> 0 | AB65: =IF(C65=OFFSET(C65,-1,0),0,1) -> 0 | AC65: =IF(F65=OFFSET(F65,-1,0),0,1) -> 1 | AD65: =CONCATENATE(C65,F65) -> 845065Matte Black | AE65: =IFERROR(IF(B65="EYEWEAR",CONCATENATE(C65,"-",G65),C65),C65) -> 845065 | AF65: =INDEX(ATS!$A:$P,MATCH('2) Order Form'!$W65,ATS!$O:$O,0),7) -> Active
A66: 1 | B66: =VLOOKUP(A66,Classification!$H$2:$I$11,2,FALSE) -> Helmets & Helmet Acc. | C66: =INDEX(ATS!$A:$P,MATCH('2) Order Form'!$W66,ATS!$O:$O,0),1) -> 845065 | D66: =INDEX(ATS!$A:$P,MATCH('2) Order Form'!$W66,ATS!$O:$O,0),2) -> Bushwhacker II Mips Helmet | E66: =INDEX(ATS!$A:$P,MATCH('2) Order Form'!$W66,ATS!$O:$O,0),4) -> MBLCK-ML | F66: =INDEX(ATS!$A:$P,MATCH('2) Order Form'!$W66,ATS!$O:$O,0),5) -> Matte Black | G66: =INDEX(ATS!$A:$P,MATCH('2) Order Form'!$W66,ATS!$O:$O,0),6) -> ML | H66: 1 | I66: 0 | J66: =IFERROR(VLOOKUP(W66,ATS!$O:$P,2,FALSE),0) -> 0 | K66: 0 | L66: =IFERROR(VLOOKUP(W66,ATS!$O:$Q,3,FALSE),0) -> 0 | M66: 0 | N66: 0% | O66: 0% | P66: =VLOOKUP($C66,Prices!$A$3:$R$1996,MATCH('2) Order Form'!P$8,Prices!$A$2:$R$2,0),FALSE) -> 110.00 | Q66: =VLOOKUP($C66,Prices!$A$3:$R$1996,MATCH('2) Order Form'!Q$8,Prices!$A$2:$R$2,0),FALSE) -> 219.95 | R66: 0 | S66: 0 | T66: 0 | U66: 0% | W66: 7048652272539 | Y66: 0 | Z66: 0 | AA66: 0 | AB66: 0 | AC66: 0 | AD66: 845065Matte Black | AE66: 845065 | AF66: =INDEX(ATS!$A:$P,MATCH('2) Order Form'!$W66,ATS!$O:$O,0),7) -> Active
A67: 1 | B67: =VLOOKUP(A67,Classification!$H$2:$I$11,2,FALSE) -> Helmets & Helmet Acc. | C67: =INDEX(ATS!$A:$P,MATCH('2) Order Form'!$W67,ATS!$O:$O,0),1) -> 845065 | D67: =INDEX(ATS!$A:$P,MATCH('2) Order Form'!$W67,ATS!$O:$O,0),2) -> Bushwhacker II Mips Helmet | E67: =INDEX(ATS!$A:$P,MATCH('2) Order Form'!$W67,ATS!$O:$O,0),4) -> MBLCK-LXL | F67: =INDEX(ATS!$A:$P,MATCH('2) Order Form'!$W67,ATS!$O:$O,0),5) -> Matte Black | G67: =INDEX(ATS!$A:$P,MATCH('2) Order Form'!$W67,ATS!$O:$O,0),6) -> LXL | H67: 1 | I67: 0 | J67: =IFERROR(VLOOKUP(W67,ATS!$O:$P,2,FALSE),0) -> 0 | K67: 0 | L67: =IFERROR(VLOOKUP(W67,ATS!$O:$Q,3,FALSE),0) -> 0 | M67: 0 | N67: 0% | O67: 0% | P67: =VLOOKUP($C67,Prices!$A$3:$R$1996,MATCH('2) Order Form'!P$8,Prices!$A$2:$R$2,0),FALSE) -> 110.00 | Q67: =VLOOKUP($C67,Prices!$A$3:$R$1996,MATCH('2) Order Form'!Q$8,Prices!$A$2:$R$2,0),FALSE) -> 219.95 | R67: 0 | S67: 0 | T67: 0 | U67: 0% | W67: 7048652272522 | Y67: 0 | Z67: 0 | AA67: 0 | AB67: 0 | AC67: 0 | AD67: 845065Matte Black | AE67: 845065 | AF67: =INDEX(ATS!$A:$P,MATCH('2) Order Form'!$W67,ATS!$O:$O,0),7) -> Active
A68: 1 | B68: =VLOOKUP(A68,Classification!$H$2:$I$11,2,FALSE) -> Helmets & Helmet Acc. | C68: =INDEX(ATS!$A:$P,MATCH('2) Order Form'!$W68,ATS!$O:$O,0),1) -> 845065 | D68: =INDEX(ATS!$A:$P,MATCH('2) Order Form'!$W68,ATS!$O:$O,0),2) -> Bushwhacker II Mips Helmet | E68: =INDEX(ATS!$A:$P,MATCH('2) Order Form'!$W68,ATS!$O:$O,0),4) -> MWHTE-SM | F68: =INDEX(ATS!$A:$P,MATCH('2) Order Form'!$W68,ATS!$O:$O,0),5) -> Matte White | G68: =INDEX(ATS!$A:$P,MATCH('2) Order Form'!$W68,ATS!$O:$O,0),6) -> SM | H68: 1 | I68: 0 | J68: =IFERROR(VLOOKUP(W68,ATS!$O:$P,2,FALSE),0) -> 55 | K68: 50+ | L68: =IFERROR(VLOOKUP(W68,ATS!$O:$Q,3,FALSE),0) -> 55 | M68: 50+ | N68: 0% | O68: 0% | P68: =VLOOKUP($C68,Prices!$A$3:$R$1996,MATCH('2) Order Form'!P$8,Prices!$A$2:$R$2,0),FALSE) -> 110.00 | Q68: =VLOOKUP($C68,Prices!$A$3:$R$1996,MATCH('2) Order Form'!Q$8,Prices!$A$2:$R$2,0),FALSE) -> 219.95 | R68: 0 | S68: 0 | T68: 0 | U68: 0% | W68: 7048652272669 | Y68: 0 | Z68: 0 | AA68: 0 | AB68: 0 | AC68: 1 | AD68: 845065Matte White | AE68: 845065 | AF68: =INDEX(ATS!$A:$P,MATCH('2) Order Form'!$W68,ATS!$O:$O,0),7) -> Active
A69: 1 | B69: =VLOOKUP(A69,Classification!$H$2:$I$11,2,FALSE) -> Helmets & Helmet Acc. | C69: =INDEX(ATS!$A:$P,MATCH('2) Order Form'!$W69,ATS!$O:$O,0),1) -> 845065 | D69: =INDEX(ATS!$A:$P,MATCH('2) Order Form'!$W69,ATS!$O:$O,0),2) -> Bushwhacker II Mips Helmet | E69: =INDEX(ATS!$A:$P,MATCH('2) Order Form'!$W69,ATS!$O:$O,0),4) -> MWHTE-ML | F69: =INDEX(ATS!$A:$P,MATCH('2) Order Form'!$W69,ATS!$O:$O,0),5) -> Matte White | G69: =INDEX(ATS!$A:$P,MATCH('2) Order Form'!$W69,ATS!$O:$O,0),6) -> ML | H69: 1 | I69: 0 | J69: =IFERROR(VLOOKUP(W69,ATS!$O:$P,2,FALSE),0) -> 29 | K69: 29 | L69: =IFERROR(VLOOKUP(W69,ATS!$O:$Q,3,FALSE),0) -> 29 | M69: 29 | N69: 0% | O69: 0% | P69: =VLOOKUP($C69,Prices!$A$3:$R$1996,MATCH('2) Order Form'!P$8,Prices!$A$2:$R$2,0),FALSE) -> 110.00 | Q69: =VLOOKUP($C69,Prices!$A$3:$R$1996,MATCH('2) Order Form'!Q$8,Prices!$A$2:$R$2,0),FALSE) -> 219.95 | R69: 0 | S69: 0 | T69: 0 | U69: 0% | W69: 7048652272652 | Y69: 0 | Z69: 0 | AA69: 0 | AB69: 0 | AC69: 0 | AD69: 845065Matte White | AE69: 845065 | AF69: =INDEX(ATS!$A:$P,MATCH('2) Order Form'!$W69,ATS!$O:$O,0),7) -> Active
A70: 1 | B70: =VLOOKUP(A70,Classification!$H$2:$I$11,2,FALSE) -> Helmets & Helmet Acc. | C70: =INDEX(ATS!$A:$P,MATCH('2) Order Form'!$W70,ATS!$O:$O,0),1) -> 845065 | D70: =INDEX(ATS!$A:$P,MATCH('2) Order Form'!$W70,ATS!$O:$O,0),2) -> Bushwhacker II Mips Helmet | E70: =INDEX(ATS!$A:$P,MATCH('2) Order Form'!$W70,ATS!$O:$O,0),4) -> MWHTE-LXL | F70: =INDEX(ATS!$A:$P,MATCH('2) Order Form'!$W70,ATS!$O:$O,0),5) -> Matte White | G70: =INDEX(ATS!$A:$P,MATCH('2) Order Form'!$W70,ATS!$O:$O,0),6) -> LXL | H70: 1 | I70: 0 | J70: =IFERROR(VLOOKUP(W70,ATS!$O:$P,2,FALSE),0) -> 49 | K70: 49 | L70: =IFERROR(VLOOKUP(W70,ATS!$O:$Q,3,FALSE),0) -> 49 | M70: 49 | N70: 0% | O70: 0% | P70: =VLOOKUP($C70,Prices!$A$3:$R$1996,MATCH('2) Order Form'!P$8,Prices!$A$2:$R$2,0),FALSE) -> 110.00 | Q70: =VLOOKUP($C70,Prices!$A$3:$R$1996,MATCH('2) Order Form'!Q$8,Prices!$A$2:$R$2,0),FALSE) -> 219.95 | R70: 0 | S70: 0 | T70: 0 | U70: 0% | W70: 7048652272645 | Y70: 0 | Z70: 0 | AA70: 0 | AB70: 0 | AC70: 0 | AD70: 845065Matte White | AE70: 845065 | AF70: =INDEX(ATS!$A:$P,MATCH('2) Order Form'!$W70,ATS!$O:$O,0),7) -> Active
A71: 1 | B71: =VLOOKUP(A71,Classification!$H$2:$I$11,2,FALSE) -> Helmets & Helmet Acc. | C71: =INDEX(ATS!$A:$P,MATCH('2) Order Form'!$W71,ATS!$O:$O,0),1) -> 845065 | D71: =INDEX(ATS!$A:$P,MATCH('2) Order Form'!$W71,ATS!$O:$O,0),2) -> Bushwhacker II Mips Helmet | E71: =INDEX(ATS!$A:$P,MATCH('2) Order Form'!$W71,ATS!$O:$O,0),4) -> SGRME-SM | F71: =INDEX(ATS!$A:$P,MATCH('2) Order Form'!$W71,ATS!$O:$O,0),5) -> Slate Gray Metallic | G71: =INDEX(ATS!$A:$P,MATCH('2) Order Form'!$W71,ATS!$O:$O,0),6) -> SM | H71: 1 | I71: 0 | J71: =IFERROR(VLOOKUP(W71,ATS!$O:$P,2,FALSE),0) -> 2 | K71: 2 | L71: =IFERROR(VLOOKUP(W71,ATS!$O:$Q,3,FALSE),0) -> 2 | M71: 2 | N71: 0% | O71: 0% | P71: =VLOOKUP($C71,Prices!$A$3:$R$1996,MATCH('2) Order Form'!P$8,Prices!$A$2:$R$2,0),FALSE) -> 110.00 | Q71: =VLOOKUP($C71,Prices!$A$3:$R$1996,MATCH('2) Order Form'!Q$8,Prices!$A$2:$R$2,0),FALSE) -> 219.95 | R71: 0 | S71: 0 | T71: 0 | U71: 0% | W71: 7048652660268 | Y71: 0 | Z71: 0 | AA71: 0 | AB71: 0 | AC71: 1 | AD71: 845065Slate Gray Metallic | AE71: 845065 | AF71: =INDEX(ATS!$A:$P,MATCH('2) Order Form'!$W71,ATS!$O:$O,0),7) -> Active
A72: 1 | B72: =VLOOKUP(A72,Classification!$H$2:$I$11,2,FALSE) -> Helmets & Helmet Acc. | C72: =INDEX(ATS!$A:$P,MATCH('2) Order Form'!$W72,ATS!$O:$O,0),1) -> 845065 | D72: =INDEX(ATS!$A:$P,MATCH('2) Order Form'!$W72,ATS!$O:$O,0),2) -> Bushwhacker II Mips Helmet | E72: =INDEX(ATS!$A:$P,MATCH('2) Order Form'!$W72,ATS!$O:$O,0),4) -> SGRME-ML | F72: =INDEX(ATS!$A:$P,MATCH('2) Order Form'!$W72,ATS!$O:$O,0),5) -> Slate Gray Metallic | G72: =INDEX(ATS!$A:$P,MATCH('2) Order Form'!$W72,ATS!$O:$O,0),6) -> ML | H72: 1 | I72: 0 | J72: =IFERROR(VLOOKUP(W72,ATS!$O:$P,2,FALSE),0) -> 0 | K72: 0 | L72: =IFERROR(VLOOKUP(W72,ATS!$O:$Q,3,FALSE),0) -> 0 | M72: 0 | N72: 0% | O72: 0% | P72: =VLOOKUP($C72,Prices!$A$3:$R$1996,MATCH('2) Order Form'!P$8,Prices!$A$2:$R$2,0),FALSE) -> 110.00 | Q72: =VLOOKUP($C72,Prices!$A$3:$R$1996,MATCH('2) Order Form'!Q$8,Prices!$A$2:$R$2,0),FALSE) -> 219.95 | R72: 0 | S72: 0 | T72: 0 | U72: 0% | W72: 7048652660251 | Y72: 0 | Z72: 0 | AA72: 0 | AB72: 0 | AC72: 0 | AD72: 845065Slate Gray Metallic | AE72: 845065 | AF72: =INDEX(ATS!$A:$P,MATCH('2) Order Form'!$W72,ATS!$O:$O,0),7) -> Active
A73: 1 | B73: =VLOOKUP(A73,Classification!$H$2:$I$11,2,FALSE) -> Helmets & Helmet Acc. | C73: =INDEX(ATS!$A:$P,MATCH('2) Order Form'!$W73,ATS!$O:$O,0),1) -> 845065 | D73: =INDEX(ATS!$A:$P,MATCH('2) Order Form'!$W73,ATS!$O:$O,0),2) -> Bushwhacker II Mips Helmet | E73: =INDEX(ATS!$A:$P,MATCH('2) Order Form'!$W73,ATS!$O:$O,0),4) -> SGRME-LXL | F73: =INDEX(ATS!$A:$P,MATCH('2) Order Form'!$W73,ATS!$O:$O,0),5) -> Slate Gray Metallic | G73: =INDEX(ATS!$A:$P,MATCH('2) Order Form'!$W73,ATS!$O:$O,0),6) -> LXL | H73: 1 | I73: 0 | J73: =IFERROR(VLOOKUP(W73,ATS!$O:$P,2,FALSE),0) -> 0 | K73: 0 | L73: =IFERROR(VLOOKUP(W73,ATS!$O:$Q,3,FALSE),0) -> 0 | M73: 0 | N73: 0% | O73: 0% | P73: =VLOOKUP($C73,Prices!$A$3:$R$1996,MATCH('2) Order Form'!P$8,Prices!$A$2:$R$2,0),FALSE) -> 110.00 | Q73: =VLOOKUP($C73,Prices!$A$3:$R$1996,MATCH('2) Order Form'!Q$8,Prices!$A$2:$R$2,0),FALSE) -> 219.95 | R73: 0 | S73: 0 | T73: 0 | U73: =IFERROR(I73/($I$161+$I$162+$I$163),0) -> 0% | W73: 7048652660244 | Y73: 0 | Z73: 0 | AA73: 0 | AB73: 0 | AC73: 0 | AD73: 845065Slate Gray Metallic | AE73: 845065 | AF73: =INDEX(ATS!$A:$P,MATCH('2) Order Form'!$W73,ATS!$O:$O,0),7) -> Active
A74: 1 | B74: =VLOOKUP(A74,Classification!$H$2:$I$11,2,FALSE) -> Helmets & Helmet Acc. | C74: =INDEX(ATS!$A:$P,MATCH('2) Order Form'!$W74,ATS!$O:$O,0),1) -> 845070 | D74: =INDEX(ATS!$A:$P,MATCH('2) Order Form'!$W74,ATS!$O:$O,0),2) -> Dissenter Mips Helmet | E74: =INDEX(ATS!$A:$P,MATCH('2) Order Form'!$W74,ATS!$O:$O,0),4) -> BRWHT-SM | F74: =INDEX(ATS!$A:$P,MATCH('2) Order Form'!$W74,ATS!$O:$O,0),5) -> Bronco White | G74: =INDEX(ATS!$A:$P,MATCH('2) Order Form'!$W74,ATS!$O:$O,0),6) -> SM | H74: 1 | I74: 0 | J74: =IFERROR(VLOOKUP(W74,ATS!$O:$P,2,FALSE),0) -> 67 | K74: =IF(J74=99999,"OPEN",IF(J74>50,"50+",IF(J74<=0,"0",J74))) -> 50+ | L74: =IFERROR(VLOOKUP(W74,ATS!$O:$Q,3,FALSE),0) -> 67 | M74: =IF(L74=99999,"OPEN",IF(L74>50,"50+",IF(L74<=0,"0",L74))) -> 50+ | N74: 0% | O74: =IF(N74<>0,N74,$P$5) -> 0% | P74: =VLOOKUP($C74,Prices!$A$3:$R$1996,MATCH('2) Order Form'!P$8,Prices!$A$2:$R$2,0),FALSE) -> 75.00 | Q74: =VLOOKUP($C74,Prices!$A$3:$R$1996,MATCH('2) Order Form'!Q$8,Prices!$A$2:$R$2,0),FALSE) -> 149.95 | R74: =I74*P74 -> 0 | S74: =R74*O74 -> 0 | T74: =R74-S74 -> 0 | U74: 0% | W74: 7048652766557 | Y74: =I74*Q74 -> 0 | Z74: =IF(A74=OFFSET(A74,-1,0),0,1) -> 0 | AA74: =IF(C74=OFFSET(C74,-1,0),OFFSET(AA74,-1,0),OFFSET(AA74,-1,0)+1) -> 1 | AB74: =IF(C74=OFFSET(C74,-1,0),0,1) -> 1 | AC74: =IF(F74=OFFSET(F74,-1,0),0,1) -> 1 | AD74: =CONCATENATE(C74,F74) -> 845070Bronco White | AE74: =IFERROR(IF(B74="EYEWEAR",CONCATENATE(C74,"-",G74),C74),C74) -> 845070 | AF74: =INDEX(ATS!$A:$P,MATCH('2) Order Form'!$W74,ATS!$O:$O,0),7) -> Stock
A75: 1 | B75: =VLOOKUP(A75,Classification!$H$2:$I$11,2,FALSE) -> Helmets & Helmet Acc. | C75: =INDEX(ATS!$A:$P,MATCH('2) Order Form'!$W75,ATS!$O:$O,0),1) -> 845070 | D75: =INDEX(ATS!$A:$P,MATCH('2) Order Form'!$W75,ATS!$O:$O,0),2) -> Dissenter Mips Helmet | E75: =INDEX(ATS!$A:$P,MATCH('2) Order Form'!$W75,ATS!$O:$O,0),4) -> BRWHT-ML | F75: =INDEX(ATS!$A:$P,MATCH('2) Order Form'!$W75,ATS!$O:$O,0),5) -> Bronco White | G75: =INDEX(ATS!$A:$P,MATCH('2) Order Form'!$W75,ATS!$O:$O,0),6) -> ML | H75: 1 | I75: 0 | J75: =IFERROR(VLOOKUP(W75,ATS!$O:$P,2,FALSE),0) -> 120 | K75: 50+ | L75: =IFERROR(VLOOKUP(W75,ATS!$O:$Q,3,FALSE),0) -> 120 | M75: 50+ | N75: 0% | O75: 0% | P75: =VLOOKUP($C75,Prices!$A$3:$R$1996,MATCH('2) Order Form'!P$8,Prices!$A$2:$R$2,0),FALSE) -> 75.00 | Q75: =VLOOKUP($C75,Prices!$A$3:$R$1996,MATCH('2) Order Form'!Q$8,Prices!$A$2:$R$2,0),FALSE) -> 149.95 | R75: 0 | S75: 0 | T75: 0 | U75: 0% | W75: 7048652766540 | Y75: 0 | Z75: 0 | AA75: 1 | AB75: 0 | AC75: 0 | AD75: 845070Bronco White | AE75: 845070 | AF75: =INDEX(ATS!$A:$P,MATCH('2) Order Form'!$W75,ATS!$O:$O,0),7) -> Stock
A76: 1 | B76: =VLOOKUP(A76,Classification!$H$2:$I$11,2,FALSE) -> Helmets & Helmet Acc. | C76: =INDEX(ATS!$A:$P,MATCH('2) Order Form'!$W76,ATS!$O:$O,0),1) -> 845070 | D76: =INDEX(ATS!$A:$P,MATCH('2) Order Form'!$W76,ATS!$O:$O,0),2) -> Dissenter Mips Helmet | E76: =INDEX(ATS!$A:$P,MATCH('2) Order Form'!$W76,ATS!$O:$O,0),4) -> BRWHT-LXL | F76: =INDEX(ATS!$A:$P,MATCH('2) Order Form'!$W76,ATS!$O:$O,0),5) -> Bronco White | G76: =INDEX(ATS!$A:$P,MATCH('2) Order Form'!$W76,ATS!$O:$O,0),6) -> LXL | H76: 1 | I76: 0 | J76: =IFERROR(VLOOKUP(W76,ATS!$O:$P,2,FALSE),0) -> 51 | K76: 50+ | L76: =IFERROR(VLOOKUP(W76,ATS!$O:$Q,3,FALSE),0) -> 51 | M76: 50+ | N76: 0% | O76: 0% | P76: =VLOOKUP($C76,Prices!$A$3:$R$1996,MATCH('2) Order Form'!P$8,Prices!$A$2:$R$2,0),FALSE) -> 75.00 | Q76: =VLOOKUP($C76,Prices!$A$3:$R$1996,MATCH('2) Order Form'!Q$8,Prices!$A$2:$R$2,0),FALSE) -> 149.95 | R76: 0 | S76: 0 | T76: 0 | U76: 0% | W76: 7048652766533 | Y76: 0 | Z76: 0 | AA76: 1 | AB76: 0 | AC76: 0 | AD76: 845070Bronco White | AE76: 845070 | AF76: =INDEX(ATS!$A:$P,MATCH('2) Order Form'!$W76,ATS!$O:$O,0),7) -> Stock
A77: 1 | B77: =VLOOKUP(A77,Classification!$H$2:$I$11,2,FALSE) -> Helmets & Helmet Acc. | C77: =INDEX(ATS!$A:$P,MATCH('2) Order Form'!$W77,ATS!$O:$O,0),1) -> 845070 | D77: =INDEX(ATS!$A:$P,MATCH('2) Order Form'!$W77,ATS!$O:$O,0),2) -> Dissenter Mips Helmet | E77: =INDEX(ATS!$A:$P,MATCH('2) Order Form'!$W77,ATS!$O:$O,0),4) -> MBLCK-SM | F77: =INDEX(ATS!$A:$P,MATCH('2) Order Form'!$W77,ATS!$O:$O,0),5) -> Matte Black | G77: =INDEX(ATS!$A:$P,MATCH('2) Order Form'!$W77,ATS!$O:$O,0),6) -> SM | H77: 1 | I77: 0 | J77: =IFERROR(VLOOKUP(W77,ATS!$O:$P,2,FALSE),0) -> 137 | K77: 50+ | L77: =IFERROR(VLOOKUP(W77,ATS!$O:$Q,3,FALSE),0) -> 137 | M77: 50+ | N77: 0% | O77: 0% | P77: =VLOOKUP($C77,Prices!$A$3:$R$1996,MATCH('2) Order Form'!P$8,Prices!$A$2:$R$2,0),FALSE) -> 75.00 | Q77: =VLOOKUP($C77,Prices!$A$3:$R$1996,MATCH('2) Order Form'!Q$8,Prices!$A$2:$R$2,0),FALSE) -> 149.95 | R77: 0 | S77: 0 | T77: 0 | U77: 0% | W77: 7048652272966 | Y77: 0 | Z77: 0 | AA77: 1 | AB77: 0 | AC77: 1 | AD77: 845070Matte Black | AE77: 845070 | AF77: =INDEX(ATS!$A:$P,MATCH('2) Order Form'!$W77,ATS!$O:$O,0),7) -> Active
A78: 1 | B78: =VLOOKUP(A78,Classification!$H$2:$I$11,2,FALSE) -> Helmets & Helmet Acc. | C78: =INDEX(ATS!$A:$P,MATCH('2) Order Form'!$W78,ATS!$O:$O,0),1) -> 845070 | D78: =INDEX(ATS!$A:$P,MATCH('2) Order Form'!$W78,ATS!$O:$O,0),2) -> Dissenter Mips Helmet | E78: =INDEX(ATS!$A:$P,MATCH('2) Order Form'!$W78,ATS!$O:$O,0),4) -> MBLCK-ML | F78: =INDEX(ATS!$A:$P,MATCH('2) Order Form'!$W78,ATS!$O:$O,0),5) -> Matte Black | G78: =INDEX(ATS!$A:$P,MATCH('2) Order Form'!$W78,ATS!$O:$O,0),6) -> ML | H78: 1 | I78: 0 | J78: =IFERROR(VLOOKUP(W78,ATS!$O:$P,2,FALSE),0) -> 714 | K78: 50+ | L78: =IFERROR(VLOOKUP(W78,ATS!$O:$Q,3,FALSE),0) -> 714 | M78: 50+ | N78: 0% | O78: 0% | P78: =VLOOKUP($C78,Prices!$A$3:$R$1996,MATCH('2) Order Form'!P$8,Prices!$A$2:$R$2,0),FALSE) -> 75.00 | Q78: =VLOOKUP($C78,Prices!$A$3:$R$1996,MATCH('2) Order Form'!Q$8,Prices!$A$2:$R$2,0),FALSE) -> 149.95 | R78: 0 | S78: 0 | T78: 0 | U78: 0% | W78: 7048652272959 | Y78: 0 | Z78: 0 | AA78: 1 | AB78: 0 | AC78: 0 | AD78: 845070Matte Black | AE78: 845070 | AF78: =INDEX(ATS!$A:$P,MATCH('2) Order Form'!$W78,ATS!$O:$O,0),7) -> Active
A79: 1 | B79: =VLOOKUP(A79,Classification!$H$2:$I$11,2,FALSE) -> Helmets & Helmet Acc. | C79: =INDEX(ATS!$A:$P,MATCH('2) Order Form'!$W79,ATS!$O:$O,0),1) -> 845070 | D79: =INDEX(ATS!$A:$P,MATCH('2) Order Form'!$W79,ATS!$O:$O,0),2) -> Dissenter Mips Helmet | E79: =INDEX(ATS!$A:$P,MATCH('2) Order Form'!$W79,ATS!$O:$O,0),4) -> MBLCK-LXL | F79: =INDEX(ATS!$A:$P,MATCH('2) Order Form'!$W79,ATS!$O:$O,0),5) -> Matte Black | G79: =INDEX(ATS!$A:$P,MATCH('2) Order Form'!$W79,ATS!$O:$O,0),6) -> LXL | H79: 1 | I79: 0 | J79: =IFERROR(VLOOKUP(W79,ATS!$O:$P,2,FALSE),0) -> 381 | K79: 50+ | L79: =IFERROR(VLOOKUP(W79,ATS!$O:$Q,3,FALSE),0) -> 381 | M79: 50+ | N79: 0% | O79: 0% | P79: =VLOOKUP($C79,Prices!$A$3:$R$1996,MATCH('2) Order Form'!P$8,Prices!$A$2:$R$2,0),FALSE) -> 75.00 | Q79: =VLOOKUP($C79,Prices!$A$3:$R$1996,MATCH('2) Order Form'!Q$8,Prices!$A$2:$R$2,0),FALSE) -> 149.95 | R79: 0 | S79: 0 | T79: 0 | U79: 0% | W79: 7048652272942 | Y79: 0 | Z79: 0 | AA79: 1 | AB79: 0 | AC79: 0 | AD79: 845070Matte Black | AE79: 845070 | AF79: =INDEX(ATS!$A:$P,MATCH('2) Order Form'!$W79,ATS!$O:$O,0),7) -> Active
A80: 1 | B80: =VLOOKUP(A80,Classification!$H$2:$I$11,2,FALSE) -> Helmets & Helmet Acc. | C80: =INDEX(ATS!$A:$P,MATCH('2) Order Form'!$W80,ATS!$O:$O,0),1) -> 845070 | D80: =INDEX(ATS!$A:$P,MATCH('2) Order Form'!$W80,ATS!$O:$O,0),2) -> Dissenter Mips Helmet | E80: =INDEX(ATS!$A:$P,MATCH('2) Order Form'!$W80,ATS!$O:$O,0),4) -> MROGD-SM | F80: =INDEX(ATS!$A:$P,MATCH('2) Order Form'!$W80,ATS!$O:$O,0),5) -> Matte Rose Gold | G80: =INDEX(ATS!$A:$P,MATCH('2) Order Form'!$W80,ATS!$O:$O,0),6) -> SM | H80: 1 | I80: 0 | J80: =IFERROR(VLOOKUP(W80,ATS!$O:$P,2,FALSE),0) -> 92 | K80: 50+ | L80: =IFERROR(VLOOKUP(W80,ATS!$O:$Q,3,FALSE),0) -> 92 | M80: 50+ | N80: 0% | O80: 0% | P80: =VLOOKUP($C80,Prices!$A$3:$R$1996,MATCH('2) Order Form'!P$8,Prices!$A$2:$R$2,0),FALSE) -> 75.00 | Q80: =VLOOKUP($C80,Prices!$A$3:$R$1996,MATCH('2) Order Form'!Q$8,Prices!$A$2:$R$2,0),FALSE) -> 149.95 | R80: 0 | S80: 0 | T80: 0 | U80: 0% | W80: 7048652766588 | Y80: 0 | Z80: 0 | AA80: 1 | AB80: 0 | AC80: 1 | AD80: 845070Matte Rose Gold | AE80: 845070 | AF80: =INDEX(ATS!$A:$P,MATCH('2) Order Form'!$W80,ATS!$O:$O,0),7) -> Stock
A81: 1 | B81: =VLOOKUP(A81,Classification!$H$2:$I$11,2,FALSE) -> Helmets & Helmet Acc. | C81: =INDEX(ATS!$A:$P,MATCH('2) Order Form'!$W81,ATS!$O:$O,0),1) -> 845070 | D81: =INDEX(ATS!$A:$P,MATCH('2) Order Form'!$W81,ATS!$O:$O,0),2) -> Dissenter Mips Helmet | E81: =INDEX(ATS!$A:$P,MATCH('2) Order Form'!$W81,ATS!$O:$O,0),4) -> MROGD-ML | F81: =INDEX(ATS!$A:$P,MATCH('2) Order Form'!$W81,ATS!$O:$O,0),5) -> Matte Rose Gold | G81: =INDEX(ATS!$A:$P,MATCH('2) Order Form'!$W81,ATS!$O:$O,0),6) -> ML | H81: 1 | I81: 0 | J81: =IFERROR(VLOOKUP(W81,ATS!$O:$P,2,FALSE),0) -> 73 | K81: 50+ | L81: =IFERROR(VLOOKUP(W81,ATS!$O:$Q,3,FALSE),0) -> 73 | M81: 50+ | N81: 0% | O81: 0% | P81: =VLOOKUP($C81,Prices!$A$3:$R$1996,MATCH('2) Order Form'!P$8,Prices!$A$2:$R$2,0),FALSE) -> 75.00 | Q81: =VLOOKUP($C81,Prices!$A$3:$R$1996,MATCH('2) Order Form'!Q$8,Prices!$A$2:$R$2,0),FALSE) -> 149.95 | R81: 0 | S81: 0 | T81: 0 | U81: 0% | W81: 7048652766571 | Y81: 0 | Z81: 0 | AA81: 1 | AB81: 0 | AC81: 0 | AD81: 845070Matte Rose Gold | AE81: 845070 | AF81: =INDEX(ATS!$A:$P,MATCH('2) Order Form'!$W81,ATS!$O:$O,0),7) -> Stock
A82: 1 | B82: =VLOOKUP(A82,Classification!$H$2:$I$11,2,FALSE) -> Helmets & Helmet Acc. | C82: =INDEX(ATS!$A:$P,MATCH('2) Order Form'!$W82,ATS!$O:$O,0),1) -> 845070 | D82: =INDEX(ATS!$A:$P,MATCH('2) Order Form'!$W82,ATS!$O:$O,0),2) -> Dissenter Mips Helmet | E82: =INDEX(ATS!$A:$P,MATCH('2) Order Form'!$W82,ATS!$O:$O,0),4) -> MROGD-LXL | F82: =INDEX(ATS!$A:$P,MATCH('2) Order Form'!$W82,ATS!$O:$O,0),5) -> Matte Rose Gold | G82: =INDEX(ATS!$A:$P,MATCH('2) Order Form'!$W82,ATS!$O:$O,0),6) -> LXL | H82: 1 | I82: 0 | J82: =IFERROR(VLOOKUP(W82,ATS!$O:$P,2,FALSE),0) -> 62 | K82: 50+ | L82: =IFERROR(VLOOKUP(W82,ATS!$O:$Q,3,FALSE),0) -> 62 | M82: 50+ | N82: 0% | O82: 0% | P82: =VLOOKUP($C82,Prices!$A$3:$R$1996,MATCH('2) Order Form'!P$8,Prices!$A$2:$R$2,0),FALSE) -> 75.00 | Q82: =VLOOKUP($C82,Prices!$A$3:$R$1996,MATCH('2) Order Form'!Q$8,Prices!$A$2:$R$2,0),FALSE) -> 149.95 | R82: 0 | S82: 0 | T82: 0 | U82: 0% | W82: 7048652766564 | Y82: 0 | Z82: 0 | AA82: 1 | AB82: 0 | AC82: 0 | AD82: 845070Matte Rose Gold | AE82: 845070 | AF82: =INDEX(ATS!$A:$P,MATCH('2) Order Form'!$W82,ATS!$O:$O,0),7) -> Stock
A83: 1 | B83: =VLOOKUP(A83,Classification!$H$2:$I$11,2,FALSE) -> Helmets & Helmet Acc. | C83: =INDEX(ATS!$A:$P,MATCH('2) Order Form'!$W83,ATS!$O:$O,0),1) -> 845070 | D83: =INDEX(ATS!$A:$P,MATCH('2) Order Form'!$W83,ATS!$O:$O,0),2) -> Dissenter Mips Helmet | E83: =INDEX(ATS!$A:$P,MATCH('2) Order Form'!$W83,ATS!$O:$O,0),4) -> MWHTE-SM | F83: =INDEX(ATS!$A:$P,MATCH('2) Order Form'!$W83,ATS!$O:$O,0),5) -> Matte White | G83: =INDEX(ATS!$A:$P,MATCH('2) Order Form'!$W83,ATS!$O:$O,0),6) -> SM | H83: 1 | I83: 0 | J83: =IFERROR(VLOOKUP(W83,ATS!$O:$P,2,FALSE),0) -> 62 | K83: 50+ | L83: =IFERROR(VLOOKUP(W83,ATS!$O:$Q,3,FALSE),0) -> 62 | M83: 50+ | N83: 0% | O83: 0% | P83: =VLOOKUP($C83,Prices!$A$3:$R$1996,MATCH('2) Order Form'!P$8,Prices!$A$2:$R$2,0),FALSE) -> 75.00 | Q83: =VLOOKUP($C83,Prices!$A$3:$R$1996,MATCH('2) Order Form'!Q$8,Prices!$A$2:$R$2,0),FALSE) -> 149.95 | R83: 0 | S83: 0 | T83: 0 | U83: 0% | W83: 7048652273086 | Y83: 0 | Z83: 0 | AA83: 1 | AB83: 0 | AC83: 1 | AD83: 845070Matte White | AE83: 845070 | AF83: =INDEX(ATS!$A:$P,MATCH('2) Order Form'!$W83,ATS!$O:$O,0),7) -> Active
A84: 1 | B84: =VLOOKUP(A84,Classification!$H$2:$I$11,2,FALSE) -> Helmets & Helmet Acc. | C84: =INDEX(ATS!$A:$P,MATCH('2) Order Form'!$W84,ATS!$O:$O,0),1) -> 845070 | D84: =INDEX(ATS!$A:$P,MATCH('2) Order Form'!$W84,ATS!$O:$O,0),2) -> Dissenter Mips Helmet | E84: =INDEX(ATS!$A:$P,MATCH('2) Order Form'!$W84,ATS!$O:$O,0),4) -> MWHTE-ML | F84: =INDEX(ATS!$A:$P,MATCH('2) Order Form'!$W84,ATS!$O:$O,0),5) -> Matte White | G84: =INDEX(ATS!$A:$P,MATCH('2) Order Form'!$W84,ATS!$O:$O,0),6) -> ML | H84: 1 | I84: 0 | J84: =IFERROR(VLOOKUP(W84,ATS!$O:$P,2,FALSE),0) -> 521 | K84: 50+ | L84: =IFERROR(VLOOKUP(W84,ATS!$O:$Q,3,FALSE),0) -> 521 | M84: 50+ | N84: 0% | O84: 0% | P84: =VLOOKUP($C84,Prices!$A$3:$R$1996,MATCH('2) Order Form'!P$8,Prices!$A$2:$R$2,0),FALSE) -> 75.00 | Q84: =VLOOKUP($C84,Prices!$A$3:$R$1996,MATCH('2) Order Form'!Q$8,Prices!$A$2:$R$2,0),FALSE) -> 149.95 | R84: 0 | S84: 0 | T84: 0 | U84: 0% | W84: 7048652273079 | Y84: 0 | Z84: 0 | AA84: 1 | AB84: 0 | AC84: 0 | AD84: 845070Matte White | AE84: 845070 | AF84: =INDEX(ATS!$A:$P,MATCH('2) Order Form'!$W84,ATS!$O:$O,0),7) -> Active
A85: 1 | B85: =VLOOKUP(A85,Classification!$H$2:$I$11,2,FALSE) -> Helmets & Helmet Acc. | C85: =INDEX(ATS!$A:$P,MATCH('2) Order Form'!$W85,ATS!$O:$O,0),1) -> 845070 | D85: =INDEX(ATS!$A:$P,MATCH('2) Order Form'!$W85,ATS!$O:$O,0),2) -> Dissenter Mips Helmet | E85: =INDEX(ATS!$A:$P,MATCH('2) Order Form'!$W85,ATS!$O:$O,0),4) -> MWHTE-LXL | F85: =INDEX(ATS!$A:$P,MATCH('2) Order Form'!$W85,ATS!$O:$O,0),5) -> Matte White | G85: =INDEX(ATS!$A:$P,MATCH('2) Order Form'!$W85,ATS!$O:$O,0),6) -> LXL | H85: 1 | I85: 0 | J85: =IFERROR(VLOOKUP(W85,ATS!$O:$P,2,FALSE),0) -> 310 | K85: 50+ | L85: =IFERROR(VLOOKUP(W85,ATS!$O:$Q,3,FALSE),0) -> 310 | M85: 50+ | N85: 0% | O85: 0% | P85: =VLOOKUP($C85,Prices!$A$3:$R$1996,MATCH('2) Order Form'!P$8,Prices!$A$2:$R$2,0),FALSE) -> 75.00 | Q85: =VLOOKUP($C85,Prices!$A$3:$R$1996,MATCH('2) Order Form'!Q$8,Prices!$A$2:$R$2,0),FALSE) -> 149.95 | R85: 0 | S85: 0 | T85: 0 | U85: 0% | W85: 7048652273062 | Y85: 0 | Z85: 0 | AA85: 1 | AB85: 0 | AC85: 0 | AD85: 845070Matte White | AE85: 845070 | AF85: =INDEX(ATS!$A:$P,MATCH('2) Order Form'!$W85,ATS!$O:$O,0),7) -> Active
A86: 1 | B86: =VLOOKUP(A86,Classification!$H$2:$I$11,2,FALSE) -> Helmets & Helmet Acc. | C86: =INDEX(ATS!$A:$P,MATCH('2) Order Form'!$W86,ATS!$O:$O,0),1) -> 845070 | D86: =INDEX(ATS!$A:$P,MATCH('2) Order Form'!$W86,ATS!$O:$O,0),2) -> Dissenter Mips Helmet | E86: =INDEX(ATS!$A:$P,MATCH('2) Order Form'!$W86,ATS!$O:$O,0),4) -> SGMFL-SM | F86: =INDEX(ATS!$A:$P,MATCH('2) Order Form'!$W86,ATS!$O:$O,0),5) -> Slate Gray Metallic/Fluo | G86: =INDEX(ATS!$A:$P,MATCH('2) Order Form'!$W86,ATS!$O:$O,0),6) -> SM | H86: 1 | I86: 0 | J86: =IFERROR(VLOOKUP(W86,ATS!$O:$P,2,FALSE),0) -> 4 | K86: 4 | L86: =IFERROR(VLOOKUP(W86,ATS!$O:$Q,3,FALSE),0) -> 4 | M86: 4 | N86: 0% | O86: 0% | P86: =VLOOKUP($C86,Prices!$A$3:$R$1996,MATCH('2) Order Form'!P$8,Prices!$A$2:$R$2,0),FALSE) -> 75.00 | Q86: =VLOOKUP($C86,Prices!$A$3:$R$1996,MATCH('2) Order Form'!Q$8,Prices!$A$2:$R$2,0),FALSE) -> 149.95 | R86: 0 | S86: 0 | T86: 0 | U86: 0% | W86: 7048652766618 | Y86: 0 | Z86: 0 | AA86: 1 | AB86: 0 | AC86: 1 | AD86: 845070Slate Gray Metallic/Fluo | AE86: 845070 | AF86: =INDEX(ATS!$A:$P,MATCH('2) Order Form'!$W86,ATS!$O:$O,0),7) -> Stock
A87: 1 | B87: =VLOOKUP(A87,Classification!$H$2:$I$11,2,FALSE) -> Helmets & Helmet Acc. | C87: =INDEX(ATS!$A:$P,MATCH('2) Order Form'!$W87,ATS!$O:$O,0),1) -> 845070 | D87: =INDEX(ATS!$A:$P,MATCH('2) Order Form'!$W87,ATS!$O:$O,0),2) -> Dissenter Mips Helmet | E87: =INDEX(ATS!$A:$P,MATCH('2) Order Form'!$W87,ATS!$O:$O,0),4) -> SGMFL-ML | F87: =INDEX(ATS!$A:$P,MATCH('2) Order Form'!$W87,ATS!$O:$O,0),5) -> Slate Gray Metallic/Fluo | G87: =INDEX(ATS!$A:$P,MATCH('2) Order Form'!$W87,ATS!$O:$O,0),6) -> ML | H87: 1 | I87: 0 | J87: =IFERROR(VLOOKUP(W87,ATS!$O:$P,2,FALSE),0) -> 74 | K87: 50+ | L87: =IFERROR(VLOOKUP(W87,ATS!$O:$Q,3,FALSE),0) -> 74 | M87: 50+ | N87: 0% | O87: 0% | P87: =VLOOKUP($C87,Prices!$A$3:$R$1996,MATCH('2) Order Form'!P$8,Prices!$A$2:$R$2,0),FALSE) -> 75.00 | Q87: =VLOOKUP($C87,Prices!$A$3:$R$1996,MATCH('2) Order Form'!Q$8,Prices!$A$2:$R$2,0),FALSE) -> 149.95 | R87: 0 | S87: 0 | T87: 0 | U87: 0% | W87: 7048652766601 | Y87: 0 | Z87: 0 | AA87: 1 | AB87: 0 | AC87: 0 | AD87: 845070Slate Gray Metallic/Fluo | AE87: 845070 | AF87: =INDEX(ATS!$A:$P,MATCH('2) Order Form'!$W87,ATS!$O:$O,0),7) -> Stock
A88: 1 | B88: =VLOOKUP(A88,Classification!$H$2:$I$11,2,FALSE) -> Helmets & Helmet Acc. | C88: =INDEX(ATS!$A:$P,MATCH('2) Order Form'!$W88,ATS!$O:$O,0),1) -> 845070 | D88: =INDEX(ATS!$A:$P,MATCH('2) Order Form'!$W88,ATS!$O:$O,0),2) -> Dissenter Mips Helmet | E88: =INDEX(ATS!$A:$P,MATCH('2) Order Form'!$W88,ATS!$O:$O,0),4) -> SGMFL-LXL | F88: =INDEX(ATS!$A:$P,MATCH('2) Order Form'!$W88,ATS!$O:$O,0),5) -> Slate Gray Metallic/Fluo | G88: =INDEX(ATS!$A:$P,MATCH('2) Order Form'!$W88,ATS!$O:$O,0),6) -> LXL | H88: 1 | I88: 0 | J88: =IFERROR(VLOOKUP(W88,ATS!$O:$P,2,FALSE),0) -> 35 | K88: 35 | L88: =IFERROR(VLOOKUP(W88,ATS!$O:$Q,3,FALSE),0) -> 35 | M88: 35 | N88: 0% | O88: 0% | P88: =VLOOKUP($C88,Prices!$A$3:$R$1996,MATCH('2) Order Form'!P$8,Prices!$A$2:$R$2,0),FALSE) -> 75.00 | Q88: =VLOOKUP($C88,Prices!$A$3:$R$1996,MATCH('2) Order Form'!Q$8,Prices!$A$2:$R$2,0),FALSE) -> 149.95 | R88: 0 | S88: 0 | T88: 0 | U88: 0% | W88: 7048652766595 | Y88: 0 | Z88: 0 | AA88: 1 | AB88: 0 | AC88: 0 | AD88: 845070Slate Gray Metallic/Fluo | AE88: 845070 | AF88: =INDEX(ATS!$A:$P,MATCH('2) Order Form'!$W88,ATS!$O:$O,0),7) -> Stock
A89: 1 | B89: =VLOOKUP(A89,Classification!$H$2:$I$11,2,FALSE) -> Helmets & Helmet Acc. | C89: =INDEX(ATS!$A:$P,MATCH('2) Order Form'!$W89,ATS!$O:$O,0),1) -> 845069 | D89: =INDEX(ATS!$A:$P,MATCH('2) Order Form'!$W89,ATS!$O:$O,0),2) -> Dissenter Helmet | E89: =INDEX(ATS!$A:$P,MATCH('2) Order Form'!$W89,ATS!$O:$O,0),4) -> BRWHT-SM | F89: =INDEX(ATS!$A:$P,MATCH('2) Order Form'!$W89,ATS!$O:$O,0),5) -> Bronco White | G89: =INDEX(ATS!$A:$P,MATCH('2) Order Form'!$W89,ATS!$O:$O,0),6) -> SM | H89: 1 | I89: 0 | J89: =IFERROR(VLOOKUP(W89,ATS!$O:$P,2,FALSE),0) -> 23 | K89: =IF(J89=99999,"OPEN",IF(J89>50,"50+",IF(J89<=0,"0",J89))) -> 23 | L89: =IFERROR(VLOOKUP(W89,ATS!$O:$Q,3,FALSE),0) -> 23 | M89: =IF(L89=99999,"OPEN",IF(L89>50,"50+",IF(L89<=0,"0",L89))) -> 23 | N89: 0% | O89: =IF(N89<>0,N89,$P$5) -> 0% | P89: =VLOOKUP($C89,Prices!$A$3:$R$1996,MATCH('2) Order Form'!P$8,Prices!$A$2:$R$2,0),FALSE) -> 60.00 | Q89: =VLOOKUP($C89,Prices!$A$3:$R$1996,MATCH('2) Order Form'!Q$8,Prices!$A$2:$R$2,0),FALSE) -> 119.95 | R89: =I89*P89 -> 0 | S89: =R89*O89 -> 0 | T89: =R89-S89 -> 0 | U89: 0% | W89: 7048652766465 | Y89: 0 | Z89: 0 | AA89: 2 | AB89: 1 | AC89: 1 | AD89: 845069Bronco White | AE89: 845069 | AF89: =INDEX(ATS!$A:$P,MATCH('2) Order Form'!$W89,ATS!$O:$O,0),7) -> Stock
A90: 1 | B90: =VLOOKUP(A90,Classification!$H$2:$I$11,2,FALSE) -> Helmets & Helmet Acc. | C90: =INDEX(ATS!$A:$P,MATCH('2) Order Form'!$W90,ATS!$O:$O,0),1) -> 845069 | D90: =INDEX(ATS!$A:$P,MATCH('2) Order Form'!$W90,ATS!$O:$O,0),2) -> Dissenter Helmet | E90: =INDEX(ATS!$A:$P,MATCH('2) Order Form'!$W90,ATS!$O:$O,0),4) -> BRWHT-ML | F90: =INDEX(ATS!$A:$P,MATCH('2) Order Form'!$W90,ATS!$O:$O,0),5) -> Bronco White | G90: =INDEX(ATS!$A:$P,MATCH('2) Order Form'!$W90,ATS!$O:$O,0),6) -> ML | H90: 1 | I90: 0 | J90: =IFERROR(VLOOKUP(W90,ATS!$O:$P,2,FALSE),0) -> 22 | K90: 22 | L90: =IFERROR(VLOOKUP(W90,ATS!$O:$Q,3,FALSE),0) -> 22 | M90: 22 | N90: 0% | O90: 0% | P90: =VLOOKUP($C90,Prices!$A$3:$R$1996,MATCH('2) Order Form'!P$8,Prices!$A$2:$R$2,0),FALSE) -> 60.00 | Q90: =VLOOKUP($C90,Prices!$A$3:$R$1996,MATCH('2) Order Form'!Q$8,Prices!$A$2:$R$2,0),FALSE) -> 119.95 | R90: 0 | S90: 0 | T90: 0 | U90: 0% | W90: 7048652766458 | Y90: 0 | Z90: 0 | AA90: 2 | AB90: 0 | AC90: 0 | AD90: 845069Bronco White | AE90: 845069 | AF90: =INDEX(ATS!$A:$P,MATCH('2) Order Form'!$W90,ATS!$O:$O,0),7) -> Stock
A91: 1 | B91: =VLOOKUP(A91,Classification!$H$2:$I$11,2,FALSE) -> Helmets & Helmet Acc. | C91: =INDEX(ATS!$A:$P,MATCH('2) Order Form'!$W91,ATS!$O:$O,0),1) -> 845069 | D91: =INDEX(ATS!$A:$P,MATCH('2) Order Form'!$W91,ATS!$O:$O,0),2) -> Dissenter Helmet | E91: =INDEX(ATS!$A:$P,MATCH('2) Order Form'!$W91,ATS!$O:$O,0),4) -> BRWHT-LXL | F91: =INDEX(ATS!$A:$P,MATCH('2) Order Form'!$W91,ATS!$O:$O,0),5) -> Bronco White | G91: =INDEX(ATS!$A:$P,MATCH('2) Order Form'!$W91,ATS!$O:$O,0),6) -> LXL | H91: 1 | I91: 0 | J91: =IFERROR(VLOOKUP(W91,ATS!$O:$P,2,FALSE),0) -> 12 | K91: 12 | L91: =IFERROR(VLOOKUP(W91,ATS!$O:$Q,3,FALSE),0) -> 12 | M91: 12 | N91: 0% | O91: 0% | P91: =VLOOKUP($C91,Prices!$A$3:$R$1996,MATCH('2) Order Form'!P$8,Prices!$A$2:$R$2,0),FALSE) -> 60.00 | Q91: =VLOOKUP($C91,Prices!$A$3:$R$1996,MATCH('2) Order Form'!Q$8,Prices!$A$2:$R$2,0),FALSE) -> 119.95 | R91: 0 | S91: 0 | T91: 0 | U91: 0% | W91: 7048652766441 | Y91: 0 | Z91: 0 | AA91: 2 | AB91: 0 | AC91: 0 | AD91: 845069Bronco White | AE91: 845069 | AF91: =INDEX(ATS!$A:$P,MATCH('2) Order Form'!$W91,ATS!$O:$O,0),7) -> Stock
A92: 1 | B92: =VLOOKUP(A92,Classification!$H$2:$I$11,2,FALSE) -> Helmets & Helmet Acc. | C92: =INDEX(ATS!$A:$P,MATCH('2) Order Form'!$W92,ATS!$O:$O,0),1) -> 845069 | D92: =INDEX(ATS!$A:$P,MATCH('2) Order Form'!$W92,ATS!$O:$O,0),2) -> Dissenter Helmet | E92: =INDEX(ATS!$A:$P,MATCH('2) Order Form'!$W92,ATS!$O:$O,0),4) -> MBL21-SM | F92: =INDEX(ATS!$A:$P,MATCH('2) Order Form'!$W92,ATS!$O:$O,0),5) -> Matte Black | G92: =INDEX(ATS!$A:$P,MATCH('2) Order Form'!$W92,ATS!$O:$O,0),6) -> SM | H92: 1 | I92: 0 | J92: =IFERROR(VLOOKUP(W92,ATS!$O:$P,2,FALSE),0) -> 10 | K92: 10 | L92: =IFERROR(VLOOKUP(W92,ATS!$O:$Q,3,FALSE),0) -> 10 | M92: 10 | N92: 0% | O92: 0% | P92: =VLOOKUP($C92,Prices!$A$3:$R$1996,MATCH('2) Order Form'!P$8,Prices!$A$2:$R$2,0),FALSE) -> 60.00 | Q92: =VLOOKUP($C92,Prices!$A$3:$R$1996,MATCH('2) Order Form'!Q$8,Prices!$A$2:$R$2,0),FALSE) -> 119.95 | R92: 0 | S92: 0 | T92: 0 | U92: 0% | W92: 7048652666413 | Y92: 0 | Z92: 0 | AA92: 2 | AB92: 0 | AC92: 1 | AD92: 845069Matte Black | AE92: 845069 | AF92: =INDEX(ATS!$A:$P,MATCH('2) Order Form'!$W92,ATS!$O:$O,0),7) -> Active
A93: 1 | B93: =VLOOKUP(A93,Classification!$H$2:$I$11,2,FALSE) -> Helmets & Helmet Acc. | C93: =INDEX(ATS!$A:$P,MATCH('2) Order Form'!$W93,ATS!$O:$O,0),1) -> 845069 | D93: =INDEX(ATS!$A:$P,MATCH('2) Order Form'!$W93,ATS!$O:$O,0),2) -> Dissenter Helmet | E93: =INDEX(ATS!$A:$P,MATCH('2) Order Form'!$W93,ATS!$O:$O,0),4) -> MBL21-ML | F93: =INDEX(ATS!$A:$P,MATCH('2) Order Form'!$W93,ATS!$O:$O,0),5) -> Matte Black | G93: =INDEX(ATS!$A:$P,MATCH('2) Order Form'!$W93,ATS!$O:$O,0),6) -> ML | H93: 1 | I93: 0 | J93: =IFERROR(VLOOKUP(W93,ATS!$O:$P,2,FALSE),0) -> 22 | K93: 22 | L93: =IFERROR(VLOOKUP(W93,ATS!$O:$Q,3,FALSE),0) -> 22 | M93: 22 | N93: 0% | O93: 0% | P93: =VLOOKUP($C93,Prices!$A$3:$R$1996,MATCH('2) Order Form'!P$8,Prices!$A$2:$R$2,0),FALSE) -> 60.00 | Q93: =VLOOKUP($C93,Prices!$A$3:$R$1996,MATCH('2) Order Form'!Q$8,Prices!$A$2:$R$2,0),FALSE) -> 119.95 | R93: 0 | S93: 0 | T93: 0 | U93: 0% | W93: 7048652666406 | Y93: 0 | Z93: 0 | AA93: 2 | AB93: 0 | AC93: 0 | AD93: 845069Matte Black | AE93: 845069 | AF93: =INDEX(ATS!$A:$P,MATCH('2) Order Form'!$W93,ATS!$O:$O,0),7) -> Active
A94: 1 | B94: =VLOOKUP(A94,Classification!$H$2:$I$11,2,FALSE) -> Helmets & Helmet Acc. | C94: =INDEX(ATS!$A:$P,MATCH('2) Order Form'!$W94,ATS!$O:$O,0),1) -> 845069 | D94: =INDEX(ATS!$A:$P,MATCH('2) Order Form'!$W94,ATS!$O:$O,0),2) -> Dissenter Helmet | E94: =INDEX(ATS!$A:$P,MATCH('2) Order Form'!$W94,ATS!$O:$O,0),4) -> MBL21-LXL | F94: =INDEX(ATS!$A:$P,MATCH('2) Order Form'!$W94,ATS!$O:$O,0),5) -> Matte Black | G94: =INDEX(ATS!$A:$P,MATCH('2) Order Form'!$W94,ATS!$O:$O,0),6) -> LXL | H94: 1 | I94: 0 | J94: =IFERROR(VLOOKUP(W94,ATS!$O:$P,2,FALSE),0) -> 11 | K94: 11 | L94: =IFERROR(VLOOKUP(W94,ATS!$O:$Q,3,FALSE),0) -> 11 | M94: 11 | N94: 0% | O94: 0% | P94: =VLOOKUP($C94,Prices!$A$3:$R$1996,MATCH('2) Order Form'!P$8,Prices!$A$2:$R$2,0),FALSE) -> 60.00 | Q94: =VLOOKUP($C94,Prices!$A$3:$R$1996,MATCH('2) Order Form'!Q$8,Prices!$A$2:$R$2,0),FALSE) -> 119.95 | R94: 0 | S94: 0 | T94: 0 | U94: 0% | W94: 7048652666390 | Y94: 0 | Z94: 0 | AA94: 2 | AB94: 0 | AC94: 0 | AD94: 845069Matte Black | AE94: 845069 | AF94: =INDEX(ATS!$A:$P,MATCH('2) Order Form'!$W94,ATS!$O:$O,0),7) -> Active
A95: 1 | B95: =VLOOKUP(A95,Classification!$H$2:$I$11,2,FALSE) -> Helmets & Helmet Acc. | C95: =INDEX(ATS!$A:$P,MATCH('2) Order Form'!$W95,ATS!$O:$O,0),1) -> 845069 | D95: =INDEX(ATS!$A:$P,MATCH('2) Order Form'!$W95,ATS!$O:$O,0),2) -> Dissenter Helmet | E95: =INDEX(ATS!$A:$P,MATCH('2) Order Form'!$W95,ATS!$O:$O,0),4) -> MROGD-SM | F95: =INDEX(ATS!$A:$P,MATCH('2) Order Form'!$W95,ATS!$O:$O,0),5) -> Matte Rose Gold | G95: =INDEX(ATS!$A:$P,MATCH('2) Order Form'!$W95,ATS!$O:$O,0),6) -> SM | H95: 1 | I95: 0 | J95: =IFERROR(VLOOKUP(W95,ATS!$O:$P,2,FALSE),0) -> 9 | K95: 9 | L95: =IFERROR(VLOOKUP(W95,ATS!$O:$Q,3,FALSE),0) -> 9 | M95: 9 | N95: 0% | O95: 0% | P95: =VLOOKUP($C95,Prices!$A$3:$R$1996,MATCH('2) Order Form'!P$8,Prices!$A$2:$R$2,0),FALSE) -> 60.00 | Q95: =VLOOKUP($C95,Prices!$A$3:$R$1996,MATCH('2) Order Form'!Q$8,Prices!$A$2:$R$2,0),FALSE) -> 119.95 | R95: 0 | S95: 0 | T95: 0 | U95: 0% | W95: 7048652766496 | Y95: 0 | Z95: 0 | AA95: 2 | AB95: 0 | AC95: 1 | AD95: 845069Matte Rose Gold | AE95: 845069 | AF95: =INDEX(ATS!$A:$P,MATCH('2) Order Form'!$W95,ATS!$O:$O,0),7) -> Stock
A96: 1 | B96: =VLOOKUP(A96,Classification!$H$2:$I$11,2,FALSE) -> Helmets & Helmet Acc. | C96: =INDEX(ATS!$A:$P,MATCH('2) Order Form'!$W96,ATS!$O:$O,0),1) -> 845069 | D96: =INDEX(ATS!$A:$P,MATCH('2) Order Form'!$W96,ATS!$O:$O,0),2) -> Dissenter Helmet | E96: =INDEX(ATS!$A:$P,MATCH('2) Order Form'!$W96,ATS!$O:$O,0),4) -> MROGD-ML | F96: =INDEX(ATS!$A:$P,MATCH('2) Order Form'!$W96,ATS!$O:$O,0),5) -> Matte Rose Gold | G96: =INDEX(ATS!$A:$P,MATCH('2) Order Form'!$W96,ATS!$O:$O,0),6) -> ML | H96: 1 | I96: 0 | J96: =IFERROR(VLOOKUP(W96,ATS!$O:$P,2,FALSE),0) -> 11 | K96: 11 | L96: =IFERROR(VLOOKUP(W96,ATS!$O:$Q,3,FALSE),0) -> 11 | M96: 11 | N96: 0% | O96: 0% | P96: =VLOOKUP($C96,Prices!$A$3:$R$1996,MATCH('2) Order Form'!P$8,Prices!$A$2:$R$2,0),FALSE) -> 60.00 | Q96: =VLOOKUP($C96,Prices!$A$3:$R$1996,MATCH('2) Order Form'!Q$8,Prices!$A$2:$R$2,0),FALSE) -> 119.95 | R96: 0 | S96: 0 | T96: 0 | U96: 0% | W96: 7048652766489 | Y96: 0 | Z96: 0 | AA96: 2 | AB96: 0 | AC96: 0 | AD96: 845069Matte Rose Gold | AE96: 845069 | AF96: =INDEX(ATS!$A:$P,MATCH('2) Order Form'!$W96,ATS!$O:$O,0),7) -> Stock
A97: 1 | B97: =VLOOKUP(A97,Classification!$H$2:$I$11,2,FALSE) -> Helmets & Helmet Acc. | C97: =INDEX(ATS!$A:$P,MATCH('2) Order Form'!$W97,ATS!$O:$O,0),1) -> 845069 | D97: =INDEX(ATS!$A:$P,MATCH('2) Order Form'!$W97,ATS!$O:$O,0),2) -> Dissenter Helmet | E97: =INDEX(ATS!$A:$P,MATCH('2) Order Form'!$W97,ATS!$O:$O,0),4) -> MROGD-LXL | F97: =INDEX(ATS!$A:$P,MATCH('2) Order Form'!$W97,ATS!$O:$O,0),5) -> Matte Rose Gold | G97: =INDEX(ATS!$A:$P,MATCH('2) Order Form'!$W97,ATS!$O:$O,0),6) -> LXL | H97: 1 | I97: 0 | J97: =IFERROR(VLOOKUP(W97,ATS!$O:$P,2,FALSE),0) -> 10 | K97: 10 | L97: =IFERROR(VLOOKUP(W97,ATS!$O:$Q,3,FALSE),0) -> 10 | M97: 10 | N97: 0% | O97: 0% | P97: =VLOOKUP($C97,Prices!$A$3:$R$1996,MATCH('2) Order Form'!P$8,Prices!$A$2:$R$2,0),FALSE) -> 60.00 | Q97: =VLOOKUP($C97,Prices!$A$3:$R$1996,MATCH('2) Order Form'!Q$8,Prices!$A$2:$R$2,0),FALSE) -> 119.95 | R97: 0 | S97: 0 | T97: 0 | U97: 0% | W97: 7048652766472 | Y97: 0 | Z97: 0 | AA97: 2 | AB97: 0 | AC97: 0 | AD97: 845069Matte Rose Gold | AE97: 845069 | AF97: =INDEX(ATS!$A:$P,MATCH('2) Order Form'!$W97,ATS!$O:$O,0),7) -> Stock
A98: 1 | B98: =VLOOKUP(A98,Classification!$H$2:$I$11,2,FALSE) -> Helmets & Helmet Acc. | C98: =INDEX(ATS!$A:$P,MATCH('2) Order Form'!$W98,ATS!$O:$O,0),1) -> 845069 | D98: =INDEX(ATS!$A:$P,MATCH('2) Order Form'!$W98,ATS!$O:$O,0),2) -> Dissenter Helmet | E98: =INDEX(ATS!$A:$P,MATCH('2) Order Form'!$W98,ATS!$O:$O,0),4) -> MWH21-SM | F98: =INDEX(ATS!$A:$P,MATCH('2) Order Form'!$W98,ATS!$O:$O,0),5) -> Matte White | G98: =INDEX(ATS!$A:$P,MATCH('2) Order Form'!$W98,ATS!$O:$O,0),6) -> SM | H98: 1 | I98: 0 | J98: =IFERROR(VLOOKUP(W98,ATS!$O:$P,2,FALSE),0) -> 22 | K98: 22 | L98: =IFERROR(VLOOKUP(W98,ATS!$O:$Q,3,FALSE),0) -> 22 | M98: 22 | N98: 0% | O98: 0% | P98: =VLOOKUP($C98,Prices!$A$3:$R$1996,MATCH('2) Order Form'!P$8,Prices!$A$2:$R$2,0),FALSE) -> 60.00 | Q98: =VLOOKUP($C98,Prices!$A$3:$R$1996,MATCH('2) Order Form'!Q$8,Prices!$A$2:$R$2,0),FALSE) -> 119.95 | R98: 0 | S98: 0 | T98: 0 | U98: 0% | W98: 7048652666444 | Y98: 0 | Z98: 0 | AA98: 2 | AB98: 0 | AC98: 1 | AD98: 845069Matte White | AE98: 845069 | AF98: =INDEX(ATS!$A:$P,MATCH('2) Order Form'!$W98,ATS!$O:$O,0),7) -> Active
A99: 1 | B99: =VLOOKUP(A99,Classification!$H$2:$I$11,2,FALSE) -> Helmets & Helmet Acc. | C99: =INDEX(ATS!$A:$P,MATCH('2) Order Form'!$W99,ATS!$O:$O,0),1) -> 845069 | D99: =INDEX(ATS!$A:$P,MATCH('2) Order Form'!$W99,ATS!$O:$O,0),2) -> Dissenter Helmet | E99: =INDEX(ATS!$A:$P,MATCH('2) Order Form'!$W99,ATS!$O:$O,0),4) -> MWH21-ML | F99: =INDEX(ATS!$A:$P,MATCH('2) Order Form'!$W99,ATS!$O:$O,0),5) -> Matte White | G99: =INDEX(ATS!$A:$P,MATCH('2) Order Form'!$W99,ATS!$O:$O,0),6) -> ML | H99: 1 | I99: 0 | J99: =IFERROR(VLOOKUP(W99,ATS!$O:$P,2,FALSE),0) -> 12 | K99: 12 | L99: =IFERROR(VLOOKUP(W99,ATS!$O:$Q,3,FALSE),0) -> 12 | M99: 12 | N99: 0% | O99: 0% | P99: =VLOOKUP($C99,Prices!$A$3:$R$1996,MATCH('2) Order Form'!P$8,Prices!$A$2:$R$2,0),FALSE) -> 60.00 | Q99: =VLOOKUP($C99,Prices!$A$3:$R$1996,MATCH('2) Order Form'!Q$8,Prices!$A$2:$R$2,0),FALSE) -> 119.95 | R99: 0 | S99: 0 | T99: 0 | U99: 0% | W99: 7048652666437 | Y99: =I99*Q99 -> 0 | Z99: =IF(A99=OFFSET(A99,-1,0),0,1) -> 0 | AA99: =IF(C99=OFFSET(C99,-1,0),OFFSET(AA99,-1,0),OFFSET(AA99,-1,0)+1) -> 2 | AB99: =IF(C99=OFFSET(C99,-1,0),0,1) -> 0 | AC99: =IF(F99=OFFSET(F99,-1,0),0,1) -> 0 | AD99: =CONCATENATE(C99,F99) -> 845069Matte White | AE99: =IFERROR(IF(B99="EYEWEAR",CONCATENATE(C99,"-",G99),C99),C99) -> 845069 | AF99: =INDEX(ATS!$A:$P,MATCH('2) Order Form'!$W99,ATS!$O:$O,0),7) -> Active
A100: 1 | B100: =VLOOKUP(A100,Classification!$H$2:$I$11,2,FALSE) -> Helmets & Helmet Acc. | C100: =INDEX(ATS!$A:$P,MATCH('2) Order Form'!$W100,ATS!$O:$O,0),1) -> 845069 | D100: =INDEX(ATS!$A:$P,MATCH('2) Order Form'!$W100,ATS!$O:$O,0),2) -> Dissenter Helmet | E100: =INDEX(ATS!$A:$P,MATCH('2) Order Form'!$W100,ATS!$O:$O,0),4) -> MWH21-LXL | F100: =INDEX(ATS!$A:$P,MATCH('2) Order Form'!$W100,ATS!$O:$O,0),5) -> Matte White | G100: =INDEX(ATS!$A:$P,MATCH('2) Order Form'!$W100,ATS!$O:$O,0),6) -> LXL | H100: 1 | I100: 0 | J100: =IFERROR(VLOOKUP(W100,ATS!$O:$P,2,FALSE),0) -> 49 | K100: 49 | L100: =IFERROR(VLOOKUP(W100,ATS!$O:$Q,3,FALSE),0) -> 49 | M100: 49 | N100: 0% | O100: 0% | P100: =VLOOKUP($C100,Prices!$A$3:$R$1996,MATCH('2) Order Form'!P$8,Prices!$A$2:$R$2,0),FALSE) -> 60.00 | Q100: =VLOOKUP($C100,Prices!$A$3:$R$1996,MATCH('2) Order Form'!Q$8,Prices!$A$2:$R$2,0),FALSE) -> 119.95 | R100: 0 | S100: 0 | T100: 0 | U100: 0% | W100: 7048652666420 | Y100: 0 | Z100: 0 | AA100: 2 | AB100: 0 | AC100: 0 | AD100: 845069Matte White | AE100: 845069 | AF100: =INDEX(ATS!$A:$P,MATCH('2) Order Form'!$W100,ATS!$O:$O,0),7) -> Active
A101: 1 | B101: =VLOOKUP(A101,Classification!$H$2:$I$11,2,FALSE) -> Helmets & Helmet Acc. | C101: =INDEX(ATS!$A:$P,MATCH('2) Order Form'!$W101,ATS!$O:$O,0),1) -> 845069 | D101: =INDEX(ATS!$A:$P,MATCH('2) Order Form'!$W101,ATS!$O:$O,0),2) -> Dissenter Helmet | E101: =INDEX(ATS!$A:$P,MATCH('2) Order Form'!$W101,ATS!$O:$O,0),4) -> SGMFL-SM | F101: =INDEX(ATS!$A:$P,MATCH('2) Order Form'!$W101,ATS!$O:$O,0),5) -> Slate Gray Metallic/Fluo | G101: =INDEX(ATS!$A:$P,MATCH('2) Order Form'!$W101,ATS!$O:$O,0),6) -> SM | H101: 1 | I101: 0 | J101: =IFERROR(VLOOKUP(W101,ATS!$O:$P,2,FALSE),0) -> 5 | K101: 5 | L101: =IFERROR(VLOOKUP(W101,ATS!$O:$Q,3,FALSE),0) -> 5 | M101: 5 | N101: 0% | O101: 0% | P101: =VLOOKUP($C101,Prices!$A$3:$R$1996,MATCH('2) Order Form'!P$8,Prices!$A$2:$R$2,0),FALSE) -> 60.00 | Q101: =VLOOKUP($C101,Prices!$A$3:$R$1996,MATCH('2) Order Form'!Q$8,Prices!$A$2:$R$2,0),FALSE) -> 119.95 | R101: 0 | S101: 0 | T101: 0 | U101: 0% | W101: 7048652766526 | Y101: 0 | Z101: 0 | AA101: 2 | AB101: 0 | AC101: 1 | AD101: 845069Slate Gray Metallic/Fluo | AE101: 845069 | AF101: =INDEX(ATS!$A:$P,MATCH('2) Order Form'!$W101,ATS!$O:$O,0),7) -> Stock
A102: 1 | B102: =VLOOKUP(A102,Classification!$H$2:$I$11,2,FALSE) -> Helmets & Helmet Acc. | C102: =INDEX(ATS!$A:$P,MATCH('2) Order Form'!$W102,ATS!$O:$O,0),1) -> 845069 | D102: =INDEX(ATS!$A:$P,MATCH('2) Order Form'!$W102,ATS!$O:$O,0),2) -> Dissenter Helmet | E102: =INDEX(ATS!$A:$P,MATCH('2) Order Form'!$W102,ATS!$O:$O,0),4) -> SGMFL-ML | F102: =INDEX(ATS!$A:$P,MATCH('2) Order Form'!$W102,ATS!$O:$O,0),5) -> Slate Gray Metallic/Fluo | G102: =INDEX(ATS!$A:$P,MATCH('2) Order Form'!$W102,ATS!$O:$O,0),6) -> ML | H102: 1 | I102: 0 | J102: =IFERROR(VLOOKUP(W102,ATS!$O:$P,2,FALSE),0) -> 6 | K102: 6 | L102: =IFERROR(VLOOKUP(W102,ATS!$O:$Q,3,FALSE),0) -> 6 | M102: 6 | N102: 0% | O102: 0% | P102: =VLOOKUP($C102,Prices!$A$3:$R$1996,MATCH('2) Order Form'!P$8,Prices!$A$2:$R$2,0),FALSE) -> 60.00 | Q102: =VLOOKUP($C102,Prices!$A$3:$R$1996,MATCH('2) Order Form'!Q$8,Prices!$A$2:$R$2,0),FALSE) -> 119.95 | R102: 0 | S102: 0 | T102: 0 | U102: 0% | W102: 7048652766519 | Y102: 0 | Z102: 0 | AA102: 2 | AB102: 0 | AC102: 0 | AD102: 845069Slate Gray Metallic/Fluo | AE102: 845069 | AF102: =INDEX(ATS!$A:$P,MATCH('2) Order Form'!$W102,ATS!$O:$O,0),7) -> Stock
A103: 1 | B103: =VLOOKUP(A103,Classification!$H$2:$I$11,2,FALSE) -> Helmets & Helmet Acc. | C103: =INDEX(ATS!$A:$P,MATCH('2) Order Form'!$W103,ATS!$O:$O,0),1) -> 845069 | D103: =INDEX(ATS!$A:$P,MATCH('2) Order Form'!$W103,ATS!$O:$O,0),2) -> Dissenter Helmet | E103: =INDEX(ATS!$A:$P,MATCH('2) Order Form'!$W103,ATS!$O:$O,0),4) -> SGMFL-LXL | F103: =INDEX(ATS!$A:$P,MATCH('2) Order Form'!$W103,ATS!$O:$O,0),5) -> Slate Gray Metallic/Fluo | G103: =INDEX(ATS!$A:$P,MATCH('2) Order Form'!$W103,ATS!$O:$O,0),6) -> LXL | H103: 1 | I103: 0 | J103: =IFERROR(VLOOKUP(W103,ATS!$O:$P,2,FALSE),0) -> 4 | K103: 4 | L103: =IFERROR(VLOOKUP(W103,ATS!$O:$Q,3,FALSE),0) -> 4 | M103: 4 | N103: 0% | O103: 0% | P103: =VLOOKUP($C103,Prices!$A$3:$R$1996,MATCH('2) Order Form'!P$8,Prices!$A$2:$R$2,0),FALSE) -> 60.00 | Q103: =VLOOKUP($C103,Prices!$A$3:$R$1996,MATCH('2) Order Form'!Q$8,Prices!$A$2:$R$2,0),FALSE) -> 119.95 | R103: 0 | S103: 0 | T103: 0 | U103: 0% | W103: 7048652766502 | Y103: 0 | Z103: 0 | AA103: 2 | AB103: 0 | AC103: 0 | AD103: 845069Slate Gray Metallic/Fluo | AE103: 845069 | AF103: =INDEX(ATS!$A:$P,MATCH('2) Order Form'!$W103,ATS!$O:$O,0),7) -> Stock
A104: 1 | B104: =VLOOKUP(A104,Classification!$H$2:$I$11,2,FALSE) -> Helmets & Helmet Acc. | C104: =INDEX(ATS!$A:$P,MATCH('2) Order Form'!$W104,ATS!$O:$O,0),1) -> 845106 | D104: =INDEX(ATS!$A:$P,MATCH('2) Order Form'!$W104,ATS!$O:$O,0),2) -> Ripper Mips Helmet | E104: =INDEX(ATS!$A:$P,MATCH('2) Order Form'!$W104,ATS!$O:$O,0),4) -> BGRG-53/61 | F104: =INDEX(ATS!$A:$P,MATCH('2) Order Form'!$W104,ATS!$O:$O,0),5) -> Bolt Gray/Rose Gold | G104: =INDEX(ATS!$A:$P,MATCH('2) Order Form'!$W104,ATS!$O:$O,0),6) -> 53/61 | H104: 1 | I104: 0 | J104: =IFERROR(VLOOKUP(W104,ATS!$O:$P,2,FALSE),0) -> 208 | K104: =IF(J104=99999,"OPEN",IF(J104>50,"50+",IF(J104<=0,"0",J104))) -> 50+ | L104: =IFERROR(VLOOKUP(W104,ATS!$O:$Q,3,FALSE),0) -> 208 | M104: =IF(L104=99999,"OPEN",IF(L104>50,"50+",IF(L104<=0,"0",L104))) -> 50+ | N104: 0% | O104: =IF(N104<>0,N104,$P$5) -> 0% | P104: =VLOOKUP($C104,Prices!$A$3:$R$1996,MATCH('2) Order Form'!P$8,Prices!$A$2:$R$2,0),FALSE) -> 50.00 | Q104: =VLOOKUP($C104,Prices!$A$3:$R$1996,MATCH('2) Order Form'!Q$8,Prices!$A$2:$R$2,0),FALSE) -> 99.95 | R104: =I104*P104 -> 0 | S104: =R104*O104 -> 0 | T104: =R104-S104 -> 0 | U104: 0% | W104: 7048652767691 | Y104: =I104*Q104 -> 0 | Z104: =IF(A104=OFFSET(A104,-1,0),0,1) -> 0 | AA104: =IF(C104=OFFSET(C104,-1,0),OFFSET(AA104,-1,0),OFFSET(AA104,-1,0)+1) -> 3 | AB104: =IF(C104=OFFSET(C104,-1,0),0,1) -> 1 | AC104: =IF(F104=OFFSET(F104,-1,0),0,1) -> 1 | AD104: =CONCATENATE(C104,F104) -> 845106Bolt Gray/Rose Gold | AE104: =IFERROR(IF(B104="EYEWEAR",CONCATENATE(C104,"-",G104),C104),C104) -> 845106 | AF104: =INDEX(ATS!$A:$P,MATCH('2) Order Form'!$W104,ATS!$O:$O,0),7) -> Stock
A105: 1 | B105: =VLOOKUP(A105,Classification!$H$2:$I$11,2,FALSE) -> Helmets & Helmet Acc. | C105: =INDEX(ATS!$A:$P,MATCH('2) Order Form'!$W105,ATS!$O:$O,0),1) -> 845106 | D105: =INDEX(ATS!$A:$P,MATCH('2) Order Form'!$W105,ATS!$O:$O,0),2) -> Ripper Mips Helmet | E105: =INDEX(ATS!$A:$P,MATCH('2) Order Form'!$W105,ATS!$O:$O,0),4) -> BRWT-53/61 | F105: =INDEX(ATS!$A:$P,MATCH('2) Order Form'!$W105,ATS!$O:$O,0),5) -> Bronco White | G105: =INDEX(ATS!$A:$P,MATCH('2) Order Form'!$W105,ATS!$O:$O,0),6) -> 53/61 | H105: 1 | I105: 0 | J105: =IFERROR(VLOOKUP(W105,ATS!$O:$P,2,FALSE),0) -> 182 | K105: 50+ | L105: =IFERROR(VLOOKUP(W105,ATS!$O:$Q,3,FALSE),0) -> 182 | M105: 50+ | N105: 0% | O105: 0% | P105: =VLOOKUP($C105,Prices!$A$3:$R$1996,MATCH('2) Order Form'!P$8,Prices!$A$2:$R$2,0),FALSE) -> 50.00 | Q105: =VLOOKUP($C105,Prices!$A$3:$R$1996,MATCH('2) Order Form'!Q$8,Prices!$A$2:$R$2,0),FALSE) -> 99.95 | R105: 0 | S105: 0 | T105: 0 | U105: 0% | W105: 7048652767707 | Y105: 0 | Z105: 0 | AA105: 3 | AB105: 0 | AC105: 1 | AD105: 845106Bronco White | AE105: 845106 | AF105: =INDEX(ATS!$A:$P,MATCH('2) Order Form'!$W105,ATS!$O:$O,0),7) -> Stock
A106: 1 | B106: =VLOOKUP(A106,Classification!$H$2:$I$11,2,FALSE) -> Helmets & Helmet Acc. | C106: =INDEX(ATS!$A:$P,MATCH('2) Order Form'!$W106,ATS!$O:$O,0),1) -> 845106 | D106: =INDEX(ATS!$A:$P,MATCH('2) Order Form'!$W106,ATS!$O:$O,0),2) -> Ripper Mips Helmet | E106: =INDEX(ATS!$A:$P,MATCH('2) Order Form'!$W106,ATS!$O:$O,0),4) -> BUOR-53/61 | F106: =INDEX(ATS!$A:$P,MATCH('2) Order Form'!$W106,ATS!$O:$O,0),5) -> Burning Orange | G106: =INDEX(ATS!$A:$P,MATCH('2) Order Form'!$W106,ATS!$O:$O,0),6) -> 53/61 | H106: 1 | I106: 0 | J106: =IFERROR(VLOOKUP(W106,ATS!$O:$P,2,FALSE),0) -> 249 | K106: 50+ | L106: =IFERROR(VLOOKUP(W106,ATS!$O:$Q,3,FALSE),0) -> 249 | M106: 50+ | N106: 0% | O106: 0% | P106: =VLOOKUP($C106,Prices!$A$3:$R$1996,MATCH('2) Order Form'!P$8,Prices!$A$2:$R$2,0),FALSE) -> 50.00 | Q106: =VLOOKUP($C106,Prices!$A$3:$R$1996,MATCH('2) Order Form'!Q$8,Prices!$A$2:$R$2,0),FALSE) -> 99.95 | R106: 0 | S106: 0 | T106: 0 | U106: 0% | W106: 7048652767714 | Y106: 0 | Z106: 0 | AA106: 3 | AB106: 0 | AC106: 1 | AD106: 845106Burning Orange | AE106: 845106 | AF106: =INDEX(ATS!$A:$P,MATCH('2) Order Form'!$W106,ATS!$O:$O,0),7) -> Stock
A107: 1 | B107: =VLOOKUP(A107,Classification!$H$2:$I$11,2,FALSE) -> Helmets & Helmet Acc. | C107: =INDEX(ATS!$A:$P,MATCH('2) Order Form'!$W107,ATS!$O:$O,0),1) -> 845106 | D107: =INDEX(ATS!$A:$P,MATCH('2) Order Form'!$W107,ATS!$O:$O,0),2) -> Ripper Mips Helmet | E107: =INDEX(ATS!$A:$P,MATCH('2) Order Form'!$W107,ATS!$O:$O,0),4) -> DPMC-53/61 | F107: =INDEX(ATS!$A:$P,MATCH('2) Order Form'!$W107,ATS!$O:$O,0),5) -> Deep Purple Metallic | G107: =INDEX(ATS!$A:$P,MATCH('2) Order Form'!$W107,ATS!$O:$O,0),6) -> 53/61 | H107: 1 | I107: 0 | J107: =IFERROR(VLOOKUP(W107,ATS!$O:$P,2,FALSE),0) -> 96 | K107: 50+ | L107: =IFERROR(VLOOKUP(W107,ATS!$O:$Q,3,FALSE),0) -> 96 | M107: 50+ | N107: 0% | O107: 0% | P107: =VLOOKUP($C107,Prices!$A$3:$R$1996,MATCH('2) Order Form'!P$8,Prices!$A$2:$R$2,0),FALSE) -> 50.00 | Q107: =VLOOKUP($C107,Prices!$A$3:$R$1996,MATCH('2) Order Form'!Q$8,Prices!$A$2:$R$2,0),FALSE) -> 99.95 | R107: 0 | S107: 0 | T107: 0 | U107: 0% | W107: 7048652767721 | Y107: 0 | Z107: 0 | AA107: 3 | AB107: 0 | AC107: 1 | AD107: 845106Deep Purple Metallic | AE107: 845106 | AF107: =INDEX(ATS!$A:$P,MATCH('2) Order Form'!$W107,ATS!$O:$O,0),7) -> Stock
A108: 1 | B108: =VLOOKUP(A108,Classification!$H$2:$I$11,2,FALSE) -> Helmets & Helmet Acc. | C108: =INDEX(ATS!$A:$P,MATCH('2) Order Form'!$W108,ATS!$O:$O,0),1) -> 845106 | D108: =INDEX(ATS!$A:$P,MATCH('2) Order Form'!$W108,ATS!$O:$O,0),2) -> Ripper Mips Helmet | E108: =INDEX(ATS!$A:$P,MATCH('2) Order Form'!$W108,ATS!$O:$O,0),4) -> MBLK-53/61 | F108: =INDEX(ATS!$A:$P,MATCH('2) Order Form'!$W108,ATS!$O:$O,0),5) -> Matte Black | G108: =INDEX(ATS!$A:$P,MATCH('2) Order Form'!$W108,ATS!$O:$O,0),6) -> 53/61 | H108: 1 | I108: 0 | J108: =IFERROR(VLOOKUP(W108,ATS!$O:$P,2,FALSE),0) -> 1603 | K108: 50+ | L108: =IFERROR(VLOOKUP(W108,ATS!$O:$Q,3,FALSE),0) -> 1603 | M108: 50+ | N108: 0% | O108: 0% | P108: =VLOOKUP($C108,Prices!$A$3:$R$1996,MATCH('2) Order Form'!P$8,Prices!$A$2:$R$2,0),FALSE) -> 50.00 | Q108: =VLOOKUP($C108,Prices!$A$3:$R$1996,MATCH('2) Order Form'!Q$8,Prices!$A$2:$R$2,0),FALSE) -> 99.95 | R108: 0 | S108: 0 | T108: 0 | U108: 0% | W108: 7048652540980 | Y108: 0 | Z108: 0 | AA108: 3 | AB108: 0 | AC108: 1 | AD108: 845106Matte Black | AE108: 845106 | AF108: =INDEX(ATS!$A:$P,MATCH('2) Order Form'!$W108,ATS!$O:$O,0),7) -> Active
A109: 1 | B109: =VLOOKUP(A109,Classification!$H$2:$I$11,2,FALSE) -> Helmets & Helmet Acc. | C109: =INDEX(ATS!$A:$P,MATCH('2) Order Form'!$W109,ATS!$O:$O,0),1) -> 845106 | D109: =INDEX(ATS!$A:$P,MATCH('2) Order Form'!$W109,ATS!$O:$O,0),2) -> Ripper Mips Helmet | E109: =INDEX(ATS!$A:$P,MATCH('2) Order Form'!$W109,ATS!$O:$O,0),4) -> MWHT-53/61 | F109: =INDEX(ATS!$A:$P,MATCH('2) Order Form'!$W109,ATS!$O:$O,0),5) -> Matte White | G109: =INDEX(ATS!$A:$P,MATCH('2) Order Form'!$W109,ATS!$O:$O,0),6) -> 53/61 | H109: 1 | I109: 0 | J109: =IFERROR(VLOOKUP(W109,ATS!$O:$P,2,FALSE),0) -> 1685 | K109: 50+ | L109: =IFERROR(VLOOKUP(W109,ATS!$O:$Q,3,FALSE),0) -> 1685 | M109: 50+ | N109: 0% | O109: 0% | P109: =VLOOKUP($C109,Prices!$A$3:$R$1996,MATCH('2) Order Form'!P$8,Prices!$A$2:$R$2,0),FALSE) -> 50.00 | Q109: =VLOOKUP($C109,Prices!$A$3:$R$1996,MATCH('2) Order Form'!Q$8,Prices!$A$2:$R$2,0),FALSE) -> 99.95 | R109: 0 | S109: 0 | T109: 0 | U109: 0% | W109: 7048652541024 | Y109: 0 | Z109: 0 | AA109: 3 | AB109: 0 | AC109: 1 | AD109: 845106Matte White | AE109: 845106 | AF109: =INDEX(ATS!$A:$P,MATCH('2) Order Form'!$W109,ATS!$O:$O,0),7) -> Active
A110: 1 | B110: =VLOOKUP(A110,Classification!$H$2:$I$11,2,FALSE) -> Helmets & Helmet Acc. | C110: =INDEX(ATS!$A:$P,MATCH('2) Order Form'!$W110,ATS!$O:$O,0),1) -> 845106 | D110: =INDEX(ATS!$A:$P,MATCH('2) Order Form'!$W110,ATS!$O:$O,0),2) -> Ripper Mips Helmet | E110: =INDEX(ATS!$A:$P,MATCH('2) Order Form'!$W110,ATS!$O:$O,0),4) -> SGRM-53/61 | F110: =INDEX(ATS!$A:$P,MATCH('2) Order Form'!$W110,ATS!$O:$O,0),5) -> Slate Gray Metallic | G110: =INDEX(ATS!$A:$P,MATCH('2) Order Form'!$W110,ATS!$O:$O,0),6) -> 53/61 | H110: 1 | I110: 0 | J110: =IFERROR(VLOOKUP(W110,ATS!$O:$P,2,FALSE),0) -> 340 | K110: 50+ | L110: =IFERROR(VLOOKUP(W110,ATS!$O:$Q,3,FALSE),0) -> 340 | M110: 50+ | N110: 0% | O110: 0% | P110: =VLOOKUP($C110,Prices!$A$3:$R$1996,MATCH('2) Order Form'!P$8,Prices!$A$2:$R$2,0),FALSE) -> 50.00 | Q110: =VLOOKUP($C110,Prices!$A$3:$R$1996,MATCH('2) Order Form'!Q$8,Prices!$A$2:$R$2,0),FALSE) -> 99.95 | R110: 0 | S110: 0 | T110: 0 | U110: 0% | W110: 7048652661753 | Y110: 0 | Z110: 0 | AA110: 3 | AB110: 0 | AC110: 1 | AD110: 845106Slate Gray Metallic | AE110: 845106 | AF110: =INDEX(ATS!$A:$P,MATCH('2) Order Form'!$W110,ATS!$O:$O,0),7) -> Stock
A111: 1 | B111: =VLOOKUP(A111,Classification!$H$2:$I$11,2,FALSE) -> Helmets & Helmet Acc. | C111: =INDEX(ATS!$A:$P,MATCH('2) Order Form'!$W111,ATS!$O:$O,0),1) -> 845105 | D111: =INDEX(ATS!$A:$P,MATCH('2) Order Form'!$W111,ATS!$O:$O,0),2) -> Ripper Helmet | E111: =INDEX(ATS!$A:$P,MATCH('2) Order Form'!$W111,ATS!$O:$O,0),4) -> BGRG-53/61 | F111: =INDEX(ATS!$A:$P,MATCH('2) Order Form'!$W111,ATS!$O:$O,0),5) -> Bolt Gray/Rose Gold | G111: =INDEX(ATS!$A:$P,MATCH('2) Order Form'!$W111,ATS!$O:$O,0),6) -> 53/61 | H111: 1 | I111: 0 | J111: =IFERROR(VLOOKUP(W111,ATS!$O:$P,2,FALSE),0) -> 56 | K111: =IF(J111=99999,"OPEN",IF(J111>50,"50+",IF(J111<=0,"0",J111))) -> 50+ | L111: =IFERROR(VLOOKUP(W111,ATS!$O:$Q,3,FALSE),0) -> 56 | M111: =IF(L111=99999,"OPEN",IF(L111>50,"50+",IF(L111<=0,"0",L111))) -> 50+ | N111: 0% | O111: =IF(N111<>0,N111,$P$5) -> 0% | P111: =VLOOKUP($C111,Prices!$A$3:$R$1996,MATCH('2) Order Form'!P$8,Prices!$A$2:$R$2,0),FALSE) -> 35.00 | Q111: =VLOOKUP($C111,Prices!$A$3:$R$1996,MATCH('2) Order Form'!Q$8,Prices!$A$2:$R$2,0),FALSE) -> 69.95 | R111: =I111*P111 -> 0 | S111: =R111*O111 -> 0 | T111: =R111-S111 -> 0 | U111: 0% | W111: 7048652767653 | Y111: =I111*Q111 -> 0 | Z111: =IF(A111=OFFSET(A111,-1,0),0,1) -> 0 | AA111: =IF(C111=OFFSET(C111,-1,0),OFFSET(AA111,-1,0),OFFSET(AA111,-1,0)+1) -> 4 | AB111: =IF(C111=OFFSET(C111,-1,0),0,1) -> 1 | AC111: =IF(F111=OFFSET(F111,-1,0),0,1) -> 1 | AD111: =CONCATENATE(C111,F111) -> 845105Bolt Gray/Rose Gold | AE111: =IFERROR(IF(B111="EYEWEAR",CONCATENATE(C111,"-",G111),C111),C111) -> 845105 | AF111: =INDEX(ATS!$A:$P,MATCH('2) Order Form'!$W111,ATS!$O:$O,0),7) -> Stock
A112: 1 | B112: =VLOOKUP(A112,Classification!$H$2:$I$11,2,FALSE) -> Helmets & Helmet Acc. | C112: =INDEX(ATS!$A:$P,MATCH('2) Order Form'!$W112,ATS!$O:$O,0),1) -> 845105 | D112: =INDEX(ATS!$A:$P,MATCH('2) Order Form'!$W112,ATS!$O:$O,0),2) -> Ripper Helmet | E112: =INDEX(ATS!$A:$P,MATCH('2) Order Form'!$W112,ATS!$O:$O,0),4) -> BRWT-53/61 | F112: =INDEX(ATS!$A:$P,MATCH('2) Order Form'!$W112,ATS!$O:$O,0),5) -> Bronco White | G112: =INDEX(ATS!$A:$P,MATCH('2) Order Form'!$W112,ATS!$O:$O,0),6) -> 53/61 | H112: 1 | I112: 0 | J112: =IFERROR(VLOOKUP(W112,ATS!$O:$P,2,FALSE),0) -> 46 | K112: 46 | L112: =IFERROR(VLOOKUP(W112,ATS!$O:$Q,3,FALSE),0) -> 46 | M112: 46 | N112: 0% | O112: 0% | P112: =VLOOKUP($C112,Prices!$A$3:$R$1996,MATCH('2) Order Form'!P$8,Prices!$A$2:$R$2,0),FALSE) -> 35.00 | Q112: =VLOOKUP($C112,Prices!$A$3:$R$1996,MATCH('2) Order Form'!Q$8,Prices!$A$2:$R$2,0),FALSE) -> 69.95 | R112: 0 | S112: 0 | T112: 0 | U112: 0% | W112: 7048652767660 | Y112: 0 | Z112: 0 | AA112: 4 | AB112: 0 | AC112: 1 | AD112: 845105Bronco White | AE112: 845105 | AF112: =INDEX(ATS!$A:$P,MATCH('2) Order Form'!$W112,ATS!$O:$O,0),7) -> Stock
A113: 1 | B113: =VLOOKUP(A113,Classification!$H$2:$I$11,2,FALSE) -> Helmets & Helmet Acc. | C113: =INDEX(ATS!$A:$P,MATCH('2) Order Form'!$W113,ATS!$O:$O,0),1) -> 845105 | D113: =INDEX(ATS!$A:$P,MATCH('2) Order Form'!$W113,ATS!$O:$O,0),2) -> Ripper Helmet | E113: =INDEX(ATS!$A:$P,MATCH('2) Order Form'!$W113,ATS!$O:$O,0),4) -> BUOR-53/61 | F113: =INDEX(ATS!$A:$P,MATCH('2) Order Form'!$W113,ATS!$O:$O,0),5) -> Burning Orange | G113: =INDEX(ATS!$A:$P,MATCH('2) Order Form'!$W113,ATS!$O:$O,0),6) -> 53/61 | H113: 1 | I113: 0 | J113: =IFERROR(VLOOKUP(W113,ATS!$O:$P,2,FALSE),0) -> 69 | K113: 50+ | L113: =IFERROR(VLOOKUP(W113,ATS!$O:$Q,3,FALSE),0) -> 69 | M113: 50+ | N113: 0% | O113: 0% | P113: =VLOOKUP($C113,Prices!$A$3:$R$1996,MATCH('2) Order Form'!P$8,Prices!$A$2:$R$2,0),FALSE) -> 35.00 | Q113: =VLOOKUP($C113,Prices!$A$3:$R$1996,MATCH('2) Order Form'!Q$8,Prices!$A$2:$R$2,0),FALSE) -> 69.95 | R113: 0 | S113: 0 | T113: 0 | U113: 0% | W113: 7048652767677 | Y113: 0 | Z113: 0 | AA113: 4 | AB113: 0 | AC113: 1 | AD113: 845105Burning Orange | AE113: 845105 | AF113: =INDEX(ATS!$A:$P,MATCH('2) Order Form'!$W113,ATS!$O:$O,0),7) -> Stock
A114: 1 | B114: =VLOOKUP(A114,Classification!$H$2:$I$11,2,FALSE) -> Helmets & Helmet Acc. | C114: =INDEX(ATS!$A:$P,MATCH('2) Order Form'!$W114,ATS!$O:$O,0),1) -> 845105 | D114: =INDEX(ATS!$A:$P,MATCH('2) Order Form'!$W114,ATS!$O:$O,0),2) -> Ripper Helmet | E114: =INDEX(ATS!$A:$P,MATCH('2) Order Form'!$W114,ATS!$O:$O,0),4) -> DPMC-53/61 | F114: =INDEX(ATS!$A:$P,MATCH('2) Order Form'!$W114,ATS!$O:$O,0),5) -> Deep Purple Metallic | G114: =INDEX(ATS!$A:$P,MATCH('2) Order Form'!$W114,ATS!$O:$O,0),6) -> 53/61 | H114: 1 | I114: 0 | J114: =IFERROR(VLOOKUP(W114,ATS!$O:$P,2,FALSE),0) -> 62 | K114: 50+ | L114: =IFERROR(VLOOKUP(W114,ATS!$O:$Q,3,FALSE),0) -> 62 | M114: 50+ | N114: 0% | O114: 0% | P114: =VLOOKUP($C114,Prices!$A$3:$R$1996,MATCH('2) Order Form'!P$8,Prices!$A$2:$R$2,0),FALSE) -> 35.00 | Q114: =VLOOKUP($C114,Prices!$A$3:$R$1996,MATCH('2) Order Form'!Q$8,Prices!$A$2:$R$2,0),FALSE) -> 69.95 | R114: 0 | S114: 0 | T114: 0 | U114: 0% | W114: 7048652767684 | Y114: 0 | Z114: 0 | AA114: 4 | AB114: 0 | AC114: 1 | AD114: 845105Deep Purple Metallic | AE114: 845105 | AF114: =INDEX(ATS!$A:$P,MATCH('2) Order Form'!$W114,ATS!$O:$O,0),7) -> Stock
A115: 1 | B115: =VLOOKUP(A115,Classification!$H$2:$I$11,2,FALSE) -> Helmets & Helmet Acc. | C115: =INDEX(ATS!$A:$P,MATCH('2) Order Form'!$W115,ATS!$O:$O,0),1) -> 845105 | D115: =INDEX(ATS!$A:$P,MATCH('2) Order Form'!$W115,ATS!$O:$O,0),2) -> Ripper Helmet | E115: =INDEX(ATS!$A:$P,MATCH('2) Order Form'!$W115,ATS!$O:$O,0),4) -> MBLK-53/61 | F115: =INDEX(ATS!$A:$P,MATCH('2) Order Form'!$W115,ATS!$O:$O,0),5) -> Matte Black | G115: =INDEX(ATS!$A:$P,MATCH('2) Order Form'!$W115,ATS!$O:$O,0),6) -> 53/61 | H115: 1 | I115: 0 | J115: =IFERROR(VLOOKUP(W115,ATS!$O:$P,2,FALSE),0) -> 404 | K115: =IF(J115=99999,"OPEN",IF(J115>50,"50+",IF(J115<=0,"0",J115))) -> 50+ | L115: =IFERROR(VLOOKUP(W115,ATS!$O:$Q,3,FALSE),0) -> 404 | M115: =IF(L115=99999,"OPEN",IF(L115>50,"50+",IF(L115<=0,"0",L115))) -> 50+ | N115: 0% | O115: =IF(N115<>0,N115,$P$5) -> 0% | P115: =VLOOKUP($C115,Prices!$A$3:$R$1996,MATCH('2) Order Form'!P$8,Prices!$A$2:$R$2,0),FALSE) -> 35.00 | Q115: =VLOOKUP($C115,Prices!$A$3:$R$1996,MATCH('2) Order Form'!Q$8,Prices!$A$2:$R$2,0),FALSE) -> 69.95 | R115: =I115*P115 -> 0 | S115: =R115*O115 -> 0 | T115: =R115-S115 -> 0 | U115: 0% | W115: 7048652540935 | Y115: 0 | Z115: 0 | AA115: 4 | AB115: 0 | AC115: 1 | AD115: 845105Matte Black | AE115: 845105 | AF115: =INDEX(ATS!$A:$P,MATCH('2) Order Form'!$W115,ATS!$O:$O,0),7) -> Active
A116: 1 | B116: =VLOOKUP(A116,Classification!$H$2:$I$11,2,FALSE) -> Helmets & Helmet Acc. | C116: =INDEX(ATS!$A:$P,MATCH('2) Order Form'!$W116,ATS!$O:$O,0),1) -> 845105 | D116: =INDEX(ATS!$A:$P,MATCH('2) Order Form'!$W116,ATS!$O:$O,0),2) -> Ripper Helmet | E116: =INDEX(ATS!$A:$P,MATCH('2) Order Form'!$W116,ATS!$O:$O,0),4) -> MWHT-53/61 | F116: =INDEX(ATS!$A:$P,MATCH('2) Order Form'!$W116,ATS!$O:$O,0),5) -> Matte White | G116: =INDEX(ATS!$A:$P,MATCH('2) Order Form'!$W116,ATS!$O:$O,0),6) -> 53/61 | H116: 1 | I116: 0 | J116: =IFERROR(VLOOKUP(W116,ATS!$O:$P,2,FALSE),0) -> 433 | K116: 50+ | L116: =IFERROR(VLOOKUP(W116,ATS!$O:$Q,3,FALSE),0) -> 433 | M116: 50+ | N116: 0% | O116: 0% | P116: =VLOOKUP($C116,Prices!$A$3:$R$1996,MATCH('2) Order Form'!P$8,Prices!$A$2:$R$2,0),FALSE) -> 35.00 | Q116: =VLOOKUP($C116,Prices!$A$3:$R$1996,MATCH('2) Order Form'!Q$8,Prices!$A$2:$R$2,0),FALSE) -> 69.95 | R116: 0 | S116: 0 | T116: 0 | U116: 0% | W116: 7048652540973 | Y116: 0 | Z116: 0 | AA116: 4 | AB116: 0 | AC116: 1 | AD116: 845105Matte White | AE116: 845105 | AF116: =INDEX(ATS!$A:$P,MATCH('2) Order Form'!$W116,ATS!$O:$O,0),7) -> Active
A117: 1 | B117: =VLOOKUP(A117,Classification!$H$2:$I$11,2,FALSE) -> Helmets & Helmet Acc. | C117: =INDEX(ATS!$A:$P,MATCH('2) Order Form'!$W117,ATS!$O:$O,0),1) -> 845105 | D117: =INDEX(ATS!$A:$P,MATCH('2) Order Form'!$W117,ATS!$O:$O,0),2) -> Ripper Helmet | E117: =INDEX(ATS!$A:$P,MATCH('2) Order Form'!$W117,ATS!$O:$O,0),4) -> SGRM-53/61 | F117: =INDEX(ATS!$A:$P,MATCH('2) Order Form'!$W117,ATS!$O:$O,0),5) -> Slate Gray Metallic | G117: =INDEX(ATS!$A:$P,MATCH('2) Order Form'!$W117,ATS!$O:$O,0),6) -> 53/61 | H117: 1 | I117: 0 | J117: =IFERROR(VLOOKUP(W117,ATS!$O:$P,2,FALSE),0) -> 11 | K117: 11 | L117: =IFERROR(VLOOKUP(W117,ATS!$O:$Q,3,FALSE),0) -> 11 | M117: 11 | N117: 0% | O117: 0% | P117: =VLOOKUP($C117,Prices!$A$3:$R$1996,MATCH('2) Order Form'!P$8,Prices!$A$2:$R$2,0),FALSE) -> 35.00 | Q117: =VLOOKUP($C117,Prices!$A$3:$R$1996,MATCH('2) Order Form'!Q$8,Prices!$A$2:$R$2,0),FALSE) -> 69.95 | R117: 0 | S117: 0 | T117: 0 | U117: 0% | W117: 7048652661739 | Y117: 0 | Z117: 0 | AA117: 4 | AB117: 0 | AC117: 1 | AD117: 845105Slate Gray Metallic | AE117: 845105 | AF117: =INDEX(ATS!$A:$P,MATCH('2) Order Form'!$W117,ATS!$O:$O,0),7) -> Stock
A118: 1 | B118: =VLOOKUP(A118,Classification!$H$2:$I$11,2,FALSE) -> Helmets & Helmet Acc. | C118: =INDEX(ATS!$A:$P,MATCH('2) Order Form'!$W118,ATS!$O:$O,0),1) -> 845074 | D118: =INDEX(ATS!$A:$P,MATCH('2) Order Form'!$W118,ATS!$O:$O,0),2) -> Dissenter Helmet Jr | E118: =INDEX(ATS!$A:$P,MATCH('2) Order Form'!$W118,ATS!$O:$O,0),4) -> GLBLM-XSS | F118: =INDEX(ATS!$A:$P,MATCH('2) Order Form'!$W118,ATS!$O:$O,0),5) -> Glacier Blue Metallic | G118: =INDEX(ATS!$A:$P,MATCH('2) Order Form'!$W118,ATS!$O:$O,0),6) -> XSS | H118: 1 | I118: 0 | J118: =IFERROR(VLOOKUP(W118,ATS!$O:$P,2,FALSE),0) -> 34 | K118: =IF(J118=99999,"OPEN",IF(J118>50,"50+",IF(J118<=0,"0",J118))) -> 34 | L118: =IFERROR(VLOOKUP(W118,ATS!$O:$Q,3,FALSE),0) -> 34 | M118: =IF(L118=99999,"OPEN",IF(L118>50,"50+",IF(L118<=0,"0",L118))) -> 34 | N118: 0% | O118: =IF(N118<>0,N118,$P$5) -> 0% | P118: =VLOOKUP($C118,Prices!$A$3:$R$1996,MATCH('2) Order Form'!P$8,Prices!$A$2:$R$2,0),FALSE) -> 45.00 | Q118: =VLOOKUP($C118,Prices!$A$3:$R$1996,MATCH('2) Order Form'!Q$8,Prices!$A$2:$R$2,0),FALSE) -> 89.95 | R118: =I118*P118 -> 0 | S118: =R118*O118 -> 0 | T118: =R118-S118 -> 0 | U118: 0% | W118: 7048652766694 | Y118: =I118*Q118 -> 0 | Z118: =IF(A118=OFFSET(A118,-1,0),0,1) -> 0 | AA118: =IF(C118=OFFSET(C118,-1,0),OFFSET(AA118,-1,0),OFFSET(AA118,-1,0)+1) -> 5 | AB118: =IF(C118=OFFSET(C118,-1,0),0,1) -> 1 | AC118: =IF(F118=OFFSET(F118,-1,0),0,1) -> 1 | AD118: =CONCATENATE(C118,F118) -> 845074Glacier Blue Metallic | AE118: =IFERROR(IF(B118="EYEWEAR",CONCATENATE(C118,"-",G118),C118),C118) -> 845074 | AF118: =INDEX(ATS!$A:$P,MATCH('2) Order Form'!$W118,ATS!$O:$O,0),7) -> Stock
A119: 1 | B119: =VLOOKUP(A119,Classification!$H$2:$I$11,2,FALSE) -> Helmets & Helmet Acc. | C119: =INDEX(ATS!$A:$P,MATCH('2) Order Form'!$W119,ATS!$O:$O,0),1) -> 845074 | D119: =INDEX(ATS!$A:$P,MATCH('2) Order Form'!$W119,ATS!$O:$O,0),2) -> Dissenter Helmet Jr | E119: =INDEX(ATS!$A:$P,MATCH('2) Order Form'!$W119,ATS!$O:$O,0),4) -> GLBLM-SM | F119: =INDEX(ATS!$A:$P,MATCH('2) Order Form'!$W119,ATS!$O:$O,0),5) -> Glacier Blue Metallic | G119: =INDEX(ATS!$A:$P,MATCH('2) Order Form'!$W119,ATS!$O:$O,0),6) -> SM | H119: 1 | I119: 0 | J119: =IFERROR(VLOOKUP(W119,ATS!$O:$P,2,FALSE),0) -> 51 | K119: 50+ | L119: =IFERROR(VLOOKUP(W119,ATS!$O:$Q,3,FALSE),0) -> 51 | M119: 50+ | N119: 0% | O119: 0% | P119: =VLOOKUP($C119,Prices!$A$3:$R$1996,MATCH('2) Order Form'!P$8,Prices!$A$2:$R$2,0),FALSE) -> 45.00 | Q119: =VLOOKUP($C119,Prices!$A$3:$R$1996,MATCH('2) Order Form'!Q$8,Prices!$A$2:$R$2,0),FALSE) -> 89.95 | R119: 0 | S119: 0 | T119: 0 | U119: 0% | W119: 7048652766687 | Y119: 0 | Z119: 0 | AA119: 5 | AB119: 0 | AC119: 0 | AD119: 845074Glacier Blue Metallic | AE119: 845074 | AF119: =INDEX(ATS!$A:$P,MATCH('2) Order Form'!$W119,ATS!$O:$O,0),7) -> Stock
A120: 1 | B120: =VLOOKUP(A120,Classification!$H$2:$I$11,2,FALSE) -> Helmets & Helmet Acc. | C120: =INDEX(ATS!$A:$P,MATCH('2) Order Form'!$W120,ATS!$O:$O,0),1) -> 845074 | D120: =INDEX(ATS!$A:$P,MATCH('2) Order Form'!$W120,ATS!$O:$O,0),2) -> Dissenter Helmet Jr | E120: =INDEX(ATS!$A:$P,MATCH('2) Order Form'!$W120,ATS!$O:$O,0),4) -> MFLUO-XSS | F120: =INDEX(ATS!$A:$P,MATCH('2) Order Form'!$W120,ATS!$O:$O,0),5) -> Matte Fluo | G120: =INDEX(ATS!$A:$P,MATCH('2) Order Form'!$W120,ATS!$O:$O,0),6) -> XSS | H120: 1 | I120: 0 | J120: =IFERROR(VLOOKUP(W120,ATS!$O:$P,2,FALSE),0) -> 55 | K120: 50+ | L120: =IFERROR(VLOOKUP(W120,ATS!$O:$Q,3,FALSE),0) -> 55 | M120: 50+ | N120: 0% | O120: 0% | P120: =VLOOKUP($C120,Prices!$A$3:$R$1996,MATCH('2) Order Form'!P$8,Prices!$A$2:$R$2,0),FALSE) -> 45.00 | Q120: =VLOOKUP($C120,Prices!$A$3:$R$1996,MATCH('2) Order Form'!Q$8,Prices!$A$2:$R$2,0),FALSE) -> 89.95 | R120: 0 | S120: 0 | T120: 0 | U120: 0% | W120: 7048652766717 | Y120: 0 | Z120: 0 | AA120: 5 | AB120: 0 | AC120: 1 | AD120: 845074Matte Fluo | AE120: 845074 | AF120: =INDEX(ATS!$A:$P,MATCH('2) Order Form'!$W120,ATS!$O:$O,0),7) -> Stock
A121: 1 | B121: =VLOOKUP(A121,Classification!$H$2:$I$11,2,FALSE) -> Helmets & Helmet Acc. | C121: =INDEX(ATS!$A:$P,MATCH('2) Order Form'!$W121,ATS!$O:$O,0),1) -> 845074 | D121: =INDEX(ATS!$A:$P,MATCH('2) Order Form'!$W121,ATS!$O:$O,0),2) -> Dissenter Helmet Jr | E121: =INDEX(ATS!$A:$P,MATCH('2) Order Form'!$W121,ATS!$O:$O,0),4) -> MFLUO-SM | F121: =INDEX(ATS!$A:$P,MATCH('2) Order Form'!$W121,ATS!$O:$O,0),5) -> Matte Fluo | G121: =INDEX(ATS!$A:$P,MATCH('2) Order Form'!$W121,ATS!$O:$O,0),6) -> SM | H121: 1 | I121: 0 | J121: =IFERROR(VLOOKUP(W121,ATS!$O:$P,2,FALSE),0) -> 65 | K121: 50+ | L121: =IFERROR(VLOOKUP(W121,ATS!$O:$Q,3,FALSE),0) -> 65 | M121: 50+ | N121: 0% | O121: 0% | P121: =VLOOKUP($C121,Prices!$A$3:$R$1996,MATCH('2) Order Form'!P$8,Prices!$A$2:$R$2,0),FALSE) -> 45.00 | Q121: =VLOOKUP($C121,Prices!$A$3:$R$1996,MATCH('2) Order Form'!Q$8,Prices!$A$2:$R$2,0),FALSE) -> 89.95 | R121: 0 | S121: 0 | T121: 0 | U121: 0% | W121: 7048652766700 | Y121: 0 | Z121: 0 | AA121: 5 | AB121: 0 | AC121: 0 | AD121: 845074Matte Fluo | AE121: 845074 | AF121: =INDEX(ATS!$A:$P,MATCH('2) Order Form'!$W121,ATS!$O:$O,0),7) -> Stock
A122: 1 | B122: =VLOOKUP(A122,Classification!$H$2:$I$11,2,FALSE) -> Helmets & Helmet Acc. | C122: =INDEX(ATS!$A:$P,MATCH('2) Order Form'!$W122,ATS!$O:$O,0),1) -> 845074 | D122: =INDEX(ATS!$A:$P,MATCH('2) Order Form'!$W122,ATS!$O:$O,0),2) -> Dissenter Helmet Jr | E122: =INDEX(ATS!$A:$P,MATCH('2) Order Form'!$W122,ATS!$O:$O,0),4) -> MNGRY-XSS | F122: =INDEX(ATS!$A:$P,MATCH('2) Order Form'!$W122,ATS!$O:$O,0),5) -> Matte Nardo Gray | G122: =INDEX(ATS!$A:$P,MATCH('2) Order Form'!$W122,ATS!$O:$O,0),6) -> XSS | H122: 1 | I122: 0 | J122: =IFERROR(VLOOKUP(W122,ATS!$O:$P,2,FALSE),0) -> 32 | K122: 32 | L122: =IFERROR(VLOOKUP(W122,ATS!$O:$Q,3,FALSE),0) -> 32 | M122: 32 | N122: 0% | O122: 0% | P122: =VLOOKUP($C122,Prices!$A$3:$R$1996,MATCH('2) Order Form'!P$8,Prices!$A$2:$R$2,0),FALSE) -> 45.00 | Q122: =VLOOKUP($C122,Prices!$A$3:$R$1996,MATCH('2) Order Form'!Q$8,Prices!$A$2:$R$2,0),FALSE) -> 89.95 | R122: 0 | S122: 0 | T122: 0 | U122: 0% | W122: 7048652766731 | Y122: 0 | Z122: 0 | AA122: 5 | AB122: 0 | AC122: 1 | AD122: 845074Matte Nardo Gray | AE122: 845074 | AF122: =INDEX(ATS!$A:$P,MATCH('2) Order Form'!$W122,ATS!$O:$O,0),7) -> Stock
A123: 1 | B123: =VLOOKUP(A123,Classification!$H$2:$I$11,2,FALSE) -> Helmets & Helmet Acc. | C123: =INDEX(ATS!$A:$P,MATCH('2) Order Form'!$W123,ATS!$O:$O,0),1) -> 845074 | D123: =INDEX(ATS!$A:$P,MATCH('2) Order Form'!$W123,ATS!$O:$O,0),2) -> Dissenter Helmet Jr | E123: =INDEX(ATS!$A:$P,MATCH('2) Order Form'!$W123,ATS!$O:$O,0),4) -> MNGRY-SM | F123: =INDEX(ATS!$A:$P,MATCH('2) Order Form'!$W123,ATS!$O:$O,0),5) -> Matte Nardo Gray | G123: =INDEX(ATS!$A:$P,MATCH('2) Order Form'!$W123,ATS!$O:$O,0),6) -> SM | H123: 1 | I123: 0 | J123: =IFERROR(VLOOKUP(W123,ATS!$O:$P,2,FALSE),0) -> 28 | K123: 28 | L123: =IFERROR(VLOOKUP(W123,ATS!$O:$Q,3,FALSE),0) -> 28 | M123: 28 | N123: 0% | O123: 0% | P123: =VLOOKUP($C123,Prices!$A$3:$R$1996,MATCH('2) Order Form'!P$8,Prices!$A$2:$R$2,0),FALSE) -> 45.00 | Q123: =VLOOKUP($C123,Prices!$A$3:$R$1996,MATCH('2) Order Form'!Q$8,Prices!$A$2:$R$2,0),FALSE) -> 89.95 | R123: 0 | S123: 0 | T123: 0 | U123: 0% | W123: 7048652766724 | Y123: 0 | Z123: 0 | AA123: 5 | AB123: 0 | AC123: 0 | AD123: 845074Matte Nardo Gray | AE123: 845074 | AF123: =INDEX(ATS!$A:$P,MATCH('2) Order Form'!$W123,ATS!$O:$O,0),7) -> Stock
A124: 1 | B124: =VLOOKUP(A124,Classification!$H$2:$I$11,2,FALSE) -> Helmets & Helmet Acc. | C124: =INDEX(ATS!$A:$P,MATCH('2) Order Form'!$W124,ATS!$O:$O,0),1) -> 845108 | D124: =INDEX(ATS!$A:$P,MATCH('2) Order Form'!$W124,ATS!$O:$O,0),2) -> Ripper Mips Helmet Jr | E124: =INDEX(ATS!$A:$P,MATCH('2) Order Form'!$W124,ATS!$O:$O,0),4) -> GLBM-48/53 | F124: =INDEX(ATS!$A:$P,MATCH('2) Order Form'!$W124,ATS!$O:$O,0),5) -> Glacier Blue Metallic | G124: =INDEX(ATS!$A:$P,MATCH('2) Order Form'!$W124,ATS!$O:$O,0),6) -> 48/53 | H124: 1 | I124: 0 | J124: =IFERROR(VLOOKUP(W124,ATS!$O:$P,2,FALSE),0) -> 119 | K124: 50+ | L124: =IFERROR(VLOOKUP(W124,ATS!$O:$Q,3,FALSE),0) -> 119 | M124: 50+ | N124: 0% | O124: 0% | P124: =VLOOKUP($C124,Prices!$A$3:$R$1996,MATCH('2) Order Form'!P$8,Prices!$A$2:$R$2,0),FALSE) -> 45.00 | Q124: =VLOOKUP($C124,Prices!$A$3:$R$1996,MATCH('2) Order Form'!Q$8,Prices!$A$2:$R$2,0),FALSE) -> 89.95 | R124: 0 | S124: 0 | T124: 0 | U124: 0% | W124: 7048652767783 | Y124: 0 | Z124: 0 | AA124: 6 | AB124: 1 | AC124: 1 | AD124: 845108Glacier Blue Metallic | AE124: 845108 | AF124: =INDEX(ATS!$A:$P,MATCH('2) Order Form'!$W124,ATS!$O:$O,0),7) -> Stock
A125: 1 | B125: =VLOOKUP(A125,Classification!$H$2:$I$11,2,FALSE) -> Helmets & Helmet Acc. | C125: =INDEX(ATS!$A:$P,MATCH('2) Order Form'!$W125,ATS!$O:$O,0),1) -> 845108 | D125: =INDEX(ATS!$A:$P,MATCH('2) Order Form'!$W125,ATS!$O:$O,0),2) -> Ripper Mips Helmet Jr | E125: =INDEX(ATS!$A:$P,MATCH('2) Order Form'!$W125,ATS!$O:$O,0),4) -> MBLK-48/53 | F125: =INDEX(ATS!$A:$P,MATCH('2) Order Form'!$W125,ATS!$O:$O,0),5) -> Matte Black | G125: =INDEX(ATS!$A:$P,MATCH('2) Order Form'!$W125,ATS!$O:$O,0),6) -> 48/53 | H125: 1 | I125: 0 | J125: =IFERROR(VLOOKUP(W125,ATS!$O:$P,2,FALSE),0) -> 423 | K125: 50+ | L125: =IFERROR(VLOOKUP(W125,ATS!$O:$Q,3,FALSE),0) -> 423 | M125: 50+ | N125: 0% | O125: 0% | P125: =VLOOKUP($C125,Prices!$A$3:$R$1996,MATCH('2) Order Form'!P$8,Prices!$A$2:$R$2,0),FALSE) -> 45.00 | Q125: =VLOOKUP($C125,Prices!$A$3:$R$1996,MATCH('2) Order Form'!Q$8,Prices!$A$2:$R$2,0),FALSE) -> 89.95 | R125: 0 | S125: 0 | T125: 0 | U125: 0% | W125: 7048652540881 | Y125: 0 | Z125: 0 | AA125: 6 | AB125: 0 | AC125: 1 | AD125: 845108Matte Black | AE125: 845108 | AF125: =INDEX(ATS!$A:$P,MATCH('2) Order Form'!$W125,ATS!$O:$O,0),7) -> Active
A126: 1 | B126: =VLOOKUP(A126,Classification!$H$2:$I$11,2,FALSE) -> Helmets & Helmet Acc. | C126: =INDEX(ATS!$A:$P,MATCH('2) Order Form'!$W126,ATS!$O:$O,0),1) -> 845108 | D126: =INDEX(ATS!$A:$P,MATCH('2) Order Form'!$W126,ATS!$O:$O,0),2) -> Ripper Mips Helmet Jr | E126: =INDEX(ATS!$A:$P,MATCH('2) Order Form'!$W126,ATS!$O:$O,0),4) -> MFLU-48/53 | F126: =INDEX(ATS!$A:$P,MATCH('2) Order Form'!$W126,ATS!$O:$O,0),5) -> Matte Fluo | G126: =INDEX(ATS!$A:$P,MATCH('2) Order Form'!$W126,ATS!$O:$O,0),6) -> 48/53 | H126: 1 | I126: 0 | J126: =IFERROR(VLOOKUP(W126,ATS!$O:$P,2,FALSE),0) -> 189 | K126: 50+ | L126: =IFERROR(VLOOKUP(W126,ATS!$O:$Q,3,FALSE),0) -> 189 | M126: 50+ | N126: 0% | O126: 0% | P126: =VLOOKUP($C126,Prices!$A$3:$R$1996,MATCH('2) Order Form'!P$8,Prices!$A$2:$R$2,0),FALSE) -> 45.00 | Q126: =VLOOKUP($C126,Prices!$A$3:$R$1996,MATCH('2) Order Form'!Q$8,Prices!$A$2:$R$2,0),FALSE) -> 89.95 | R126: 0 | S126: 0 | T126: 0 | U126: 0% | W126: 7048652767790 | Y126: 0 | Z126: 0 | AA126: 6 | AB126: 0 | AC126: 1 | AD126: 845108Matte Fluo | AE126: 845108 | AF126: =INDEX(ATS!$A:$P,MATCH('2) Order Form'!$W126,ATS!$O:$O,0),7) -> Active
A127: 1 | B127: =VLOOKUP(A127,Classification!$H$2:$I$11,2,FALSE) -> Helmets & Helmet Acc. | C127: =INDEX(ATS!$A:$P,MATCH('2) Order Form'!$W127,ATS!$O:$O,0),1) -> 845108 | D127: =INDEX(ATS!$A:$P,MATCH('2) Order Form'!$W127,ATS!$O:$O,0),2) -> Ripper Mips Helmet Jr | E127: =INDEX(ATS!$A:$P,MATCH('2) Order Form'!$W127,ATS!$O:$O,0),4) -> MWHT-48/53 | F127: =INDEX(ATS!$A:$P,MATCH('2) Order Form'!$W127,ATS!$O:$O,0),5) -> Matte White | G127: =INDEX(ATS!$A:$P,MATCH('2) Order Form'!$W127,ATS!$O:$O,0),6) -> 48/53 | H127: 1 | I127: 0 | J127: =IFERROR(VLOOKUP(W127,ATS!$O:$P,2,FALSE),0) -> 35 | K127: 35 | L127: =IFERROR(VLOOKUP(W127,ATS!$O:$Q,3,FALSE),0) -> 35 | M127: 35 | N127: 0% | O127: 0% | P127: =VLOOKUP($C127,Prices!$A$3:$R$1996,MATCH('2) Order Form'!P$8,Prices!$A$2:$R$2,0),FALSE) -> 45.00 | Q127: =VLOOKUP($C127,Prices!$A$3:$R$1996,MATCH('2) Order Form'!Q$8,Prices!$A$2:$R$2,0),FALSE) -> 89.95 | R127: 0 | S127: 0 | T127: 0 | U127: 0% | W127: 7048652540928 | Y127: 0 | Z127: 0 | AA127: 6 | AB127: 0 | AC127: 1 | AD127: 845108Matte White | AE127: 845108 | AF127: =INDEX(ATS!$A:$P,MATCH('2) Order Form'!$W127,ATS!$O:$O,0),7) -> Active
A128: 1 | B128: =VLOOKUP(A128,Classification!$H$2:$I$11,2,FALSE) -> Helmets & Helmet Acc. | C128: =INDEX(ATS!$A:$P,MATCH('2) Order Form'!$W128,ATS!$O:$O,0),1) -> 845108 | D128: =INDEX(ATS!$A:$P,MATCH('2) Order Form'!$W128,ATS!$O:$O,0),2) -> Ripper Mips Helmet Jr | E128: =INDEX(ATS!$A:$P,MATCH('2) Order Form'!$W128,ATS!$O:$O,0),4) -> NGFL-48/53 | F128: =INDEX(ATS!$A:$P,MATCH('2) Order Form'!$W128,ATS!$O:$O,0),5) -> Nardo Gray / Fluo | G128: =INDEX(ATS!$A:$P,MATCH('2) Order Form'!$W128,ATS!$O:$O,0),6) -> 48/53 | H128: 1 | I128: 0 | J128: =IFERROR(VLOOKUP(W128,ATS!$O:$P,2,FALSE),0) -> 85 | K128: 50+ | L128: =IFERROR(VLOOKUP(W128,ATS!$O:$Q,3,FALSE),0) -> 85 | M128: 50+ | N128: 0% | O128: 0% | P128: =VLOOKUP($C128,Prices!$A$3:$R$1996,MATCH('2) Order Form'!P$8,Prices!$A$2:$R$2,0),FALSE) -> 45.00 | Q128: =VLOOKUP($C128,Prices!$A$3:$R$1996,MATCH('2) Order Form'!Q$8,Prices!$A$2:$R$2,0),FALSE) -> 89.95 | R128: 0 | S128: 0 | T128: 0 | U128: 0% | W128: 7048652767806 | Y128: 0 | Z128: 0 | AA128: 6 | AB128: 0 | AC128: 1 | AD128: 845108Nardo Gray / Fluo | AE128: 845108 | AF128: =INDEX(ATS!$A:$P,MATCH('2) Order Form'!$W128,ATS!$O:$O,0),7) -> Stock
A129: 1 | B129: =VLOOKUP(A129,Classification!$H$2:$I$11,2,FALSE) -> Helmets & Helmet Acc. | C129: =INDEX(ATS!$A:$P,MATCH('2) Order Form'!$W129,ATS!$O:$O,0),1) -> 845108 | D129: =INDEX(ATS!$A:$P,MATCH('2) Order Form'!$W129,ATS!$O:$O,0),2) -> Ripper Mips Helmet Jr | E129: =INDEX(ATS!$A:$P,MATCH('2) Order Form'!$W129,ATS!$O:$O,0),4) -> RGLD-48/53 | F129: =INDEX(ATS!$A:$P,MATCH('2) Order Form'!$W129,ATS!$O:$O,0),5) -> Rose Gold | G129: =INDEX(ATS!$A:$P,MATCH('2) Order Form'!$W129,ATS!$O:$O,0),6) -> 48/53 | H129: 1 | I129: 0 | J129: =IFERROR(VLOOKUP(W129,ATS!$O:$P,2,FALSE),0) -> 721 | K129: 50+ | L129: =IFERROR(VLOOKUP(W129,ATS!$O:$Q,3,FALSE),0) -> 721 | M129: 50+ | N129: 0% | O129: 0% | P129: =VLOOKUP($C129,Prices!$A$3:$R$1996,MATCH('2) Order Form'!P$8,Prices!$A$2:$R$2,0),FALSE) -> 45.00 | Q129: =VLOOKUP($C129,Prices!$A$3:$R$1996,MATCH('2) Order Form'!Q$8,Prices!$A$2:$R$2,0),FALSE) -> 89.95 | R129: 0 | S129: 0 | T129: 0 | U129: 0% | W129: 7048652767813 | Y129: 0 | Z129: 0 | AA129: 6 | AB129: 0 | AC129: 1 | AD129: 845108Rose Gold | AE129: 845108 | AF129: =INDEX(ATS!$A:$P,MATCH('2) Order Form'!$W129,ATS!$O:$O,0),7) -> Stock
A130: 1 | B130: =VLOOKUP(A130,Classification!$H$2:$I$11,2,FALSE) -> Helmets & Helmet Acc. | C130: =INDEX(ATS!$A:$P,MATCH('2) Order Form'!$W130,ATS!$O:$O,0),1) -> 845108 | D130: =INDEX(ATS!$A:$P,MATCH('2) Order Form'!$W130,ATS!$O:$O,0),2) -> Ripper Mips Helmet Jr | E130: =INDEX(ATS!$A:$P,MATCH('2) Order Form'!$W130,ATS!$O:$O,0),4) -> SBLM-48/53 | F130: =INDEX(ATS!$A:$P,MATCH('2) Order Form'!$W130,ATS!$O:$O,0),5) -> Sky Blue Metallic | G130: =INDEX(ATS!$A:$P,MATCH('2) Order Form'!$W130,ATS!$O:$O,0),6) -> 48/53 | H130: 1 | I130: 0 | J130: =IFERROR(VLOOKUP(W130,ATS!$O:$P,2,FALSE),0) -> 249 | K130: 50+ | L130: =IFERROR(VLOOKUP(W130,ATS!$O:$Q,3,FALSE),0) -> 249 | M130: 50+ | N130: 0% | O130: 0% | P130: =VLOOKUP($C130,Prices!$A$3:$R$1996,MATCH('2) Order Form'!P$8,Prices!$A$2:$R$2,0),FALSE) -> 45.00 | Q130: =VLOOKUP($C130,Prices!$A$3:$R$1996,MATCH('2) Order Form'!Q$8,Prices!$A$2:$R$2,0),FALSE) -> 89.95 | R130: 0 | S130: 0 | T130: 0 | U130: 0% | W130: 7048652767820 | Y130: 0 | Z130: 0 | AA130: 6 | AB130: 0 | AC130: 1 | AD130: 845108Sky Blue Metallic | AE130: 845108 | AF130: =INDEX(ATS!$A:$P,MATCH('2) Order Form'!$W130,ATS!$O:$O,0),7) -> Active
A131: 1 | B131: =VLOOKUP(A131,Classification!$H$2:$I$11,2,FALSE) -> Helmets & Helmet Acc. | C131: =INDEX(ATS!$A:$P,MATCH('2) Order Form'!$W131,ATS!$O:$O,0),1) -> 845108 | D131: =INDEX(ATS!$A:$P,MATCH('2) Order Form'!$W131,ATS!$O:$O,0),2) -> Ripper Mips Helmet Jr | E131: =INDEX(ATS!$A:$P,MATCH('2) Order Form'!$W131,ATS!$O:$O,0),4) -> SGRM-48/53 | F131: =INDEX(ATS!$A:$P,MATCH('2) Order Form'!$W131,ATS!$O:$O,0),5) -> Slate Gray Metallic | G131: =INDEX(ATS!$A:$P,MATCH('2) Order Form'!$W131,ATS!$O:$O,0),6) -> 48/53 | H131: 1 | I131: 0 | J131: =IFERROR(VLOOKUP(W131,ATS!$O:$P,2,FALSE),0) -> 1132 | K131: 50+ | L131: =IFERROR(VLOOKUP(W131,ATS!$O:$Q,3,FALSE),0) -> 1132 | M131: 50+ | N131: 0% | O131: 0% | P131: =VLOOKUP($C131,Prices!$A$3:$R$1996,MATCH('2) Order Form'!P$8,Prices!$A$2:$R$2,0),FALSE) -> 45.00 | Q131: =VLOOKUP($C131,Prices!$A$3:$R$1996,MATCH('2) Order Form'!Q$8,Prices!$A$2:$R$2,0),FALSE) -> 89.95 | R131: 0 | S131: 0 | T131: 0 | U131: 0% | W131: 7048652661708 | Y131: 0 | Z131: 0 | AA131: 6 | AB131: 0 | AC131: 1 | AD131: 845108Slate Gray Metallic | AE131: 845108 | AF131: =INDEX(ATS!$A:$P,MATCH('2) Order Form'!$W131,ATS!$O:$O,0),7) -> Stock
A132: 1 | B132: =VLOOKUP(A132,Classification!$H$2:$I$11,2,FALSE) -> Helmets & Helmet Acc. | C132: =INDEX(ATS!$A:$P,MATCH('2) Order Form'!$W132,ATS!$O:$O,0),1) -> 845107 | D132: =INDEX(ATS!$A:$P,MATCH('2) Order Form'!$W132,ATS!$O:$O,0),2) -> Ripper Helmet Jr | E132: =INDEX(ATS!$A:$P,MATCH('2) Order Form'!$W132,ATS!$O:$O,0),4) -> GLBM-48/53 | F132: =INDEX(ATS!$A:$P,MATCH('2) Order Form'!$W132,ATS!$O:$O,0),5) -> Glacier Blue Metallic | G132: =INDEX(ATS!$A:$P,MATCH('2) Order Form'!$W132,ATS!$O:$O,0),6) -> 48/53 | H132: 1 | I132: 0 | J132: =IFERROR(VLOOKUP(W132,ATS!$O:$P,2,FALSE),0) -> 166 | K132: 50+ | L132: =IFERROR(VLOOKUP(W132,ATS!$O:$Q,3,FALSE),0) -> 166 | M132: 50+ | N132: 0% | O132: 0% | P132: =VLOOKUP($C132,Prices!$A$3:$R$1996,MATCH('2) Order Form'!P$8,Prices!$A$2:$R$2,0),FALSE) -> 30.00 | Q132: =VLOOKUP($C132,Prices!$A$3:$R$1996,MATCH('2) Order Form'!Q$8,Prices!$A$2:$R$2,0),FALSE) -> 59.95 | R132: 0 | S132: 0 | T132: 0 | U132: 0% | W132: 7048652767776 | Y132: 0 | Z132: 0 | AA132: 7 | AB132: 1 | AC132: 1 | AD132: 845107Glacier Blue Metallic | AE132: 845107 | AF132: =INDEX(ATS!$A:$P,MATCH('2) Order Form'!$W132,ATS!$O:$O,0),7) -> Stock
A133: 1 | B133: =VLOOKUP(A133,Classification!$H$2:$I$11,2,FALSE) -> Helmets & Helmet Acc. | C133: =INDEX(ATS!$A:$P,MATCH('2) Order Form'!$W133,ATS!$O:$O,0),1) -> 845107 | D133: =INDEX(ATS!$A:$P,MATCH('2) Order Form'!$W133,ATS!$O:$O,0),2) -> Ripper Helmet Jr | E133: =INDEX(ATS!$A:$P,MATCH('2) Order Form'!$W133,ATS!$O:$O,0),4) -> MBLK-48/53 | F133: =INDEX(ATS!$A:$P,MATCH('2) Order Form'!$W133,ATS!$O:$O,0),5) -> Matte Black | G133: =INDEX(ATS!$A:$P,MATCH('2) Order Form'!$W133,ATS!$O:$O,0),6) -> 48/53 | H133: 1 | I133: 0 | J133: =IFERROR(VLOOKUP(W133,ATS!$O:$P,2,FALSE),0) -> 250 | K133: 50+ | L133: =IFERROR(VLOOKUP(W133,ATS!$O:$Q,3,FALSE),0) -> 250 | M133: 50+ | N133: 0% | O133: 0% | P133: =VLOOKUP($C133,Prices!$A$3:$R$1996,MATCH('2) Order Form'!P$8,Prices!$A$2:$R$2,0),FALSE) -> 30.00 | Q133: =VLOOKUP($C133,Prices!$A$3:$R$1996,MATCH('2) Order Form'!Q$8,Prices!$A$2:$R$2,0),FALSE) -> 59.95 | R133: 0 | S133: 0 | T133: 0 | U133: 0% | W133: 7048652540836 | Y133: 0 | Z133: 0 | AA133: 7 | AB133: 0 | AC133: 1 | AD133: 845107Matte Black | AE133: 845107 | AF133: =INDEX(ATS!$A:$P,MATCH('2) Order Form'!$W133,ATS!$O:$O,0),7) -> Active
A134: 1 | B134: =VLOOKUP(A134,Classification!$H$2:$I$11,2,FALSE) -> Helmets & Helmet Acc. | C134: =INDEX(ATS!$A:$P,MATCH('2) Order Form'!$W134,ATS!$O:$O,0),1) -> 845107 | D134: =INDEX(ATS!$A:$P,MATCH('2) Order Form'!$W134,ATS!$O:$O,0),2) -> Ripper Helmet Jr | E134: =INDEX(ATS!$A:$P,MATCH('2) Order Form'!$W134,ATS!$O:$O,0),4) -> MFLU-48/53 | F134: =INDEX(ATS!$A:$P,MATCH('2) Order Form'!$W134,ATS!$O:$O,0),5) -> Matte Fluo | G134: =INDEX(ATS!$A:$P,MATCH('2) Order Form'!$W134,ATS!$O:$O,0),6) -> 48/53 | H134: 1 | I134: 0 | J134: =IFERROR(VLOOKUP(W134,ATS!$O:$P,2,FALSE),0) -> 218 | K134: 50+ | L134: =IFERROR(VLOOKUP(W134,ATS!$O:$Q,3,FALSE),0) -> 218 | M134: 50+ | N134: 0% | O134: 0% | P134: =VLOOKUP($C134,Prices!$A$3:$R$1996,MATCH('2) Order Form'!P$8,Prices!$A$2:$R$2,0),FALSE) -> 30.00 | Q134: =VLOOKUP($C134,Prices!$A$3:$R$1996,MATCH('2) Order Form'!Q$8,Prices!$A$2:$R$2,0),FALSE) -> 59.95 | R134: 0 | S134: 0 | T134: 0 | U134: 0% | W134: 7048652767738 | Y134: 0 | Z134: 0 | AA134: 7 | AB134: 0 | AC134: 1 | AD134: 845107Matte Fluo | AE134: 845107 | AF134: =INDEX(ATS!$A:$P,MATCH('2) Order Form'!$W134,ATS!$O:$O,0),7) -> Active
A135: 1 | B135: =VLOOKUP(A135,Classification!$H$2:$I$11,2,FALSE) -> Helmets & Helmet Acc. | C135: =INDEX(ATS!$A:$P,MATCH('2) Order Form'!$W135,ATS!$O:$O,0),1) -> 845107 | D135: =INDEX(ATS!$A:$P,MATCH('2) Order Form'!$W135,ATS!$O:$O,0),2) -> Ripper Helmet Jr | E135: =INDEX(ATS!$A:$P,MATCH('2) Order Form'!$W135,ATS!$O:$O,0),4) -> MWHT-48/53 | F135: =INDEX(ATS!$A:$P,MATCH('2) Order Form'!$W135,ATS!$O:$O,0),5) -> Matte White | G135: =INDEX(ATS!$A:$P,MATCH('2) Order Form'!$W135,ATS!$O:$O,0),6) -> 48/53 | H135: 1 | I135: 0 | J135: =IFERROR(VLOOKUP(W135,ATS!$O:$P,2,FALSE),0) -> 138 | K135: 50+ | L135: =IFERROR(VLOOKUP(W135,ATS!$O:$Q,3,FALSE),0) -> 138 | M135: 50+ | N135: 0% | O135: 0% | P135: =VLOOKUP($C135,Prices!$A$3:$R$1996,MATCH('2) Order Form'!P$8,Prices!$A$2:$R$2,0),FALSE) -> 30.00 | Q135: =VLOOKUP($C135,Prices!$A$3:$R$1996,MATCH('2) Order Form'!Q$8,Prices!$A$2:$R$2,0),FALSE) -> 59.95 | R135: 0 | S135: 0 | T135: 0 | U135: 0% | W135: 7048652540874 | Y135: 0 | Z135: 0 | AA135: 7 | AB135: 0 | AC135: 1 | AD135: 845107Matte White | AE135: 845107 | AF135: =INDEX(ATS!$A:$P,MATCH('2) Order Form'!$W135,ATS!$O:$O,0),7) -> Active
A136: 1 | B136: =VLOOKUP(A136,Classification!$H$2:$I$11,2,FALSE) -> Helmets & Helmet Acc. | C136: =INDEX(ATS!$A:$P,MATCH('2) Order Form'!$W136,ATS!$O:$O,0),1) -> 845107 | D136: =INDEX(ATS!$A:$P,MATCH('2) Order Form'!$W136,ATS!$O:$O,0),2) -> Ripper Helmet Jr | E136: =INDEX(ATS!$A:$P,MATCH('2) Order Form'!$W136,ATS!$O:$O,0),4) -> NGFL-48/53 | F136: =INDEX(ATS!$A:$P,MATCH('2) Order Form'!$W136,ATS!$O:$O,0),5) -> Nardo Gray / Fluo | G136: =INDEX(ATS!$A:$P,MATCH('2) Order Form'!$W136,ATS!$O:$O,0),6) -> 48/53 | H136: 1 | I136: 0 | J136: =IFERROR(VLOOKUP(W136,ATS!$O:$P,2,FALSE),0) -> 12 | K136: 12 | L136: =IFERROR(VLOOKUP(W136,ATS!$O:$Q,3,FALSE),0) -> 12 | M136: 12 | N136: 0% | O136: 0% | P136: =VLOOKUP($C136,Prices!$A$3:$R$1996,MATCH('2) Order Form'!P$8,Prices!$A$2:$R$2,0),FALSE) -> 30.00 | Q136: =VLOOKUP($C136,Prices!$A$3:$R$1996,MATCH('2) Order Form'!Q$8,Prices!$A$2:$R$2,0),FALSE) -> 59.95 | R136: 0 | S136: 0 | T136: 0 | U136: 0% | W136: 7048652767745 | Y136: 0 | Z136: 0 | AA136: 7 | AB136: 0 | AC136: 1 | AD136: 845107Nardo Gray / Fluo | AE136: 845107 | AF136: =INDEX(ATS!$A:$P,MATCH('2) Order Form'!$W136,ATS!$O:$O,0),7) -> Stock
A137: 1 | B137: =VLOOKUP(A137,Classification!$H$2:$I$11,2,FALSE) -> Helmets & Helmet Acc. | C137: =INDEX(ATS!$A:$P,MATCH('2) Order Form'!$W137,ATS!$O:$O,0),1) -> 845107 | D137: =INDEX(ATS!$A:$P,MATCH('2) Order Form'!$W137,ATS!$O:$O,0),2) -> Ripper Helmet Jr | E137: =INDEX(ATS!$A:$P,MATCH('2) Order Form'!$W137,ATS!$O:$O,0),4) -> RGLD-48/53 | F137: =INDEX(ATS!$A:$P,MATCH('2) Order Form'!$W137,ATS!$O:$O,0),5) -> Rose Gold | G137: =INDEX(ATS!$A:$P,MATCH('2) Order Form'!$W137,ATS!$O:$O,0),6) -> 48/53 | H137: 1 | I137: 0 | J137: =IFERROR(VLOOKUP(W137,ATS!$O:$P,2,FALSE),0) -> 117 | K137: 50+ | L137: =IFERROR(VLOOKUP(W137,ATS!$O:$Q,3,FALSE),0) -> 117 | M137: 50+ | N137: 0% | O137: 0% | P137: =VLOOKUP($C137,Prices!$A$3:$R$1996,MATCH('2) Order Form'!P$8,Prices!$A$2:$R$2,0),FALSE) -> 30.00 | Q137: =VLOOKUP($C137,Prices!$A$3:$R$1996,MATCH('2) Order Form'!Q$8,Prices!$A$2:$R$2,0),FALSE) -> 59.95 | R137: 0 | S137: 0 | T137: 0 | U137: =IFERROR(I137/($I$161+$I$162+$I$163),0) -> 0% | W137: 7048652767752 | Y137: 0 | Z137: 0 | AA137: 7 | AB137: 0 | AC137: 1 | AD137: 845107Rose Gold | AE137: 845107 | AF137: =INDEX(ATS!$A:$P,MATCH('2) Order Form'!$W137,ATS!$O:$O,0),7) -> Stock
A138: 1 | B138: =VLOOKUP(A138,Classification!$H$2:$I$11,2,FALSE) -> Helmets & Helmet Acc. | C138: =INDEX(ATS!$A:$P,MATCH('2) Order Form'!$W138,ATS!$O:$O,0),1) -> 845107 | D138: =INDEX(ATS!$A:$P,MATCH('2) Order Form'!$W138,ATS!$O:$O,0),2) -> Ripper Helmet Jr | E138: =INDEX(ATS!$A:$P,MATCH('2) Order Form'!$W138,ATS!$O:$O,0),4) -> SBLM-48/53 | F138: =INDEX(ATS!$A:$P,MATCH('2) Order Form'!$W138,ATS!$O:$O,0),5) -> Sky Blue Metallic | G138: =INDEX(ATS!$A:$P,MATCH('2) Order Form'!$W138,ATS!$O:$O,0),6) -> 48/53 | H138: 1 | I138: 0 | J138: =IFERROR(VLOOKUP(W138,ATS!$O:$P,2,FALSE),0) -> 136 | K138: 50+ | L138: =IFERROR(VLOOKUP(W138,ATS!$O:$Q,3,FALSE),0) -> 136 | M138: 50+ | N138: 0% | O138: 0% | P138: =VLOOKUP($C138,Prices!$A$3:$R$1996,MATCH('2) Order Form'!P$8,Prices!$A$2:$R$2,0),FALSE) -> 30.00 | Q138: =VLOOKUP($C138,Prices!$A$3:$R$1996,MATCH('2) Order Form'!Q$8,Prices!$A$2:$R$2,0),FALSE) -> 59.95 | R138: 0 | S138: 0 | T138: 0 | U138: 0% | W138: 7048652767769 | Y138: 0 | Z138: 0 | AA138: 7 | AB138: 0 | AC138: 1 | AD138: 845107Sky Blue Metallic | AE138: 845107 | AF138: =INDEX(ATS!$A:$P,MATCH('2) Order Form'!$W138,ATS!$O:$O,0),7) -> Active
A139: 1 | B139: =VLOOKUP(A139,Classification!$H$2:$I$11,2,FALSE) -> Helmets & Helmet Acc. | C139: =INDEX(ATS!$A:$P,MATCH('2) Order Form'!$W139,ATS!$O:$O,0),1) -> 845107 | D139: =INDEX(ATS!$A:$P,MATCH('2) Order Form'!$W139,ATS!$O:$O,0),2) -> Ripper Helmet Jr | E139: =INDEX(ATS!$A:$P,MATCH('2) Order Form'!$W139,ATS!$O:$O,0),4) -> SGRM-48/53 | F139: =INDEX(ATS!$A:$P,MATCH('2) Order Form'!$W139,ATS!$O:$O,0),5) -> Slate Gray Metallic | G139: =INDEX(ATS!$A:$P,MATCH('2) Order Form'!$W139,ATS!$O:$O,0),6) -> 48/53 | H139: 1 | I139: 0 | J139: =IFERROR(VLOOKUP(W139,ATS!$O:$P,2,FALSE),0) -> 65 | K139: 50+ | L139: =IFERROR(VLOOKUP(W139,ATS!$O:$Q,3,FALSE),0) -> 65 | M139: 50+ | N139: 0% | O139: 0% | P139: =VLOOKUP($C139,Prices!$A$3:$R$1996,MATCH('2) Order Form'!P$8,Prices!$A$2:$R$2,0),FALSE) -> 30.00 | Q139: =VLOOKUP($C139,Prices!$A$3:$R$1996,MATCH('2) Order Form'!Q$8,Prices!$A$2:$R$2,0),FALSE) -> 59.95 | R139: 0 | S139: 0 | T139: 0 | U139: 0% | W139: 7048652661715 | Y139: 0 | Z139: 0 | AA139: 7 | AB139: 0 | AC139: 1 | AD139: 845107Slate Gray Metallic | AE139: 845107 | AF139: =INDEX(ATS!$A:$P,MATCH('2) Order Form'!$W139,ATS!$O:$O,0),7) -> Stock
A140: 1 | B140: =VLOOKUP(A140,Classification!$H$2:$I$11,2,FALSE) -> Helmets & Helmet Acc. | C140: =INDEX(ATS!$A:$P,MATCH('2) Order Form'!$W140,ATS!$O:$O,0),1) -> 845086 | D140: =INDEX(ATS!$A:$P,MATCH('2) Order Form'!$W140,ATS!$O:$O,0),2) -> Tucker Mips Helmet | E140: =INDEX(ATS!$A:$P,MATCH('2) Order Form'!$W140,ATS!$O:$O,0),4) -> MBLCK-M | F140: =INDEX(ATS!$A:$P,MATCH('2) Order Form'!$W140,ATS!$O:$O,0),5) -> Matte Black | G140: =INDEX(ATS!$A:$P,MATCH('2) Order Form'!$W140,ATS!$O:$O,0),6) -> M | H140: 1 | I140: 0 | J140: =IFERROR(VLOOKUP(W140,ATS!$O:$P,2,FALSE),0) -> 63 | K140: =IF(J140=99999,"OPEN",IF(J140>50,"50+",IF(J140<=0,"0",J140))) -> 50+ | L140: =IFERROR(VLOOKUP(W140,ATS!$O:$Q,3,FALSE),0) -> 63 | M140: =IF(L140=99999,"OPEN",IF(L140>50,"50+",IF(L140<=0,"0",L140))) -> 50+ | N140: 0% | O140: =IF(N140<>0,N140,$P$5) -> 0% | P140: =VLOOKUP($C140,Prices!$A$3:$R$1996,MATCH('2) Order Form'!P$8,Prices!$A$2:$R$2,0),FALSE) -> 150.00 | Q140: =VLOOKUP($C140,Prices!$A$3:$R$1996,MATCH('2) Order Form'!Q$8,Prices!$A$2:$R$2,0),FALSE) -> 299.95 | R140: =I140*P140 -> 0 | S140: =R140*O140 -> 0 | T140: =R140-S140 -> 0 | U140: 0% | W140: 7048652274564 | Y140: =I140*Q140 -> 0 | Z140: =IF(A140=OFFSET(A140,-1,0),0,1) -> 0 | AA140: =IF(C140=OFFSET(C140,-1,0),OFFSET(AA140,-1,0),OFFSET(AA140,-1,0)+1) -> 8 | AB140: =IF(C140=OFFSET(C140,-1,0),0,1) -> 1 | AC140: =IF(F140=OFFSET(F140,-1,0),0,1) -> 1 | AD140: =CONCATENATE(C140,F140) -> 845086Matte Black | AE140: =IFERROR(IF(B140="EYEWEAR",CONCATENATE(C140,"-",G140),C140),C140) -> 845086 | AF140: =INDEX(ATS!$A:$P,MATCH('2) Order Form'!$W140,ATS!$O:$O,0),7) -> Active
A141: 1 | B141: =VLOOKUP(A141,Classification!$H$2:$I$11,2,FALSE) -> Helmets & Helmet Acc. | C141: =INDEX(ATS!$A:$P,MATCH('2) Order Form'!$W141,ATS!$O:$O,0),1) -> 845086 | D141: =INDEX(ATS!$A:$P,MATCH('2) Order Form'!$W141,ATS!$O:$O,0),2) -> Tucker Mips Helmet | E141: =INDEX(ATS!$A:$P,MATCH('2) Order Form'!$W141,ATS!$O:$O,0),4) -> MBLCK-L | F141: =INDEX(ATS!$A:$P,MATCH('2) Order Form'!$W141,ATS!$O:$O,0),5) -> Matte Black | G141: =INDEX(ATS!$A:$P,MATCH('2) Order Form'!$W141,ATS!$O:$O,0),6) -> L | H141: 1 | I141: 0 | J141: =IFERROR(VLOOKUP(W141,ATS!$O:$P,2,FALSE),0) -> 59 | K141: 50+ | L141: =IFERROR(VLOOKUP(W141,ATS!$O:$Q,3,FALSE),0) -> 59 | M141: 50+ | N141: 0% | O141: 0% | P141: =VLOOKUP($C141,Prices!$A$3:$R$1996,MATCH('2) Order Form'!P$8,Prices!$A$2:$R$2,0),FALSE) -> 150.00 | Q141: =VLOOKUP($C141,Prices!$A$3:$R$1996,MATCH('2) Order Form'!Q$8,Prices!$A$2:$R$2,0),FALSE) -> 299.95 | R141: 0 | S141: 0 | T141: 0 | U141: 0% | W141: 7048652274557 | Y141: =I141*Q141 -> 0 | Z141: =IF(A141=OFFSET(A141,-1,0),0,1) -> 0 | AA141: =IF(C141=OFFSET(C141,-1,0),OFFSET(AA141,-1,0),OFFSET(AA141,-1,0)+1) -> 8 | AB141: =IF(C141=OFFSET(C141,-1,0),0,1) -> 0 | AC141: =IF(F141=OFFSET(F141,-1,0),0,1) -> 0 | AD141: =CONCATENATE(C141,F141) -> 845086Matte Black | AE141: =IFERROR(IF(B141="EYEWEAR",CONCATENATE(C141,"-",G141),C141),C141) -> 845086 | AF141: =INDEX(ATS!$A:$P,MATCH('2) Order Form'!$W141,ATS!$O:$O,0),7) -> Active
A142: 1 | B142: =VLOOKUP(A142,Classification!$H$2:$I$11,2,FALSE) -> Helmets & Helmet Acc. | C142: =INDEX(ATS!$A:$P,MATCH('2) Order Form'!$W142,ATS!$O:$O,0),1) -> 845086 | D142: =INDEX(ATS!$A:$P,MATCH('2) Order Form'!$W142,ATS!$O:$O,0),2) -> Tucker Mips Helmet | E142: =INDEX(ATS!$A:$P,MATCH('2) Order Form'!$W142,ATS!$O:$O,0),4) -> MWHTE-M | F142: =INDEX(ATS!$A:$P,MATCH('2) Order Form'!$W142,ATS!$O:$O,0),5) -> Matte White | G142: =INDEX(ATS!$A:$P,MATCH('2) Order Form'!$W142,ATS!$O:$O,0),6) -> M | H142: 1 | I142: 0 | J142: =IFERROR(VLOOKUP(W142,ATS!$O:$P,2,FALSE),0) -> 55 | K142: 50+ | L142: =IFERROR(VLOOKUP(W142,ATS!$O:$Q,3,FALSE),0) -> 55 | M142: 50+ | N142: 0% | O142: 0% | P142: =VLOOKUP($C142,Prices!$A$3:$R$1996,MATCH('2) Order Form'!P$8,Prices!$A$2:$R$2,0),FALSE) -> 150.00 | Q142: =VLOOKUP($C142,Prices!$A$3:$R$1996,MATCH('2) Order Form'!Q$8,Prices!$A$2:$R$2,0),FALSE) -> 299.95 | R142: 0 | S142: 0 | T142: 0 | U142: 0% | W142: 7048652274601 | Y142: =I142*Q142 -> 0 | Z142: =IF(A142=OFFSET(A142,-1,0),0,1) -> 0 | AA142: =IF(C142=OFFSET(C142,-1,0),OFFSET(AA142,-1,0),OFFSET(AA142,-1,0)+1) -> 8 | AB142: =IF(C142=OFFSET(C142,-1,0),0,1) -> 0 | AC142: =IF(F142=OFFSET(F142,-1,0),0,1) -> 1 | AD142: =CONCATENATE(C142,F142) -> 845086Matte White | AE142: =IFERROR(IF(B142="EYEWEAR",CONCATENATE(C142,"-",G142),C142),C142) -> 845086 | AF142: =INDEX(ATS!$A:$P,MATCH('2) Order Form'!$W142,ATS!$O:$O,0),7) -> Active
A143: 1 | B143: =VLOOKUP(A143,Classification!$H$2:$I$11,2,FALSE) -> Helmets & Helmet Acc. | C143: =INDEX(ATS!$A:$P,MATCH('2) Order Form'!$W143,ATS!$O:$O,0),1) -> 845086 | D143: =INDEX(ATS!$A:$P,MATCH('2) Order Form'!$W143,ATS!$O:$O,0),2) -> Tucker Mips Helmet | E143: =INDEX(ATS!$A:$P,MATCH('2) Order Form'!$W143,ATS!$O:$O,0),4) -> MWHTE-L | F143: =INDEX(ATS!$A:$P,MATCH('2) Order Form'!$W143,ATS!$O:$O,0),5) -> Matte White | G143: =INDEX(ATS!$A:$P,MATCH('2) Order Form'!$W143,ATS!$O:$O,0),6) -> L | H143: 1 | I143: 0 | J143: =IFERROR(VLOOKUP(W143,ATS!$O:$P,2,FALSE),0) -> 61 | K143: 50+ | L143: =IFERROR(VLOOKUP(W143,ATS!$O:$Q,3,FALSE),0) -> 61 | M143: 50+ | N143: 0% | O143: 0% | P143: =VLOOKUP($C143,Prices!$A$3:$R$1996,MATCH('2) Order Form'!P$8,Prices!$A$2:$R$2,0),FALSE) -> 150.00 | Q143: =VLOOKUP($C143,Prices!$A$3:$R$1996,MATCH('2) Order Form'!Q$8,Prices!$A$2:$R$2,0),FALSE) -> 299.95 | R143: 0 | S143: 0 | T143: 0 | U143: 0% | W143: 7048652274595 | Y143: =I143*Q143 -> 0 | Z143: =IF(A143=OFFSET(A143,-1,0),0,1) -> 0 | AA143: =IF(C143=OFFSET(C143,-1,0),OFFSET(AA143,-1,0),OFFSET(AA143,-1,0)+1) -> 8 | AB143: =IF(C143=OFFSET(C143,-1,0),0,1) -> 0 | AC143: =IF(F143=OFFSET(F143,-1,0),0,1) -> 0 | AD143: =CONCATENATE(C143,F143) -> 845086Matte White | AE143: =IFERROR(IF(B143="EYEWEAR",CONCATENATE(C143,"-",G143),C143),C143) -> 845086 | AF143: =INDEX(ATS!$A:$P,MATCH('2) Order Form'!$W143,ATS!$O:$O,0),7) -> Active
A144: 1 | B144: =VLOOKUP(A144,Classification!$H$2:$I$11,2,FALSE) -> Helmets & Helmet Acc. | C144: =INDEX(ATS!$A:$P,MATCH('2) Order Form'!$W144,ATS!$O:$O,0),1) -> 845111 | D144: =INDEX(ATS!$A:$P,MATCH('2) Order Form'!$W144,ATS!$O:$O,0),2) -> Falconer II Aero MIPS Helmet | E144: =INDEX(ATS!$A:$P,MATCH('2) Order Form'!$W144,ATS!$O:$O,0),4) -> ABLCK-M | F144: =INDEX(ATS!$A:$P,MATCH('2) Order Form'!$W144,ATS!$O:$O,0),5) -> All Black | G144: =INDEX(ATS!$A:$P,MATCH('2) Order Form'!$W144,ATS!$O:$O,0),6) -> M | H144: 1 | I144: 0 | J144: =IFERROR(VLOOKUP(W144,ATS!$O:$P,2,FALSE),0) -> 150 | K144: 50+ | L144: =IFERROR(VLOOKUP(W144,ATS!$O:$Q,3,FALSE),0) -> 150 | M144: 50+ | N144: 0% | O144: 0% | P144: =VLOOKUP($C144,Prices!$A$3:$R$1996,MATCH('2) Order Form'!P$8,Prices!$A$2:$R$2,0),FALSE) -> 145.00 | Q144: =VLOOKUP($C144,Prices!$A$3:$R$1996,MATCH('2) Order Form'!Q$8,Prices!$A$2:$R$2,0),FALSE) -> 289.95 | R144: 0 | S144: 0 | T144: 0 | U144: 0% | W144: 7048652660602 | Y144: =I144*Q144 -> 0 | Z144: =IF(A144=OFFSET(A144,-1,0),0,1) -> 0 | AA144: =IF(C144=OFFSET(C144,-1,0),OFFSET(AA144,-1,0),OFFSET(AA144,-1,0)+1) -> 9 | AB144: =IF(C144=OFFSET(C144,-1,0),0,1) -> 1 | AC144: =IF(F144=OFFSET(F144,-1,0),0,1) -> 1 | AD144: =CONCATENATE(C144,F144) -> 845111All Black | AE144: =IFERROR(IF(B144="EYEWEAR",CONCATENATE(C144,"-",G144),C144),C144) -> 845111 | AF144: =INDEX(ATS!$A:$P,MATCH('2) Order Form'!$W144,ATS!$O:$O,0),7) -> Active
A145: 1 | B145: =VLOOKUP(A145,Classification!$H$2:$I$11,2,FALSE) -> Helmets & Helmet Acc. | C145: =INDEX(ATS!$A:$P,MATCH('2) Order Form'!$W145,ATS!$O:$O,0),1) -> 845111 | D145: =INDEX(ATS!$A:$P,MATCH('2) Order Form'!$W145,ATS!$O:$O,0),2) -> Falconer II Aero MIPS Helmet | E145: =INDEX(ATS!$A:$P,MATCH('2) Order Form'!$W145,ATS!$O:$O,0),4) -> ABLCK-L | F145: =INDEX(ATS!$A:$P,MATCH('2) Order Form'!$W145,ATS!$O:$O,0),5) -> All Black | G145: =INDEX(ATS!$A:$P,MATCH('2) Order Form'!$W145,ATS!$O:$O,0),6) -> L | H145: 1 | I145: 0 | J145: =IFERROR(VLOOKUP(W145,ATS!$O:$P,2,FALSE),0) -> 128 | K145: 50+ | L145: =IFERROR(VLOOKUP(W145,ATS!$O:$Q,3,FALSE),0) -> 128 | M145: 50+ | N145: 0% | O145: 0% | P145: =VLOOKUP($C145,Prices!$A$3:$R$1996,MATCH('2) Order Form'!P$8,Prices!$A$2:$R$2,0),FALSE) -> 145.00 | Q145: =VLOOKUP($C145,Prices!$A$3:$R$1996,MATCH('2) Order Form'!Q$8,Prices!$A$2:$R$2,0),FALSE) -> 289.95 | R145: 0 | S145: 0 | T145: 0 | U145: 0% | W145: 7048652660596 | Y145: 0 | Z145: 0 | AA145: 9 | AB145: 0 | AC145: 0 | AD145: 845111All Black | AE145: 845111 | AF145: =INDEX(ATS!$A:$P,MATCH('2) Order Form'!$W145,ATS!$O:$O,0),7) -> Active
A146: 1 | B146: =VLOOKUP(A146,Classification!$H$2:$I$11,2,FALSE) -> Helmets & Helmet Acc. | C146: =INDEX(ATS!$A:$P,MATCH('2) Order Form'!$W146,ATS!$O:$O,0),1) -> 845111 | D146: =INDEX(ATS!$A:$P,MATCH('2) Order Form'!$W146,ATS!$O:$O,0),2) -> Falconer II Aero MIPS Helmet | E146: =INDEX(ATS!$A:$P,MATCH('2) Order Form'!$W146,ATS!$O:$O,0),4) -> BUORE-M | F146: =INDEX(ATS!$A:$P,MATCH('2) Order Form'!$W146,ATS!$O:$O,0),5) -> Burning Orange | G146: =INDEX(ATS!$A:$P,MATCH('2) Order Form'!$W146,ATS!$O:$O,0),6) -> M | H146: 1 | I146: 0 | J146: =IFERROR(VLOOKUP(W146,ATS!$O:$P,2,FALSE),0) -> 37 | K146: 37 | L146: =IFERROR(VLOOKUP(W146,ATS!$O:$Q,3,FALSE),0) -> 37 | M146: 37 | N146: 0% | O146: 0% | P146: =VLOOKUP($C146,Prices!$A$3:$R$1996,MATCH('2) Order Form'!P$8,Prices!$A$2:$R$2,0),FALSE) -> 145.00 | Q146: =VLOOKUP($C146,Prices!$A$3:$R$1996,MATCH('2) Order Form'!Q$8,Prices!$A$2:$R$2,0),FALSE) -> 289.95 | R146: 0 | S146: 0 | T146: 0 | U146: 0% | W146: 7048652774972 | Y146: 0 | Z146: 0 | AA146: 9 | AB146: 0 | AC146: 1 | AD146: 845111Burning Orange | AE146: 845111 | AF146: =INDEX(ATS!$A:$P,MATCH('2) Order Form'!$W146,ATS!$O:$O,0),7) -> Active
A147: 1 | B147: =VLOOKUP(A147,Classification!$H$2:$I$11,2,FALSE) -> Helmets & Helmet Acc. | C147: =INDEX(ATS!$A:$P,MATCH('2) Order Form'!$W147,ATS!$O:$O,0),1) -> 845111 | D147: =INDEX(ATS!$A:$P,MATCH('2) Order Form'!$W147,ATS!$O:$O,0),2) -> Falconer II Aero MIPS Helmet | E147: =INDEX(ATS!$A:$P,MATCH('2) Order Form'!$W147,ATS!$O:$O,0),4) -> BUORE-L | F147: =INDEX(ATS!$A:$P,MATCH('2) Order Form'!$W147,ATS!$O:$O,0),5) -> Burning Orange | G147: =INDEX(ATS!$A:$P,MATCH('2) Order Form'!$W147,ATS!$O:$O,0),6) -> L | H147: 1 | I147: 0 | J147: =IFERROR(VLOOKUP(W147,ATS!$O:$P,2,FALSE),0) -> 37 | K147: 37 | L147: =IFERROR(VLOOKUP(W147,ATS!$O:$Q,3,FALSE),0) -> 37 | M147: 37 | N147: 0% | O147: 0% | P147: =VLOOKUP($C147,Prices!$A$3:$R$1996,MATCH('2) Order Form'!P$8,Prices!$A$2:$R$2,0),FALSE) -> 145.00 | Q147: =VLOOKUP($C147,Prices!$A$3:$R$1996,MATCH('2) Order Form'!Q$8,Prices!$A$2:$R$2,0),FALSE) -> 289.95 | R147: 0 | S147: 0 | T147: 0 | U147: 0% | W147: 7048652774965 | Y147: 0 | Z147: 0 | AA147: 9 | AB147: 0 | AC147: 0 | AD147: 845111Burning Orange | AE147: 845111 | AF147: =INDEX(ATS!$A:$P,MATCH('2) Order Form'!$W147,ATS!$O:$O,0),7) -> Active
A148: 1 | B148: =VLOOKUP(A148,Classification!$H$2:$I$11,2,FALSE) -> Helmets & Helmet Acc. | C148: =INDEX(ATS!$A:$P,MATCH('2) Order Form'!$W148,ATS!$O:$O,0),1) -> 845111 | D148: =INDEX(ATS!$A:$P,MATCH('2) Order Form'!$W148,ATS!$O:$O,0),2) -> Falconer II Aero MIPS Helmet | E148: =INDEX(ATS!$A:$P,MATCH('2) Order Form'!$W148,ATS!$O:$O,0),4) -> MCDGY-M | F148: =INDEX(ATS!$A:$P,MATCH('2) Order Form'!$W148,ATS!$O:$O,0),5) -> Matte Cloud Gray | G148: =INDEX(ATS!$A:$P,MATCH('2) Order Form'!$W148,ATS!$O:$O,0),6) -> M | H148: 1 | I148: 0 | J148: =IFERROR(VLOOKUP(W148,ATS!$O:$P,2,FALSE),0) -> 4 | K148: 4 | L148: =IFERROR(VLOOKUP(W148,ATS!$O:$Q,3,FALSE),0) -> 4 | M148: 4 | N148: 0% | O148: 0% | P148: =VLOOKUP($C148,Prices!$A$3:$R$1996,MATCH('2) Order Form'!P$8,Prices!$A$2:$R$2,0),FALSE) -> 145.00 | Q148: =VLOOKUP($C148,Prices!$A$3:$R$1996,MATCH('2) Order Form'!Q$8,Prices!$A$2:$R$2,0),FALSE) -> 289.95 | R148: 0 | S148: 0 | T148: 0 | U148: 0% | W148: 7048652660626 | Y148: 0 | Z148: 0 | AA148: 9 | AB148: 0 | AC148: 1 | AD148: 845111Matte Cloud Gray | AE148: 845111 | AF148: =INDEX(ATS!$A:$P,MATCH('2) Order Form'!$W148,ATS!$O:$O,0),7) -> Active
A149: 1 | B149: =VLOOKUP(A149,Classification!$H$2:$I$11,2,FALSE) -> Helmets & Helmet Acc. | C149: =INDEX(ATS!$A:$P,MATCH('2) Order Form'!$W149,ATS!$O:$O,0),1) -> 845111 | D149: =INDEX(ATS!$A:$P,MATCH('2) Order Form'!$W149,ATS!$O:$O,0),2) -> Falconer II Aero MIPS Helmet | E149: =INDEX(ATS!$A:$P,MATCH('2) Order Form'!$W149,ATS!$O:$O,0),4) -> MCDGY-L | F149: =INDEX(ATS!$A:$P,MATCH('2) Order Form'!$W149,ATS!$O:$O,0),5) -> Matte Cloud Gray | G149: =INDEX(ATS!$A:$P,MATCH('2) Order Form'!$W149,ATS!$O:$O,0),6) -> L | H149: 1 | I149: 0 | J149: =IFERROR(VLOOKUP(W149,ATS!$O:$P,2,FALSE),0) -> 21 | K149: 21 | L149: =IFERROR(VLOOKUP(W149,ATS!$O:$Q,3,FALSE),0) -> 21 | M149: 21 | N149: 0% | O149: 0% | P149: =VLOOKUP($C149,Prices!$A$3:$R$1996,MATCH('2) Order Form'!P$8,Prices!$A$2:$R$2,0),FALSE) -> 145.00 | Q149: =VLOOKUP($C149,Prices!$A$3:$R$1996,MATCH('2) Order Form'!Q$8,Prices!$A$2:$R$2,0),FALSE) -> 289.95 | R149: 0 | S149: 0 | T149: 0 | U149: 0% | W149: 7048652660619 | Y149: 0 | Z149: 0 | AA149: 9 | AB149: 0 | AC149: 0 | AD149: 845111Matte Cloud Gray | AE149: 845111 | AF149: =INDEX(ATS!$A:$P,MATCH('2) Order Form'!$W149,ATS!$O:$O,0),7) -> Active
A150: 1 | B150: =VLOOKUP(A150,Classification!$H$2:$I$11,2,FALSE) -> Helmets & Helmet Acc. | C150: =INDEX(ATS!$A:$P,MATCH('2) Order Form'!$W150,ATS!$O:$O,0),1) -> 845111 | D150: =INDEX(ATS!$A:$P,MATCH('2) Order Form'!$W150,ATS!$O:$O,0),2) -> Falconer II Aero MIPS Helmet | E150: =INDEX(ATS!$A:$P,MATCH('2) Order Form'!$W150,ATS!$O:$O,0),4) -> MWHTE-M | F150: =INDEX(ATS!$A:$P,MATCH('2) Order Form'!$W150,ATS!$O:$O,0),5) -> Matte White | G150: =INDEX(ATS!$A:$P,MATCH('2) Order Form'!$W150,ATS!$O:$O,0),6) -> M | H150: 1 | I150: 0 | J150: =IFERROR(VLOOKUP(W150,ATS!$O:$P,2,FALSE),0) -> 17 | K150: 17 | L150: =IFERROR(VLOOKUP(W150,ATS!$O:$Q,3,FALSE),0) -> 17 | M150: 17 | N150: 0% | O150: 0% | P150: =VLOOKUP($C150,Prices!$A$3:$R$1996,MATCH('2) Order Form'!P$8,Prices!$A$2:$R$2,0),FALSE) -> 145.00 | Q150: =VLOOKUP($C150,Prices!$A$3:$R$1996,MATCH('2) Order Form'!Q$8,Prices!$A$2:$R$2,0),FALSE) -> 289.95 | R150: 0 | S150: 0 | T150: 0 | U150: 0% | W150: 7048652543875 | Y150: 0 | Z150: 0 | AA150: 9 | AB150: 0 | AC150: 1 | AD150: 845111Matte White | AE150: 845111 | AF150: =INDEX(ATS!$A:$P,MATCH('2) Order Form'!$W150,ATS!$O:$O,0),7) -> Active
A151: 1 | B151: =VLOOKUP(A151,Classification!$H$2:$I$11,2,FALSE) -> Helmets & Helmet Acc. | C151: =INDEX(ATS!$A:$P,MATCH('2) Order Form'!$W151,ATS!$O:$O,0),1) -> 845111 | D151: =INDEX(ATS!$A:$P,MATCH('2) Order Form'!$W151,ATS!$O:$O,0),2) -> Falconer II Aero MIPS Helmet | E151: =INDEX(ATS!$A:$P,MATCH('2) Order Form'!$W151,ATS!$O:$O,0),4) -> MWHTE-L | F151: =INDEX(ATS!$A:$P,MATCH('2) Order Form'!$W151,ATS!$O:$O,0),5) -> Matte White | G151: =INDEX(ATS!$A:$P,MATCH('2) Order Form'!$W151,ATS!$O:$O,0),6) -> L | H151: 1 | I151: 0 | J151: =IFERROR(VLOOKUP(W151,ATS!$O:$P,2,FALSE),0) -> 51 | K151: 50+ | L151: =IFERROR(VLOOKUP(W151,ATS!$O:$Q,3,FALSE),0) -> 51 | M151: 50+ | N151: 0% | O151: 0% | P151: =VLOOKUP($C151,Prices!$A$3:$R$1996,MATCH('2) Order Form'!P$8,Prices!$A$2:$R$2,0),FALSE) -> 145.00 | Q151: =VLOOKUP($C151,Prices!$A$3:$R$1996,MATCH('2) Order Form'!Q$8,Prices!$A$2:$R$2,0),FALSE) -> 289.95 | R151: 0 | S151: 0 | T151: 0 | U151: 0% | W151: 7048652543868 | Y151: 0 | Z151: 0 | AA151: 9 | AB151: 0 | AC151: 0 | AD151: 845111Matte White | AE151: 845111 | AF151: =INDEX(ATS!$A:$P,MATCH('2) Order Form'!$W151,ATS!$O:$O,0),7) -> Active
A152: 1 | B152: =VLOOKUP(A152,Classification!$H$2:$I$11,2,FALSE) -> Helmets & Helmet Acc. | C152: =INDEX(ATS!$A:$P,MATCH('2) Order Form'!$W152,ATS!$O:$O,0),1) -> 845111 | D152: =INDEX(ATS!$A:$P,MATCH('2) Order Form'!$W152,ATS!$O:$O,0),2) -> Falconer II Aero MIPS Helmet | E152: =INDEX(ATS!$A:$P,MATCH('2) Order Form'!$W152,ATS!$O:$O,0),4) -> SKBLM-M | F152: =INDEX(ATS!$A:$P,MATCH('2) Order Form'!$W152,ATS!$O:$O,0),5) -> Sky Blue Metallic | G152: =INDEX(ATS!$A:$P,MATCH('2) Order Form'!$W152,ATS!$O:$O,0),6) -> M | H152: 1 | I152: 0 | J152: =IFERROR(VLOOKUP(W152,ATS!$O:$P,2,FALSE),0) -> 41 | K152: 41 | L152: =IFERROR(VLOOKUP(W152,ATS!$O:$Q,3,FALSE),0) -> 41 | M152: 41 | N152: 0% | O152: 0% | P152: =VLOOKUP($C152,Prices!$A$3:$R$1996,MATCH('2) Order Form'!P$8,Prices!$A$2:$R$2,0),FALSE) -> 145.00 | Q152: =VLOOKUP($C152,Prices!$A$3:$R$1996,MATCH('2) Order Form'!Q$8,Prices!$A$2:$R$2,0),FALSE) -> 289.95 | R152: 0 | S152: 0 | T152: 0 | U152: 0% | W152: 7048652774996 | Y152: 0 | Z152: 0 | AA152: 9 | AB152: 0 | AC152: 1 | AD152: 845111Sky Blue Metallic | AE152: 845111 | AF152: =INDEX(ATS!$A:$P,MATCH('2) Order Form'!$W152,ATS!$O:$O,0),7) -> Active
A153: 1 | B153: =VLOOKUP(A153,Classification!$H$2:$I$11,2,FALSE) -> Helmets & Helmet Acc. | C153: =INDEX(ATS!$A:$P,MATCH('2) Order Form'!$W153,ATS!$O:$O,0),1) -> 845111 | D153: =INDEX(ATS!$A:$P,MATCH('2) Order Form'!$W153,ATS!$O:$O,0),2) -> Falconer II Aero MIPS Helmet | E153: =INDEX(ATS!$A:$P,MATCH('2) Order Form'!$W153,ATS!$O:$O,0),4) -> SKBLM-L | F153: =INDEX(ATS!$A:$P,MATCH('2) Order Form'!$W153,ATS!$O:$O,0),5) -> Sky Blue Metallic | G153: =INDEX(ATS!$A:$P,MATCH('2) Order Form'!$W153,ATS!$O:$O,0),6) -> L | H153: 1 | I153: 0 | J153: =IFERROR(VLOOKUP(W153,ATS!$O:$P,2,FALSE),0) -> 36 | K153: 36 | L153: =IFERROR(VLOOKUP(W153,ATS!$O:$Q,3,FALSE),0) -> 36 | M153: 36 | N153: 0% | O153: 0% | P153: =VLOOKUP($C153,Prices!$A$3:$R$1996,MATCH('2) Order Form'!P$8,Prices!$A$2:$R$2,0),FALSE) -> 145.00 | Q153: =VLOOKUP($C153,Prices!$A$3:$R$1996,MATCH('2) Order Form'!Q$8,Prices!$A$2:$R$2,0),FALSE) -> 289.95 | R153: 0 | S153: 0 | T153: 0 | U153: 0% | W153: 7048652774989 | Y153: 0 | Z153: 0 | AA153: 9 | AB153: 0 | AC153: 0 | AD153: 845111Sky Blue Metallic | AE153: 845111 | AF153: =INDEX(ATS!$A:$P,MATCH('2) Order Form'!$W153,ATS!$O:$O,0),7) -> Active
A154: 1 | B154: =VLOOKUP(A154,Classification!$H$2:$I$11,2,FALSE) -> Helmets & Helmet Acc. | C154: =INDEX(ATS!$A:$P,MATCH('2) Order Form'!$W154,ATS!$O:$O,0),1) -> 845111 | D154: =INDEX(ATS!$A:$P,MATCH('2) Order Form'!$W154,ATS!$O:$O,0),2) -> Falconer II Aero MIPS Helmet | E154: =INDEX(ATS!$A:$P,MATCH('2) Order Form'!$W154,ATS!$O:$O,0),4) -> SGMFL-M | F154: =INDEX(ATS!$A:$P,MATCH('2) Order Form'!$W154,ATS!$O:$O,0),5) -> Slate Gray Metallic/Fluo | G154: =INDEX(ATS!$A:$P,MATCH('2) Order Form'!$W154,ATS!$O:$O,0),6) -> M | H154: 1 | I154: 0 | J154: =IFERROR(VLOOKUP(W154,ATS!$O:$P,2,FALSE),0) -> 55 | K154: 50+ | L154: =IFERROR(VLOOKUP(W154,ATS!$O:$Q,3,FALSE),0) -> 55 | M154: 50+ | N154: 0% | O154: 0% | P154: =VLOOKUP($C154,Prices!$A$3:$R$1996,MATCH('2) Order Form'!P$8,Prices!$A$2:$R$2,0),FALSE) -> 145.00 | Q154: =VLOOKUP($C154,Prices!$A$3:$R$1996,MATCH('2) Order Form'!Q$8,Prices!$A$2:$R$2,0),FALSE) -> 289.95 | R154: 0 | S154: 0 | T154: 0 | U154: 0% | W154: 7048652775030 | Y154: 0 | Z154: 0 | AA154: 9 | AB154: 0 | AC154: 1 | AD154: 845111Slate Gray Metallic/Fluo | AE154: 845111 | AF154: =INDEX(ATS!$A:$P,MATCH('2) Order Form'!$W154,ATS!$O:$O,0),7) -> Active
A155: 1 | B155: =VLOOKUP(A155,Classification!$H$2:$I$11,2,FALSE) -> Helmets & Helmet Acc. | C155: =INDEX(ATS!$A:$P,MATCH('2) Order Form'!$W155,ATS!$O:$O,0),1) -> 845111 | D155: =INDEX(ATS!$A:$P,MATCH('2) Order Form'!$W155,ATS!$O:$O,0),2) -> Falconer II Aero MIPS Helmet | E155: =INDEX(ATS!$A:$P,MATCH('2) Order Form'!$W155,ATS!$O:$O,0),4) -> SGMFL-L | F155: =INDEX(ATS!$A:$P,MATCH('2) Order Form'!$W155,ATS!$O:$O,0),5) -> Slate Gray Metallic/Fluo | G155: =INDEX(ATS!$A:$P,MATCH('2) Order Form'!$W155,ATS!$O:$O,0),6) -> L | H155: 1 | I155: 0 | J155: =IFERROR(VLOOKUP(W155,ATS!$O:$P,2,FALSE),0) -> 46 | K155: 46 | L155: =IFERROR(VLOOKUP(W155,ATS!$O:$Q,3,FALSE),0) -> 46 | M155: 46 | N155: 0% | O155: 0% | P155: =VLOOKUP($C155,Prices!$A$3:$R$1996,MATCH('2) Order Form'!P$8,Prices!$A$2:$R$2,0),FALSE) -> 145.00 | Q155: =VLOOKUP($C155,Prices!$A$3:$R$1996,MATCH('2) Order Form'!Q$8,Prices!$A$2:$R$2,0),FALSE) -> 289.95 | R155: 0 | S155: 0 | T155: 0 | U155: 0% | W155: 7048652775023 | Y155: 0 | Z155: 0 | AA155: 9 | AB155: 0 | AC155: 0 | AD155: 845111Slate Gray Metallic/Fluo | AE155: 845111 | AF155: =INDEX(ATS!$A:$P,MATCH('2) Order Form'!$W155,ATS!$O:$O,0),7) -> Active
A156: 1 | B156: =VLOOKUP(A156,Classification!$H$2:$I$11,2,FALSE) -> Helmets & Helmet Acc. | C156: =INDEX(ATS!$A:$P,MATCH('2) Order Form'!$W156,ATS!$O:$O,0),1) -> 845077 | D156: =INDEX(ATS!$A:$P,MATCH('2) Order Form'!$W156,ATS!$O:$O,0),2) -> Falconer II Aero Helmet | E156: =INDEX(ATS!$A:$P,MATCH('2) Order Form'!$W156,ATS!$O:$O,0),4) -> ABLCK-M | F156: =INDEX(ATS!$A:$P,MATCH('2) Order Form'!$W156,ATS!$O:$O,0),5) -> All Black | G156: =INDEX(ATS!$A:$P,MATCH('2) Order Form'!$W156,ATS!$O:$O,0),6) -> M | H156: 1 | I156: 0 | J156: =IFERROR(VLOOKUP(W156,ATS!$O:$P,2,FALSE),0) -> 328 | K156: 50+ | L156: =IFERROR(VLOOKUP(W156,ATS!$O:$Q,3,FALSE),0) -> 328 | M156: 50+ | N156: 0% | O156: 0% | P156: =VLOOKUP($C156,Prices!$A$3:$R$1996,MATCH('2) Order Form'!P$8,Prices!$A$2:$R$2,0),FALSE) -> 130.00 | Q156: =VLOOKUP($C156,Prices!$A$3:$R$1996,MATCH('2) Order Form'!Q$8,Prices!$A$2:$R$2,0),FALSE) -> 259.95 | R156: 0 | S156: 0 | T156: 0 | U156: 0% | W156: 7048652660527 | Y156: =I156*Q156 -> 0 | Z156: =IF(A156=OFFSET(A156,-1,0),0,1) -> 0 | AA156: =IF(C156=OFFSET(C156,-1,0),OFFSET(AA156,-1,0),OFFSET(AA156,-1,0)+1) -> 10 | AB156: =IF(C156=OFFSET(C156,-1,0),0,1) -> 1 | AC156: =IF(F156=OFFSET(F156,-1,0),0,1) -> 1 | AD156: =CONCATENATE(C156,F156) -> 845077All Black | AE156: =IFERROR(IF(B156="EYEWEAR",CONCATENATE(C156,"-",G156),C156),C156) -> 845077 | AF156: =INDEX(ATS!$A:$P,MATCH('2) Order Form'!$W156,ATS!$O:$O,0),7) -> Active
A157: 1 | B157: =VLOOKUP(A157,Classification!$H$2:$I$11,2,FALSE) -> Helmets & Helmet Acc. | C157: =INDEX(ATS!$A:$P,MATCH('2) Order Form'!$W157,ATS!$O:$O,0),1) -> 845077 | D157: =INDEX(ATS!$A:$P,MATCH('2) Order Form'!$W157,ATS!$O:$O,0),2) -> Falconer II Aero Helmet | E157: =INDEX(ATS!$A:$P,MATCH('2) Order Form'!$W157,ATS!$O:$O,0),4) -> ABLCK-L | F157: =INDEX(ATS!$A:$P,MATCH('2) Order Form'!$W157,ATS!$O:$O,0),5) -> All Black | G157: =INDEX(ATS!$A:$P,MATCH('2) Order Form'!$W157,ATS!$O:$O,0),6) -> L | H157: 1 | I157: 0 | J157: =IFERROR(VLOOKUP(W157,ATS!$O:$P,2,FALSE),0) -> 149 | K157: 50+ | L157: =IFERROR(VLOOKUP(W157,ATS!$O:$Q,3,FALSE),0) -> 149 | M157: 50+ | N157: 0% | O157: 0% | P157: =VLOOKUP($C157,Prices!$A$3:$R$1996,MATCH('2) Order Form'!P$8,Prices!$A$2:$R$2,0),FALSE) -> 130.00 | Q157: =VLOOKUP($C157,Prices!$A$3:$R$1996,MATCH('2) Order Form'!Q$8,Prices!$A$2:$R$2,0),FALSE) -> 259.95 | R157: 0 | S157: 0 | T157: 0 | U157: 0% | W157: 7048652660510 | Y157: 0 | Z157: 0 | AA157: 10 | AB157: 0 | AC157: 0 | AD157: 845077All Black | AE157: 845077 | AF157: =INDEX(ATS!$A:$P,MATCH('2) Order Form'!$W157,ATS!$O:$O,0),7) -> Active
A158: 1 | B158: =VLOOKUP(A158,Classification!$H$2:$I$11,2,FALSE) -> Helmets & Helmet Acc. | C158: =INDEX(ATS!$A:$P,MATCH('2) Order Form'!$W158,ATS!$O:$O,0),1) -> 845077 | D158: =INDEX(ATS!$A:$P,MATCH('2) Order Form'!$W158,ATS!$O:$O,0),2) -> Falconer II Aero Helmet | E158: =INDEX(ATS!$A:$P,MATCH('2) Order Form'!$W158,ATS!$O:$O,0),4) -> BUORE-M | F158: =INDEX(ATS!$A:$P,MATCH('2) Order Form'!$W158,ATS!$O:$O,0),5) -> Burning Orange | G158: =INDEX(ATS!$A:$P,MATCH('2) Order Form'!$W158,ATS!$O:$O,0),6) -> M | H158: 1 | I158: 0 | J158: =IFERROR(VLOOKUP(W158,ATS!$O:$P,2,FALSE),0) -> 53 | K158: 50+ | L158: =IFERROR(VLOOKUP(W158,ATS!$O:$Q,3,FALSE),0) -> 53 | M158: 50+ | N158: 0% | O158: 0% | P158: =VLOOKUP($C158,Prices!$A$3:$R$1996,MATCH('2) Order Form'!P$8,Prices!$A$2:$R$2,0),FALSE) -> 130.00 | Q158: =VLOOKUP($C158,Prices!$A$3:$R$1996,MATCH('2) Order Form'!Q$8,Prices!$A$2:$R$2,0),FALSE) -> 259.95 | R158: 0 | S158: 0 | T158: 0 | U158: 0% | W158: 7048652766915 | Y158: 0 | Z158: 0 | AA158: 10 | AB158: 0 | AC158: 1 | AD158: 845077Burning Orange | AE158: 845077 | AF158: =INDEX(ATS!$A:$P,MATCH('2) Order Form'!$W158,ATS!$O:$O,0),7) -> Active
A159: 1 | B159: =VLOOKUP(A159,Classification!$H$2:$I$11,2,FALSE) -> Helmets & Helmet Acc. | C159: =INDEX(ATS!$A:$P,MATCH('2) Order Form'!$W159,ATS!$O:$O,0),1) -> 845077 | D159: =INDEX(ATS!$A:$P,MATCH('2) Order Form'!$W159,ATS!$O:$O,0),2) -> Falconer II Aero Helmet | E159: =INDEX(ATS!$A:$P,MATCH('2) Order Form'!$W159,ATS!$O:$O,0),4) -> BUORE-L | F159: =INDEX(ATS!$A:$P,MATCH('2) Order Form'!$W159,ATS!$O:$O,0),5) -> Burning Orange | G159: =INDEX(ATS!$A:$P,MATCH('2) Order Form'!$W159,ATS!$O:$O,0),6) -> L | H159: 1 | I159: 0 | J159: =IFERROR(VLOOKUP(W159,ATS!$O:$P,2,FALSE),0) -> 44 | K159: 44 | L159: =IFERROR(VLOOKUP(W159,ATS!$O:$Q,3,FALSE),0) -> 44 | M159: 44 | N159: 0% | O159: 0% | P159: =VLOOKUP($C159,Prices!$A$3:$R$1996,MATCH('2) Order Form'!P$8,Prices!$A$2:$R$2,0),FALSE) -> 130.00 | Q159: =VLOOKUP($C159,Prices!$A$3:$R$1996,MATCH('2) Order Form'!Q$8,Prices!$A$2:$R$2,0),FALSE) -> 259.95 | R159: 0 | S159: 0 | T159: 0 | U159: 0% | W159: 7048652766908 | Y159: 0 | Z159: 0 | AA159: 10 | AB159: 0 | AC159: 0 | AD159: 845077Burning Orange | AE159: 845077 | AF159: =INDEX(ATS!$A:$P,MATCH('2) Order Form'!$W159,ATS!$O:$O,0),7) -> Active
A160: 1 | B160: =VLOOKUP(A160,Classification!$H$2:$I$11,2,FALSE) -> Helmets & Helmet Acc. | C160: =INDEX(ATS!$A:$P,MATCH('2) Order Form'!$W160,ATS!$O:$O,0),1) -> 845077 | D160: =INDEX(ATS!$A:$P,MATCH('2) Order Form'!$W160,ATS!$O:$O,0),2) -> Falconer II Aero Helmet | E160: =INDEX(ATS!$A:$P,MATCH('2) Order Form'!$W160,ATS!$O:$O,0),4) -> MCDGY-M | F160: =INDEX(ATS!$A:$P,MATCH('2) Order Form'!$W160,ATS!$O:$O,0),5) -> Matte Cloud Gray | G160: =INDEX(ATS!$A:$P,MATCH('2) Order Form'!$W160,ATS!$O:$O,0),6) -> M | H160: 1 | I160: 0 | J160: =IFERROR(VLOOKUP(W160,ATS!$O:$P,2,FALSE),0) -> 101 | K160: 50+ | L160: =IFERROR(VLOOKUP(W160,ATS!$O:$Q,3,FALSE),0) -> 101 | M160: 50+ | N160: 0% | O160: 0% | P160: =VLOOKUP($C160,Prices!$A$3:$R$1996,MATCH('2) Order Form'!P$8,Prices!$A$2:$R$2,0),FALSE) -> 130.00 | Q160: =VLOOKUP($C160,Prices!$A$3:$R$1996,MATCH('2) Order Form'!Q$8,Prices!$A$2:$R$2,0),FALSE) -> 259.95 | R160: 0 | S160: 0 | T160: 0 | U160: 0% | W160: 7048652660541 | Y160: 0 | Z160: 0 | AA160: 10 | AB160: 0 | AC160: 1 | AD160: 845077Matte Cloud Gray | AE160: 845077 | AF160: =INDEX(ATS!$A:$P,MATCH('2) Order Form'!$W160,ATS!$O:$O,0),7) -> Active
A161: 1 | B161: =VLOOKUP(A161,Classification!$H$2:$I$11,2,FALSE) -> Helmets & Helmet Acc. | C161: =INDEX(ATS!$A:$P,MATCH('2) Order Form'!$W161,ATS!$O:$O,0),1) -> 845077 | D161: =INDEX(ATS!$A:$P,MATCH('2) Order Form'!$W161,ATS!$O:$O,0),2) -> Falconer II Aero Helmet | E161: =INDEX(ATS!$A:$P,MATCH('2) Order Form'!$W161,ATS!$O:$O,0),4) -> MCDGY-L | F161: =INDEX(ATS!$A:$P,MATCH('2) Order Form'!$W161,ATS!$O:$O,0),5) -> Matte Cloud Gray | G161: =INDEX(ATS!$A:$P,MATCH('2) Order Form'!$W161,ATS!$O:$O,0),6) -> L | H161: 1 | I161: 0 | J161: =IFERROR(VLOOKUP(W161,ATS!$O:$P,2,FALSE),0) -> 103 | K161: 50+ | L161: =IFERROR(VLOOKUP(W161,ATS!$O:$Q,3,FALSE),0) -> 103 | M161: 50+ | N161: 0% | O161: 0% | P161: =VLOOKUP($C161,Prices!$A$3:$R$1996,MATCH('2) Order Form'!P$8,Prices!$A$2:$R$2,0),FALSE) -> 130.00 | Q161: =VLOOKUP($C161,Prices!$A$3:$R$1996,MATCH('2) Order Form'!Q$8,Prices!$A$2:$R$2,0),FALSE) -> 259.95 | R161: 0 | S161: 0 | T161: 0 | U161: 0% | W161: 7048652660534 | Y161: 0 | Z161: 0 | AA161: 10 | AB161: 0 | AC161: 0 | AD161: 845077Matte Cloud Gray | AE161: 845077 | AF161: =INDEX(ATS!$A:$P,MATCH('2) Order Form'!$W161,ATS!$O:$O,0),7) -> Active
A162: 1 | B162: =VLOOKUP(A162,Classification!$H$2:$I$11,2,FALSE) -> Helmets & Helmet Acc. | C162: =INDEX(ATS!$A:$P,MATCH('2) Order Form'!$W162,ATS!$O:$O,0),1) -> 845077 | D162: =INDEX(ATS!$A:$P,MATCH('2) Order Form'!$W162,ATS!$O:$O,0),2) -> Falconer II Aero Helmet | E162: =INDEX(ATS!$A:$P,MATCH('2) Order Form'!$W162,ATS!$O:$O,0),4) -> MWH22-M | F162: =INDEX(ATS!$A:$P,MATCH('2) Order Form'!$W162,ATS!$O:$O,0),5) -> Matte White | G162: =INDEX(ATS!$A:$P,MATCH('2) Order Form'!$W162,ATS!$O:$O,0),6) -> M | H162: 1 | I162: 0 | J162: =IFERROR(VLOOKUP(W162,ATS!$O:$P,2,FALSE),0) -> 98 | K162: 50+ | L162: =IFERROR(VLOOKUP(W162,ATS!$O:$Q,3,FALSE),0) -> 98 | M162: 50+ | N162: 0% | O162: 0% | P162: =VLOOKUP($C162,Prices!$A$3:$R$1996,MATCH('2) Order Form'!P$8,Prices!$A$2:$R$2,0),FALSE) -> 130.00 | Q162: =VLOOKUP($C162,Prices!$A$3:$R$1996,MATCH('2) Order Form'!Q$8,Prices!$A$2:$R$2,0),FALSE) -> 259.95 | R162: 0 | S162: 0 | T162: 0 | U162: 0% | W162: 7048652768513 | Y162: 0 | Z162: 0 | AA162: 10 | AB162: 0 | AC162: 1 | AD162: 845077Matte White | AE162: 845077 | AF162: =INDEX(ATS!$A:$P,MATCH('2) Order Form'!$W162,ATS!$O:$O,0),7) -> Active
A163: 1 | B163: =VLOOKUP(A163,Classification!$H$2:$I$11,2,FALSE) -> Helmets & Helmet Acc. | C163: =INDEX(ATS!$A:$P,MATCH('2) Order Form'!$W163,ATS!$O:$O,0),1) -> 845077 | D163: =INDEX(ATS!$A:$P,MATCH('2) Order Form'!$W163,ATS!$O:$O,0),2) -> Falconer II Aero Helmet | E163: =INDEX(ATS!$A:$P,MATCH('2) Order Form'!$W163,ATS!$O:$O,0),4) -> MWH22-L | F163: =INDEX(ATS!$A:$P,MATCH('2) Order Form'!$W163,ATS!$O:$O,0),5) -> Matte White | G163: =INDEX(ATS!$A:$P,MATCH('2) Order Form'!$W163,ATS!$O:$O,0),6) -> L | H163: 1 | I163: 0 | J163: =IFERROR(VLOOKUP(W163,ATS!$O:$P,2,FALSE),0) -> 89 | K163: 50+ | L163: =IFERROR(VLOOKUP(W163,ATS!$O:$Q,3,FALSE),0) -> 89 | M163: 50+ | N163: 0% | O163: 0% | P163: =VLOOKUP($C163,Prices!$A$3:$R$1996,MATCH('2) Order Form'!P$8,Prices!$A$2:$R$2,0),FALSE) -> 130.00 | Q163: =VLOOKUP($C163,Prices!$A$3:$R$1996,MATCH('2) Order Form'!Q$8,Prices!$A$2:$R$2,0),FALSE) -> 259.95 | R163: 0 | S163: 0 | T163: 0 | U163: 0% | W163: 7048652768506 | Y163: 0 | Z163: 0 | AA163: 10 | AB163: 0 | AC163: 0 | AD163: 845077Matte White | AE163: 845077 | AF163: =INDEX(ATS!$A:$P,MATCH('2) Order Form'!$W163,ATS!$O:$O,0),7) -> Active
A164: 1 | B164: =VLOOKUP(A164,Classification!$H$2:$I$11,2,FALSE) -> Helmets & Helmet Acc. | C164: =INDEX(ATS!$A:$P,MATCH('2) Order Form'!$W164,ATS!$O:$O,0),1) -> 845077 | D164: =INDEX(ATS!$A:$P,MATCH('2) Order Form'!$W164,ATS!$O:$O,0),2) -> Falconer II Aero Helmet | E164: =INDEX(ATS!$A:$P,MATCH('2) Order Form'!$W164,ATS!$O:$O,0),4) -> SKBLM-M | F164: =INDEX(ATS!$A:$P,MATCH('2) Order Form'!$W164,ATS!$O:$O,0),5) -> Sky Blue Metallic | G164: =INDEX(ATS!$A:$P,MATCH('2) Order Form'!$W164,ATS!$O:$O,0),6) -> M | H164: 1 | I164: 0 | J164: =IFERROR(VLOOKUP(W164,ATS!$O:$P,2,FALSE),0) -> 32 | K164: 32 | L164: =IFERROR(VLOOKUP(W164,ATS!$O:$Q,3,FALSE),0) -> 32 | M164: 32 | N164: 0% | O164: 0% | P164: =VLOOKUP($C164,Prices!$A$3:$R$1996,MATCH('2) Order Form'!P$8,Prices!$A$2:$R$2,0),FALSE) -> 130.00 | Q164: =VLOOKUP($C164,Prices!$A$3:$R$1996,MATCH('2) Order Form'!Q$8,Prices!$A$2:$R$2,0),FALSE) -> 259.95 | R164: 0 | S164: 0 | T164: 0 | U164: 0% | W164: 7048652766953 | Y164: 0 | Z164: 0 | AA164: 10 | AB164: 0 | AC164: 1 | AD164: 845077Sky Blue Metallic | AE164: 845077 | AF164: =INDEX(ATS!$A:$P,MATCH('2) Order Form'!$W164,ATS!$O:$O,0),7) -> Active
A165: 1 | B165: =VLOOKUP(A165,Classification!$H$2:$I$11,2,FALSE) -> Helmets & Helmet Acc. | C165: =INDEX(ATS!$A:$P,MATCH('2) Order Form'!$W165,ATS!$O:$O,0),1) -> 845077 | D165: =INDEX(ATS!$A:$P,MATCH('2) Order Form'!$W165,ATS!$O:$O,0),2) -> Falconer II Aero Helmet | E165: =INDEX(ATS!$A:$P,MATCH('2) Order Form'!$W165,ATS!$O:$O,0),4) -> SKBLM-L | F165: =INDEX(ATS!$A:$P,MATCH('2) Order Form'!$W165,ATS!$O:$O,0),5) -> Sky Blue Metallic | G165: =INDEX(ATS!$A:$P,MATCH('2) Order Form'!$W165,ATS!$O:$O,0),6) -> L | H165: 1 | I165: 0 | J165: =IFERROR(VLOOKUP(W165,ATS!$O:$P,2,FALSE),0) -> 33 | K165: 33 | L165: =IFERROR(VLOOKUP(W165,ATS!$O:$Q,3,FALSE),0) -> 33 | M165: 33 | N165: 0% | O165: 0% | P165: =VLOOKUP($C165,Prices!$A$3:$R$1996,MATCH('2) Order Form'!P$8,Prices!$A$2:$R$2,0),FALSE) -> 130.00 | Q165: =VLOOKUP($C165,Prices!$A$3:$R$1996,MATCH('2) Order Form'!Q$8,Prices!$A$2:$R$2,0),FALSE) -> 259.95 | R165: 0 | S165: 0 | T165: 0 | U165: 0% | W165: 7048652766946 | Y165: 0 | Z165: 0 | AA165: 10 | AB165: 0 | AC165: 0 | AD165: 845077Sky Blue Metallic | AE165: 845077 | AF165: =INDEX(ATS!$A:$P,MATCH('2) Order Form'!$W165,ATS!$O:$O,0),7) -> Active
A166: 1 | B166: =VLOOKUP(A166,Classification!$H$2:$I$11,2,FALSE) -> Helmets & Helmet Acc. | C166: =INDEX(ATS!$A:$P,MATCH('2) Order Form'!$W166,ATS!$O:$O,0),1) -> 845077 | D166: =INDEX(ATS!$A:$P,MATCH('2) Order Form'!$W166,ATS!$O:$O,0),2) -> Falconer II Aero Helmet | E166: =INDEX(ATS!$A:$P,MATCH('2) Order Form'!$W166,ATS!$O:$O,0),4) -> SGMFL-M | F166: =INDEX(ATS!$A:$P,MATCH('2) Order Form'!$W166,ATS!$O:$O,0),5) -> Slate Gray Metallic/Fluo | G166: =INDEX(ATS!$A:$P,MATCH('2) Order Form'!$W166,ATS!$O:$O,0),6) -> M | H166: 1 | I166: 0 | J166: =IFERROR(VLOOKUP(W166,ATS!$O:$P,2,FALSE),0) -> 33 | K166: 33 | L166: =IFERROR(VLOOKUP(W166,ATS!$O:$Q,3,FALSE),0) -> 33 | M166: 33 | N166: 0% | O166: 0% | P166: =VLOOKUP($C166,Prices!$A$3:$R$1996,MATCH('2) Order Form'!P$8,Prices!$A$2:$R$2,0),FALSE) -> 130.00 | Q166: =VLOOKUP($C166,Prices!$A$3:$R$1996,MATCH('2) Order Form'!Q$8,Prices!$A$2:$R$2,0),FALSE) -> 259.95 | R166: 0 | S166: 0 | T166: 0 | U166: 0% | W166: 7048652766939 | Y166: 0 | Z166: 0 | AA166: 10 | AB166: 0 | AC166: 1 | AD166: 845077Slate Gray Metallic/Fluo | AE166: 845077 | AF166: =INDEX(ATS!$A:$P,MATCH('2) Order Form'!$W166,ATS!$O:$O,0),7) -> Active
A167: 1 | B167: =VLOOKUP(A167,Classification!$H$2:$I$11,2,FALSE) -> Helmets & Helmet Acc. | C167: =INDEX(ATS!$A:$P,MATCH('2) Order Form'!$W167,ATS!$O:$O,0),1) -> 845077 | D167: =INDEX(ATS!$A:$P,MATCH('2) Order Form'!$W167,ATS!$O:$O,0),2) -> Falconer II Aero Helmet | E167: =INDEX(ATS!$A:$P,MATCH('2) Order Form'!$W167,ATS!$O:$O,0),4) -> SGMFL-L | F167: =INDEX(ATS!$A:$P,MATCH('2) Order Form'!$W167,ATS!$O:$O,0),5) -> Slate Gray Metallic/Fluo | G167: =INDEX(ATS!$A:$P,MATCH('2) Order Form'!$W167,ATS!$O:$O,0),6) -> L | H167: 1 | I167: 0 | J167: =IFERROR(VLOOKUP(W167,ATS!$O:$P,2,FALSE),0) -> 33 | K167: 33 | L167: =IFERROR(VLOOKUP(W167,ATS!$O:$Q,3,FALSE),0) -> 33 | M167: 33 | N167: 0% | O167: 0% | P167: =VLOOKUP($C167,Prices!$A$3:$R$1996,MATCH('2) Order Form'!P$8,Prices!$A$2:$R$2,0),FALSE) -> 130.00 | Q167: =VLOOKUP($C167,Prices!$A$3:$R$1996,MATCH('2) Order Form'!Q$8,Prices!$A$2:$R$2,0),FALSE) -> 259.95 | R167: 0 | S167: 0 | T167: 0 | U167: 0% | W167: 7048652766922 | Y167: 0 | Z167: 0 | AA167: 10 | AB167: 0 | AC167: 0 | AD167: 845077Slate Gray Metallic/Fluo | AE167: 845077 | AF167: =INDEX(ATS!$A:$P,MATCH('2) Order Form'!$W167,ATS!$O:$O,0),7) -> Active
A168: 1 | B168: =VLOOKUP(A168,Classification!$H$2:$I$11,2,FALSE) -> Helmets & Helmet Acc. | C168: =INDEX(ATS!$A:$P,MATCH('2) Order Form'!$W168,ATS!$O:$O,0),1) -> 845076 | D168: =INDEX(ATS!$A:$P,MATCH('2) Order Form'!$W168,ATS!$O:$O,0),2) -> Falconer II Mips Helmet | E168: =INDEX(ATS!$A:$P,MATCH('2) Order Form'!$W168,ATS!$O:$O,0),4) -> BUORE-M | F168: =INDEX(ATS!$A:$P,MATCH('2) Order Form'!$W168,ATS!$O:$O,0),5) -> Burning Orange | G168: =INDEX(ATS!$A:$P,MATCH('2) Order Form'!$W168,ATS!$O:$O,0),6) -> M | H168: 1 | I168: 0 | J168: =IFERROR(VLOOKUP(W168,ATS!$O:$P,2,FALSE),0) -> 50 | K168: 50 | L168: =IFERROR(VLOOKUP(W168,ATS!$O:$Q,3,FALSE),0) -> 50 | M168: 50 | N168: 0% | O168: 0% | P168: =VLOOKUP($C168,Prices!$A$3:$R$1996,MATCH('2) Order Form'!P$8,Prices!$A$2:$R$2,0),FALSE) -> 115.00 | Q168: =VLOOKUP($C168,Prices!$A$3:$R$1996,MATCH('2) Order Form'!Q$8,Prices!$A$2:$R$2,0),FALSE) -> 229.95 | R168: 0 | S168: 0 | T168: 0 | U168: 0% | W168: 7048652766830 | Y168: 0 | Z168: 0 | AA168: 11 | AB168: 1 | AC168: 1 | AD168: 845076Burning Orange | AE168: 845076 | AF168: =INDEX(ATS!$A:$P,MATCH('2) Order Form'!$W168,ATS!$O:$O,0),7) -> Active
A169: 1 | B169: =VLOOKUP(A169,Classification!$H$2:$I$11,2,FALSE) -> Helmets & Helmet Acc. | C169: =INDEX(ATS!$A:$P,MATCH('2) Order Form'!$W169,ATS!$O:$O,0),1) -> 845076 | D169: =INDEX(ATS!$A:$P,MATCH('2) Order Form'!$W169,ATS!$O:$O,0),2) -> Falconer II Mips Helmet | E169: =INDEX(ATS!$A:$P,MATCH('2) Order Form'!$W169,ATS!$O:$O,0),4) -> BUORE-L | F169: =INDEX(ATS!$A:$P,MATCH('2) Order Form'!$W169,ATS!$O:$O,0),5) -> Burning Orange | G169: =INDEX(ATS!$A:$P,MATCH('2) Order Form'!$W169,ATS!$O:$O,0),6) -> L | H169: 1 | I169: 0 | J169: =IFERROR(VLOOKUP(W169,ATS!$O:$P,2,FALSE),0) -> 53 | K169: 50+ | L169: =IFERROR(VLOOKUP(W169,ATS!$O:$Q,3,FALSE),0) -> 53 | M169: 50+ | N169: 0% | O169: 0% | P169: =VLOOKUP($C169,Prices!$A$3:$R$1996,MATCH('2) Order Form'!P$8,Prices!$A$2:$R$2,0),FALSE) -> 115.00 | Q169: =VLOOKUP($C169,Prices!$A$3:$R$1996,MATCH('2) Order Form'!Q$8,Prices!$A$2:$R$2,0),FALSE) -> 229.95 | R169: 0 | S169: 0 | T169: 0 | U169: 0% | W169: 7048652766823 | Y169: 0 | Z169: 0 | AA169: 11 | AB169: 0 | AC169: 0 | AD169: 845076Burning Orange | AE169: 845076 | AF169: =INDEX(ATS!$A:$P,MATCH('2) Order Form'!$W169,ATS!$O:$O,0),7) -> Active
A170: 1 | B170: =VLOOKUP(A170,Classification!$H$2:$I$11,2,FALSE) -> Helmets & Helmet Acc. | C170: =INDEX(ATS!$A:$P,MATCH('2) Order Form'!$W170,ATS!$O:$O,0),1) -> 845076 | D170: =INDEX(ATS!$A:$P,MATCH('2) Order Form'!$W170,ATS!$O:$O,0),2) -> Falconer II Mips Helmet | E170: =INDEX(ATS!$A:$P,MATCH('2) Order Form'!$W170,ATS!$O:$O,0),4) -> MBLCK-M | F170: =INDEX(ATS!$A:$P,MATCH('2) Order Form'!$W170,ATS!$O:$O,0),5) -> Matte Black | G170: =INDEX(ATS!$A:$P,MATCH('2) Order Form'!$W170,ATS!$O:$O,0),6) -> M | H170: 1 | I170: 0 | J170: =IFERROR(VLOOKUP(W170,ATS!$O:$P,2,FALSE),0) -> 436 | K170: 50+ | L170: =IFERROR(VLOOKUP(W170,ATS!$O:$Q,3,FALSE),0) -> 436 | M170: 50+ | N170: 0% | O170: 0% | P170: =VLOOKUP($C170,Prices!$A$3:$R$1996,MATCH('2) Order Form'!P$8,Prices!$A$2:$R$2,0),FALSE) -> 115.00 | Q170: =VLOOKUP($C170,Prices!$A$3:$R$1996,MATCH('2) Order Form'!Q$8,Prices!$A$2:$R$2,0),FALSE) -> 229.95 | R170: 0 | S170: 0 | T170: 0 | U170: 0% | W170: 7048652539847 | Y170: 0 | Z170: 0 | AA170: 11 | AB170: 0 | AC170: 1 | AD170: 845076Matte Black | AE170: 845076 | AF170: =INDEX(ATS!$A:$P,MATCH('2) Order Form'!$W170,ATS!$O:$O,0),7) -> Active
A171: 1 | B171: =VLOOKUP(A171,Classification!$H$2:$I$11,2,FALSE) -> Helmets & Helmet Acc. | C171: =INDEX(ATS!$A:$P,MATCH('2) Order Form'!$W171,ATS!$O:$O,0),1) -> 845076 | D171: =INDEX(ATS!$A:$P,MATCH('2) Order Form'!$W171,ATS!$O:$O,0),2) -> Falconer II Mips Helmet | E171: =INDEX(ATS!$A:$P,MATCH('2) Order Form'!$W171,ATS!$O:$O,0),4) -> MBLCK-L | F171: =INDEX(ATS!$A:$P,MATCH('2) Order Form'!$W171,ATS!$O:$O,0),5) -> Matte Black | G171: =INDEX(ATS!$A:$P,MATCH('2) Order Form'!$W171,ATS!$O:$O,0),6) -> L | H171: 1 | I171: 0 | J171: =IFERROR(VLOOKUP(W171,ATS!$O:$P,2,FALSE),0) -> 351 | K171: 50+ | L171: =IFERROR(VLOOKUP(W171,ATS!$O:$Q,3,FALSE),0) -> 351 | M171: 50+ | N171: 0% | O171: 0% | P171: =VLOOKUP($C171,Prices!$A$3:$R$1996,MATCH('2) Order Form'!P$8,Prices!$A$2:$R$2,0),FALSE) -> 115.00 | Q171: =VLOOKUP($C171,Prices!$A$3:$R$1996,MATCH('2) Order Form'!Q$8,Prices!$A$2:$R$2,0),FALSE) -> 229.95 | R171: 0 | S171: 0 | T171: 0 | U171: 0% | W171: 7048652539830 | Y171: 0 | Z171: 0 | AA171: 11 | AB171: 0 | AC171: 0 | AD171: 845076Matte Black | AE171: 845076 | AF171: =INDEX(ATS!$A:$P,MATCH('2) Order Form'!$W171,ATS!$O:$O,0),7) -> Active
A172: 1 | B172: =VLOOKUP(A172,Classification!$H$2:$I$11,2,FALSE) -> Helmets & Helmet Acc. | C172: =INDEX(ATS!$A:$P,MATCH('2) Order Form'!$W172,ATS!$O:$O,0),1) -> 845076 | D172: =INDEX(ATS!$A:$P,MATCH('2) Order Form'!$W172,ATS!$O:$O,0),2) -> Falconer II Mips Helmet | E172: =INDEX(ATS!$A:$P,MATCH('2) Order Form'!$W172,ATS!$O:$O,0),4) -> MCDGY-M | F172: =INDEX(ATS!$A:$P,MATCH('2) Order Form'!$W172,ATS!$O:$O,0),5) -> Matte Cloud Gray | G172: =INDEX(ATS!$A:$P,MATCH('2) Order Form'!$W172,ATS!$O:$O,0),6) -> M | H172: 1 | I172: 0 | J172: =IFERROR(VLOOKUP(W172,ATS!$O:$P,2,FALSE),0) -> 452 | K172: 50+ | L172: =IFERROR(VLOOKUP(W172,ATS!$O:$Q,3,FALSE),0) -> 452 | M172: 50+ | N172: 0% | O172: 0% | P172: =VLOOKUP($C172,Prices!$A$3:$R$1996,MATCH('2) Order Form'!P$8,Prices!$A$2:$R$2,0),FALSE) -> 115.00 | Q172: =VLOOKUP($C172,Prices!$A$3:$R$1996,MATCH('2) Order Form'!Q$8,Prices!$A$2:$R$2,0),FALSE) -> 229.95 | R172: 0 | S172: 0 | T172: 0 | U172: 0% | W172: 7048652766854 | Y172: 0 | Z172: 0 | AA172: 11 | AB172: 0 | AC172: 1 | AD172: 845076Matte Cloud Gray | AE172: 845076 | AF172: =INDEX(ATS!$A:$P,MATCH('2) Order Form'!$W172,ATS!$O:$O,0),7) -> Active
A173: 1 | B173: =VLOOKUP(A173,Classification!$H$2:$I$11,2,FALSE) -> Helmets & Helmet Acc. | C173: =INDEX(ATS!$A:$P,MATCH('2) Order Form'!$W173,ATS!$O:$O,0),1) -> 845076 | D173: =INDEX(ATS!$A:$P,MATCH('2) Order Form'!$W173,ATS!$O:$O,0),2) -> Falconer II Mips Helmet | E173: =INDEX(ATS!$A:$P,MATCH('2) Order Form'!$W173,ATS!$O:$O,0),4) -> MCDGY-L | F173: =INDEX(ATS!$A:$P,MATCH('2) Order Form'!$W173,ATS!$O:$O,0),5) -> Matte Cloud Gray | G173: =INDEX(ATS!$A:$P,MATCH('2) Order Form'!$W173,ATS!$O:$O,0),6) -> L | H173: 1 | I173: 0 | J173: =IFERROR(VLOOKUP(W173,ATS!$O:$P,2,FALSE),0) -> 333 | K173: 50+ | L173: =IFERROR(VLOOKUP(W173,ATS!$O:$Q,3,FALSE),0) -> 333 | M173: 50+ | N173: 0% | O173: 0% | P173: =VLOOKUP($C173,Prices!$A$3:$R$1996,MATCH('2) Order Form'!P$8,Prices!$A$2:$R$2,0),FALSE) -> 115.00 | Q173: =VLOOKUP($C173,Prices!$A$3:$R$1996,MATCH('2) Order Form'!Q$8,Prices!$A$2:$R$2,0),FALSE) -> 229.95 | R173: 0 | S173: 0 | T173: 0 | U173: 0% | W173: 7048652766847 | Y173: 0 | Z173: 0 | AA173: 11 | AB173: 0 | AC173: 0 | AD173: 845076Matte Cloud Gray | AE173: 845076 | AF173: =INDEX(ATS!$A:$P,MATCH('2) Order Form'!$W173,ATS!$O:$O,0),7) -> Active
A174: 1 | B174: =VLOOKUP(A174,Classification!$H$2:$I$11,2,FALSE) -> Helmets & Helmet Acc. | C174: =INDEX(ATS!$A:$P,MATCH('2) Order Form'!$W174,ATS!$O:$O,0),1) -> 845076 | D174: =INDEX(ATS!$A:$P,MATCH('2) Order Form'!$W174,ATS!$O:$O,0),2) -> Falconer II Mips Helmet | E174: =INDEX(ATS!$A:$P,MATCH('2) Order Form'!$W174,ATS!$O:$O,0),4) -> MWHTE-M | F174: =INDEX(ATS!$A:$P,MATCH('2) Order Form'!$W174,ATS!$O:$O,0),5) -> Matte White | G174: =INDEX(ATS!$A:$P,MATCH('2) Order Form'!$W174,ATS!$O:$O,0),6) -> M | H174: 1 | I174: 0 | J174: =IFERROR(VLOOKUP(W174,ATS!$O:$P,2,FALSE),0) -> 0 | K174: 0 | L174: =IFERROR(VLOOKUP(W174,ATS!$O:$Q,3,FALSE),0) -> 0 | M174: 0 | N174: 0% | O174: 0% | P174: =VLOOKUP($C174,Prices!$A$3:$R$1996,MATCH('2) Order Form'!P$8,Prices!$A$2:$R$2,0),FALSE) -> 115.00 | Q174: =VLOOKUP($C174,Prices!$A$3:$R$1996,MATCH('2) Order Form'!Q$8,Prices!$A$2:$R$2,0),FALSE) -> 229.95 | R174: 0 | S174: 0 | T174: 0 | U174: 0% | W174: 7048652273949 | Y174: 0 | Z174: 0 | AA174: 11 | AB174: 0 | AC174: 1 | AD174: 845076Matte White | AE174: 845076 | AF174: =INDEX(ATS!$A:$P,MATCH('2) Order Form'!$W174,ATS!$O:$O,0),7) -> Active
A175: 1 | B175: =VLOOKUP(A175,Classification!$H$2:$I$11,2,FALSE) -> Helmets & Helmet Acc. | C175: =INDEX(ATS!$A:$P,MATCH('2) Order Form'!$W175,ATS!$O:$O,0),1) -> 845076 | D175: =INDEX(ATS!$A:$P,MATCH('2) Order Form'!$W175,ATS!$O:$O,0),2) -> Falconer II Mips Helmet | E175: =INDEX(ATS!$A:$P,MATCH('2) Order Form'!$W175,ATS!$O:$O,0),4) -> MWHTE-L | F175: =INDEX(ATS!$A:$P,MATCH('2) Order Form'!$W175,ATS!$O:$O,0),5) -> Matte White | G175: =INDEX(ATS!$A:$P,MATCH('2) Order Form'!$W175,ATS!$O:$O,0),6) -> L | H175: 1 | I175: 0 | J175: =IFERROR(VLOOKUP(W175,ATS!$O:$P,2,FALSE),0) -> 20 | K175: 20 | L175: =IFERROR(VLOOKUP(W175,ATS!$O:$Q,3,FALSE),0) -> 20 | M175: 20 | N175: 0% | O175: 0% | P175: =VLOOKUP($C175,Prices!$A$3:$R$1996,MATCH('2) Order Form'!P$8,Prices!$A$2:$R$2,0),FALSE) -> 115.00 | Q175: =VLOOKUP($C175,Prices!$A$3:$R$1996,MATCH('2) Order Form'!Q$8,Prices!$A$2:$R$2,0),FALSE) -> 229.95 | R175: 0 | S175: 0 | T175: 0 | U175: 0% | W175: 7048652273932 | Y175: 0 | Z175: 0 | AA175: 11 | AB175: 0 | AC175: 0 | AD175: 845076Matte White | AE175: 845076 | AF175: =INDEX(ATS!$A:$P,MATCH('2) Order Form'!$W175,ATS!$O:$O,0),7) -> Active
A176: 1 | B176: =VLOOKUP(A176,Classification!$H$2:$I$11,2,FALSE) -> Helmets & Helmet Acc. | C176: =INDEX(ATS!$A:$P,MATCH('2) Order Form'!$W176,ATS!$O:$O,0),1) -> 845076 | D176: =INDEX(ATS!$A:$P,MATCH('2) Order Form'!$W176,ATS!$O:$O,0),2) -> Falconer II Mips Helmet | E176: =INDEX(ATS!$A:$P,MATCH('2) Order Form'!$W176,ATS!$O:$O,0),4) -> SKBLM-M | F176: =INDEX(ATS!$A:$P,MATCH('2) Order Form'!$W176,ATS!$O:$O,0),5) -> Sky Blue Metallic | G176: =INDEX(ATS!$A:$P,MATCH('2) Order Form'!$W176,ATS!$O:$O,0),6) -> M | H176: 1 | I176: 0 | J176: =IFERROR(VLOOKUP(W176,ATS!$O:$P,2,FALSE),0) -> 19 | K176: 19 | L176: =IFERROR(VLOOKUP(W176,ATS!$O:$Q,3,FALSE),0) -> 19 | M176: 19 | N176: 0% | O176: 0% | P176: =VLOOKUP($C176,Prices!$A$3:$R$1996,MATCH('2) Order Form'!P$8,Prices!$A$2:$R$2,0),FALSE) -> 115.00 | Q176: =VLOOKUP($C176,Prices!$A$3:$R$1996,MATCH('2) Order Form'!Q$8,Prices!$A$2:$R$2,0),FALSE) -> 229.95 | R176: 0 | S176: 0 | T176: 0 | U176: 0% | W176: 7048652766892 | Y176: 0 | Z176: 0 | AA176: 11 | AB176: 0 | AC176: 1 | AD176: 845076Sky Blue Metallic | AE176: 845076 | AF176: =INDEX(ATS!$A:$P,MATCH('2) Order Form'!$W176,ATS!$O:$O,0),7) -> Active
A177: 1 | B177: =VLOOKUP(A177,Classification!$H$2:$I$11,2,FALSE) -> Helmets & Helmet Acc. | C177: =INDEX(ATS!$A:$P,MATCH('2) Order Form'!$W177,ATS!$O:$O,0),1) -> 845076 | D177: =INDEX(ATS!$A:$P,MATCH('2) Order Form'!$W177,ATS!$O:$O,0),2) -> Falconer II Mips Helmet | E177: =INDEX(ATS!$A:$P,MATCH('2) Order Form'!$W177,ATS!$O:$O,0),4) -> SKBLM-L | F177: =INDEX(ATS!$A:$P,MATCH('2) Order Form'!$W177,ATS!$O:$O,0),5) -> Sky Blue Metallic | G177: =INDEX(ATS!$A:$P,MATCH('2) Order Form'!$W177,ATS!$O:$O,0),6) -> L | H177: 1 | I177: 0 | J177: =IFERROR(VLOOKUP(W177,ATS!$O:$P,2,FALSE),0) -> 30 | K177: 30 | L177: =IFERROR(VLOOKUP(W177,ATS!$O:$Q,3,FALSE),0) -> 30 | M177: 30 | N177: 0% | O177: 0% | P177: =VLOOKUP($C177,Prices!$A$3:$R$1996,MATCH('2) Order Form'!P$8,Prices!$A$2:$R$2,0),FALSE) -> 115.00 | Q177: =VLOOKUP($C177,Prices!$A$3:$R$1996,MATCH('2) Order Form'!Q$8,Prices!$A$2:$R$2,0),FALSE) -> 229.95 | R177: 0 | S177: 0 | T177: 0 | U177: 0% | W177: 7048652766885 | Y177: 0 | Z177: 0 | AA177: 11 | AB177: 0 | AC177: 0 | AD177: 845076Sky Blue Metallic | AE177: 845076 | AF177: =INDEX(ATS!$A:$P,MATCH('2) Order Form'!$W177,ATS!$O:$O,0),7) -> Active
A178: 1 | B178: =VLOOKUP(A178,Classification!$H$2:$I$11,2,FALSE) -> Helmets & Helmet Acc. | C178: =INDEX(ATS!$A:$P,MATCH('2) Order Form'!$W178,ATS!$O:$O,0),1) -> 845076 | D178: =INDEX(ATS!$A:$P,MATCH('2) Order Form'!$W178,ATS!$O:$O,0),2) -> Falconer II Mips Helmet | E178: =INDEX(ATS!$A:$P,MATCH('2) Order Form'!$W178,ATS!$O:$O,0),4) -> SGMFL-M | F178: =INDEX(ATS!$A:$P,MATCH('2) Order Form'!$W178,ATS!$O:$O,0),5) -> Slate Gray Metallic/Fluo | G178: =INDEX(ATS!$A:$P,MATCH('2) Order Form'!$W178,ATS!$O:$O,0),6) -> M | H178: 1 | I178: 0 | J178: =IFERROR(VLOOKUP(W178,ATS!$O:$P,2,FALSE),0) -> 43 | K178: 43 | L178: =IFERROR(VLOOKUP(W178,ATS!$O:$Q,3,FALSE),0) -> 43 | M178: 43 | N178: 0% | O178: 0% | P178: =VLOOKUP($C178,Prices!$A$3:$R$1996,MATCH('2) Order Form'!P$8,Prices!$A$2:$R$2,0),FALSE) -> 115.00 | Q178: =VLOOKUP($C178,Prices!$A$3:$R$1996,MATCH('2) Order Form'!Q$8,Prices!$A$2:$R$2,0),FALSE) -> 229.95 | R178: 0 | S178: 0 | T178: 0 | U178: 0% | W178: 7048652766878 | Y178: 0 | Z178: 0 | AA178: 11 | AB178: 0 | AC178: 1 | AD178: 845076Slate Gray Metallic/Fluo | AE178: 845076 | AF178: =INDEX(ATS!$A:$P,MATCH('2) Order Form'!$W178,ATS!$O:$O,0),7) -> Active
A179: 1 | B179: =VLOOKUP(A179,Classification!$H$2:$I$11,2,FALSE) -> Helmets & Helmet Acc. | C179: =INDEX(ATS!$A:$P,MATCH('2) Order Form'!$W179,ATS!$O:$O,0),1) -> 845076 | D179: =INDEX(ATS!$A:$P,MATCH('2) Order Form'!$W179,ATS!$O:$O,0),2) -> Falconer II Mips Helmet | E179: =INDEX(ATS!$A:$P,MATCH('2) Order Form'!$W179,ATS!$O:$O,0),4) -> SGMFL-L | F179: =INDEX(ATS!$A:$P,MATCH('2) Order Form'!$W179,ATS!$O:$O,0),5) -> Slate Gray Metallic/Fluo | G179: =INDEX(ATS!$A:$P,MATCH('2) Order Form'!$W179,ATS!$O:$O,0),6) -> L | H179: 1 | I179: 0 | J179: =IFERROR(VLOOKUP(W179,ATS!$O:$P,2,FALSE),0) -> 36 | K179: 36 | L179: =IFERROR(VLOOKUP(W179,ATS!$O:$Q,3,FALSE),0) -> 36 | M179: 36 | N179: 0% | O179: 0% | P179: =VLOOKUP($C179,Prices!$A$3:$R$1996,MATCH('2) Order Form'!P$8,Prices!$A$2:$R$2,0),FALSE) -> 115.00 | Q179: =VLOOKUP($C179,Prices!$A$3:$R$1996,MATCH('2) Order Form'!Q$8,Prices!$A$2:$R$2,0),FALSE) -> 229.95 | R179: 0 | S179: 0 | T179: 0 | U179: 0% | W179: 7048652766861 | Y179: 0 | Z179: 0 | AA179: 11 | AB179: 0 | AC179: 0 | AD179: 845076Slate Gray Metallic/Fluo | AE179: 845076 | AF179: =INDEX(ATS!$A:$P,MATCH('2) Order Form'!$W179,ATS!$O:$O,0),7) -> Active
A180: 1 | B180: =VLOOKUP(A180,Classification!$H$2:$I$11,2,FALSE) -> Helmets & Helmet Acc. | C180: =INDEX(ATS!$A:$P,MATCH('2) Order Form'!$W180,ATS!$O:$O,0),1) -> 845075 | D180: =INDEX(ATS!$A:$P,MATCH('2) Order Form'!$W180,ATS!$O:$O,0),2) -> Falconer II Helmet | E180: =INDEX(ATS!$A:$P,MATCH('2) Order Form'!$W180,ATS!$O:$O,0),4) -> BUORE-M | F180: =INDEX(ATS!$A:$P,MATCH('2) Order Form'!$W180,ATS!$O:$O,0),5) -> Burning Orange | G180: =INDEX(ATS!$A:$P,MATCH('2) Order Form'!$W180,ATS!$O:$O,0),6) -> M | H180: 1 | I180: 0 | J180: =IFERROR(VLOOKUP(W180,ATS!$O:$P,2,FALSE),0) -> 77 | K180: =IF(J180=99999,"OPEN",IF(J180>50,"50+",IF(J180<=0,"0",J180))) -> 50+ | L180: =IFERROR(VLOOKUP(W180,ATS!$O:$Q,3,FALSE),0) -> 77 | M180: =IF(L180=99999,"OPEN",IF(L180>50,"50+",IF(L180<=0,"0",L180))) -> 50+ | N180: 0% | O180: =IF(N180<>0,N180,$P$5) -> 0% | P180: =VLOOKUP($C180,Prices!$A$3:$R$1996,MATCH('2) Order Form'!P$8,Prices!$A$2:$R$2,0),FALSE) -> 100.00 | Q180: =VLOOKUP($C180,Prices!$A$3:$R$1996,MATCH('2) Order Form'!Q$8,Prices!$A$2:$R$2,0),FALSE) -> 199.95 | R180: =I180*P180 -> 0 | S180: =R180*O180 -> 0 | T180: =R180-S180 -> 0 | U180: 0% | W180: 7048652766755 | Y180: =I180*Q180 -> 0 | Z180: =IF(A180=OFFSET(A180,-1,0),0,1) -> 0 | AA180: =IF(C180=OFFSET(C180,-1,0),OFFSET(AA180,-1,0),OFFSET(AA180,-1,0)+1) -> 12 | AB180: =IF(C180=OFFSET(C180,-1,0),0,1) -> 1 | AC180: =IF(F180=OFFSET(F180,-1,0),0,1) -> 1 | AD180: =CONCATENATE(C180,F180) -> 845075Burning Orange | AE180: =IFERROR(IF(B180="EYEWEAR",CONCATENATE(C180,"-",G180),C180),C180) -> 845075 | AF180: =INDEX(ATS!$A:$P,MATCH('2) Order Form'!$W180,ATS!$O:$O,0),7) -> Active
A181: 1 | B181: =VLOOKUP(A181,Classification!$H$2:$I$11,2,FALSE) -> Helmets & Helmet Acc. | C181: =INDEX(ATS!$A:$P,MATCH('2) Order Form'!$W181,ATS!$O:$O,0),1) -> 845075 | D181: =INDEX(ATS!$A:$P,MATCH('2) Order Form'!$W181,ATS!$O:$O,0),2) -> Falconer II Helmet | E181: =INDEX(ATS!$A:$P,MATCH('2) Order Form'!$W181,ATS!$O:$O,0),4) -> BUORE-L | F181: =INDEX(ATS!$A:$P,MATCH('2) Order Form'!$W181,ATS!$O:$O,0),5) -> Burning Orange | G181: =INDEX(ATS!$A:$P,MATCH('2) Order Form'!$W181,ATS!$O:$O,0),6) -> L | H181: 1 | I181: 0 | J181: =IFERROR(VLOOKUP(W181,ATS!$O:$P,2,FALSE),0) -> 31 | K181: 31 | L181: =IFERROR(VLOOKUP(W181,ATS!$O:$Q,3,FALSE),0) -> 31 | M181: 31 | N181: 0% | O181: 0% | P181: =VLOOKUP($C181,Prices!$A$3:$R$1996,MATCH('2) Order Form'!P$8,Prices!$A$2:$R$2,0),FALSE) -> 100.00 | Q181: =VLOOKUP($C181,Prices!$A$3:$R$1996,MATCH('2) Order Form'!Q$8,Prices!$A$2:$R$2,0),FALSE) -> 199.95 | R181: 0 | S181: 0 | T181: 0 | U181: 0% | W181: 7048652766748 | Y181: 0 | Z181: 0 | AA181: 12 | AB181: 0 | AC181: 0 | AD181: 845075Burning Orange | AE181: 845075 | AF181: =INDEX(ATS!$A:$P,MATCH('2) Order Form'!$W181,ATS!$O:$O,0),7) -> Active
A182: 1 | B182: =VLOOKUP(A182,Classification!$H$2:$I$11,2,FALSE) -> Helmets & Helmet Acc. | C182: =INDEX(ATS!$A:$P,MATCH('2) Order Form'!$W182,ATS!$O:$O,0),1) -> 845075 | D182: =INDEX(ATS!$A:$P,MATCH('2) Order Form'!$W182,ATS!$O:$O,0),2) -> Falconer II Helmet | E182: =INDEX(ATS!$A:$P,MATCH('2) Order Form'!$W182,ATS!$O:$O,0),4) -> MBLCK-M | F182: =INDEX(ATS!$A:$P,MATCH('2) Order Form'!$W182,ATS!$O:$O,0),5) -> Matte Black | G182: =INDEX(ATS!$A:$P,MATCH('2) Order Form'!$W182,ATS!$O:$O,0),6) -> M | H182: 1 | I182: 0 | J182: =IFERROR(VLOOKUP(W182,ATS!$O:$P,2,FALSE),0) -> 67 | K182: 50+ | L182: =IFERROR(VLOOKUP(W182,ATS!$O:$Q,3,FALSE),0) -> 67 | M182: 50+ | N182: 0% | O182: 0% | P182: =VLOOKUP($C182,Prices!$A$3:$R$1996,MATCH('2) Order Form'!P$8,Prices!$A$2:$R$2,0),FALSE) -> 100.00 | Q182: =VLOOKUP($C182,Prices!$A$3:$R$1996,MATCH('2) Order Form'!Q$8,Prices!$A$2:$R$2,0),FALSE) -> 199.95 | R182: 0 | S182: 0 | T182: 0 | U182: 0% | W182: 7048652329257 | Y182: 0 | Z182: 0 | AA182: 12 | AB182: 0 | AC182: 1 | AD182: 845075Matte Black | AE182: 845075 | AF182: =INDEX(ATS!$A:$P,MATCH('2) Order Form'!$W182,ATS!$O:$O,0),7) -> Active
A183: 1 | B183: =VLOOKUP(A183,Classification!$H$2:$I$11,2,FALSE) -> Helmets & Helmet Acc. | C183: =INDEX(ATS!$A:$P,MATCH('2) Order Form'!$W183,ATS!$O:$O,0),1) -> 845075 | D183: =INDEX(ATS!$A:$P,MATCH('2) Order Form'!$W183,ATS!$O:$O,0),2) -> Falconer II Helmet | E183: =INDEX(ATS!$A:$P,MATCH('2) Order Form'!$W183,ATS!$O:$O,0),4) -> MBLCK-L | F183: =INDEX(ATS!$A:$P,MATCH('2) Order Form'!$W183,ATS!$O:$O,0),5) -> Matte Black | G183: =INDEX(ATS!$A:$P,MATCH('2) Order Form'!$W183,ATS!$O:$O,0),6) -> L | H183: 1 | I183: 0 | J183: =IFERROR(VLOOKUP(W183,ATS!$O:$P,2,FALSE),0) -> 20 | K183: 20 | L183: =IFERROR(VLOOKUP(W183,ATS!$O:$Q,3,FALSE),0) -> 20 | M183: 20 | N183: 0% | O183: 0% | P183: =VLOOKUP($C183,Prices!$A$3:$R$1996,MATCH('2) Order Form'!P$8,Prices!$A$2:$R$2,0),FALSE) -> 100.00 | Q183: =VLOOKUP($C183,Prices!$A$3:$R$1996,MATCH('2) Order Form'!Q$8,Prices!$A$2:$R$2,0),FALSE) -> 199.95 | R183: 0 | S183: 0 | T183: 0 | U183: 0% | W183: 7048652329240 | Y183: 0 | Z183: 0 | AA183: 12 | AB183: 0 | AC183: 0 | AD183: 845075Matte Black | AE183: 845075 | AF183: =INDEX(ATS!$A:$P,MATCH('2) Order Form'!$W183,ATS!$O:$O,0),7) -> Active
A184: 1 | B184: =VLOOKUP(A184,Classification!$H$2:$I$11,2,FALSE) -> Helmets & Helmet Acc. | C184: =INDEX(ATS!$A:$P,MATCH('2) Order Form'!$W184,ATS!$O:$O,0),1) -> 845075 | D184: =INDEX(ATS!$A:$P,MATCH('2) Order Form'!$W184,ATS!$O:$O,0),2) -> Falconer II Helmet | E184: =INDEX(ATS!$A:$P,MATCH('2) Order Form'!$W184,ATS!$O:$O,0),4) -> MCDGY-M | F184: =INDEX(ATS!$A:$P,MATCH('2) Order Form'!$W184,ATS!$O:$O,0),5) -> Matte Cloud Gray | G184: =INDEX(ATS!$A:$P,MATCH('2) Order Form'!$W184,ATS!$O:$O,0),6) -> M | H184: 1 | I184: 0 | J184: =IFERROR(VLOOKUP(W184,ATS!$O:$P,2,FALSE),0) -> 72 | K184: 50+ | L184: =IFERROR(VLOOKUP(W184,ATS!$O:$Q,3,FALSE),0) -> 72 | M184: 50+ | N184: 0% | O184: 0% | P184: =VLOOKUP($C184,Prices!$A$3:$R$1996,MATCH('2) Order Form'!P$8,Prices!$A$2:$R$2,0),FALSE) -> 100.00 | Q184: =VLOOKUP($C184,Prices!$A$3:$R$1996,MATCH('2) Order Form'!Q$8,Prices!$A$2:$R$2,0),FALSE) -> 199.95 | R184: 0 | S184: 0 | T184: 0 | U184: 0% | W184: 7048652766779 | Y184: 0 | Z184: 0 | AA184: 12 | AB184: 0 | AC184: 1 | AD184: 845075Matte Cloud Gray | AE184: 845075 | AF184: =INDEX(ATS!$A:$P,MATCH('2) Order Form'!$W184,ATS!$O:$O,0),7) -> Active
A185: 1 | B185: =VLOOKUP(A185,Classification!$H$2:$I$11,2,FALSE) -> Helmets & Helmet Acc. | C185: =INDEX(ATS!$A:$P,MATCH('2) Order Form'!$W185,ATS!$O:$O,0),1) -> 845075 | D185: =INDEX(ATS!$A:$P,MATCH('2) Order Form'!$W185,ATS!$O:$O,0),2) -> Falconer II Helmet | E185: =INDEX(ATS!$A:$P,MATCH('2) Order Form'!$W185,ATS!$O:$O,0),4) -> MCDGY-L | F185: =INDEX(ATS!$A:$P,MATCH('2) Order Form'!$W185,ATS!$O:$O,0),5) -> Matte Cloud Gray | G185: =INDEX(ATS!$A:$P,MATCH('2) Order Form'!$W185,ATS!$O:$O,0),6) -> L | H185: 1 | I185: 0 | J185: =IFERROR(VLOOKUP(W185,ATS!$O:$P,2,FALSE),0) -> 76 | K185: 50+ | L185: =IFERROR(VLOOKUP(W185,ATS!$O:$Q,3,FALSE),0) -> 76 | M185: 50+ | N185: 0% | O185: 0% | P185: =VLOOKUP($C185,Prices!$A$3:$R$1996,MATCH('2) Order Form'!P$8,Prices!$A$2:$R$2,0),FALSE) -> 100.00 | Q185: =VLOOKUP($C185,Prices!$A$3:$R$1996,MATCH('2) Order Form'!Q$8,Prices!$A$2:$R$2,0),FALSE) -> 199.95 | R185: 0 | S185: 0 | T185: 0 | U185: 0% | W185: 7048652766762 | Y185: 0 | Z185: 0 | AA185: 12 | AB185: 0 | AC185: 0 | AD185: 845075Matte Cloud Gray | AE185: 845075 | AF185: =INDEX(ATS!$A:$P,MATCH('2) Order Form'!$W185,ATS!$O:$O,0),7) -> Active
A186: 1 | B186: =VLOOKUP(A186,Classification!$H$2:$I$11,2,FALSE) -> Helmets & Helmet Acc. | C186: =INDEX(ATS!$A:$P,MATCH('2) Order Form'!$W186,ATS!$O:$O,0),1) -> 845075 | D186: =INDEX(ATS!$A:$P,MATCH('2) Order Form'!$W186,ATS!$O:$O,0),2) -> Falconer II Helmet | E186: =INDEX(ATS!$A:$P,MATCH('2) Order Form'!$W186,ATS!$O:$O,0),4) -> MWH20-M | F186: =INDEX(ATS!$A:$P,MATCH('2) Order Form'!$W186,ATS!$O:$O,0),5) -> Matte White | G186: =INDEX(ATS!$A:$P,MATCH('2) Order Form'!$W186,ATS!$O:$O,0),6) -> M | H186: 1 | I186: 0 | J186: =IFERROR(VLOOKUP(W186,ATS!$O:$P,2,FALSE),0) -> 13 | K186: 13 | L186: =IFERROR(VLOOKUP(W186,ATS!$O:$Q,3,FALSE),0) -> 13 | M186: 13 | N186: 0% | O186: 0% | P186: =VLOOKUP($C186,Prices!$A$3:$R$1996,MATCH('2) Order Form'!P$8,Prices!$A$2:$R$2,0),FALSE) -> 100.00 | Q186: =VLOOKUP($C186,Prices!$A$3:$R$1996,MATCH('2) Order Form'!Q$8,Prices!$A$2:$R$2,0),FALSE) -> 199.95 | R186: 0 | S186: 0 | T186: 0 | U186: 0% | W186: 7048652555540 | Y186: 0 | Z186: 0 | AA186: 12 | AB186: 0 | AC186: 1 | AD186: 845075Matte White | AE186: 845075 | AF186: =INDEX(ATS!$A:$P,MATCH('2) Order Form'!$W186,ATS!$O:$O,0),7) -> Active
A187: 1 | B187: =VLOOKUP(A187,Classification!$H$2:$I$11,2,FALSE) -> Helmets & Helmet Acc. | C187: =INDEX(ATS!$A:$P,MATCH('2) Order Form'!$W187,ATS!$O:$O,0),1) -> 845075 | D187: =INDEX(ATS!$A:$P,MATCH('2) Order Form'!$W187,ATS!$O:$O,0),2) -> Falconer II Helmet | E187: =INDEX(ATS!$A:$P,MATCH('2) Order Form'!$W187,ATS!$O:$O,0),4) -> MWH20-L | F187: =INDEX(ATS!$A:$P,MATCH('2) Order Form'!$W187,ATS!$O:$O,0),5) -> Matte White | G187: =INDEX(ATS!$A:$P,MATCH('2) Order Form'!$W187,ATS!$O:$O,0),6) -> L | H187: 1 | I187: 0 | J187: =IFERROR(VLOOKUP(W187,ATS!$O:$P,2,FALSE),0) -> 41 | K187: 41 | L187: =IFERROR(VLOOKUP(W187,ATS!$O:$Q,3,FALSE),0) -> 41 | M187: 41 | N187: 0% | O187: 0% | P187: =VLOOKUP($C187,Prices!$A$3:$R$1996,MATCH('2) Order Form'!P$8,Prices!$A$2:$R$2,0),FALSE) -> 100.00 | Q187: =VLOOKUP($C187,Prices!$A$3:$R$1996,MATCH('2) Order Form'!Q$8,Prices!$A$2:$R$2,0),FALSE) -> 199.95 | R187: 0 | S187: 0 | T187: 0 | U187: 0% | W187: 7048652555533 | Y187: 0 | Z187: 0 | AA187: 12 | AB187: 0 | AC187: 0 | AD187: 845075Matte White | AE187: 845075 | AF187: =INDEX(ATS!$A:$P,MATCH('2) Order Form'!$W187,ATS!$O:$O,0),7) -> Active
A188: 1 | B188: =VLOOKUP(A188,Classification!$H$2:$I$11,2,FALSE) -> Helmets & Helmet Acc. | C188: =INDEX(ATS!$A:$P,MATCH('2) Order Form'!$W188,ATS!$O:$O,0),1) -> 845075 | D188: =INDEX(ATS!$A:$P,MATCH('2) Order Form'!$W188,ATS!$O:$O,0),2) -> Falconer II Helmet | E188: =INDEX(ATS!$A:$P,MATCH('2) Order Form'!$W188,ATS!$O:$O,0),4) -> SKBLM-M | F188: =INDEX(ATS!$A:$P,MATCH('2) Order Form'!$W188,ATS!$O:$O,0),5) -> Sky Blue Metallic | G188: =INDEX(ATS!$A:$P,MATCH('2) Order Form'!$W188,ATS!$O:$O,0),6) -> M | H188: 1 | I188: 0 | J188: =IFERROR(VLOOKUP(W188,ATS!$O:$P,2,FALSE),0) -> 20 | K188: =IF(J188=99999,"OPEN",IF(J188>50,"50+",IF(J188<=0,"0",J188))) -> 20 | L188: =IFERROR(VLOOKUP(W188,ATS!$O:$Q,3,FALSE),0) -> 20 | M188: =IF(L188=99999,"OPEN",IF(L188>50,"50+",IF(L188<=0,"0",L188))) -> 20 | N188: 0% | O188: =IF(N188<>0,N188,$P$5) -> 0% | P188: =VLOOKUP($C188,Prices!$A$3:$R$1996,MATCH('2) Order Form'!P$8,Prices!$A$2:$R$2,0),FALSE) -> 100.00 | Q188: =VLOOKUP($C188,Prices!$A$3:$R$1996,MATCH('2) Order Form'!Q$8,Prices!$A$2:$R$2,0),FALSE) -> 199.95 | R188: =I188*P188 -> 0 | S188: =R188*O188 -> 0 | T188: =R188-S188 -> 0 | U188: 0% | W188: 7048652766816 | Y188: 0 | Z188: 0 | AA188: 12 | AB188: 0 | AC188: 1 | AD188: 845075Sky Blue Metallic | AE188: 845075 | AF188: =INDEX(ATS!$A:$P,MATCH('2) Order Form'!$W188,ATS!$O:$O,0),7) -> Active
A189: 1 | B189: =VLOOKUP(A189,Classification!$H$2:$I$11,2,FALSE) -> Helmets & Helmet Acc. | C189: =INDEX(ATS!$A:$P,MATCH('2) Order Form'!$W189,ATS!$O:$O,0),1) -> 845075 | D189: =INDEX(ATS!$A:$P,MATCH('2) Order Form'!$W189,ATS!$O:$O,0),2) -> Falconer II Helmet | E189: =INDEX(ATS!$A:$P,MATCH('2) Order Form'!$W189,ATS!$O:$O,0),4) -> SKBLM-L | F189: =INDEX(ATS!$A:$P,MATCH('2) Order Form'!$W189,ATS!$O:$O,0),5) -> Sky Blue Metallic | G189: =INDEX(ATS!$A:$P,MATCH('2) Order Form'!$W189,ATS!$O:$O,0),6) -> L | H189: 1 | I189: 0 | J189: =IFERROR(VLOOKUP(W189,ATS!$O:$P,2,FALSE),0) -> 20 | K189: 20 | L189: =IFERROR(VLOOKUP(W189,ATS!$O:$Q,3,FALSE),0) -> 20 | M189: 20 | N189: 0% | O189: 0% | P189: =VLOOKUP($C189,Prices!$A$3:$R$1996,MATCH('2) Order Form'!P$8,Prices!$A$2:$R$2,0),FALSE) -> 100.00 | Q189: =VLOOKUP($C189,Prices!$A$3:$R$1996,MATCH('2) Order Form'!Q$8,Prices!$A$2:$R$2,0),FALSE) -> 199.95 | R189: 0 | S189: 0 | T189: 0 | U189: 0% | W189: 7048652766809 | Y189: 0 | Z189: 0 | AA189: 12 | AB189: 0 | AC189: 0 | AD189: 845075Sky Blue Metallic | AE189: 845075 | AF189: =INDEX(ATS!$A:$P,MATCH('2) Order Form'!$W189,ATS!$O:$O,0),7) -> Active
A190: 1 | B190: =VLOOKUP(A190,Classification!$H$2:$I$11,2,FALSE) -> Helmets & Helmet Acc. | C190: =INDEX(ATS!$A:$P,MATCH('2) Order Form'!$W190,ATS!$O:$O,0),1) -> 845075 | D190: =INDEX(ATS!$A:$P,MATCH('2) Order Form'!$W190,ATS!$O:$O,0),2) -> Falconer II Helmet | E190: =INDEX(ATS!$A:$P,MATCH('2) Order Form'!$W190,ATS!$O:$O,0),4) -> SGMFL-M | F190: =INDEX(ATS!$A:$P,MATCH('2) Order Form'!$W190,ATS!$O:$O,0),5) -> Slate Gray Metallic/Fluo | G190: =INDEX(ATS!$A:$P,MATCH('2) Order Form'!$W190,ATS!$O:$O,0),6) -> M | H190: 1 | I190: 0 | J190: =IFERROR(VLOOKUP(W190,ATS!$O:$P,2,FALSE),0) -> 20 | K190: 20 | L190: =IFERROR(VLOOKUP(W190,ATS!$O:$Q,3,FALSE),0) -> 20 | M190: 20 | N190: 0% | O190: 0% | P190: =VLOOKUP($C190,Prices!$A$3:$R$1996,MATCH('2) Order Form'!P$8,Prices!$A$2:$R$2,0),FALSE) -> 100.00 | Q190: =VLOOKUP($C190,Prices!$A$3:$R$1996,MATCH('2) Order Form'!Q$8,Prices!$A$2:$R$2,0),FALSE) -> 199.95 | R190: 0 | S190: 0 | T190: 0 | U190: 0% | W190: 7048652766793 | Y190: 0 | Z190: 0 | AA190: 12 | AB190: 0 | AC190: 1 | AD190: 845075Slate Gray Metallic/Fluo | AE190: 845075 | AF190: =INDEX(ATS!$A:$P,MATCH('2) Order Form'!$W190,ATS!$O:$O,0),7) -> Active
A191: 1 | B191: =VLOOKUP(A191,Classification!$H$2:$I$11,2,FALSE) -> Helmets & Helmet Acc. | C191: =INDEX(ATS!$A:$P,MATCH('2) Order Form'!$W191,ATS!$O:$O,0),1) -> 845075 | D191: =INDEX(ATS!$A:$P,MATCH('2) Order Form'!$W191,ATS!$O:$O,0),2) -> Falconer II Helmet | E191: =INDEX(ATS!$A:$P,MATCH('2) Order Form'!$W191,ATS!$O:$O,0),4) -> SGMFL-L | F191: =INDEX(ATS!$A:$P,MATCH('2) Order Form'!$W191,ATS!$O:$O,0),5) -> Slate Gray Metallic/Fluo | G191: =INDEX(ATS!$A:$P,MATCH('2) Order Form'!$W191,ATS!$O:$O,0),6) -> L | H191: 1 | I191: 0 | J191: =IFERROR(VLOOKUP(W191,ATS!$O:$P,2,FALSE),0) -> 16 | K191: 16 | L191: =IFERROR(VLOOKUP(W191,ATS!$O:$Q,3,FALSE),0) -> 16 | M191: 16 | N191: 0% | O191: 0% | P191: =VLOOKUP($C191,Prices!$A$3:$R$1996,MATCH('2) Order Form'!P$8,Prices!$A$2:$R$2,0),FALSE) -> 100.00 | Q191: =VLOOKUP($C191,Prices!$A$3:$R$1996,MATCH('2) Order Form'!Q$8,Prices!$A$2:$R$2,0),FALSE) -> 199.95 | R191: 0 | S191: 0 | T191: 0 | U191: 0% | W191: 7048652766786 | Y191: 0 | Z191: 0 | AA191: 12 | AB191: 0 | AC191: 0 | AD191: 845075Slate Gray Metallic/Fluo | AE191: 845075 | AF191: =INDEX(ATS!$A:$P,MATCH('2) Order Form'!$W191,ATS!$O:$O,0),7) -> Active
A192: 1 | B192: =VLOOKUP(A192,Classification!$H$2:$I$11,2,FALSE) -> Helmets & Helmet Acc. | C192: =INDEX(ATS!$A:$P,MATCH('2) Order Form'!$W192,ATS!$O:$O,0),1) -> 845082 | D192: =INDEX(ATS!$A:$P,MATCH('2) Order Form'!$W192,ATS!$O:$O,0),2) -> Outrider Mips Helmet | E192: =INDEX(ATS!$A:$P,MATCH('2) Order Form'!$W192,ATS!$O:$O,0),4) -> BGRRG-S | F192: =INDEX(ATS!$A:$P,MATCH('2) Order Form'!$W192,ATS!$O:$O,0),5) -> Bolt Gray/Rose Gold | G192: =INDEX(ATS!$A:$P,MATCH('2) Order Form'!$W192,ATS!$O:$O,0),6) -> S | H192: 1 | I192: 0 | J192: =IFERROR(VLOOKUP(W192,ATS!$O:$P,2,FALSE),0) -> 12 | K192: =IF(J192=99999,"OPEN",IF(J192>50,"50+",IF(J192<=0,"0",J192))) -> 12 | L192: =IFERROR(VLOOKUP(W192,ATS!$O:$Q,3,FALSE),0) -> 12 | M192: =IF(L192=99999,"OPEN",IF(L192>50,"50+",IF(L192<=0,"0",L192))) -> 12 | N192: 0% | O192: =IF(N192<>0,N192,$P$5) -> 0% | P192: =VLOOKUP($C192,Prices!$A$3:$R$1996,MATCH('2) Order Form'!P$8,Prices!$A$2:$R$2,0),FALSE) -> 75.00 | Q192: =VLOOKUP($C192,Prices!$A$3:$R$1996,MATCH('2) Order Form'!Q$8,Prices!$A$2:$R$2,0),FALSE) -> 149.95 | R192: =I192*P192 -> 0 | S192: =R192*O192 -> 0 | T192: =R192-S192 -> 0 | U192: 0% | W192: 7048652767226 | Y192: =I192*Q192 -> 0 | Z192: =IF(A192=OFFSET(A192,-1,0),0,1) -> 0 | AA192: =IF(C192=OFFSET(C192,-1,0),OFFSET(AA192,-1,0),OFFSET(AA192,-1,0)+1) -> 13 | AB192: =IF(C192=OFFSET(C192,-1,0),0,1) -> 1 | AC192: =IF(F192=OFFSET(F192,-1,0),0,1) -> 1 | AD192: =CONCATENATE(C192,F192) -> 845082Bolt Gray/Rose Gold | AE192: =IFERROR(IF(B192="EYEWEAR",CONCATENATE(C192,"-",G192),C192),C192) -> 845082 | AF192: =INDEX(ATS!$A:$P,MATCH('2) Order Form'!$W192,ATS!$O:$O,0),7) -> Stock
A193: 1 | B193: =VLOOKUP(A193,Classification!$H$2:$I$11,2,FALSE) -> Helmets & Helmet Acc. | C193: =INDEX(ATS!$A:$P,MATCH('2) Order Form'!$W193,ATS!$O:$O,0),1) -> 845082 | D193: =INDEX(ATS!$A:$P,MATCH('2) Order Form'!$W193,ATS!$O:$O,0),2) -> Outrider Mips Helmet | E193: =INDEX(ATS!$A:$P,MATCH('2) Order Form'!$W193,ATS!$O:$O,0),4) -> BGRRG-M | F193: =INDEX(ATS!$A:$P,MATCH('2) Order Form'!$W193,ATS!$O:$O,0),5) -> Bolt Gray/Rose Gold | G193: =INDEX(ATS!$A:$P,MATCH('2) Order Form'!$W193,ATS!$O:$O,0),6) -> M | H193: 1 | I193: 0 | J193: =IFERROR(VLOOKUP(W193,ATS!$O:$P,2,FALSE),0) -> 5 | K193: 5 | L193: =IFERROR(VLOOKUP(W193,ATS!$O:$Q,3,FALSE),0) -> 5 | M193: 5 | N193: 0% | O193: 0% | P193: =VLOOKUP($C193,Prices!$A$3:$R$1996,MATCH('2) Order Form'!P$8,Prices!$A$2:$R$2,0),FALSE) -> 75.00 | Q193: =VLOOKUP($C193,Prices!$A$3:$R$1996,MATCH('2) Order Form'!Q$8,Prices!$A$2:$R$2,0),FALSE) -> 149.95 | R193: 0 | S193: 0 | T193: 0 | U193: 0% | W193: 7048652767219 | Y193: 0 | Z193: 0 | AA193: 13 | AB193: 0 | AC193: 0 | AD193: 845082Bolt Gray/Rose Gold | AE193: 845082 | AF193: =INDEX(ATS!$A:$P,MATCH('2) Order Form'!$W193,ATS!$O:$O,0),7) -> Stock
A194: 1 | B194: =VLOOKUP(A194,Classification!$H$2:$I$11,2,FALSE) -> Helmets & Helmet Acc. | C194: =INDEX(ATS!$A:$P,MATCH('2) Order Form'!$W194,ATS!$O:$O,0),1) -> 845082 | D194: =INDEX(ATS!$A:$P,MATCH('2) Order Form'!$W194,ATS!$O:$O,0),2) -> Outrider Mips Helmet | E194: =INDEX(ATS!$A:$P,MATCH('2) Order Form'!$W194,ATS!$O:$O,0),4) -> BGRRG-L | F194: =INDEX(ATS!$A:$P,MATCH('2) Order Form'!$W194,ATS!$O:$O,0),5) -> Bolt Gray/Rose Gold | G194: =INDEX(ATS!$A:$P,MATCH('2) Order Form'!$W194,ATS!$O:$O,0),6) -> L | H194: 1 | I194: 0 | J194: =IFERROR(VLOOKUP(W194,ATS!$O:$P,2,FALSE),0) -> 2 | K194: 2 | L194: =IFERROR(VLOOKUP(W194,ATS!$O:$Q,3,FALSE),0) -> 2 | M194: 2 | N194: 0% | O194: 0% | P194: =VLOOKUP($C194,Prices!$A$3:$R$1996,MATCH('2) Order Form'!P$8,Prices!$A$2:$R$2,0),FALSE) -> 75.00 | Q194: =VLOOKUP($C194,Prices!$A$3:$R$1996,MATCH('2) Order Form'!Q$8,Prices!$A$2:$R$2,0),FALSE) -> 149.95 | R194: 0 | S194: 0 | T194: 0 | U194: 0% | W194: 7048652767202 | Y194: 0 | Z194: 0 | AA194: 13 | AB194: 0 | AC194: 0 | AD194: 845082Bolt Gray/Rose Gold | AE194: 845082 | AF194: =INDEX(ATS!$A:$P,MATCH('2) Order Form'!$W194,ATS!$O:$O,0),7) -> Stock
A195: 1 | B195: =VLOOKUP(A195,Classification!$H$2:$I$11,2,FALSE) -> Helmets & Helmet Acc. | C195: =INDEX(ATS!$A:$P,MATCH('2) Order Form'!$W195,ATS!$O:$O,0),1) -> 845082 | D195: =INDEX(ATS!$A:$P,MATCH('2) Order Form'!$W195,ATS!$O:$O,0),2) -> Outrider Mips Helmet | E195: =INDEX(ATS!$A:$P,MATCH('2) Order Form'!$W195,ATS!$O:$O,0),4) -> BRWHT-S | F195: =INDEX(ATS!$A:$P,MATCH('2) Order Form'!$W195,ATS!$O:$O,0),5) -> Bronco White | G195: =INDEX(ATS!$A:$P,MATCH('2) Order Form'!$W195,ATS!$O:$O,0),6) -> S | H195: 1 | I195: 0 | J195: =IFERROR(VLOOKUP(W195,ATS!$O:$P,2,FALSE),0) -> 71 | K195: 50+ | L195: =IFERROR(VLOOKUP(W195,ATS!$O:$Q,3,FALSE),0) -> 71 | M195: 50+ | N195: 0% | O195: 0% | P195: =VLOOKUP($C195,Prices!$A$3:$R$1996,MATCH('2) Order Form'!P$8,Prices!$A$2:$R$2,0),FALSE) -> 75.00 | Q195: =VLOOKUP($C195,Prices!$A$3:$R$1996,MATCH('2) Order Form'!Q$8,Prices!$A$2:$R$2,0),FALSE) -> 149.95 | R195: 0 | S195: 0 | T195: 0 | U195: 0% | W195: 7048652767257 | Y195: 0 | Z195: 0 | AA195: 13 | AB195: 0 | AC195: 1 | AD195: 845082Bronco White | AE195: 845082 | AF195: =INDEX(ATS!$A:$P,MATCH('2) Order Form'!$W195,ATS!$O:$O,0),7) -> Stock
A196: 1 | B196: =VLOOKUP(A196,Classification!$H$2:$I$11,2,FALSE) -> Helmets & Helmet Acc. | C196: =INDEX(ATS!$A:$P,MATCH('2) Order Form'!$W196,ATS!$O:$O,0),1) -> 845082 | D196: =INDEX(ATS!$A:$P,MATCH('2) Order Form'!$W196,ATS!$O:$O,0),2) -> Outrider Mips Helmet | E196: =INDEX(ATS!$A:$P,MATCH('2) Order Form'!$W196,ATS!$O:$O,0),4) -> BRWHT-M | F196: =INDEX(ATS!$A:$P,MATCH('2) Order Form'!$W196,ATS!$O:$O,0),5) -> Bronco White | G196: =INDEX(ATS!$A:$P,MATCH('2) Order Form'!$W196,ATS!$O:$O,0),6) -> M | H196: 1 | I196: 0 | J196: =IFERROR(VLOOKUP(W196,ATS!$O:$P,2,FALSE),0) -> 13 | K196: 13 | L196: =IFERROR(VLOOKUP(W196,ATS!$O:$Q,3,FALSE),0) -> 13 | M196: 13 | N196: 0% | O196: 0% | P196: =VLOOKUP($C196,Prices!$A$3:$R$1996,MATCH('2) Order Form'!P$8,Prices!$A$2:$R$2,0),FALSE) -> 75.00 | Q196: =VLOOKUP($C196,Prices!$A$3:$R$1996,MATCH('2) Order Form'!Q$8,Prices!$A$2:$R$2,0),FALSE) -> 149.95 | R196: 0 | S196: 0 | T196: 0 | U196: 0% | W196: 7048652767240 | Y196: 0 | Z196: 0 | AA196: 13 | AB196: 0 | AC196: 0 | AD196: 845082Bronco White | AE196: 845082 | AF196: =INDEX(ATS!$A:$P,MATCH('2) Order Form'!$W196,ATS!$O:$O,0),7) -> Stock
A197: 1 | B197: =VLOOKUP(A197,Classification!$H$2:$I$11,2,FALSE) -> Helmets & Helmet Acc. | C197: =INDEX(ATS!$A:$P,MATCH('2) Order Form'!$W197,ATS!$O:$O,0),1) -> 845082 | D197: =INDEX(ATS!$A:$P,MATCH('2) Order Form'!$W197,ATS!$O:$O,0),2) -> Outrider Mips Helmet | E197: =INDEX(ATS!$A:$P,MATCH('2) Order Form'!$W197,ATS!$O:$O,0),4) -> BRWHT-L | F197: =INDEX(ATS!$A:$P,MATCH('2) Order Form'!$W197,ATS!$O:$O,0),5) -> Bronco White | G197: =INDEX(ATS!$A:$P,MATCH('2) Order Form'!$W197,ATS!$O:$O,0),6) -> L | H197: 1 | I197: 0 | J197: =IFERROR(VLOOKUP(W197,ATS!$O:$P,2,FALSE),0) -> 38 | K197: 38 | L197: =IFERROR(VLOOKUP(W197,ATS!$O:$Q,3,FALSE),0) -> 38 | M197: 38 | N197: 0% | O197: 0% | P197: =VLOOKUP($C197,Prices!$A$3:$R$1996,MATCH('2) Order Form'!P$8,Prices!$A$2:$R$2,0),FALSE) -> 75.00 | Q197: =VLOOKUP($C197,Prices!$A$3:$R$1996,MATCH('2) Order Form'!Q$8,Prices!$A$2:$R$2,0),FALSE) -> 149.95 | R197: 0 | S197: 0 | T197: 0 | U197: 0% | W197: 7048652767233 | Y197: 0 | Z197: 0 | AA197: 13 | AB197: 0 | AC197: 0 | AD197: 845082Bronco White | AE197: 845082 | AF197: =INDEX(ATS!$A:$P,MATCH('2) Order Form'!$W197,ATS!$O:$O,0),7) -> Stock
A198: 1 | B198: =VLOOKUP(A198,Classification!$H$2:$I$11,2,FALSE) -> Helmets & Helmet Acc. | C198: =INDEX(ATS!$A:$P,MATCH('2) Order Form'!$W198,ATS!$O:$O,0),1) -> 845082 | D198: =INDEX(ATS!$A:$P,MATCH('2) Order Form'!$W198,ATS!$O:$O,0),2) -> Outrider Mips Helmet | E198: =INDEX(ATS!$A:$P,MATCH('2) Order Form'!$W198,ATS!$O:$O,0),4) -> BUORE-S | F198: =INDEX(ATS!$A:$P,MATCH('2) Order Form'!$W198,ATS!$O:$O,0),5) -> Burning Orange | G198: =INDEX(ATS!$A:$P,MATCH('2) Order Form'!$W198,ATS!$O:$O,0),6) -> S | H198: 1 | I198: 0 | J198: =IFERROR(VLOOKUP(W198,ATS!$O:$P,2,FALSE),0) -> 43 | K198: 43 | L198: =IFERROR(VLOOKUP(W198,ATS!$O:$Q,3,FALSE),0) -> 43 | M198: 43 | N198: 0% | O198: 0% | P198: =VLOOKUP($C198,Prices!$A$3:$R$1996,MATCH('2) Order Form'!P$8,Prices!$A$2:$R$2,0),FALSE) -> 75.00 | Q198: =VLOOKUP($C198,Prices!$A$3:$R$1996,MATCH('2) Order Form'!Q$8,Prices!$A$2:$R$2,0),FALSE) -> 149.95 | R198: 0 | S198: 0 | T198: 0 | U198: 0% | W198: 7048652767288 | Y198: 0 | Z198: 0 | AA198: 13 | AB198: 0 | AC198: 1 | AD198: 845082Burning Orange | AE198: 845082 | AF198: =INDEX(ATS!$A:$P,MATCH('2) Order Form'!$W198,ATS!$O:$O,0),7) -> Stock
A199: 1 | B199: =VLOOKUP(A199,Classification!$H$2:$I$11,2,FALSE) -> Helmets & Helmet Acc. | C199: =INDEX(ATS!$A:$P,MATCH('2) Order Form'!$W199,ATS!$O:$O,0),1) -> 845082 | D199: =INDEX(ATS!$A:$P,MATCH('2) Order Form'!$W199,ATS!$O:$O,0),2) -> Outrider Mips Helmet | E199: =INDEX(ATS!$A:$P,MATCH('2) Order Form'!$W199,ATS!$O:$O,0),4) -> BUORE-M | F199: =INDEX(ATS!$A:$P,MATCH('2) Order Form'!$W199,ATS!$O:$O,0),5) -> Burning Orange | G199: =INDEX(ATS!$A:$P,MATCH('2) Order Form'!$W199,ATS!$O:$O,0),6) -> M | H199: 1 | I199: 0 | J199: =IFERROR(VLOOKUP(W199,ATS!$O:$P,2,FALSE),0) -> 84 | K199: 50+ | L199: =IFERROR(VLOOKUP(W199,ATS!$O:$Q,3,FALSE),0) -> 84 | M199: 50+ | N199: 0% | O199: 0% | P199: =VLOOKUP($C199,Prices!$A$3:$R$1996,MATCH('2) Order Form'!P$8,Prices!$A$2:$R$2,0),FALSE) -> 75.00 | Q199: =VLOOKUP($C199,Prices!$A$3:$R$1996,MATCH('2) Order Form'!Q$8,Prices!$A$2:$R$2,0),FALSE) -> 149.95 | R199: 0 | S199: 0 | T199: 0 | U199: 0% | W199: 7048652767271 | Y199: 0 | Z199: 0 | AA199: 13 | AB199: 0 | AC199: 0 | AD199: 845082Burning Orange | AE199: 845082 | AF199: =INDEX(ATS!$A:$P,MATCH('2) Order Form'!$W199,ATS!$O:$O,0),7) -> Stock
A200: 1 | B200: =VLOOKUP(A200,Classification!$H$2:$I$11,2,FALSE) -> Helmets & Helmet Acc. | C200: =INDEX(ATS!$A:$P,MATCH('2) Order Form'!$W200,ATS!$O:$O,0),1) -> 845082 | D200: =INDEX(ATS!$A:$P,MATCH('2) Order Form'!$W200,ATS!$O:$O,0),2) -> Outrider Mips Helmet | E200: =INDEX(ATS!$A:$P,MATCH('2) Order Form'!$W200,ATS!$O:$O,0),4) -> BUORE-L | F200: =INDEX(ATS!$A:$P,MATCH('2) Order Form'!$W200,ATS!$O:$O,0),5) -> Burning Orange | G200: =INDEX(ATS!$A:$P,MATCH('2) Order Form'!$W200,ATS!$O:$O,0),6) -> L | H200: 1 | I200: 0 | J200: =IFERROR(VLOOKUP(W200,ATS!$O:$P,2,FALSE),0) -> 59 | K200: 50+ | L200: =IFERROR(VLOOKUP(W200,ATS!$O:$Q,3,FALSE),0) -> 59 | M200: 50+ | N200: 0% | O200: 0% | P200: =VLOOKUP($C200,Prices!$A$3:$R$1996,MATCH('2) Order Form'!P$8,Prices!$A$2:$R$2,0),FALSE) -> 75.00 | Q200: =VLOOKUP($C200,Prices!$A$3:$R$1996,MATCH('2) Order Form'!Q$8,Prices!$A$2:$R$2,0),FALSE) -> 149.95 | R200: 0 | S200: 0 | T200: 0 | U200: 0% | W200: 7048652767264 | Y200: 0 | Z200: 0 | AA200: 13 | AB200: 0 | AC200: 0 | AD200: 845082Burning Orange | AE200: 845082 | AF200: =INDEX(ATS!$A:$P,MATCH('2) Order Form'!$W200,ATS!$O:$O,0),7) -> Stock
A201: 1 | B201: =VLOOKUP(A201,Classification!$H$2:$I$11,2,FALSE) -> Helmets & Helmet Acc. | C201: =INDEX(ATS!$A:$P,MATCH('2) Order Form'!$W201,ATS!$O:$O,0),1) -> 845082 | D201: =INDEX(ATS!$A:$P,MATCH('2) Order Form'!$W201,ATS!$O:$O,0),2) -> Outrider Mips Helmet | E201: =INDEX(ATS!$A:$P,MATCH('2) Order Form'!$W201,ATS!$O:$O,0),4) -> MBL20-S | F201: =INDEX(ATS!$A:$P,MATCH('2) Order Form'!$W201,ATS!$O:$O,0),5) -> Matte Black | G201: =INDEX(ATS!$A:$P,MATCH('2) Order Form'!$W201,ATS!$O:$O,0),6) -> S | H201: 1 | I201: 0 | J201: =IFERROR(VLOOKUP(W201,ATS!$O:$P,2,FALSE),0) -> 362 | K201: 50+ | L201: =IFERROR(VLOOKUP(W201,ATS!$O:$Q,3,FALSE),0) -> 362 | M201: 50+ | N201: 0% | O201: 0% | P201: =VLOOKUP($C201,Prices!$A$3:$R$1996,MATCH('2) Order Form'!P$8,Prices!$A$2:$R$2,0),FALSE) -> 75.00 | Q201: =VLOOKUP($C201,Prices!$A$3:$R$1996,MATCH('2) Order Form'!Q$8,Prices!$A$2:$R$2,0),FALSE) -> 149.95 | R201: 0 | S201: 0 | T201: 0 | U201: =IFERROR(I201/($I$161+$I$162+$I$163),0) -> 0% | W201: 7048652555526 | Y201: 0 | Z201: 0 | AA201: 13 | AB201: 0 | AC201: 1 | AD201: 845082Matte Black | AE201: 845082 | AF201: =INDEX(ATS!$A:$P,MATCH('2) Order Form'!$W201,ATS!$O:$O,0),7) -> Active
A202: 1 | B202: =VLOOKUP(A202,Classification!$H$2:$I$11,2,FALSE) -> Helmets & Helmet Acc. | C202: =INDEX(ATS!$A:$P,MATCH('2) Order Form'!$W202,ATS!$O:$O,0),1) -> 845082 | D202: =INDEX(ATS!$A:$P,MATCH('2) Order Form'!$W202,ATS!$O:$O,0),2) -> Outrider Mips Helmet | E202: =INDEX(ATS!$A:$P,MATCH('2) Order Form'!$W202,ATS!$O:$O,0),4) -> MBL20-M | F202: =INDEX(ATS!$A:$P,MATCH('2) Order Form'!$W202,ATS!$O:$O,0),5) -> Matte Black | G202: =INDEX(ATS!$A:$P,MATCH('2) Order Form'!$W202,ATS!$O:$O,0),6) -> M | H202: 1 | I202: 0 | J202: =IFERROR(VLOOKUP(W202,ATS!$O:$P,2,FALSE),0) -> 1313 | K202: 50+ | L202: =IFERROR(VLOOKUP(W202,ATS!$O:$Q,3,FALSE),0) -> 1313 | M202: 50+ | N202: 0% | O202: 0% | P202: =VLOOKUP($C202,Prices!$A$3:$R$1996,MATCH('2) Order Form'!P$8,Prices!$A$2:$R$2,0),FALSE) -> 75.00 | Q202: =VLOOKUP($C202,Prices!$A$3:$R$1996,MATCH('2) Order Form'!Q$8,Prices!$A$2:$R$2,0),FALSE) -> 149.95 | R202: 0 | S202: 0 | T202: 0 | U202: 0% | W202: 7048652555519 | Y202: 0 | Z202: 0 | AA202: 13 | AB202: 0 | AC202: 0 | AD202: 845082Matte Black | AE202: 845082 | AF202: =INDEX(ATS!$A:$P,MATCH('2) Order Form'!$W202,ATS!$O:$O,0),7) -> Active
... 686 more rows

Sheet ELASTIC
A1: EAN-code | B1: ORDER QTY | F1: Control
A2: =SUM('2) Order Form'!W9) -> 7048652766632 | B2: =SUM('2) Order Form'!I9) -> 0 | E2: Sum qty | F2: =SUM(B2:B2327) -> 
A3: =SUM('2) Order Form'!W10) -> 7048652766625 | B3: =SUM('2) Order Form'!I10) -> 0 | E3: Sum from order form | F3: ='2) Order Form'!S2:S2 -> 0
A4: =SUM('2) Order Form'!W11) -> 7048652766656 | B4: =SUM('2) Order Form'!I11) -> 0 | E4: Deviation | F4: =F2-F3 -> 
A5: =SUM('2) Order Form'!W12) -> 7048652766649 | B5: =SUM('2) Order Form'!I12) -> 0
A6: =SUM('2) Order Form'!W13) -> 7048652273154 | B6: =SUM('2) Order Form'!I13) -> 0
A7: =SUM('2) Order Form'!W14) -> 7048652273147 | B7: =SUM('2) Order Form'!I14) -> 0
A8: =SUM('2) Order Form'!W15) -> 7048652766670 | B8: =SUM('2) Order Form'!I15) -> 0
A9: =SUM('2) Order Form'!W16) -> 7048652766663 | B9: =SUM('2) Order Form'!I16) -> 0
A10: =SUM('2) Order Form'!W17) -> 7048652767554 | B10: =SUM('2) Order Form'!I17) -> 0
A11: =SUM('2) Order Form'!W18) -> 7048652767547 | B11: =SUM('2) Order Form'!I18) -> 0
A12: =SUM('2) Order Form'!W19) -> 7048652767530 | B12: =SUM('2) Order Form'!I19) -> 0
A13: =SUM('2) Order Form'!W20) -> 7048652767585 | B13: =SUM('2) Order Form'!I20) -> 0
A14: =SUM('2) Order Form'!W21) -> 7048652767578 | B14: =SUM('2) Order Form'!I21) -> 0
A15: =SUM('2) Order Form'!W22) -> 7048652767561 | B15: =SUM('2) Order Form'!I22) -> 0
A16: =SUM('2) Order Form'!W23) -> 7048652540409 | B16: =SUM('2) Order Form'!I23) -> 0
A17: =SUM('2) Order Form'!W24) -> 7048652540393 | B17: =SUM('2) Order Form'!I24) -> 0
A18: =SUM('2) Order Form'!W25) -> 7048652540386 | B18: =SUM('2) Order Form'!I25) -> 0
A19: =SUM('2) Order Form'!W26) -> 7048652767615 | B19: =SUM('2) Order Form'!I26) -> 0
A20: =SUM('2) Order Form'!W27) -> 7048652767608 | B20: =SUM('2) Order Form'!I27) -> 0
A21: =SUM('2) Order Form'!W28) -> 7048652767592 | B21: =SUM('2) Order Form'!I28) -> 0
A22: =SUM('2) Order Form'!W29) -> 7048652540522 | B22: =SUM('2) Order Form'!I29) -> 0
A23: =SUM('2) Order Form'!W30) -> 7048652540515 | B23: =SUM('2) Order Form'!I30) -> 0
A24: =SUM('2) Order Form'!W31) -> 7048652540508 | B24: =SUM('2) Order Form'!I31) -> 0
A25: =SUM('2) Order Form'!W32) -> 7048652767646 | B25: =SUM('2) Order Form'!I32) -> 0
A26: =SUM('2) Order Form'!W33) -> 7048652767639 | B26: =SUM('2) Order Form'!I33) -> 0
A27: =SUM('2) Order Form'!W34) -> 7048652767622 | B27: =SUM('2) Order Form'!I34) -> 0
A28: =SUM('2) Order Form'!W35) -> 7048652767431 | B28: =SUM('2) Order Form'!I35) -> 0
A29: =SUM('2) Order Form'!W36) -> 7048652767424 | B29: =SUM('2) Order Form'!I36) -> 0
A30: =SUM('2) Order Form'!W37) -> 7048652767417 | B30: =SUM('2) Order Form'!I37) -> 0
A31: =SUM('2) Order Form'!W38) -> 7048652767462 | B31: =SUM('2) Order Form'!I38) -> 0
A32: =SUM('2) Order Form'!W39) -> 7048652767455 | B32: =SUM('2) Order Form'!I39) -> 0
A33: =SUM('2) Order Form'!W40) -> 7048652767448 | B33: =SUM('2) Order Form'!I40) -> 0
A34: =SUM('2) Order Form'!W41) -> 7048652540225 | B34: =SUM('2) Order Form'!I41) -> 0
A35: =SUM('2) Order Form'!W42) -> 7048652540218 | B35: =SUM('2) Order Form'!I42) -> 0
A36: =SUM('2) Order Form'!W43) -> 7048652540201 | B36: =SUM('2) Order Form'!I43) -> 0
A37: =SUM('2) Order Form'!W44) -> 7048652767493 | B37: =SUM('2) Order Form'!I44) -> 0
A38: =SUM('2) Order Form'!W45) -> 7048652767486 | B38: =SUM('2) Order Form'!I45) -> 0
A39: =SUM('2) Order Form'!W46) -> 7048652767479 | B39: =SUM('2) Order Form'!I46) -> 0
A40: =SUM('2) Order Form'!W47) -> 7048652540348 | B40: =SUM('2) Order Form'!I47) -> 0
A41: =SUM('2) Order Form'!W48) -> 7048652540331 | B41: =SUM('2) Order Form'!I48) -> 0
A42: =SUM('2) Order Form'!W49) -> 7048652540324 | B42: =SUM('2) Order Form'!I49) -> 0
A43: =SUM('2) Order Form'!W50) -> 7048652767523 | B43: =SUM('2) Order Form'!I50) -> 0
A44: =SUM('2) Order Form'!W51) -> 7048652767516 | B44: =SUM('2) Order Form'!I51) -> 0
A45: =SUM('2) Order Form'!W52) -> 7048652767509 | B45: =SUM('2) Order Form'!I52) -> 0
A46: =SUM('2) Order Form'!W53) -> 7048652272690 | B46: =SUM('2) Order Form'!I53) -> 0
A47: =SUM('2) Order Form'!W54) -> 7048652272683 | B47: =SUM('2) Order Form'!I54) -> 0
A48: =SUM('2) Order Form'!W55) -> 7048652272676 | B48: =SUM('2) Order Form'!I55) -> 0
A49: =SUM('2) Order Form'!W56) -> 7048652272720 | B49: =SUM('2) Order Form'!I56) -> 0
A50: =SUM('2) Order Form'!W57) -> 7048652272713 | B50: =SUM('2) Order Form'!I57) -> 0
A51: =SUM('2) Order Form'!W58) -> 7048652272706 | B51: =SUM('2) Order Form'!I58) -> 0
A52: =SUM('2) Order Form'!W59) -> 7048652766403 | B52: =SUM('2) Order Form'!I59) -> 0
A53: =SUM('2) Order Form'!W60) -> 7048652766397 | B53: =SUM('2) Order Form'!I60) -> 0
A54: =SUM('2) Order Form'!W61) -> 7048652766380 | B54: =SUM('2) Order Form'!I61) -> 0
A55: =SUM('2) Order Form'!W62) -> 7048652766434 | B55: =SUM('2) Order Form'!I62) -> 0
A56: =SUM('2) Order Form'!W63) -> 7048652766427 | B56: =SUM('2) Order Form'!I63) -> 0
A57: =SUM('2) Order Form'!W64) -> 7048652766410 | B57: =SUM('2) Order Form'!I64) -> 0
A58: =SUM('2) Order Form'!W65) -> 7048652272546 | B58: =SUM('2) Order Form'!I65) -> 0
A59: =SUM('2) Order Form'!W66) -> 7048652272539 | B59: =SUM('2) Order Form'!I66) -> 0
A60: =SUM('2) Order Form'!W67) -> 7048652272522 | B60: =SUM('2) Order Form'!I67) -> 0
A61: =SUM('2) Order Form'!W68) -> 7048652272669 | B61: =SUM('2) Order Form'!I68) -> 0
A62: =SUM('2) Order Form'!W69) -> 7048652272652 | B62: =SUM('2) Order Form'!I69) -> 0
A63: =SUM('2) Order Form'!W70) -> 7048652272645 | B63: =SUM('2) Order Form'!I70) -> 0
A64: =SUM('2) Order Form'!W71) -> 7048652660268 | B64: =SUM('2) Order Form'!I71) -> 0
A65: =SUM('2) Order Form'!W72) -> 7048652660251 | B65: =SUM('2) Order Form'!I72) -> 0
A66: =SUM('2) Order Form'!W73) -> 7048652660244 | B66: =SUM('2) Order Form'!I73) -> 0
A67: =SUM('2) Order Form'!W74) -> 7048652766557 | B67: =SUM('2) Order Form'!I74) -> 0
A68: =SUM('2) Order Form'!W75) -> 7048652766540 | B68: =SUM('2) Order Form'!I75) -> 0
A69: =SUM('2) Order Form'!W76) -> 7048652766533 | B69: =SUM('2) Order Form'!I76) -> 0
A70: =SUM('2) Order Form'!W77) -> 7048652272966 | B70: =SUM('2) Order Form'!I77) -> 0
A71: =SUM('2) Order Form'!W78) -> 7048652272959 | B71: =SUM('2) Order Form'!I78) -> 0
A72: =SUM('2) Order Form'!W79) -> 7048652272942 | B72: =SUM('2) Order Form'!I79) -> 0
A73: =SUM('2) Order Form'!W80) -> 7048652766588 | B73: =SUM('2) Order Form'!I80) -> 0
A74: =SUM('2) Order Form'!W81) -> 7048652766571 | B74: =SUM('2) Order Form'!I81) -> 0
A75: =SUM('2) Order Form'!W82) -> 7048652766564 | B75: =SUM('2) Order Form'!I82) -> 0
A76: =SUM('2) Order Form'!W83) -> 7048652273086 | B76: =SUM('2) Order Form'!I83) -> 0
A77: =SUM('2) Order Form'!W84) -> 7048652273079 | B77: =SUM('2) Order Form'!I84) -> 0
A78: =SUM('2) Order Form'!W85) -> 7048652273062 | B78: =SUM('2) Order Form'!I85) -> 0
A79: =SUM('2) Order Form'!W86) -> 7048652766618 | B79: =SUM('2) Order Form'!I86) -> 0
A80: =SUM('2) Order Form'!W87) -> 7048652766601 | B80: =SUM('2) Order Form'!I87) -> 0
A81: =SUM('2) Order Form'!W88) -> 7048652766595 | B81: =SUM('2) Order Form'!I88) -> 0
A82: =SUM('2) Order Form'!W89) -> 7048652766465 | B82: =SUM('2) Order Form'!I89) -> 0
A83: =SUM('2) Order Form'!W90) -> 7048652766458 | B83: =SUM('2) Order Form'!I90) -> 0
A84: =SUM('2) Order Form'!W91) -> 7048652766441 | B84: =SUM('2) Order Form'!I91) -> 0
A85: =SUM('2) Order Form'!W92) -> 7048652666413 | B85: =SUM('2) Order Form'!I92) -> 0
A86: =SUM('2) Order Form'!W93) -> 7048652666406 | B86: =SUM('2) Order Form'!I93) -> 0
A87: =SUM('2) Order Form'!W94) -> 7048652666390 | B87: =SUM('2) Order Form'!I94) -> 0
A88: =SUM('2) Order Form'!W95) -> 7048652766496 | B88: =SUM('2) Order Form'!I95) -> 0
A89: =SUM('2) Order Form'!W96) -> 7048652766489 | B89: =SUM('2) Order Form'!I96) -> 0
A90: =SUM('2) Order Form'!W97) -> 7048652766472 | B90: =SUM('2) Order Form'!I97) -> 0
A91: =SUM('2) Order Form'!W98) -> 7048652666444 | B91: =SUM('2) Order Form'!I98) -> 0
A92: =SUM('2) Order Form'!W99) -> 7048652666437 | B92: =SUM('2) Order Form'!I99) -> 0
A93: =SUM('2) Order Form'!W100) -> 7048652666420 | B93: =SUM('2) Order Form'!I100) -> 0
A94: =SUM('2) Order Form'!W101) -> 7048652766526 | B94: =SUM('2) Order Form'!I101) -> 0
A95: =SUM('2) Order Form'!W102) -> 7048652766519 | B95: =SUM('2) Order Form'!I102) -> 0
A96: =SUM('2) Order Form'!W103) -> 7048652766502 | B96: =SUM('2) Order Form'!I103) -> 0
A97: =SUM('2) Order Form'!W104) -> 7048652767691 | B97: =SUM('2) Order Form'!I104) -> 0
A98: =SUM('2) Order Form'!W105) -> 7048652767707 | B98: =SUM('2) Order Form'!I105) -> 0
A99: =SUM('2) Order Form'!W106) -> 7048652767714 | B99: =SUM('2) Order Form'!I106) -> 0
A100: =SUM('2) Order Form'!W107) -> 7048652767721 | B100: =SUM('2) Order Form'!I107) -> 0
A101: =SUM('2) Order Form'!W108) -> 7048652540980 | B101: =SUM('2) Order Form'!I108) -> 0
A102: =SUM('2) Order Form'!W109) -> 7048652541024 | B102: =SUM('2) Order Form'!I109) -> 0
A103: =SUM('2) Order Form'!W110) -> 7048652661753 | B103: =SUM('2) Order Form'!I110) -> 0
A104: =SUM('2) Order Form'!W111) -> 7048652767653 | B104: =SUM('2) Order Form'!I111) -> 0
A105: =SUM('2) Order Form'!W112) -> 7048652767660 | B105: =SUM('2) Order Form'!I112) -> 0
A106: =SUM('2) Order Form'!W113) -> 7048652767677 | B106: =SUM('2) Order Form'!I113) -> 0
A107: =SUM('2) Order Form'!W114) -> 7048652767684 | B107: =SUM('2) Order Form'!I114) -> 0
A108: =SUM('2) Order Form'!W115) -> 7048652540935 | B108: =SUM('2) Order Form'!I115) -> 0
A109: =SUM('2) Order Form'!W116) -> 7048652540973 | B109: =SUM('2) Order Form'!I116) -> 0
A110: =SUM('2) Order Form'!W117) -> 7048652661739 | B110: =SUM('2) Order Form'!I117) -> 0
A111: =SUM('2) Order Form'!W118) -> 7048652766694 | B111: =SUM('2) Order Form'!I118) -> 0
A112: =SUM('2) Order Form'!W119) -> 7048652766687 | B112: =SUM('2) Order Form'!I119) -> 0
A113: =SUM('2) Order Form'!W120) -> 7048652766717 | B113: =SUM('2) Order Form'!I120) -> 0
A114: =SUM('2) Order Form'!W121) -> 7048652766700 | B114: =SUM('2) Order Form'!I121) -> 0
A115: =SUM('2) Order Form'!W122) -> 7048652766731 | B115: =SUM('2) Order Form'!I122) -> 0
A116: =SUM('2) Order Form'!W123) -> 7048652766724 | B116: =SUM('2) Order Form'!I123) -> 0
A117: =SUM('2) Order Form'!W124) -> 7048652767783 | B117: =SUM('2) Order Form'!I124) -> 0
A118: =SUM('2) Order Form'!W125) -> 7048652540881 | B118: =SUM('2) Order Form'!I125) -> 0
A119: =SUM('2) Order Form'!W126) -> 7048652767790 | B119: =SUM('2) Order Form'!I126) -> 0
A120: =SUM('2) Order Form'!W127) -> 7048652540928 | B120: =SUM('2) Order Form'!I127) -> 0
A121: =SUM('2) Order Form'!W128) -> 7048652767806 | B121: =SUM('2) Order Form'!I128) -> 0
A122: =SUM('2) Order Form'!W129) -> 7048652767813 | B122: =SUM('2) Order Form'!I129) -> 0
A123: =SUM('2) Order Form'!W130) -> 7048652767820 | B123: =SUM('2) Order Form'!I130) -> 0
A124: =SUM('2) Order Form'!W131) -> 7048652661708 | B124: =SUM('2) Order Form'!I131) -> 0
A125: =SUM('2) Order Form'!W132) -> 7048652767776 | B125: =SUM('2) Order Form'!I132) -> 0
A126: =SUM('2) Order Form'!W133) -> 7048652540836 | B126: =SUM('2) Order Form'!I133) -> 0
A127: =SUM('2) Order Form'!W134) -> 7048652767738 | B127: =SUM('2) Order Form'!I134) -> 0
A128: =SUM('2) Order Form'!W135) -> 7048652540874 | B128: =SUM('2) Order Form'!I135) -> 0
A129: =SUM('2) Order Form'!W136) -> 7048652767745 | B129: =SUM('2) Order Form'!I136) -> 0
A130: =SUM('2) Order Form'!W137) -> 7048652767752 | B130: =SUM('2) Order Form'!I137) -> 0
A131: =SUM('2) Order Form'!W138) -> 7048652767769 | B131: =SUM('2) Order Form'!I138) -> 0
A132: =SUM('2) Order Form'!W139) -> 7048652661715 | B132: =SUM('2) Order Form'!I139) -> 0
A133: =SUM('2) Order Form'!W140) -> 7048652274564 | B133: =SUM('2) Order Form'!I140) -> 0
A134: =SUM('2) Order Form'!W141) -> 7048652274557 | B134: =SUM('2) Order Form'!I141) -> 0
A135: =SUM('2) Order Form'!W142) -> 7048652274601 | B135: =SUM('2) Order Form'!I142) -> 0
A136: =SUM('2) Order Form'!W143) -> 7048652274595 | B136: =SUM('2) Order Form'!I143) -> 0
A137: =SUM('2) Order Form'!W144) -> 7048652660602 | B137: =SUM('2) Order Form'!I144) -> 0
A138: =SUM('2) Order Form'!W145) -> 7048652660596 | B138: =SUM('2) Order Form'!I145) -> 0
A139: =SUM('2) Order Form'!W146) -> 7048652774972 | B139: =SUM('2) Order Form'!I146) -> 0
A140: =SUM('2) Order Form'!W147) -> 7048652774965 | B140: =SUM('2) Order Form'!I147) -> 0
A141: =SUM('2) Order Form'!W148) -> 7048652660626 | B141: =SUM('2) Order Form'!I148) -> 0
A142: =SUM('2) Order Form'!W149) -> 7048652660619 | B142: =SUM('2) Order Form'!I149) -> 0
A143: =SUM('2) Order Form'!W150) -> 7048652543875 | B143: =SUM('2) Order Form'!I150) -> 0
A144: =SUM('2) Order Form'!W151) -> 7048652543868 | B144: =SUM('2) Order Form'!I151) -> 0
A145: =SUM('2) Order Form'!W152) -> 7048652774996 | B145: =SUM('2) Order Form'!I152) -> 0
A146: =SUM('2) Order Form'!W153) -> 7048652774989 | B146: =SUM('2) Order Form'!I153) -> 0
A147: =SUM('2) Order Form'!W154) -> 7048652775030 | B147: =SUM('2) Order Form'!I154) -> 0
A148: =SUM('2) Order Form'!W155) -> 7048652775023 | B148: =SUM('2) Order Form'!I155) -> 0
A149: =SUM('2) Order Form'!W156) -> 7048652660527 | B149: =SUM('2) Order Form'!I156) -> 0
A150: =SUM('2) Order Form'!W157) -> 7048652660510 | B150: =SUM('2) Order Form'!I157) -> 0
A151: =SUM('2) Order Form'!W158) -> 7048652766915 | B151: =SUM('2) Order Form'!I158) -> 0
A152: =SUM('2) Order Form'!W159) -> 7048652766908 | B152: =SUM('2) Order Form'!I159) -> 0
A153: =SUM('2) Order Form'!W160) -> 7048652660541 | B153: =SUM('2) Order Form'!I160) -> 0
A154: =SUM('2) Order Form'!W161) -> 7048652660534 | B154: =SUM('2) Order Form'!I161) -> 0
A155: =SUM('2) Order Form'!W162) -> 7048652768513 | B155: =SUM('2) Order Form'!I162) -> 0
A156: =SUM('2) Order Form'!W163) -> 7048652768506 | B156: =SUM('2) Order Form'!I163) -> 0
A157: =SUM('2) Order Form'!W164) -> 7048652766953 | B157: =SUM('2) Order Form'!I164) -> 0
A158: =SUM('2) Order Form'!W165) -> 7048652766946 | B158: =SUM('2) Order Form'!I165) -> 0
A159: =SUM('2) Order Form'!W166) -> 7048652766939 | B159: =SUM('2) Order Form'!I166) -> 0
A160: =SUM('2) Order Form'!W167) -> 7048652766922 | B160: =SUM('2) Order Form'!I167) -> 0
A161: =SUM('2) Order Form'!W168) -> 7048652766830 | B161: =SUM('2) Order Form'!I168) -> 0
A162: =SUM('2) Order Form'!W169) -> 7048652766823 | B162: =SUM('2) Order Form'!I169) -> 0
A163: =SUM('2) Order Form'!W170) -> 7048652539847 | B163: =SUM('2) Order Form'!I170) -> 0
A164: =SUM('2) Order Form'!W171) -> 7048652539830 | B164: =SUM('2) Order Form'!I171) -> 0
A165: =SUM('2) Order Form'!W172) -> 7048652766854 | B165: =SUM('2) Order Form'!I172) -> 0
A166: =SUM('2) Order Form'!W173) -> 7048652766847 | B166: =SUM('2) Order Form'!I173) -> 0
A167: =SUM('2) Order Form'!W174) -> 7048652273949 | B167: =SUM('2) Order Form'!I174) -> 0
A168: =SUM('2) Order Form'!W175) -> 7048652273932 | B168: =SUM('2) Order Form'!I175) -> 0
A169: =SUM('2) Order Form'!W176) -> 7048652766892 | B169: =SUM('2) Order Form'!I176) -> 0
A170: =SUM('2) Order Form'!W177) -> 7048652766885 | B170: =SUM('2) Order Form'!I177) -> 0
A171: =SUM('2) Order Form'!W178) -> 7048652766878 | B171: =SUM('2) Order Form'!I178) -> 0
A172: =SUM('2) Order Form'!W179) -> 7048652766861 | B172: =SUM('2) Order Form'!I179) -> 0
A173: =SUM('2) Order Form'!W180) -> 7048652766755 | B173: =SUM('2) Order Form'!I180) -> 0
A174: =SUM('2) Order Form'!W181) -> 7048652766748 | B174: =SUM('2) Order Form'!I181) -> 0
A175: =SUM('2) Order Form'!W182) -> 7048652329257 | B175: =SUM('2) Order Form'!I182) -> 0
A176: =SUM('2) Order Form'!W183) -> 7048652329240 | B176: =SUM('2) Order Form'!I183) -> 0
A177: =SUM('2) Order Form'!W184) -> 7048652766779 | B177: =SUM('2) Order Form'!I184) -> 0
A178: =SUM('2) Order Form'!W185) -> 7048652766762 | B178: =SUM('2) Order Form'!I185) -> 0
A179: =SUM('2) Order Form'!W186) -> 7048652555540 | B179: =SUM('2) Order Form'!I186) -> 0
A180: =SUM('2) Order Form'!W187) -> 7048652555533 | B180: =SUM('2) Order Form'!I187) -> 0
A181: =SUM('2) Order Form'!W188) -> 7048652766816 | B181: =SUM('2) Order Form'!I188) -> 0
A182: =SUM('2) Order Form'!W189) -> 7048652766809 | B182: =SUM('2) Order Form'!I189) -> 0
A183: =SUM('2) Order Form'!W190) -> 7048652766793 | B183: =SUM('2) Order Form'!I190) -> 0
A184: =SUM('2) Order Form'!W191) -> 7048652766786 | B184: =SUM('2) Order Form'!I191) -> 0
A185: =SUM('2) Order Form'!W192) -> 7048652767226 | B185: =SUM('2) Order Form'!I192) -> 0
A186: =SUM('2) Order Form'!W193) -> 7048652767219 | B186: =SUM('2) Order Form'!I193) -> 0
A187: =SUM('2) Order Form'!W194) -> 7048652767202 | B187: =SUM('2) Order Form'!I194) -> 0
A188: =SUM('2) Order Form'!W195) -> 7048652767257 | B188: =SUM('2) Order Form'!I195) -> 0
A189: =SUM('2) Order Form'!W196) -> 7048652767240 | B189: =SUM('2) Order Form'!I196) -> 0
A190: =SUM('2) Order Form'!W197) -> 7048652767233 | B190: =SUM('2) Order Form'!I197) -> 0
A191: =SUM('2) Order Form'!W198) -> 7048652767288 | B191: =SUM('2) Order Form'!I198) -> 0
A192: =SUM('2) Order Form'!W199) -> 7048652767271 | B192: =SUM('2) Order Form'!I199) -> 0
A193: =SUM('2) Order Form'!W200) -> 7048652767264 | B193: =SUM('2) Order Form'!I200) -> 0
A194: =SUM('2) Order Form'!W201) -> 7048652555526 | B194: =SUM('2) Order Form'!I201) -> 0
A195: =SUM('2) Order Form'!W202) -> 7048652555519 | B195: =SUM('2) Order Form'!I202) -> 0
A196: =SUM('2) Order Form'!W203) -> 7048652555502 | B196: =SUM('2) Order Form'!I203) -> 0
A197: =SUM('2) Order Form'!W204) -> 7048652274502 | B197: =SUM('2) Order Form'!I204) -> 0
A198: =SUM('2) Order Form'!W205) -> 7048652274496 | B198: =SUM('2) Order Form'!I205) -> 0
A199: =SUM('2) Order Form'!W206) -> 7048652274489 | B199: =SUM('2) Order Form'!I206) -> 0
A200: =SUM('2) Order Form'!W207) -> 7048652767318 | B200: =SUM('2) Order Form'!I207) -> 0
... 683 more rows

Sheet ATS (hidden)
A1: Item Availability weeks Excel | N1: IKKE GJØR NOEN ENDRINGER I DISSE KOLONNENE | S1: MANGLER - MÅ OPPDATERE EAN-FANEN
A2: SKIGUTANE\PETULR : 30.08.22 | B2: Item Variant Status "Active&Stock" | P2: =SUM(P4:P3960) -> 76101554 | Q2: =SUM(Q4:Q3960) -> 76107016 | V2: Filter HER! | AA2: Filter HER!
A3: No. | B3: Description | C3: Location Filter | D3: Variant Color | E3: Color Description | F3: Variant Size | G3: Variant Status | H3: Week 1 | I3: Week 2 | J3: Week 3 | K3: Week 4 | L3: Week 5 | N3: SKU | O3: =IFERROR(VLOOKUP(N3,EAN!$A:$B,2,FALSE),"") -> Cross-Reference No. | P3: ="ATS Week "&(P4-202200) -> ATS Week 35 | Q3: ="ATS Week "&(Q4-202200) -> ATS Week 39 | S3: Med I order form? | U3: EAN fra Elastic | V3: Sjekk mot Order Form | AA3: Sjekk mot Elastic
A4: 18100 | B4: Net | H4: 202235 | I4: 202236 | J4: 202237 | K4: 202238 | L4: 202239 | N4: =CONCATENATE(A4,"-",D4) -> 18100- | O4: =IF(B4="NET","",IF(B4="","",IFERROR(VLOOKUP(N4,EAN!$A:$B,2,FALSE),"MANGLER - MÅ OPPDATERE EAN-FANEN"))) ->  | P4: =H4 -> 202235 | Q4: =L4 -> 202239 | S4: =IF(B4="NET","",IFERROR(VLOOKUP(O4,'2) Order Form'!$W$9:$W$1924,1,FALSE),"Ikke med I order form")) ->  | U4: 7048652273154 | V4: =IFERROR(VLOOKUP(U4,'2) Order Form'!$W$9:$W$1994,1,FALSE),"Ikke med I order form") -> 7048652273154 | W4: =INDEX(ATS!$A:$P,MATCH(ATS!$U4,ATS!$O:$O,0),1) -> 845073 | X4: =INDEX(ATS!$A:$P,MATCH(ATS!$U4,ATS!$O:$O,0),2) -> Arbitrator Mips Helmet | Y4: =INDEX(ATS!$A:$P,MATCH(ATS!$U4,ATS!$O:$O,0),4) -> MBKNC-SM | AA4: =IFERROR(VLOOKUP('2) Order Form'!W9,$U$4:$U$1000,1,FALSE),"Ikke med i Elastic") -> 7048652766632 | AB4: =SUM('2) Order Form'!W9) -> 7048652766632 | AC4: =INDEX(ATS!$A:$P,MATCH(ATS!$AB4,ATS!$O:$O,0),1) -> 845073 | AD4: =INDEX(ATS!$A:$P,MATCH(ATS!$AB4,ATS!$O:$O,0),2) -> Arbitrator Mips Helmet | AE4: =INDEX(ATS!$A:$P,MATCH(ATS!$AB4,ATS!$O:$O,0),4) -> BWHNC-SM
A5: 18100 | B5: Tower Kit 1 of 2 | C5: WHO | D5: BLACK-OS | E5: Black | F5: OS | G5: Active | H5: 0 | I5: 0 | J5: 0 | K5: 0 | L5: 0 | N5: 18100-BLACK-OS | O5: =IF(B5="NET","",IF(B5="","",IFERROR(VLOOKUP(N5,EAN!$A:$B,2,FALSE),"MANGLER - MÅ OPPDATERE EAN-FANEN"))) -> MANGLER - MÅ OPPDATERE EAN-FANEN | P5: =H5 -> 0 | Q5: =L5 -> 0 | S5: =IF(B5="NET","",IFERROR(VLOOKUP(O5,'2) Order Form'!$W$9:$W$1924,1,FALSE),"Ikke med I order form")) -> Ikke med I order form | U5: 7048652273147 | V5: =IFERROR(VLOOKUP(U5,'2) Order Form'!$W$9:$W$1994,1,FALSE),"Ikke med I order form") -> 7048652273147 | W5: =INDEX(ATS!$A:$P,MATCH(ATS!$U5,ATS!$O:$O,0),1) -> 845073 | X5: =INDEX(ATS!$A:$P,MATCH(ATS!$U5,ATS!$O:$O,0),2) -> Arbitrator Mips Helmet | Y5: =INDEX(ATS!$A:$P,MATCH(ATS!$U5,ATS!$O:$O,0),4) -> MBKNC-ML | AA5: =IFERROR(VLOOKUP('2) Order Form'!W10,$U$4:$U$1000,1,FALSE),"Ikke med i Elastic") -> 7048652766625 | AB5: =SUM('2) Order Form'!W10) -> 7048652766625 | AC5: =INDEX(ATS!$A:$P,MATCH(ATS!$AB5,ATS!$O:$O,0),1) -> 845073 | AD5: =INDEX(ATS!$A:$P,MATCH(ATS!$AB5,ATS!$O:$O,0),2) -> Arbitrator Mips Helmet | AE5: =INDEX(ATS!$A:$P,MATCH(ATS!$AB5,ATS!$O:$O,0),4) -> BWHNC-ML
A6: 18101 | B6: Net | H6: 202235 | I6: 202236 | J6: 202237 | K6: 202238 | L6: 202239 | N6: 18101- | O6: =IF(B6="NET","",IF(B6="","",IFERROR(VLOOKUP(N6,EAN!$A:$B,2,FALSE),"MANGLER - MÅ OPPDATERE EAN-FANEN"))) ->  | P6: 202235 | Q6: 202239 | S6: =IF(B6="NET","",IFERROR(VLOOKUP(O6,'2) Order Form'!$W$9:$W$1924,1,FALSE),"Ikke med I order form")) ->  | U6: 7048652766632 | V6: =IFERROR(VLOOKUP(U6,'2) Order Form'!$W$9:$W$1994,1,FALSE),"Ikke med I order form") -> 7048652766632 | W6: =INDEX(ATS!$A:$P,MATCH(ATS!$U6,ATS!$O:$O,0),1) -> 845073 | X6: =INDEX(ATS!$A:$P,MATCH(ATS!$U6,ATS!$O:$O,0),2) -> Arbitrator Mips Helmet | Y6: =INDEX(ATS!$A:$P,MATCH(ATS!$U6,ATS!$O:$O,0),4) -> BWHNC-SM | AA6: =IFERROR(VLOOKUP('2) Order Form'!W11,$U$4:$U$1000,1,FALSE),"Ikke med i Elastic") -> 7048652766656 | AB6: =SUM('2) Order Form'!W11) -> 7048652766656 | AC6: =INDEX(ATS!$A:$P,MATCH(ATS!$AB6,ATS!$O:$O,0),1) -> 845073 | AD6: =INDEX(ATS!$A:$P,MATCH(ATS!$AB6,ATS!$O:$O,0),2) -> Arbitrator Mips Helmet | AE6: =INDEX(ATS!$A:$P,MATCH(ATS!$AB6,ATS!$O:$O,0),4) -> DPUNC-SM
A7: 18102 | B7: Net | H7: 202235 | I7: 202236 | J7: 202237 | K7: 202238 | L7: 202239 | N7: 18102- | O7: =IF(B7="NET","",IF(B7="","",IFERROR(VLOOKUP(N7,EAN!$A:$B,2,FALSE),"MANGLER - MÅ OPPDATERE EAN-FANEN"))) ->  | P7: 202235 | Q7: 202239 | S7: =IF(B7="NET","",IFERROR(VLOOKUP(O7,'2) Order Form'!$W$9:$W$1924,1,FALSE),"Ikke med I order form")) ->  | U7: 7048652766625 | V7: =IFERROR(VLOOKUP(U7,'2) Order Form'!$W$9:$W$1994,1,FALSE),"Ikke med I order form") -> 7048652766625 | W7: =INDEX(ATS!$A:$P,MATCH(ATS!$U7,ATS!$O:$O,0),1) -> 845073 | X7: =INDEX(ATS!$A:$P,MATCH(ATS!$U7,ATS!$O:$O,0),2) -> Arbitrator Mips Helmet | Y7: =INDEX(ATS!$A:$P,MATCH(ATS!$U7,ATS!$O:$O,0),4) -> BWHNC-ML | AA7: =IFERROR(VLOOKUP('2) Order Form'!W12,$U$4:$U$1000,1,FALSE),"Ikke med i Elastic") -> 7048652766649 | AB7: =SUM('2) Order Form'!W12) -> 7048652766649 | AC7: =INDEX(ATS!$A:$P,MATCH(ATS!$AB7,ATS!$O:$O,0),1) -> 845073 | AD7: =INDEX(ATS!$A:$P,MATCH(ATS!$AB7,ATS!$O:$O,0),2) -> Arbitrator Mips Helmet | AE7: =INDEX(ATS!$A:$P,MATCH(ATS!$AB7,ATS!$O:$O,0),4) -> DPUNC-ML
A8: 18103 | B8: Net | H8: 202235 | I8: 202236 | J8: 202237 | K8: 202238 | L8: 202239 | N8: 18103- | O8: =IF(B8="NET","",IF(B8="","",IFERROR(VLOOKUP(N8,EAN!$A:$B,2,FALSE),"MANGLER - MÅ OPPDATERE EAN-FANEN"))) ->  | P8: 202235 | Q8: 202239 | S8: =IF(B8="NET","",IFERROR(VLOOKUP(O8,'2) Order Form'!$W$9:$W$1924,1,FALSE),"Ikke med I order form")) ->  | U8: 7048652766656 | V8: =IFERROR(VLOOKUP(U8,'2) Order Form'!$W$9:$W$1994,1,FALSE),"Ikke med I order form") -> 7048652766656 | W8: =INDEX(ATS!$A:$P,MATCH(ATS!$U8,ATS!$O:$O,0),1) -> 845073 | X8: =INDEX(ATS!$A:$P,MATCH(ATS!$U8,ATS!$O:$O,0),2) -> Arbitrator Mips Helmet | Y8: =INDEX(ATS!$A:$P,MATCH(ATS!$U8,ATS!$O:$O,0),4) -> DPUNC-SM | AA8: =IFERROR(VLOOKUP('2) Order Form'!W13,$U$4:$U$1000,1,FALSE),"Ikke med i Elastic") -> 7048652273154 | AB8: =SUM('2) Order Form'!W13) -> 7048652273154 | AC8: =INDEX(ATS!$A:$P,MATCH(ATS!$AB8,ATS!$O:$O,0),1) -> 845073 | AD8: =INDEX(ATS!$A:$P,MATCH(ATS!$AB8,ATS!$O:$O,0),2) -> Arbitrator Mips Helmet | AE8: =INDEX(ATS!$A:$P,MATCH(ATS!$AB8,ATS!$O:$O,0),4) -> MBKNC-SM
A9: 18104 | B9: Net | H9: 202235 | I9: 202236 | J9: 202237 | K9: 202238 | L9: 202239 | N9: 18104- | O9: =IF(B9="NET","",IF(B9="","",IFERROR(VLOOKUP(N9,EAN!$A:$B,2,FALSE),"MANGLER - MÅ OPPDATERE EAN-FANEN"))) ->  | P9: 202235 | Q9: 202239 | S9: =IF(B9="NET","",IFERROR(VLOOKUP(O9,'2) Order Form'!$W$9:$W$1924,1,FALSE),"Ikke med I order form")) ->  | U9: 7048652766649 | V9: =IFERROR(VLOOKUP(U9,'2) Order Form'!$W$9:$W$1994,1,FALSE),"Ikke med I order form") -> 7048652766649 | W9: =INDEX(ATS!$A:$P,MATCH(ATS!$U9,ATS!$O:$O,0),1) -> 845073 | X9: =INDEX(ATS!$A:$P,MATCH(ATS!$U9,ATS!$O:$O,0),2) -> Arbitrator Mips Helmet | Y9: =INDEX(ATS!$A:$P,MATCH(ATS!$U9,ATS!$O:$O,0),4) -> DPUNC-ML | AA9: =IFERROR(VLOOKUP('2) Order Form'!W14,$U$4:$U$1000,1,FALSE),"Ikke med i Elastic") -> 7048652273147 | AB9: =SUM('2) Order Form'!W14) -> 7048652273147 | AC9: =INDEX(ATS!$A:$P,MATCH(ATS!$AB9,ATS!$O:$O,0),1) -> 845073 | AD9: =INDEX(ATS!$A:$P,MATCH(ATS!$AB9,ATS!$O:$O,0),2) -> Arbitrator Mips Helmet | AE9: =INDEX(ATS!$A:$P,MATCH(ATS!$AB9,ATS!$O:$O,0),4) -> MBKNC-ML
A10: 18104 | B10: Tower Kit 2 of 2 | C10: WHO | D10: BLACK-OS | E10: Black | F10: OS | G10: Active | H10: 0 | I10: 0 | J10: 0 | K10: 0 | L10: 0 | N10: 18104-BLACK-OS | O10: =IF(B10="NET","",IF(B10="","",IFERROR(VLOOKUP(N10,EAN!$A:$B,2,FALSE),"MANGLER - MÅ OPPDATERE EAN-FANEN"))) -> MANGLER - MÅ OPPDATERE EAN-FANEN | P10: 0 | Q10: 0 | S10: =IF(B10="NET","",IFERROR(VLOOKUP(O10,'2) Order Form'!$W$9:$W$1924,1,FALSE),"Ikke med I order form")) -> Ikke med I order form | U10: 7048652766670 | V10: =IFERROR(VLOOKUP(U10,'2) Order Form'!$W$9:$W$1994,1,FALSE),"Ikke med I order form") -> 7048652766670 | W10: =INDEX(ATS!$A:$P,MATCH(ATS!$U10,ATS!$O:$O,0),1) -> 845073 | X10: =INDEX(ATS!$A:$P,MATCH(ATS!$U10,ATS!$O:$O,0),2) -> Arbitrator Mips Helmet | Y10: =INDEX(ATS!$A:$P,MATCH(ATS!$U10,ATS!$O:$O,0),4) -> MFLNC-SM | AA10: =IFERROR(VLOOKUP('2) Order Form'!W15,$U$4:$U$1000,1,FALSE),"Ikke med i Elastic") -> 7048652766670 | AB10: =SUM('2) Order Form'!W15) -> 7048652766670 | AC10: =INDEX(ATS!$A:$P,MATCH(ATS!$AB10,ATS!$O:$O,0),1) -> 845073 | AD10: =INDEX(ATS!$A:$P,MATCH(ATS!$AB10,ATS!$O:$O,0),2) -> Arbitrator Mips Helmet | AE10: =INDEX(ATS!$A:$P,MATCH(ATS!$AB10,ATS!$O:$O,0),4) -> MFLNC-SM
A11: 810050 | B11: Net | H11: 202235 | I11: 202236 | J11: 202237 | K11: 202238 | L11: 202239 | N11: 810050- | O11: =IF(B11="NET","",IF(B11="","",IFERROR(VLOOKUP(N11,EAN!$A:$B,2,FALSE),"MANGLER - MÅ OPPDATERE EAN-FANEN"))) ->  | P11: 202235 | Q11: 202239 | S11: =IF(B11="NET","",IFERROR(VLOOKUP(O11,'2) Order Form'!$W$9:$W$1924,1,FALSE),"Ikke med I order form")) ->  | U11: 7048652766663 | V11: =IFERROR(VLOOKUP(U11,'2) Order Form'!$W$9:$W$1994,1,FALSE),"Ikke med I order form") -> 7048652766663 | W11: =INDEX(ATS!$A:$P,MATCH(ATS!$U11,ATS!$O:$O,0),1) -> 845073 | X11: =INDEX(ATS!$A:$P,MATCH(ATS!$U11,ATS!$O:$O,0),2) -> Arbitrator Mips Helmet | Y11: =INDEX(ATS!$A:$P,MATCH(ATS!$U11,ATS!$O:$O,0),4) -> MFLNC-ML | AA11: =IFERROR(VLOOKUP('2) Order Form'!W16,$U$4:$U$1000,1,FALSE),"Ikke med i Elastic") -> 7048652766663 | AB11: =SUM('2) Order Form'!W16) -> 7048652766663 | AC11: =INDEX(ATS!$A:$P,MATCH(ATS!$AB11,ATS!$O:$O,0),1) -> 845073 | AD11: =INDEX(ATS!$A:$P,MATCH(ATS!$AB11,ATS!$O:$O,0),2) -> Arbitrator Mips Helmet | AE11: =INDEX(ATS!$A:$P,MATCH(ATS!$AB11,ATS!$O:$O,0),4) -> MFLNC-ML
A12: 810050 | B12: Rocker Visor | C12: WHO | D12: CLGRY-OS | E12: Charcoal Gray | F12: OS | G12: Stock | H12: 4 | I12: 4 | J12: 4 | K12: 4 | L12: 4 | N12: 810050-CLGRY-OS | O12: =IF(B12="NET","",IF(B12="","",IFERROR(VLOOKUP(N12,EAN!$A:$B,2,FALSE),"MANGLER - MÅ OPPDATERE EAN-FANEN"))) -> 7048652327482 | P12: 4 | Q12: 4 | S12: =IF(B12="NET","",IFERROR(VLOOKUP(O12,'2) Order Form'!$W$9:$W$1924,1,FALSE),"Ikke med I order form")) -> Ikke med I order form | U12: 7048652540409 | V12: =IFERROR(VLOOKUP(U12,'2) Order Form'!$W$9:$W$1994,1,FALSE),"Ikke med I order form") -> 7048652540409 | W12: =INDEX(ATS!$A:$P,MATCH(ATS!$U12,ATS!$O:$O,0),1) -> 845104 | X12: =INDEX(ATS!$A:$P,MATCH(ATS!$U12,ATS!$O:$O,0),2) -> Trailblazer Mips Helmet | Y12: =INDEX(ATS!$A:$P,MATCH(ATS!$U12,ATS!$O:$O,0),4) -> MBLCK-SM | AA12: =IFERROR(VLOOKUP('2) Order Form'!W17,$U$4:$U$1000,1,FALSE),"Ikke med i Elastic") -> 7048652767554 | AB12: =SUM('2) Order Form'!W17) -> 7048652767554 | AC12: =INDEX(ATS!$A:$P,MATCH(ATS!$AB12,ATS!$O:$O,0),1) -> 845104 | AD12: =INDEX(ATS!$A:$P,MATCH(ATS!$AB12,ATS!$O:$O,0),2) -> Trailblazer Mips Helmet | AE12: =INDEX(ATS!$A:$P,MATCH(ATS!$AB12,ATS!$O:$O,0),4) -> BGRRG-SM
A13: 810050 | B13: Rocker Visor | C13: WHO | D13: DPUMC-OS | E13: Deep Purple Metallic | F13: OS | G13: Stock | H13: 20 | I13: 20 | J13: 20 | K13: 20 | L13: 20 | N13: 810050-DPUMC-OS | O13: =IF(B13="NET","",IF(B13="","",IFERROR(VLOOKUP(N13,EAN!$A:$B,2,FALSE),"MANGLER - MÅ OPPDATERE EAN-FANEN"))) -> 7048652766120 | P13: 20 | Q13: 20 | S13: =IF(B13="NET","",IFERROR(VLOOKUP(O13,'2) Order Form'!$W$9:$W$1924,1,FALSE),"Ikke med I order form")) -> Ikke med I order form | U13: 7048652540393 | V13: =IFERROR(VLOOKUP(U13,'2) Order Form'!$W$9:$W$1994,1,FALSE),"Ikke med I order form") -> 7048652540393 | W13: =INDEX(ATS!$A:$P,MATCH(ATS!$U13,ATS!$O:$O,0),1) -> 845104 | X13: =INDEX(ATS!$A:$P,MATCH(ATS!$U13,ATS!$O:$O,0),2) -> Trailblazer Mips Helmet | Y13: =INDEX(ATS!$A:$P,MATCH(ATS!$U13,ATS!$O:$O,0),4) -> MBLCK-ML | AA13: =IFERROR(VLOOKUP('2) Order Form'!W18,$U$4:$U$1000,1,FALSE),"Ikke med i Elastic") -> 7048652767547 | AB13: =SUM('2) Order Form'!W18) -> 7048652767547 | AC13: =INDEX(ATS!$A:$P,MATCH(ATS!$AB13,ATS!$O:$O,0),1) -> 845104 | AD13: =INDEX(ATS!$A:$P,MATCH(ATS!$AB13,ATS!$O:$O,0),2) -> Trailblazer Mips Helmet | AE13: =INDEX(ATS!$A:$P,MATCH(ATS!$AB13,ATS!$O:$O,0),4) -> BGRRG-ML
A14: 810050 | B14: Rocker Visor | C14: WHO | D14: DTBLK-OS | E14: Dirt Black | F14: OS | G14: Active | H14: 14 | I14: 14 | J14: 14 | K14: 14 | L14: 14 | N14: 810050-DTBLK-OS | O14: =IF(B14="NET","",IF(B14="","",IFERROR(VLOOKUP(N14,EAN!$A:$B,2,FALSE),"MANGLER - MÅ OPPDATERE EAN-FANEN"))) -> 7048652328304 | P14: 14 | Q14: 14 | S14: =IF(B14="NET","",IFERROR(VLOOKUP(O14,'2) Order Form'!$W$9:$W$1924,1,FALSE),"Ikke med I order form")) -> Ikke med I order form | U14: 7048652540386 | V14: =IFERROR(VLOOKUP(U14,'2) Order Form'!$W$9:$W$1994,1,FALSE),"Ikke med I order form") -> 7048652540386 | W14: =INDEX(ATS!$A:$P,MATCH(ATS!$U14,ATS!$O:$O,0),1) -> 845104 | X14: =INDEX(ATS!$A:$P,MATCH(ATS!$U14,ATS!$O:$O,0),2) -> Trailblazer Mips Helmet | Y14: =INDEX(ATS!$A:$P,MATCH(ATS!$U14,ATS!$O:$O,0),4) -> MBLCK-LXL | AA14: =IFERROR(VLOOKUP('2) Order Form'!W19,$U$4:$U$1000,1,FALSE),"Ikke med i Elastic") -> 7048652767530 | AB14: =SUM('2) Order Form'!W19) -> 7048652767530 | AC14: =INDEX(ATS!$A:$P,MATCH(ATS!$AB14,ATS!$O:$O,0),1) -> 845104 | AD14: =INDEX(ATS!$A:$P,MATCH(ATS!$AB14,ATS!$O:$O,0),2) -> Trailblazer Mips Helmet | AE14: =INDEX(ATS!$A:$P,MATCH(ATS!$AB14,ATS!$O:$O,0),4) -> BGRRG-LXL
A15: 810050 | B15: Rocker Visor | C15: WHO | D15: EHRED-OS | E15: Earth Red | F15: OS | G15: Stock | H15: 2 | I15: 2 | J15: 2 | K15: 2 | L15: 2 | N15: 810050-EHRED-OS | O15: =IF(B15="NET","",IF(B15="","",IFERROR(VLOOKUP(N15,EAN!$A:$B,2,FALSE),"MANGLER - MÅ OPPDATERE EAN-FANEN"))) -> 7048652327499 | P15: 2 | Q15: 2 | S15: =IF(B15="NET","",IFERROR(VLOOKUP(O15,'2) Order Form'!$W$9:$W$1924,1,FALSE),"Ikke med I order form")) -> Ikke med I order form | U15: 7048652540522 | V15: =IFERROR(VLOOKUP(U15,'2) Order Form'!$W$9:$W$1994,1,FALSE),"Ikke med I order form") -> 7048652540522 | W15: =INDEX(ATS!$A:$P,MATCH(ATS!$U15,ATS!$O:$O,0),1) -> 845104 | X15: =INDEX(ATS!$A:$P,MATCH(ATS!$U15,ATS!$O:$O,0),2) -> Trailblazer Mips Helmet | Y15: =INDEX(ATS!$A:$P,MATCH(ATS!$U15,ATS!$O:$O,0),4) -> MWHTE-SM | AA15: =IFERROR(VLOOKUP('2) Order Form'!W20,$U$4:$U$1000,1,FALSE),"Ikke med i Elastic") -> 7048652767585 | AB15: =SUM('2) Order Form'!W20) -> 7048652767585 | AC15: =INDEX(ATS!$A:$P,MATCH(ATS!$AB15,ATS!$O:$O,0),1) -> 845104 | AD15: =INDEX(ATS!$A:$P,MATCH(ATS!$AB15,ATS!$O:$O,0),2) -> Trailblazer Mips Helmet | AE15: =INDEX(ATS!$A:$P,MATCH(ATS!$AB15,ATS!$O:$O,0),4) -> BRWHT-SM
A16: 810050 | B16: Rocker Visor | C16: WHO | D16: GSWHT-OS | E16: Gloss White | F16: OS | G16: Active | H16: 8 | I16: 8 | J16: 8 | K16: 8 | L16: 8 | N16: 810050-GSWHT-OS | O16: =IF(B16="NET","",IF(B16="","",IFERROR(VLOOKUP(N16,EAN!$A:$B,2,FALSE),"MANGLER - MÅ OPPDATERE EAN-FANEN"))) -> 7048652327505 | P16: 8 | Q16: 8 | S16: =IF(B16="NET","",IFERROR(VLOOKUP(O16,'2) Order Form'!$W$9:$W$1924,1,FALSE),"Ikke med I order form")) -> Ikke med I order form | U16: 7048652540515 | V16: =IFERROR(VLOOKUP(U16,'2) Order Form'!$W$9:$W$1994,1,FALSE),"Ikke med I order form") -> 7048652540515 | W16: =INDEX(ATS!$A:$P,MATCH(ATS!$U16,ATS!$O:$O,0),1) -> 845104 | X16: =INDEX(ATS!$A:$P,MATCH(ATS!$U16,ATS!$O:$O,0),2) -> Trailblazer Mips Helmet | Y16: =INDEX(ATS!$A:$P,MATCH(ATS!$U16,ATS!$O:$O,0),4) -> MWHTE-ML | AA16: =IFERROR(VLOOKUP('2) Order Form'!W21,$U$4:$U$1000,1,FALSE),"Ikke med i Elastic") -> 7048652767578 | AB16: =SUM('2) Order Form'!W21) -> 7048652767578 | AC16: =INDEX(ATS!$A:$P,MATCH(ATS!$AB16,ATS!$O:$O,0),1) -> 845104 | AD16: =INDEX(ATS!$A:$P,MATCH(ATS!$AB16,ATS!$O:$O,0),2) -> Trailblazer Mips Helmet | AE16: =INDEX(ATS!$A:$P,MATCH(ATS!$AB16,ATS!$O:$O,0),4) -> BRWHT-ML
A17: 810050 | B17: Rocker Visor | C17: WHO | D17: MBUOE-OS | E17: Matte Burning Orange | F17: OS | G17: Stock | H17: 12 | I17: 12 | J17: 12 | K17: 12 | L17: 12 | N17: 810050-MBUOE-OS | O17: =IF(B17="NET","",IF(B17="","",IFERROR(VLOOKUP(N17,EAN!$A:$B,2,FALSE),"MANGLER - MÅ OPPDATERE EAN-FANEN"))) -> 7048652766137 | P17: 12 | Q17: 12 | S17: =IF(B17="NET","",IFERROR(VLOOKUP(O17,'2) Order Form'!$W$9:$W$1924,1,FALSE),"Ikke med I order form")) -> Ikke med I order form | U17: 7048652540508 | V17: =IFERROR(VLOOKUP(U17,'2) Order Form'!$W$9:$W$1994,1,FALSE),"Ikke med I order form") -> 7048652540508 | W17: =INDEX(ATS!$A:$P,MATCH(ATS!$U17,ATS!$O:$O,0),1) -> 845104 | X17: =INDEX(ATS!$A:$P,MATCH(ATS!$U17,ATS!$O:$O,0),2) -> Trailblazer Mips Helmet | Y17: =INDEX(ATS!$A:$P,MATCH(ATS!$U17,ATS!$O:$O,0),4) -> MWHTE-LXL | AA17: =IFERROR(VLOOKUP('2) Order Form'!W22,$U$4:$U$1000,1,FALSE),"Ikke med i Elastic") -> 7048652767561 | AB17: =SUM('2) Order Form'!W22) -> 7048652767561 | AC17: =INDEX(ATS!$A:$P,MATCH(ATS!$AB17,ATS!$O:$O,0),1) -> 845104 | AD17: =INDEX(ATS!$A:$P,MATCH(ATS!$AB17,ATS!$O:$O,0),2) -> Trailblazer Mips Helmet | AE17: =INDEX(ATS!$A:$P,MATCH(ATS!$AB17,ATS!$O:$O,0),4) -> BRWHT-LXL
A18: 810050 | B18: Rocker Visor | C18: WHO | D18: MEAME-OS | E18: Matte Aquamarine | F18: OS | G18: Stock | H18: 13 | I18: 13 | J18: 13 | K18: 13 | L18: 13 | N18: 810050-MEAME-OS | O18: =IF(B18="NET","",IF(B18="","",IFERROR(VLOOKUP(N18,EAN!$A:$B,2,FALSE),"MANGLER - MÅ OPPDATERE EAN-FANEN"))) -> 7048652661487 | P18: 13 | Q18: 13 | S18: =IF(B18="NET","",IFERROR(VLOOKUP(O18,'2) Order Form'!$W$9:$W$1924,1,FALSE),"Ikke med I order form")) -> Ikke med I order form | U18: 7048652767646 | V18: =IFERROR(VLOOKUP(U18,'2) Order Form'!$W$9:$W$1994,1,FALSE),"Ikke med I order form") -> 7048652767646 | W18: =INDEX(ATS!$A:$P,MATCH(ATS!$U18,ATS!$O:$O,0),1) -> 845104 | X18: =INDEX(ATS!$A:$P,MATCH(ATS!$U18,ATS!$O:$O,0),2) -> Trailblazer Mips Helmet | Y18: =INDEX(ATS!$A:$P,MATCH(ATS!$U18,ATS!$O:$O,0),4) -> SGRBO-SM | AA18: =IFERROR(VLOOKUP('2) Order Form'!W23,$U$4:$U$1000,1,FALSE),"Ikke med i Elastic") -> 7048652540409 | AB18: =SUM('2) Order Form'!W23) -> 7048652540409 | AC18: =INDEX(ATS!$A:$P,MATCH(ATS!$AB18,ATS!$O:$O,0),1) -> 845104 | AD18: =INDEX(ATS!$A:$P,MATCH(ATS!$AB18,ATS!$O:$O,0),2) -> Trailblazer Mips Helmet | AE18: =INDEX(ATS!$A:$P,MATCH(ATS!$AB18,ATS!$O:$O,0),4) -> MBLCK-SM
A19: 810050 | B19: Rocker Visor | C19: WHO | D19: MFLUO-OS | E19: Matte Fluo | F19: OS | G19: Stock | H19: 18 | I19: 18 | J19: 18 | K19: 18 | L19: 18 | N19: 810050-MFLUO-OS | O19: =IF(B19="NET","",IF(B19="","",IFERROR(VLOOKUP(N19,EAN!$A:$B,2,FALSE),"MANGLER - MÅ OPPDATERE EAN-FANEN"))) -> 7048652766144 | P19: 18 | Q19: 18 | S19: =IF(B19="NET","",IFERROR(VLOOKUP(O19,'2) Order Form'!$W$9:$W$1924,1,FALSE),"Ikke med I order form")) -> Ikke med I order form | U19: 7048652767639 | V19: =IFERROR(VLOOKUP(U19,'2) Order Form'!$W$9:$W$1994,1,FALSE),"Ikke med I order form") -> 7048652767639 | W19: =INDEX(ATS!$A:$P,MATCH(ATS!$U19,ATS!$O:$O,0),1) -> 845104 | X19: =INDEX(ATS!$A:$P,MATCH(ATS!$U19,ATS!$O:$O,0),2) -> Trailblazer Mips Helmet | Y19: =INDEX(ATS!$A:$P,MATCH(ATS!$U19,ATS!$O:$O,0),4) -> SGRBO-ML | AA19: =IFERROR(VLOOKUP('2) Order Form'!W24,$U$4:$U$1000,1,FALSE),"Ikke med i Elastic") -> 7048652540393 | AB19: =SUM('2) Order Form'!W24) -> 7048652540393 | AC19: =INDEX(ATS!$A:$P,MATCH(ATS!$AB19,ATS!$O:$O,0),1) -> 845104 | AD19: =INDEX(ATS!$A:$P,MATCH(ATS!$AB19,ATS!$O:$O,0),2) -> Trailblazer Mips Helmet | AE19: =INDEX(ATS!$A:$P,MATCH(ATS!$AB19,ATS!$O:$O,0),4) -> MBLCK-ML
A20: 810050 | B20: Rocker Visor | C20: WHO | D20: MNBME-OS | E20: Matte Navy Blue Metallic | F20: OS | G20: Stock | H20: 25 | I20: 25 | J20: 25 | K20: 25 | L20: 25 | N20: 810050-MNBME-OS | O20: =IF(B20="NET","",IF(B20="","",IFERROR(VLOOKUP(N20,EAN!$A:$B,2,FALSE),"MANGLER - MÅ OPPDATERE EAN-FANEN"))) -> 7048652553843 | P20: 25 | Q20: 25 | S20: =IF(B20="NET","",IFERROR(VLOOKUP(O20,'2) Order Form'!$W$9:$W$1924,1,FALSE),"Ikke med I order form")) -> Ikke med I order form | U20: 7048652767622 | V20: =IFERROR(VLOOKUP(U20,'2) Order Form'!$W$9:$W$1994,1,FALSE),"Ikke med I order form") -> 7048652767622 | W20: =INDEX(ATS!$A:$P,MATCH(ATS!$U20,ATS!$O:$O,0),1) -> 845104 | X20: =INDEX(ATS!$A:$P,MATCH(ATS!$U20,ATS!$O:$O,0),2) -> Trailblazer Mips Helmet | Y20: =INDEX(ATS!$A:$P,MATCH(ATS!$U20,ATS!$O:$O,0),4) -> SGRBO-LXL | AA20: =IFERROR(VLOOKUP('2) Order Form'!W25,$U$4:$U$1000,1,FALSE),"Ikke med i Elastic") -> 7048652540386 | AB20: =SUM('2) Order Form'!W25) -> 7048652540386 | AC20: =INDEX(ATS!$A:$P,MATCH(ATS!$AB20,ATS!$O:$O,0),1) -> 845104 | AD20: =INDEX(ATS!$A:$P,MATCH(ATS!$AB20,ATS!$O:$O,0),2) -> Trailblazer Mips Helmet | AE20: =INDEX(ATS!$A:$P,MATCH(ATS!$AB20,ATS!$O:$O,0),4) -> MBLCK-LXL
A21: 810050 | B21: Rocker Visor | C21: WHO | D21: MSGMC-OS | E21: Matte Slate Gray Metallic | F21: OS | G21: Stock | H21: 16 | I21: 16 | J21: 16 | K21: 16 | L21: 16 | N21: 810050-MSGMC-OS | O21: =IF(B21="NET","",IF(B21="","",IFERROR(VLOOKUP(N21,EAN!$A:$B,2,FALSE),"MANGLER - MÅ OPPDATERE EAN-FANEN"))) -> 7048652553850 | P21: 16 | Q21: 16 | S21: =IF(B21="NET","",IFERROR(VLOOKUP(O21,'2) Order Form'!$W$9:$W$1924,1,FALSE),"Ikke med I order form")) -> Ikke med I order form | U21: 7048652767554 | V21: =IFERROR(VLOOKUP(U21,'2) Order Form'!$W$9:$W$1994,1,FALSE),"Ikke med I order form") -> 7048652767554 | W21: =INDEX(ATS!$A:$P,MATCH(ATS!$U21,ATS!$O:$O,0),1) -> 845104 | X21: =INDEX(ATS!$A:$P,MATCH(ATS!$U21,ATS!$O:$O,0),2) -> Trailblazer Mips Helmet | Y21: =INDEX(ATS!$A:$P,MATCH(ATS!$U21,ATS!$O:$O,0),4) -> BGRRG-SM | AA21: =IFERROR(VLOOKUP('2) Order Form'!W26,$U$4:$U$1000,1,FALSE),"Ikke med i Elastic") -> 7048652767615 | AB21: =SUM('2) Order Form'!W26) -> 7048652767615 | AC21: =INDEX(ATS!$A:$P,MATCH(ATS!$AB21,ATS!$O:$O,0),1) -> 845104 | AD21: =INDEX(ATS!$A:$P,MATCH(ATS!$AB21,ATS!$O:$O,0),2) -> Trailblazer Mips Helmet | AE21: =INDEX(ATS!$A:$P,MATCH(ATS!$AB21,ATS!$O:$O,0),4) -> MFLUO-SM
A22: 810051 | B22: Net | H22: 202235 | I22: 202236 | J22: 202237 | K22: 202238 | L22: 202239 | N22: 810051- | O22: =IF(B22="NET","",IF(B22="","",IFERROR(VLOOKUP(N22,EAN!$A:$B,2,FALSE),"MANGLER - MÅ OPPDATERE EAN-FANEN"))) ->  | P22: 202235 | Q22: 202239 | S22: =IF(B22="NET","",IFERROR(VLOOKUP(O22,'2) Order Form'!$W$9:$W$1924,1,FALSE),"Ikke med I order form")) ->  | U22: 7048652767547 | V22: =IFERROR(VLOOKUP(U22,'2) Order Form'!$W$9:$W$1994,1,FALSE),"Ikke med I order form") -> 7048652767547 | W22: =INDEX(ATS!$A:$P,MATCH(ATS!$U22,ATS!$O:$O,0),1) -> 845104 | X22: =INDEX(ATS!$A:$P,MATCH(ATS!$U22,ATS!$O:$O,0),2) -> Trailblazer Mips Helmet | Y22: =INDEX(ATS!$A:$P,MATCH(ATS!$U22,ATS!$O:$O,0),4) -> BGRRG-ML | AA22: =IFERROR(VLOOKUP('2) Order Form'!W27,$U$4:$U$1000,1,FALSE),"Ikke med i Elastic") -> 7048652767608 | AB22: =SUM('2) Order Form'!W27) -> 7048652767608 | AC22: =INDEX(ATS!$A:$P,MATCH(ATS!$AB22,ATS!$O:$O,0),1) -> 845104 | AD22: =INDEX(ATS!$A:$P,MATCH(ATS!$AB22,ATS!$O:$O,0),2) -> Trailblazer Mips Helmet | AE22: =INDEX(ATS!$A:$P,MATCH(ATS!$AB22,ATS!$O:$O,0),4) -> MFLUO-ML
A23: 810051 | B23: Rocker/Wanderer Earpads | C23: WHO | D23: DTBLK-OS | E23: Dirt Black | F23: OS | G23: Active | H23: 0 | I23: 0 | J23: 0 | K23: 0 | L23: 0 | N23: 810051-DTBLK-OS | O23: =IF(B23="NET","",IF(B23="","",IFERROR(VLOOKUP(N23,EAN!$A:$B,2,FALSE),"MANGLER - MÅ OPPDATERE EAN-FANEN"))) -> 7048652327536 | P23: 0 | Q23: 0 | S23: =IF(B23="NET","",IFERROR(VLOOKUP(O23,'2) Order Form'!$W$9:$W$1924,1,FALSE),"Ikke med I order form")) -> Ikke med I order form | U23: 7048652767530 | V23: =IFERROR(VLOOKUP(U23,'2) Order Form'!$W$9:$W$1994,1,FALSE),"Ikke med I order form") -> 7048652767530 | W23: =INDEX(ATS!$A:$P,MATCH(ATS!$U23,ATS!$O:$O,0),1) -> 845104 | X23: =INDEX(ATS!$A:$P,MATCH(ATS!$U23,ATS!$O:$O,0),2) -> Trailblazer Mips Helmet | Y23: =INDEX(ATS!$A:$P,MATCH(ATS!$U23,ATS!$O:$O,0),4) -> BGRRG-LXL | AA23: =IFERROR(VLOOKUP('2) Order Form'!W28,$U$4:$U$1000,1,FALSE),"Ikke med i Elastic") -> 7048652767592 | AB23: =SUM('2) Order Form'!W28) -> 7048652767592 | AC23: =INDEX(ATS!$A:$P,MATCH(ATS!$AB23,ATS!$O:$O,0),1) -> 845104 | AD23: =INDEX(ATS!$A:$P,MATCH(ATS!$AB23,ATS!$O:$O,0),2) -> Trailblazer Mips Helmet | AE23: =INDEX(ATS!$A:$P,MATCH(ATS!$AB23,ATS!$O:$O,0),4) -> MFLUO-LXL
A24: 810052 | B24: Net | H24: 202235 | I24: 202236 | J24: 202237 | K24: 202238 | L24: 202239 | N24: 810052- | O24: =IF(B24="NET","",IF(B24="","",IFERROR(VLOOKUP(N24,EAN!$A:$B,2,FALSE),"MANGLER - MÅ OPPDATERE EAN-FANEN"))) ->  | P24: 202235 | Q24: 202239 | S24: =IF(B24="NET","",IFERROR(VLOOKUP(O24,'2) Order Form'!$W$9:$W$1924,1,FALSE),"Ikke med I order form")) ->  | U24: 7048652767585 | V24: =IFERROR(VLOOKUP(U24,'2) Order Form'!$W$9:$W$1994,1,FALSE),"Ikke med I order form") -> 7048652767585 | W24: =INDEX(ATS!$A:$P,MATCH(ATS!$U24,ATS!$O:$O,0),1) -> 845104 | X24: =INDEX(ATS!$A:$P,MATCH(ATS!$U24,ATS!$O:$O,0),2) -> Trailblazer Mips Helmet | Y24: =INDEX(ATS!$A:$P,MATCH(ATS!$U24,ATS!$O:$O,0),4) -> BRWHT-SM | AA24: =IFERROR(VLOOKUP('2) Order Form'!W29,$U$4:$U$1000,1,FALSE),"Ikke med i Elastic") -> 7048652540522 | AB24: =SUM('2) Order Form'!W29) -> 7048652540522 | AC24: =INDEX(ATS!$A:$P,MATCH(ATS!$AB24,ATS!$O:$O,0),1) -> 845104 | AD24: =INDEX(ATS!$A:$P,MATCH(ATS!$AB24,ATS!$O:$O,0),2) -> Trailblazer Mips Helmet | AE24: =INDEX(ATS!$A:$P,MATCH(ATS!$AB24,ATS!$O:$O,0),4) -> MWHTE-SM
A25: 810052 | B25: Bike Helmet Case | C25: WHO | D25: TEBLK-OS | E25: True Black | F25: OS | G25: Active | H25: 665 | I25: 665 | J25: 665 | K25: 665 | L25: 665 | N25: 810052-TEBLK-OS | O25: =IF(B25="NET","",IF(B25="","",IFERROR(VLOOKUP(N25,EAN!$A:$B,2,FALSE),"MANGLER - MÅ OPPDATERE EAN-FANEN"))) -> 7048652327543 | P25: 665 | Q25: 665 | S25: =IF(B25="NET","",IFERROR(VLOOKUP(O25,'2) Order Form'!$W$9:$W$1924,1,FALSE),"Ikke med I order form")) -> 7048652327543 | U25: 7048652767578 | V25: =IFERROR(VLOOKUP(U25,'2) Order Form'!$W$9:$W$1994,1,FALSE),"Ikke med I order form") -> 7048652767578 | W25: =INDEX(ATS!$A:$P,MATCH(ATS!$U25,ATS!$O:$O,0),1) -> 845104 | X25: =INDEX(ATS!$A:$P,MATCH(ATS!$U25,ATS!$O:$O,0),2) -> Trailblazer Mips Helmet | Y25: =INDEX(ATS!$A:$P,MATCH(ATS!$U25,ATS!$O:$O,0),4) -> BRWHT-ML | AA25: =IFERROR(VLOOKUP('2) Order Form'!W30,$U$4:$U$1000,1,FALSE),"Ikke med i Elastic") -> 7048652540515 | AB25: =SUM('2) Order Form'!W30) -> 7048652540515 | AC25: =INDEX(ATS!$A:$P,MATCH(ATS!$AB25,ATS!$O:$O,0),1) -> 845104 | AD25: =INDEX(ATS!$A:$P,MATCH(ATS!$AB25,ATS!$O:$O,0),2) -> Trailblazer Mips Helmet | AE25: =INDEX(ATS!$A:$P,MATCH(ATS!$AB25,ATS!$O:$O,0),4) -> MWHTE-ML
A26: 810053 | B26: Net | H26: 202235 | I26: 202236 | J26: 202237 | K26: 202238 | L26: 202239 | N26: 810053- | O26: =IF(B26="NET","",IF(B26="","",IFERROR(VLOOKUP(N26,EAN!$A:$B,2,FALSE),"MANGLER - MÅ OPPDATERE EAN-FANEN"))) ->  | P26: 202235 | Q26: 202239 | S26: =IF(B26="NET","",IFERROR(VLOOKUP(O26,'2) Order Form'!$W$9:$W$1924,1,FALSE),"Ikke med I order form")) ->  | U26: 7048652767561 | V26: =IFERROR(VLOOKUP(U26,'2) Order Form'!$W$9:$W$1994,1,FALSE),"Ikke med I order form") -> 7048652767561 | W26: =INDEX(ATS!$A:$P,MATCH(ATS!$U26,ATS!$O:$O,0),1) -> 845104 | X26: =INDEX(ATS!$A:$P,MATCH(ATS!$U26,ATS!$O:$O,0),2) -> Trailblazer Mips Helmet | Y26: =INDEX(ATS!$A:$P,MATCH(ATS!$U26,ATS!$O:$O,0),4) -> BRWHT-LXL | AA26: =IFERROR(VLOOKUP('2) Order Form'!W31,$U$4:$U$1000,1,FALSE),"Ikke med i Elastic") -> 7048652540508 | AB26: =SUM('2) Order Form'!W31) -> 7048652540508 | AC26: =INDEX(ATS!$A:$P,MATCH(ATS!$AB26,ATS!$O:$O,0),1) -> 845104 | AD26: =INDEX(ATS!$A:$P,MATCH(ATS!$AB26,ATS!$O:$O,0),2) -> Trailblazer Mips Helmet | AE26: =INDEX(ATS!$A:$P,MATCH(ATS!$AB26,ATS!$O:$O,0),4) -> MWHTE-LXL
A27: 810053 | B27: Bushwhacker II Visor | C27: WHO | D27: BGRRG-OS | E27: Bolt Gray/Rose Gold | F27: OS | G27: Active | H27: 9 | I27: 9 | J27: 9 | K27: 9 | L27: 9 | N27: 810053-BGRRG-OS | O27: =IF(B27="NET","",IF(B27="","",IFERROR(VLOOKUP(N27,EAN!$A:$B,2,FALSE),"MANGLER - MÅ OPPDATERE EAN-FANEN"))) -> 7048652766151 | P27: 9 | Q27: 9 | S27: =IF(B27="NET","",IFERROR(VLOOKUP(O27,'2) Order Form'!$W$9:$W$1924,1,FALSE),"Ikke med I order form")) -> 7048652766151 | U27: 7048652767615 | V27: =IFERROR(VLOOKUP(U27,'2) Order Form'!$W$9:$W$1994,1,FALSE),"Ikke med I order form") -> 7048652767615 | W27: =INDEX(ATS!$A:$P,MATCH(ATS!$U27,ATS!$O:$O,0),1) -> 845104 | X27: =INDEX(ATS!$A:$P,MATCH(ATS!$U27,ATS!$O:$O,0),2) -> Trailblazer Mips Helmet | Y27: =INDEX(ATS!$A:$P,MATCH(ATS!$U27,ATS!$O:$O,0),4) -> MFLUO-SM | AA27: =IFERROR(VLOOKUP('2) Order Form'!W32,$U$4:$U$1000,1,FALSE),"Ikke med i Elastic") -> 7048652767646 | AB27: =SUM('2) Order Form'!W32) -> 7048652767646 | AC27: =INDEX(ATS!$A:$P,MATCH(ATS!$AB27,ATS!$O:$O,0),1) -> 845104 | AD27: =INDEX(ATS!$A:$P,MATCH(ATS!$AB27,ATS!$O:$O,0),2) -> Trailblazer Mips Helmet | AE27: =INDEX(ATS!$A:$P,MATCH(ATS!$AB27,ATS!$O:$O,0),4) -> SGRBO-SM
A28: 810053 | B28: Bushwhacker II Visor | C28: WHO | D28: BRWHT-OS | E28: Bronco White | F28: OS | G28: Active | H28: 9 | I28: 9 | J28: 9 | K28: 9 | L28: 9 | N28: 810053-BRWHT-OS | O28: =IF(B28="NET","",IF(B28="","",IFERROR(VLOOKUP(N28,EAN!$A:$B,2,FALSE),"MANGLER - MÅ OPPDATERE EAN-FANEN"))) -> 7048652766168 | P28: 9 | Q28: 9 | S28: =IF(B28="NET","",IFERROR(VLOOKUP(O28,'2) Order Form'!$W$9:$W$1924,1,FALSE),"Ikke med I order form")) -> 7048652766168 | U28: 7048652767608 | V28: =IFERROR(VLOOKUP(U28,'2) Order Form'!$W$9:$W$1994,1,FALSE),"Ikke med I order form") -> 7048652767608 | W28: =INDEX(ATS!$A:$P,MATCH(ATS!$U28,ATS!$O:$O,0),1) -> 845104 | X28: =INDEX(ATS!$A:$P,MATCH(ATS!$U28,ATS!$O:$O,0),2) -> Trailblazer Mips Helmet | Y28: =INDEX(ATS!$A:$P,MATCH(ATS!$U28,ATS!$O:$O,0),4) -> MFLUO-ML | AA28: =IFERROR(VLOOKUP('2) Order Form'!W33,$U$4:$U$1000,1,FALSE),"Ikke med i Elastic") -> 7048652767639 | AB28: =SUM('2) Order Form'!W33) -> 7048652767639 | AC28: =INDEX(ATS!$A:$P,MATCH(ATS!$AB28,ATS!$O:$O,0),1) -> 845104 | AD28: =INDEX(ATS!$A:$P,MATCH(ATS!$AB28,ATS!$O:$O,0),2) -> Trailblazer Mips Helmet | AE28: =INDEX(ATS!$A:$P,MATCH(ATS!$AB28,ATS!$O:$O,0),4) -> SGRBO-ML
A29: 810053 | B29: Bushwhacker II Visor | C29: WHO | D29: MBKCE-OS | E29: Matte Black Chrome | F29: OS | G29: Stock | H29: 16 | I29: 16 | J29: 16 | K29: 16 | L29: 16 | N29: 810053-MBKCE-OS | O29: =IF(B29="NET","",IF(B29="","",IFERROR(VLOOKUP(N29,EAN!$A:$B,2,FALSE),"MANGLER - MÅ OPPDATERE EAN-FANEN"))) -> 7048652327574 | P29: 16 | Q29: 16 | S29: =IF(B29="NET","",IFERROR(VLOOKUP(O29,'2) Order Form'!$W$9:$W$1924,1,FALSE),"Ikke med I order form")) -> Ikke med I order form | U29: 7048652767592 | V29: =IFERROR(VLOOKUP(U29,'2) Order Form'!$W$9:$W$1994,1,FALSE),"Ikke med I order form") -> 7048652767592 | W29: =INDEX(ATS!$A:$P,MATCH(ATS!$U29,ATS!$O:$O,0),1) -> 845104 | X29: =INDEX(ATS!$A:$P,MATCH(ATS!$U29,ATS!$O:$O,0),2) -> Trailblazer Mips Helmet | Y29: =INDEX(ATS!$A:$P,MATCH(ATS!$U29,ATS!$O:$O,0),4) -> MFLUO-LXL | AA29: =IFERROR(VLOOKUP('2) Order Form'!W34,$U$4:$U$1000,1,FALSE),"Ikke med i Elastic") -> 7048652767622 | AB29: =SUM('2) Order Form'!W34) -> 7048652767622 | AC29: =INDEX(ATS!$A:$P,MATCH(ATS!$AB29,ATS!$O:$O,0),1) -> 845104 | AD29: =INDEX(ATS!$A:$P,MATCH(ATS!$AB29,ATS!$O:$O,0),2) -> Trailblazer Mips Helmet | AE29: =INDEX(ATS!$A:$P,MATCH(ATS!$AB29,ATS!$O:$O,0),4) -> SGRBO-LXL
A30: 810053 | B30: Bushwhacker II Visor | C30: WHO | D30: MBLCK-OS | E30: Matte Black | F30: OS | G30: Active | H30: 12 | I30: 12 | J30: 12 | K30: 12 | L30: 12 | N30: 810053-MBLCK-OS | O30: =IF(B30="NET","",IF(B30="","",IFERROR(VLOOKUP(N30,EAN!$A:$B,2,FALSE),"MANGLER - MÅ OPPDATERE EAN-FANEN"))) -> 7048652327581 | P30: 12 | Q30: 12 | S30: =IF(B30="NET","",IFERROR(VLOOKUP(O30,'2) Order Form'!$W$9:$W$1924,1,FALSE),"Ikke med I order form")) -> 7048652327581 | U30: 7048652540225 | V30: =IFERROR(VLOOKUP(U30,'2) Order Form'!$W$9:$W$1994,1,FALSE),"Ikke med I order form") -> 7048652540225 | W30: =INDEX(ATS!$A:$P,MATCH(ATS!$U30,ATS!$O:$O,0),1) -> 845103 | X30: =INDEX(ATS!$A:$P,MATCH(ATS!$U30,ATS!$O:$O,0),2) -> Trailblazer Helmet | Y30: =INDEX(ATS!$A:$P,MATCH(ATS!$U30,ATS!$O:$O,0),4) -> MBLCK-SM | AA30: =IFERROR(VLOOKUP('2) Order Form'!W35,$U$4:$U$1000,1,FALSE),"Ikke med i Elastic") -> 7048652767431 | AB30: =SUM('2) Order Form'!W35) -> 7048652767431 | AC30: =INDEX(ATS!$A:$P,MATCH(ATS!$AB30,ATS!$O:$O,0),1) -> 845103 | AD30: =INDEX(ATS!$A:$P,MATCH(ATS!$AB30,ATS!$O:$O,0),2) -> Trailblazer Helmet | AE30: =INDEX(ATS!$A:$P,MATCH(ATS!$AB30,ATS!$O:$O,0),4) -> BGRRG-SM
A31: 810053 | B31: Bushwhacker II Visor | C31: WHO | D31: MCDGY-OS | E31: Matte Cloud Gray | F31: OS | G31: Stock | H31: 12 | I31: 12 | J31: 12 | K31: 12 | L31: 12 | N31: 810053-MCDGY-OS | O31: =IF(B31="NET","",IF(B31="","",IFERROR(VLOOKUP(N31,EAN!$A:$B,2,FALSE),"MANGLER - MÅ OPPDATERE EAN-FANEN"))) -> 7048652327598 | P31: 12 | Q31: 12 | S31: =IF(B31="NET","",IFERROR(VLOOKUP(O31,'2) Order Form'!$W$9:$W$1924,1,FALSE),"Ikke med I order form")) -> Ikke med I order form | U31: 7048652540218 | V31: =IFERROR(VLOOKUP(U31,'2) Order Form'!$W$9:$W$1994,1,FALSE),"Ikke med I order form") -> 7048652540218 | W31: =INDEX(ATS!$A:$P,MATCH(ATS!$U31,ATS!$O:$O,0),1) -> 845103 | X31: =INDEX(ATS!$A:$P,MATCH(ATS!$U31,ATS!$O:$O,0),2) -> Trailblazer Helmet | Y31: =INDEX(ATS!$A:$P,MATCH(ATS!$U31,ATS!$O:$O,0),4) -> MBLCK-ML | AA31: =IFERROR(VLOOKUP('2) Order Form'!W36,$U$4:$U$1000,1,FALSE),"Ikke med i Elastic") -> 7048652767424 | AB31: =SUM('2) Order Form'!W36) -> 7048652767424 | AC31: =INDEX(ATS!$A:$P,MATCH(ATS!$AB31,ATS!$O:$O,0),1) -> 845103 | AD31: =INDEX(ATS!$A:$P,MATCH(ATS!$AB31,ATS!$O:$O,0),2) -> Trailblazer Helmet | AE31: =INDEX(ATS!$A:$P,MATCH(ATS!$AB31,ATS!$O:$O,0),4) -> BGRRG-ML
A32: 810053 | B32: Bushwhacker II Visor | C32: WHO | D32: MEHRD-OS | E32: Matte Earth Red | F32: OS | G32: Stock | H32: 11 | I32: 11 | J32: 11 | K32: 11 | L32: 11 | N32: 810053-MEHRD-OS | O32: =IF(B32="NET","",IF(B32="","",IFERROR(VLOOKUP(N32,EAN!$A:$B,2,FALSE),"MANGLER - MÅ OPPDATERE EAN-FANEN"))) -> 7048652327604 | P32: 11 | Q32: 11 | S32: =IF(B32="NET","",IFERROR(VLOOKUP(O32,'2) Order Form'!$W$9:$W$1924,1,FALSE),"Ikke med I order form")) -> Ikke med I order form | U32: 7048652540201 | V32: =IFERROR(VLOOKUP(U32,'2) Order Form'!$W$9:$W$1994,1,FALSE),"Ikke med I order form") -> 7048652540201 | W32: =INDEX(ATS!$A:$P,MATCH(ATS!$U32,ATS!$O:$O,0),1) -> 845103 | X32: =INDEX(ATS!$A:$P,MATCH(ATS!$U32,ATS!$O:$O,0),2) -> Trailblazer Helmet | Y32: =INDEX(ATS!$A:$P,MATCH(ATS!$U32,ATS!$O:$O,0),4) -> MBLCK-LXL | AA32: =IFERROR(VLOOKUP('2) Order Form'!W37,$U$4:$U$1000,1,FALSE),"Ikke med i Elastic") -> 7048652767417 | AB32: =SUM('2) Order Form'!W37) -> 7048652767417 | AC32: =INDEX(ATS!$A:$P,MATCH(ATS!$AB32,ATS!$O:$O,0),1) -> 845103 | AD32: =INDEX(ATS!$A:$P,MATCH(ATS!$AB32,ATS!$O:$O,0),2) -> Trailblazer Helmet | AE32: =INDEX(ATS!$A:$P,MATCH(ATS!$AB32,ATS!$O:$O,0),4) -> BGRRG-LXL
A33: 810053 | B33: Bushwhacker II Visor | C33: WHO | D33: MFGRN-OS | E33: Matte Forest Green | F33: OS | G33: Stock | H33: 8 | I33: 8 | J33: 8 | K33: 8 | L33: 8 | N33: 810053-MFGRN-OS | O33: =IF(B33="NET","",IF(B33="","",IFERROR(VLOOKUP(N33,EAN!$A:$B,2,FALSE),"MANGLER - MÅ OPPDATERE EAN-FANEN"))) -> 7048652542618 | P33: 8 | Q33: 8 | S33: =IF(B33="NET","",IFERROR(VLOOKUP(O33,'2) Order Form'!$W$9:$W$1924,1,FALSE),"Ikke med I order form")) -> Ikke med I order form | U33: 7048652540348 | V33: =IFERROR(VLOOKUP(U33,'2) Order Form'!$W$9:$W$1994,1,FALSE),"Ikke med I order form") -> 7048652540348 | W33: =INDEX(ATS!$A:$P,MATCH(ATS!$U33,ATS!$O:$O,0),1) -> 845103 | X33: =INDEX(ATS!$A:$P,MATCH(ATS!$U33,ATS!$O:$O,0),2) -> Trailblazer Helmet | Y33: =INDEX(ATS!$A:$P,MATCH(ATS!$U33,ATS!$O:$O,0),4) -> MWHTE-SM | AA33: =IFERROR(VLOOKUP('2) Order Form'!W38,$U$4:$U$1000,1,FALSE),"Ikke med i Elastic") -> 7048652767462 | AB33: =SUM('2) Order Form'!W38) -> 7048652767462 | AC33: =INDEX(ATS!$A:$P,MATCH(ATS!$AB33,ATS!$O:$O,0),1) -> 845103 | AD33: =INDEX(ATS!$A:$P,MATCH(ATS!$AB33,ATS!$O:$O,0),2) -> Trailblazer Helmet | AE33: =INDEX(ATS!$A:$P,MATCH(ATS!$AB33,ATS!$O:$O,0),4) -> BRWHT-SM
A34: 810053 | B34: Bushwhacker II Visor | C34: WHO | D34: MNAVY-OS | E34: Matte Navy | F34: OS | G34: Stock | H34: 8 | I34: 8 | J34: 8 | K34: 8 | L34: 8 | N34: 810053-MNAVY-OS | O34: =IF(B34="NET","",IF(B34="","",IFERROR(VLOOKUP(N34,EAN!$A:$B,2,FALSE),"MANGLER - MÅ OPPDATERE EAN-FANEN"))) -> 7048652327611 | P34: 8 | Q34: 8 | S34: =IF(B34="NET","",IFERROR(VLOOKUP(O34,'2) Order Form'!$W$9:$W$1924,1,FALSE),"Ikke med I order form")) -> Ikke med I order form | U34: 7048652540331 | V34: =IFERROR(VLOOKUP(U34,'2) Order Form'!$W$9:$W$1994,1,FALSE),"Ikke med I order form") -> 7048652540331 | W34: =INDEX(ATS!$A:$P,MATCH(ATS!$U34,ATS!$O:$O,0),1) -> 845103 | X34: =INDEX(ATS!$A:$P,MATCH(ATS!$U34,ATS!$O:$O,0),2) -> Trailblazer Helmet | Y34: =INDEX(ATS!$A:$P,MATCH(ATS!$U34,ATS!$O:$O,0),4) -> MWHTE-ML | AA34: =IFERROR(VLOOKUP('2) Order Form'!W39,$U$4:$U$1000,1,FALSE),"Ikke med i Elastic") -> 7048652767455 | AB34: =SUM('2) Order Form'!W39) -> 7048652767455 | AC34: =INDEX(ATS!$A:$P,MATCH(ATS!$AB34,ATS!$O:$O,0),1) -> 845103 | AD34: =INDEX(ATS!$A:$P,MATCH(ATS!$AB34,ATS!$O:$O,0),2) -> Trailblazer Helmet | AE34: =INDEX(ATS!$A:$P,MATCH(ATS!$AB34,ATS!$O:$O,0),4) -> BRWHT-ML
A35: 810053 | B35: Bushwhacker II Visor | C35: WHO | D35: MOEDB-OS | E35: Matte Olive Drab | F35: OS | G35: Stock | H35: 11 | I35: 11 | J35: 11 | K35: 11 | L35: 11 | N35: 810053-MOEDB-OS | O35: =IF(B35="NET","",IF(B35="","",IFERROR(VLOOKUP(N35,EAN!$A:$B,2,FALSE),"MANGLER - MÅ OPPDATERE EAN-FANEN"))) -> 7048652327628 | P35: 11 | Q35: 11 | S35: =IF(B35="NET","",IFERROR(VLOOKUP(O35,'2) Order Form'!$W$9:$W$1924,1,FALSE),"Ikke med I order form")) -> Ikke med I order form | U35: 7048652540324 | V35: =IFERROR(VLOOKUP(U35,'2) Order Form'!$W$9:$W$1994,1,FALSE),"Ikke med I order form") -> 7048652540324 | W35: =INDEX(ATS!$A:$P,MATCH(ATS!$U35,ATS!$O:$O,0),1) -> 845103 | X35: =INDEX(ATS!$A:$P,MATCH(ATS!$U35,ATS!$O:$O,0),2) -> Trailblazer Helmet | Y35: =INDEX(ATS!$A:$P,MATCH(ATS!$U35,ATS!$O:$O,0),4) -> MWHTE-LXL | AA35: =IFERROR(VLOOKUP('2) Order Form'!W40,$U$4:$U$1000,1,FALSE),"Ikke med i Elastic") -> 7048652767448 | AB35: =SUM('2) Order Form'!W40) -> 7048652767448 | AC35: =INDEX(ATS!$A:$P,MATCH(ATS!$AB35,ATS!$O:$O,0),1) -> 845103 | AD35: =INDEX(ATS!$A:$P,MATCH(ATS!$AB35,ATS!$O:$O,0),2) -> Trailblazer Helmet | AE35: =INDEX(ATS!$A:$P,MATCH(ATS!$AB35,ATS!$O:$O,0),4) -> BRWHT-LXL
A36: 810053 | B36: Bushwhacker II Visor | C36: WHO | D36: MSEGY-OS | E36: Matte Smoke Gray | F36: OS | G36: Stock | H36: 12 | I36: 12 | J36: 12 | K36: 12 | L36: 12 | N36: 810053-MSEGY-OS | O36: =IF(B36="NET","",IF(B36="","",IFERROR(VLOOKUP(N36,EAN!$A:$B,2,FALSE),"MANGLER - MÅ OPPDATERE EAN-FANEN"))) -> 7048652327635 | P36: 12 | Q36: 12 | S36: =IF(B36="NET","",IFERROR(VLOOKUP(O36,'2) Order Form'!$W$9:$W$1924,1,FALSE),"Ikke med I order form")) -> Ikke med I order form | U36: 7048652767523 | V36: =IFERROR(VLOOKUP(U36,'2) Order Form'!$W$9:$W$1994,1,FALSE),"Ikke med I order form") -> 7048652767523 | W36: =INDEX(ATS!$A:$P,MATCH(ATS!$U36,ATS!$O:$O,0),1) -> 845103 | X36: =INDEX(ATS!$A:$P,MATCH(ATS!$U36,ATS!$O:$O,0),2) -> Trailblazer Helmet | Y36: =INDEX(ATS!$A:$P,MATCH(ATS!$U36,ATS!$O:$O,0),4) -> SGRBO-SM | AA36: =IFERROR(VLOOKUP('2) Order Form'!W41,$U$4:$U$1000,1,FALSE),"Ikke med i Elastic") -> 7048652540225 | AB36: =SUM('2) Order Form'!W41) -> 7048652540225 | AC36: =INDEX(ATS!$A:$P,MATCH(ATS!$AB36,ATS!$O:$O,0),1) -> 845103 | AD36: =INDEX(ATS!$A:$P,MATCH(ATS!$AB36,ATS!$O:$O,0),2) -> Trailblazer Helmet | AE36: =INDEX(ATS!$A:$P,MATCH(ATS!$AB36,ATS!$O:$O,0),4) -> MBLCK-SM
A37: 810053 | B37: Bushwhacker II Visor | C37: WHO | D37: MSGMC-OS | E37: Matte Slate Gray Metallic | F37: OS | G37: Active | H37: 12 | I37: 12 | J37: 12 | K37: 12 | L37: 12 | N37: 810053-MSGMC-OS | O37: =IF(B37="NET","",IF(B37="","",IFERROR(VLOOKUP(N37,EAN!$A:$B,2,FALSE),"MANGLER - MÅ OPPDATERE EAN-FANEN"))) -> 7048652542625 | P37: 12 | Q37: 12 | S37: =IF(B37="NET","",IFERROR(VLOOKUP(O37,'2) Order Form'!$W$9:$W$1924,1,FALSE),"Ikke med I order form")) -> 7048652542625 | U37: 7048652767516 | V37: =IFERROR(VLOOKUP(U37,'2) Order Form'!$W$9:$W$1994,1,FALSE),"Ikke med I order form") -> 7048652767516 | W37: =INDEX(ATS!$A:$P,MATCH(ATS!$U37,ATS!$O:$O,0),1) -> 845103 | X37: =INDEX(ATS!$A:$P,MATCH(ATS!$U37,ATS!$O:$O,0),2) -> Trailblazer Helmet | Y37: =INDEX(ATS!$A:$P,MATCH(ATS!$U37,ATS!$O:$O,0),4) -> SGRBO-ML | AA37: =IFERROR(VLOOKUP('2) Order Form'!W42,$U$4:$U$1000,1,FALSE),"Ikke med i Elastic") -> 7048652540218 | AB37: =SUM('2) Order Form'!W42) -> 7048652540218 | AC37: =INDEX(ATS!$A:$P,MATCH(ATS!$AB37,ATS!$O:$O,0),1) -> 845103 | AD37: =INDEX(ATS!$A:$P,MATCH(ATS!$AB37,ATS!$O:$O,0),2) -> Trailblazer Helmet | AE37: =INDEX(ATS!$A:$P,MATCH(ATS!$AB37,ATS!$O:$O,0),4) -> MBLCK-ML
A38: 810053 | B38: Bushwhacker II Visor | C38: WHO | D38: MWHTE-OS | E38: Matte White | F38: OS | G38: Active | H38: 11 | I38: 11 | J38: 11 | K38: 11 | L38: 11 | N38: 810053-MWHTE-OS | O38: =IF(B38="NET","",IF(B38="","",IFERROR(VLOOKUP(N38,EAN!$A:$B,2,FALSE),"MANGLER - MÅ OPPDATERE EAN-FANEN"))) -> 7048652327642 | P38: 11 | Q38: 11 | S38: =IF(B38="NET","",IFERROR(VLOOKUP(O38,'2) Order Form'!$W$9:$W$1924,1,FALSE),"Ikke med I order form")) -> 7048652327642 | U38: 7048652767509 | V38: =IFERROR(VLOOKUP(U38,'2) Order Form'!$W$9:$W$1994,1,FALSE),"Ikke med I order form") -> 7048652767509 | W38: =INDEX(ATS!$A:$P,MATCH(ATS!$U38,ATS!$O:$O,0),1) -> 845103 | X38: =INDEX(ATS!$A:$P,MATCH(ATS!$U38,ATS!$O:$O,0),2) -> Trailblazer Helmet | Y38: =INDEX(ATS!$A:$P,MATCH(ATS!$U38,ATS!$O:$O,0),4) -> SGRBO-LXL | AA38: =IFERROR(VLOOKUP('2) Order Form'!W43,$U$4:$U$1000,1,FALSE),"Ikke med i Elastic") -> 7048652540201 | AB38: =SUM('2) Order Form'!W43) -> 7048652540201 | AC38: =INDEX(ATS!$A:$P,MATCH(ATS!$AB38,ATS!$O:$O,0),1) -> 845103 | AD38: =INDEX(ATS!$A:$P,MATCH(ATS!$AB38,ATS!$O:$O,0),2) -> Trailblazer Helmet | AE38: =INDEX(ATS!$A:$P,MATCH(ATS!$AB38,ATS!$O:$O,0),4) -> MBLCK-LXL
A39: 810054 | B39: Net | H39: 202235 | I39: 202236 | J39: 202237 | K39: 202238 | L39: 202239 | N39: 810054- | O39: =IF(B39="NET","",IF(B39="","",IFERROR(VLOOKUP(N39,EAN!$A:$B,2,FALSE),"MANGLER - MÅ OPPDATERE EAN-FANEN"))) ->  | P39: 202235 | Q39: 202239 | S39: =IF(B39="NET","",IFERROR(VLOOKUP(O39,'2) Order Form'!$W$9:$W$1924,1,FALSE),"Ikke med I order form")) ->  | U39: 7048652767462 | V39: =IFERROR(VLOOKUP(U39,'2) Order Form'!$W$9:$W$1994,1,FALSE),"Ikke med I order form") -> 7048652767462 | W39: =INDEX(ATS!$A:$P,MATCH(ATS!$U39,ATS!$O:$O,0),1) -> 845103 | X39: =INDEX(ATS!$A:$P,MATCH(ATS!$U39,ATS!$O:$O,0),2) -> Trailblazer Helmet | Y39: =INDEX(ATS!$A:$P,MATCH(ATS!$U39,ATS!$O:$O,0),4) -> BRWHT-SM | AA39: =IFERROR(VLOOKUP('2) Order Form'!W44,$U$4:$U$1000,1,FALSE),"Ikke med i Elastic") -> 7048652767493 | AB39: =SUM('2) Order Form'!W44) -> 7048652767493 | AC39: =INDEX(ATS!$A:$P,MATCH(ATS!$AB39,ATS!$O:$O,0),1) -> 845103 | AD39: =INDEX(ATS!$A:$P,MATCH(ATS!$AB39,ATS!$O:$O,0),2) -> Trailblazer Helmet | AE39: =INDEX(ATS!$A:$P,MATCH(ATS!$AB39,ATS!$O:$O,0),4) -> MFLUO-SM
A40: 810054 | B40: Bushwhacker II Carbon Mips Visor | C40: WHO | D40: MBKME-OS | E40: Matte Black Metallic | F40: OS | G40: Active | H40: 17 | I40: 17 | J40: 17 | K40: 17 | L40: 17 | N40: 810054-MBKME-OS | O40: =IF(B40="NET","",IF(B40="","",IFERROR(VLOOKUP(N40,EAN!$A:$B,2,FALSE),"MANGLER - MÅ OPPDATERE EAN-FANEN"))) -> 7048652327550 | P40: 17 | Q40: 17 | S40: =IF(B40="NET","",IFERROR(VLOOKUP(O40,'2) Order Form'!$W$9:$W$1924,1,FALSE),"Ikke med I order form")) -> 7048652327550 | U40: 7048652767455 | V40: =IFERROR(VLOOKUP(U40,'2) Order Form'!$W$9:$W$1994,1,FALSE),"Ikke med I order form") -> 7048652767455 | W40: =INDEX(ATS!$A:$P,MATCH(ATS!$U40,ATS!$O:$O,0),1) -> 845103 | X40: =INDEX(ATS!$A:$P,MATCH(ATS!$U40,ATS!$O:$O,0),2) -> Trailblazer Helmet | Y40: =INDEX(ATS!$A:$P,MATCH(ATS!$U40,ATS!$O:$O,0),4) -> BRWHT-ML | AA40: =IFERROR(VLOOKUP('2) Order Form'!W45,$U$4:$U$1000,1,FALSE),"Ikke med i Elastic") -> 7048652767486 | AB40: =SUM('2) Order Form'!W45) -> 7048652767486 | AC40: =INDEX(ATS!$A:$P,MATCH(ATS!$AB40,ATS!$O:$O,0),1) -> 845103 | AD40: =INDEX(ATS!$A:$P,MATCH(ATS!$AB40,ATS!$O:$O,0),2) -> Trailblazer Helmet | AE40: =INDEX(ATS!$A:$P,MATCH(ATS!$AB40,ATS!$O:$O,0),4) -> MFLUO-ML
A41: 810054 | B41: Bushwhacker II Carbon Mips Visor | C41: WHO | D41: MWEMC-OS | E41: Matte White Metallic | F41: OS | G41: Active | H41: 19 | I41: 19 | J41: 19 | K41: 19 | L41: 19 | N41: 810054-MWEMC-OS | O41: =IF(B41="NET","",IF(B41="","",IFERROR(VLOOKUP(N41,EAN!$A:$B,2,FALSE),"MANGLER - MÅ OPPDATERE EAN-FANEN"))) -> 7048652327567 | P41: 19 | Q41: 19 | S41: =IF(B41="NET","",IFERROR(VLOOKUP(O41,'2) Order Form'!$W$9:$W$1924,1,FALSE),"Ikke med I order form")) -> 7048652327567 | U41: 7048652767448 | V41: =IFERROR(VLOOKUP(U41,'2) Order Form'!$W$9:$W$1994,1,FALSE),"Ikke med I order form") -> 7048652767448 | W41: =INDEX(ATS!$A:$P,MATCH(ATS!$U41,ATS!$O:$O,0),1) -> 845103 | X41: =INDEX(ATS!$A:$P,MATCH(ATS!$U41,ATS!$O:$O,0),2) -> Trailblazer Helmet | Y41: =INDEX(ATS!$A:$P,MATCH(ATS!$U41,ATS!$O:$O,0),4) -> BRWHT-LXL | AA41: =IFERROR(VLOOKUP('2) Order Form'!W46,$U$4:$U$1000,1,FALSE),"Ikke med i Elastic") -> 7048652767479 | AB41: =SUM('2) Order Form'!W46) -> 7048652767479 | AC41: =INDEX(ATS!$A:$P,MATCH(ATS!$AB41,ATS!$O:$O,0),1) -> 845103 | AD41: =INDEX(ATS!$A:$P,MATCH(ATS!$AB41,ATS!$O:$O,0),2) -> Trailblazer Helmet | AE41: =INDEX(ATS!$A:$P,MATCH(ATS!$AB41,ATS!$O:$O,0),4) -> MFLUO-LXL
A42: 810055 | B42: Net | H42: 202235 | I42: 202236 | J42: 202237 | K42: 202238 | L42: 202239 | N42: 810055- | O42: =IF(B42="NET","",IF(B42="","",IFERROR(VLOOKUP(N42,EAN!$A:$B,2,FALSE),"MANGLER - MÅ OPPDATERE EAN-FANEN"))) ->  | P42: 202235 | Q42: 202239 | S42: =IF(B42="NET","",IFERROR(VLOOKUP(O42,'2) Order Form'!$W$9:$W$1924,1,FALSE),"Ikke med I order form")) ->  | U42: 7048652767493 | V42: =IFERROR(VLOOKUP(U42,'2) Order Form'!$W$9:$W$1994,1,FALSE),"Ikke med I order form") -> 7048652767493 | W42: =INDEX(ATS!$A:$P,MATCH(ATS!$U42,ATS!$O:$O,0),1) -> 845103 | X42: =INDEX(ATS!$A:$P,MATCH(ATS!$U42,ATS!$O:$O,0),2) -> Trailblazer Helmet | Y42: =INDEX(ATS!$A:$P,MATCH(ATS!$U42,ATS!$O:$O,0),4) -> MFLUO-SM | AA42: =IFERROR(VLOOKUP('2) Order Form'!W47,$U$4:$U$1000,1,FALSE),"Ikke med i Elastic") -> 7048652540348 | AB42: =SUM('2) Order Form'!W47) -> 7048652540348 | AC42: =INDEX(ATS!$A:$P,MATCH(ATS!$AB42,ATS!$O:$O,0),1) -> 845103 | AD42: =INDEX(ATS!$A:$P,MATCH(ATS!$AB42,ATS!$O:$O,0),2) -> Trailblazer Helmet | AE42: =INDEX(ATS!$A:$P,MATCH(ATS!$AB42,ATS!$O:$O,0),4) -> MWHTE-SM
A43: 810055 | B43: Bushwhacker II Comf Pads 7 mm | C43: WHO | D43: TEBLK-SM | E43: True Black | F43: SM | G43: Stock | H43: 1 | I43: 1 | J43: 1 | K43: 1 | L43: 1 | N43: 810055-TEBLK-SM | O43: =IF(B43="NET","",IF(B43="","",IFERROR(VLOOKUP(N43,EAN!$A:$B,2,FALSE),"MANGLER - MÅ OPPDATERE EAN-FANEN"))) -> 7048652327673 | P43: 1 | Q43: 1 | S43: =IF(B43="NET","",IFERROR(VLOOKUP(O43,'2) Order Form'!$W$9:$W$1924,1,FALSE),"Ikke med I order form")) -> 7048652327673 | U43: 7048652767486 | V43: =IFERROR(VLOOKUP(U43,'2) Order Form'!$W$9:$W$1994,1,FALSE),"Ikke med I order form") -> 7048652767486 | W43: =INDEX(ATS!$A:$P,MATCH(ATS!$U43,ATS!$O:$O,0),1) -> 845103 | X43: =INDEX(ATS!$A:$P,MATCH(ATS!$U43,ATS!$O:$O,0),2) -> Trailblazer Helmet | Y43: =INDEX(ATS!$A:$P,MATCH(ATS!$U43,ATS!$O:$O,0),4) -> MFLUO-ML | AA43: =IFERROR(VLOOKUP('2) Order Form'!W48,$U$4:$U$1000,1,FALSE),"Ikke med i Elastic") -> 7048652540331 | AB43: =SUM('2) Order Form'!W48) -> 7048652540331 | AC43: =INDEX(ATS!$A:$P,MATCH(ATS!$AB43,ATS!$O:$O,0),1) -> 845103 | AD43: =INDEX(ATS!$A:$P,MATCH(ATS!$AB43,ATS!$O:$O,0),2) -> Trailblazer Helmet | AE43: =INDEX(ATS!$A:$P,MATCH(ATS!$AB43,ATS!$O:$O,0),4) -> MWHTE-ML
A44: 810055 | B44: Bushwhacker II Comf Pads 7 mm | C44: WHO | D44: TEBLK-ML | E44: True Black | F44: ML | G44: Stock | H44: 1 | I44: 1 | J44: 1 | K44: 1 | L44: 1 | N44: 810055-TEBLK-ML | O44: =IF(B44="NET","",IF(B44="","",IFERROR(VLOOKUP(N44,EAN!$A:$B,2,FALSE),"MANGLER - MÅ OPPDATERE EAN-FANEN"))) -> 7048652327666 | P44: 1 | Q44: 1 | S44: =IF(B44="NET","",IFERROR(VLOOKUP(O44,'2) Order Form'!$W$9:$W$1924,1,FALSE),"Ikke med I order form")) -> 7048652327666 | U44: 7048652767479 | V44: =IFERROR(VLOOKUP(U44,'2) Order Form'!$W$9:$W$1994,1,FALSE),"Ikke med I order form") -> 7048652767479 | W44: =INDEX(ATS!$A:$P,MATCH(ATS!$U44,ATS!$O:$O,0),1) -> 845103 | X44: =INDEX(ATS!$A:$P,MATCH(ATS!$U44,ATS!$O:$O,0),2) -> Trailblazer Helmet | Y44: =INDEX(ATS!$A:$P,MATCH(ATS!$U44,ATS!$O:$O,0),4) -> MFLUO-LXL | AA44: =IFERROR(VLOOKUP('2) Order Form'!W49,$U$4:$U$1000,1,FALSE),"Ikke med i Elastic") -> 7048652540324 | AB44: =SUM('2) Order Form'!W49) -> 7048652540324 | AC44: =INDEX(ATS!$A:$P,MATCH(ATS!$AB44,ATS!$O:$O,0),1) -> 845103 | AD44: =INDEX(ATS!$A:$P,MATCH(ATS!$AB44,ATS!$O:$O,0),2) -> Trailblazer Helmet | AE44: =INDEX(ATS!$A:$P,MATCH(ATS!$AB44,ATS!$O:$O,0),4) -> MWHTE-LXL
A45: 810055 | B45: Bushwhacker II Comf Pads 7 mm | C45: WHO | D45: TEBLK-LXL | E45: True Black | F45: LXL | G45: Stock | H45: 0 | I45: 0 | J45: 0 | K45: 0 | L45: 0 | N45: 810055-TEBLK-LXL | O45: =IF(B45="NET","",IF(B45="","",IFERROR(VLOOKUP(N45,EAN!$A:$B,2,FALSE),"MANGLER - MÅ OPPDATERE EAN-FANEN"))) -> 7048652327659 | P45: 0 | Q45: 0 | S45: =IF(B45="NET","",IFERROR(VLOOKUP(O45,'2) Order Form'!$W$9:$W$1924,1,FALSE),"Ikke med I order form")) -> 7048652327659 | U45: 7048652767431 | V45: =IFERROR(VLOOKUP(U45,'2) Order Form'!$W$9:$W$1994,1,FALSE),"Ikke med I order form") -> 7048652767431 | W45: =INDEX(ATS!$A:$P,MATCH(ATS!$U45,ATS!$O:$O,0),1) -> 845103 | X45: =INDEX(ATS!$A:$P,MATCH(ATS!$U45,ATS!$O:$O,0),2) -> Trailblazer Helmet | Y45: =INDEX(ATS!$A:$P,MATCH(ATS!$U45,ATS!$O:$O,0),4) -> BGRRG-SM | AA45: =IFERROR(VLOOKUP('2) Order Form'!W50,$U$4:$U$1000,1,FALSE),"Ikke med i Elastic") -> 7048652767523 | AB45: =SUM('2) Order Form'!W50) -> 7048652767523 | AC45: =INDEX(ATS!$A:$P,MATCH(ATS!$AB45,ATS!$O:$O,0),1) -> 845103 | AD45: =INDEX(ATS!$A:$P,MATCH(ATS!$AB45,ATS!$O:$O,0),2) -> Trailblazer Helmet | AE45: =INDEX(ATS!$A:$P,MATCH(ATS!$AB45,ATS!$O:$O,0),4) -> SGRBO-SM
A46: 810056 | B46: Net | H46: 202235 | I46: 202236 | J46: 202237 | K46: 202238 | L46: 202239 | N46: 810056- | O46: =IF(B46="NET","",IF(B46="","",IFERROR(VLOOKUP(N46,EAN!$A:$B,2,FALSE),"MANGLER - MÅ OPPDATERE EAN-FANEN"))) ->  | P46: 202235 | Q46: 202239 | S46: =IF(B46="NET","",IFERROR(VLOOKUP(O46,'2) Order Form'!$W$9:$W$1924,1,FALSE),"Ikke med I order form")) ->  | U46: 7048652767424 | V46: =IFERROR(VLOOKUP(U46,'2) Order Form'!$W$9:$W$1994,1,FALSE),"Ikke med I order form") -> 7048652767424 | W46: =INDEX(ATS!$A:$P,MATCH(ATS!$U46,ATS!$O:$O,0),1) -> 845103 | X46: =INDEX(ATS!$A:$P,MATCH(ATS!$U46,ATS!$O:$O,0),2) -> Trailblazer Helmet | Y46: =INDEX(ATS!$A:$P,MATCH(ATS!$U46,ATS!$O:$O,0),4) -> BGRRG-ML | AA46: =IFERROR(VLOOKUP('2) Order Form'!W51,$U$4:$U$1000,1,FALSE),"Ikke med i Elastic") -> 7048652767516 | AB46: =SUM('2) Order Form'!W51) -> 7048652767516 | AC46: =INDEX(ATS!$A:$P,MATCH(ATS!$AB46,ATS!$O:$O,0),1) -> 845103 | AD46: =INDEX(ATS!$A:$P,MATCH(ATS!$AB46,ATS!$O:$O,0),2) -> Trailblazer Helmet | AE46: =INDEX(ATS!$A:$P,MATCH(ATS!$AB46,ATS!$O:$O,0),4) -> SGRBO-ML
